Workbook

Sheet ADP-Rank (hidden)
A1: PLAYERNAME | B1: PlayerID | C1: Pos | D1: OF Pos | E1: TEAM | F1: Age | G1: FT | H1: High | I1: Low | J1: Yahoo | K1: High | L1: Low | M1: CBS ADP | N1: High | O1: Low | P1: ESPN | Q1: High | R1: Low | S1: Fpros | T1: High | U1: Low | V1: NFBC | W1: High | X1: Low | Y1: Comb | Z1: High | AA1: Low | AB1: RotoChamp | AC1: Yahoo Staff | AD1: ESPN Points | AE1: ESPN Karabell | AF1: Fantasy Pros Avg | AG1: MC | AH1: Team In Sheet? | AI1: Rank Chosen | AJ1: Filtered-Rank | AK1: Chosen-ADP | AL1: Filtered-ADP-Rank | AM1: ADP Round | AN1: Early | AO1: Late | AP1: Filtered-Early | AQ1: Filtered-Late | AR1: ImportADP | AS1: High | AT1: Low | AU1: =IF(VLOOKUP(A2,'Name-Sort'!$D$2:$E$948,2,FALSE)="",A2,"") -> Bryan Abreu | AV1: =IFERROR(INDEX($AU$1:$AU$948,SMALL(IF($AU$1:$AU$948<>"",ROW($AU$1:$AU$948)),ROW(AU1))),"") -> Bryan Abreu
A2: Bryan Abreu | B2: abreubr01 | C2: RP | E2: HOU | F2: 22 | H2: =MIN(G2*0.75,IFERROR($W2,999),IFERROR($N2,999)) ->  | I2: =MAX(G2*1.33,IFERROR($X2,1),IFERROR($O2,1)) ->  | K2: =MIN(J2*0.75,IFERROR($W2,999),IFERROR($N2,999)) ->  | L2: =MAX(J2*1.33,IFERROR($X2,1),IFERROR($O2,1)) ->  | Q2: =MIN(P2*0.75,IFERROR($W2,999),IFERROR($N2,999)) ->  | R2: =MAX(P2*1.33,IFERROR($X2,1),IFERROR($O2,1)) ->  | T2: =MIN(S2*0.75,IFERROR($W2,999),IFERROR($N2,999)) ->  | U2: =MAX(S2*1.33,IFERROR($X2,1),IFERROR($O2,1)) ->  | V2: 733.58 | W2: 491 | X2: 748 | Y2: =IFERROR((IFERROR(V2,0)+IFERROR(S2,0)+IFERROR(M2,0)+IFERROR(G2,0)+IFERROR(P2,0)+IFERROR(J2,0))/(IF(ISERROR(V2),0,1)+IF(ISERROR(S2),0,1)+IF(ISERROR(M2),0,1)+IF(ISERROR(G2),0,1)+IF(ISERROR(P2),0,1)+IF(ISERROR(J2),0,1)),#N/A) -> 733.58 | Z2: =MIN(Y2*0.75,IFERROR($W2,999),IFERROR($N2,999)) -> 491 | AA2: =MAX(Y2*1.33,IFERROR($X2,1),IFERROR($O2,1)) -> 975.6614 | AH2: =IFERROR(INDEX('Guts-2'!$K$1:$K$30,MATCH(E2,'Guts-2'!$J$1:$J$30,0)),TRUE) -> TRUE | AI2: =IF(AH2=FALSE,"",IFERROR(CHOOSE('Guts-2'!$D$27,AB2,AC2,AD2,AE2,AF2,AG2),"")) ->  | AJ2: =IFERROR(RANK(AI2,$AI$2:$AI$948,1),"") ->  | AK2: =IF(AH2=FALSE,"",IFERROR(CHOOSE('Guts-2'!$D$26,G2,J2,M2,P2,S2,V2,Y2,AR2),"")) ->  | AL2: =IFERROR(IF(Settings!$L$5="Mixed (Standard)",AK2,RANK(AK2,$AK$2:$AK$948,1)),"") ->  | AM2: =IFERROR(IF(Settings!$L$5="Mixed (Standard)",(RANK(AK2,$AK$2:$AK$948,1)/('Guts-2'!$N$1+1))+1,(RANK(AL2,$AL$2:$AL$948,1)/('Guts-2'!$N$1+1))+1),"") ->  | AN2: =IFERROR(CHOOSE('Guts-2'!$D$26,H2,K2,N2,Q2,T2,W2,Z2,AS2),"") ->  | AO2: =IFERROR(CHOOSE('Guts-2'!$D$26,I2,L2,O2,R2,U2,X2,AA2,AT2),"") ->  | AP2: =IFERROR(IF(AH2=TRUE,IF((AN2-COUNTIFS($AN$2:$AN$948,"<"&AN2,$AH$2:$AH$948,FALSE))<1,1,AN2-COUNTIFS($AN$2:$AN$948,"<"&AN2,$AH$2:$AH$948,FALSE)),""),"") ->  | AQ2: =IFERROR(IF(AH2=FALSE,"",IF((AO2-COUNTIFS($AO$2:$AO$948,"<"&AO2,$AH$2:$AH$948,FALSE))<1,1,AO2-COUNTIFS($AO$2:$AO$948,"<"&AO2,$AH$2:$AH$948,FALSE))),"") ->  | AR2: =INDEX('Import (ADP)'!$C$2:$C$999,MATCH(A2, 'Import (ADP)'!$B$2:$B$999,0)) ->  | AS2: =IFERROR(MIN(N2,W2,ROUND(AR2*0.75,0)),ROUND(AR2*0.75,0)) ->  | AT2: =IFERROR(MAX(O2,X2,ROUND(AR2*1.25,0)),ROUND(AS2*1.25,0)) ->  | AU2: =IF(VLOOKUP(A3,'Name-Sort'!$D$2:$E$948,2,FALSE)="",A3,"") -> Jose Abreu | AV2: =IFERROR(INDEX($AU$1:$AU$948,SMALL(IF($AU$1:$AU$948<>"",ROW($AU$1:$AU$948)),ROW(AU2))),"") -> Jose Abreu
A3: Jose Abreu | B3: abreujo02 | C3: 1B | E3: CHW | F3: 33 | G3: 75 | H3: =MIN(G3*0.75,IFERROR($W3,999),IFERROR($N3,999)) -> 22 | I3: =MAX(G3*1.33,IFERROR($X3,1),IFERROR($O3,1)) -> 101 | J3: 76 | K3: =MIN(J3*0.75,IFERROR($W3,999),IFERROR($N3,999)) -> 22 | L3: =MAX(J3*1.33,IFERROR($X3,1),IFERROR($O3,1)) -> 101.08 | M3: 76 | N3: 22 | O3: 96 | P3: 61 | Q3: =MIN(P3*0.75,IFERROR($W3,999),IFERROR($N3,999)) -> 22 | R3: =MAX(P3*1.33,IFERROR($X3,1),IFERROR($O3,1)) -> 101 | S3: 73 | T3: =MIN(S3*0.75,IFERROR($W3,999),IFERROR($N3,999)) -> 22 | U3: =MAX(S3*1.33,IFERROR($X3,1),IFERROR($O3,1)) -> 101 | V3: 76.18 | W3: 52 | X3: 101 | Y3: =IFERROR((IFERROR(V3,0)+IFERROR(S3,0)+IFERROR(M3,0)+IFERROR(G3,0)+IFERROR(P3,0)+IFERROR(J3,0))/(IF(ISERROR(V3),0,1)+IF(ISERROR(S3),0,1)+IF(ISERROR(M3),0,1)+IF(ISERROR(G3),0,1)+IF(ISERROR(P3),0,1)+IF(ISERROR(J3),0,1)),#N/A) -> 72.86333333 | Z3: =MIN(Y3*0.75,IFERROR($W3,999),IFERROR($N3,999)) -> 22 | AA3: =MAX(Y3*1.33,IFERROR($X3,1),IFERROR($O3,1)) -> 101 | AB3: 61 | AC3: 73 | AD3: 51 | AE3: 74 | AF3: 66 | AH3: =IFERROR(INDEX('Guts-2'!$K$1:$K$30,MATCH(E3,'Guts-2'!$J$1:$J$30,0)),TRUE) -> TRUE | AI3: =IF(AH3=FALSE,"",IFERROR(CHOOSE('Guts-2'!$D$27,AB3,AC3,AD3,AE3,AF3,AG3),"")) -> 51 | AJ3: 51 | AK3: =IF(AH3=FALSE,"",IFERROR(CHOOSE('Guts-2'!$D$26,G3,J3,M3,P3,S3,V3,Y3,AR3),"")) -> 76 | AL3: =IFERROR(IF(Settings!$L$5="Mixed (Standard)",AK3,RANK(AK3,$AK$2:$AK$948,1)),"") -> 76 | AM3: =IFERROR(IF(Settings!$L$5="Mixed (Standard)",(RANK(AK3,$AK$2:$AK$948,1)/('Guts-2'!$N$1+1))+1,(RANK(AL3,$AL$2:$AL$948,1)/('Guts-2'!$N$1+1))+1),"") -> 6.461538462 | AN3: =IFERROR(CHOOSE('Guts-2'!$D$26,H3,K3,N3,Q3,T3,W3,Z3,AS3),"") -> 22 | AO3: =IFERROR(CHOOSE('Guts-2'!$D$26,I3,L3,O3,R3,U3,X3,AA3,AT3),"") -> 96 | AP3: 22 | AQ3: 96 | AR3: =INDEX('Import (ADP)'!$C$2:$C$999,MATCH(A3, 'Import (ADP)'!$B$2:$B$999,0)) ->  | AU3: =IF(VLOOKUP(A4,'Name-Sort'!$D$2:$E$948,2,FALSE)="",A4,"") -> Ronald Acuna | AV3: =IFERROR(INDEX($AU$1:$AU$948,SMALL(IF($AU$1:$AU$948<>"",ROW($AU$1:$AU$948)),ROW(AU3))),"") -> Ronald Acuna
A4: Ronald Acuna | B4: acunaro01 | C4: OF | D4: LF,CF,RF | E4: ATL | F4: 22 | G4: 1 | H4: 0.75 | I4: 17 | J4: 1 | K4: 0.75 | L4: 17 | M4: 5.88 | N4: 1 | O4: 17 | P4: 2 | Q4: 1 | R4: 17 | S4: 1.2 | T4: 0.9 | U4: 17 | V4: 1.38 | W4: 1 | X4: 4 | Y4: 2.076666667 | Z4: 1 | AA4: 17 | AB4: 3 | AC4: 1 | AD4: 1 | AE4: 1 | AF4: 1 | AH4: =IFERROR(INDEX('Guts-2'!$K$1:$K$30,MATCH(E4,'Guts-2'!$J$1:$J$30,0)),TRUE) -> TRUE | AI4: =IF(AH4=FALSE,"",IFERROR(CHOOSE('Guts-2'!$D$27,AB4,AC4,AD4,AE4,AF4,AG4),"")) -> 1 | AJ4: 1 | AK4: =IF(AH4=FALSE,"",IFERROR(CHOOSE('Guts-2'!$D$26,G4,J4,M4,P4,S4,V4,Y4,AR4),"")) -> 5.88 | AL4: =IFERROR(IF(Settings!$L$5="Mixed (Standard)",AK4,RANK(AK4,$AK$2:$AK$948,1)),"") -> 5.88 | AM4: =IFERROR(IF(Settings!$L$5="Mixed (Standard)",(RANK(AK4,$AK$2:$AK$948,1)/('Guts-2'!$N$1+1))+1,(RANK(AL4,$AL$2:$AL$948,1)/('Guts-2'!$N$1+1))+1),"") -> 1.307692308 | AN4: =IFERROR(CHOOSE('Guts-2'!$D$26,H4,K4,N4,Q4,T4,W4,Z4,AS4),"") -> 1 | AO4: =IFERROR(CHOOSE('Guts-2'!$D$26,I4,L4,O4,R4,U4,X4,AA4,AT4),"") -> 17 | AP4: 1 | AQ4: 17 | AR4: =INDEX('Import (ADP)'!$C$2:$C$999,MATCH(A4, 'Import (ADP)'!$B$2:$B$999,0)) -> 5 | AS4: 1 | AT4: 17 | AU4: =IF(VLOOKUP(A5,'Name-Sort'!$D$2:$E$948,2,FALSE)="",A5,"") -> Willy Adames | AV4: =IFERROR(INDEX($AU$1:$AU$948,SMALL(IF($AU$1:$AU$948<>"",ROW($AU$1:$AU$948)),ROW(AU4))),"") -> Willy Adames
A5: Willy Adames | B5: adamewi01 | C5: SS | E5: TB | F5: 24 | G5: 314 | H5: 208 | I5: 417.62 | J5: 377 | K5: 208 | L5: 501.41 | M5: 273 | N5: 242 | O5: 304 | S5: 341.3 | T5: 208 | U5: 453.929 | V5: 305.87 | W5: 208 | X5: 386 | Y5: 322.234 | Z5: 208 | AA5: 428.57122 | AC5: 305 | AD5: 260 | AE5: 298 | AF5: 285 | AH5: =IFERROR(INDEX('Guts-2'!$K$1:$K$30,MATCH(E5,'Guts-2'!$J$1:$J$30,0)),TRUE) -> TRUE | AI5: =IF(AH5=FALSE,"",IFERROR(CHOOSE('Guts-2'!$D$27,AB5,AC5,AD5,AE5,AF5,AG5),"")) -> 260 | AJ5: 260 | AK5: =IF(AH5=FALSE,"",IFERROR(CHOOSE('Guts-2'!$D$26,G5,J5,M5,P5,S5,V5,Y5,AR5),"")) -> 273 | AL5: =IFERROR(IF(Settings!$L$5="Mixed (Standard)",AK5,RANK(AK5,$AK$2:$AK$948,1)),"") -> 273 | AM5: =IFERROR(IF(Settings!$L$5="Mixed (Standard)",(RANK(AK5,$AK$2:$AK$948,1)/('Guts-2'!$N$1+1))+1,(RANK(AL5,$AL$2:$AL$948,1)/('Guts-2'!$N$1+1))+1),"") -> 23.84615385 | AN5: =IFERROR(CHOOSE('Guts-2'!$D$26,H5,K5,N5,Q5,T5,W5,Z5,AS5),"") -> 242 | AO5: =IFERROR(CHOOSE('Guts-2'!$D$26,I5,L5,O5,R5,U5,X5,AA5,AT5),"") -> 304 | AP5: 242 | AQ5: 304 | AR5: =INDEX('Import (ADP)'!$C$2:$C$999,MATCH(A5, 'Import (ADP)'!$B$2:$B$999,0)) ->  | AU5: =IF(VLOOKUP(A6,'Name-Sort'!$D$2:$E$948,2,FALSE)="",A6,"") -> Matt Adams | AV5: =IFERROR(INDEX($AU$1:$AU$948,SMALL(IF($AU$1:$AU$948<>"",ROW($AU$1:$AU$948)),ROW(AU5))),"") -> Matt Adams
A6: Matt Adams | B6: adamsma01 | C6: 1B | E6: NYM | F6: 31 | V6: 721.76 | W6: 498 | X6: 748 | Y6: 721.76 | Z6: 498 | AA6: 959.9408 | AF6: 586 | AH6: =IFERROR(INDEX('Guts-2'!$K$1:$K$30,MATCH(E6,'Guts-2'!$J$1:$J$30,0)),TRUE) -> TRUE | AI6: =IF(AH6=FALSE,"",IFERROR(CHOOSE('Guts-2'!$D$27,AB6,AC6,AD6,AE6,AF6,AG6),"")) ->  | AK6: =IF(AH6=FALSE,"",IFERROR(CHOOSE('Guts-2'!$D$26,G6,J6,M6,P6,S6,V6,Y6,AR6),"")) ->  | AL6: =IFERROR(IF(Settings!$L$5="Mixed (Standard)",AK6,RANK(AK6,$AK$2:$AK$948,1)),"") ->  | AM6: =IFERROR(IF(Settings!$L$5="Mixed (Standard)",(RANK(AK6,$AK$2:$AK$948,1)/('Guts-2'!$N$1+1))+1,(RANK(AL6,$AL$2:$AL$948,1)/('Guts-2'!$N$1+1))+1),"") ->  | AN6: =IFERROR(CHOOSE('Guts-2'!$D$26,H6,K6,N6,Q6,T6,W6,Z6,AS6),"") ->  | AO6: =IFERROR(CHOOSE('Guts-2'!$D$26,I6,L6,O6,R6,U6,X6,AA6,AT6),"") ->  | AR6: =INDEX('Import (ADP)'!$C$2:$C$999,MATCH(A6, 'Import (ADP)'!$B$2:$B$999,0)) ->  | AU6: =IF(VLOOKUP(A7,'Name-Sort'!$D$2:$E$948,2,FALSE)="",A7,"") -> Jo Adell | AV6: =IFERROR(INDEX($AU$1:$AU$948,SMALL(IF($AU$1:$AU$948<>"",ROW($AU$1:$AU$948)),ROW(AU6))),"") -> Jo Adell
A7: Jo Adell | B7: adelljo01 | C7: OF | D7: LF,CF,RF | E7: LAA | F7: 20 | G7: 205 | H7: 42 | I7: 436 | J7: 292 | K7: 42 | L7: 436 | M7: 181.83 | N7: 42 | O7: 436 | P7: 300 | Q7: 42 | R7: 436 | S7: 248.6 | T7: 42 | U7: 436 | V7: 213.74 | W7: 134 | X7: 407 | Y7: 240.195 | Z7: 42 | AA7: 436 | AC7: 283 | AE7: 224 | AF7: 268 | AH7: =IFERROR(INDEX('Guts-2'!$K$1:$K$30,MATCH(E7,'Guts-2'!$J$1:$J$30,0)),TRUE) -> TRUE | AI7: =IF(AH7=FALSE,"",IFERROR(CHOOSE('Guts-2'!$D$27,AB7,AC7,AD7,AE7,AF7,AG7),"")) ->  | AK7: =IF(AH7=FALSE,"",IFERROR(CHOOSE('Guts-2'!$D$26,G7,J7,M7,P7,S7,V7,Y7,AR7),"")) -> 181.83 | AL7: =IFERROR(IF(Settings!$L$5="Mixed (Standard)",AK7,RANK(AK7,$AK$2:$AK$948,1)),"") -> 181.83 | AM7: =IFERROR(IF(Settings!$L$5="Mixed (Standard)",(RANK(AK7,$AK$2:$AK$948,1)/('Guts-2'!$N$1+1))+1,(RANK(AL7,$AL$2:$AL$948,1)/('Guts-2'!$N$1+1))+1),"") -> 14.76923077 | AN7: =IFERROR(CHOOSE('Guts-2'!$D$26,H7,K7,N7,Q7,T7,W7,Z7,AS7),"") -> 42 | AO7: =IFERROR(CHOOSE('Guts-2'!$D$26,I7,L7,O7,R7,U7,X7,AA7,AT7),"") -> 436 | AP7: 42 | AQ7: 436 | AR7: =INDEX('Import (ADP)'!$C$2:$C$999,MATCH(A7, 'Import (ADP)'!$B$2:$B$999,0)) ->  | AU7: =IF(VLOOKUP(A8,'Name-Sort'!$D$2:$E$948,2,FALSE)="",A8,"") -> Ehire Adrianza | AV7: =IFERROR(INDEX($AU$1:$AU$948,SMALL(IF($AU$1:$AU$948<>"",ROW($AU$1:$AU$948)),ROW(AU7))),"") -> Ehire Adrianza
A8: Ehire Adrianza | B8: adriaeh01 | C8: SS | D8: RF | E8: MIN | F8: 30 | V8: 689.49 | W8: 449 | X8: 743 | Y8: 689.49 | Z8: 449 | AA8: 917.0217 | AH8: =IFERROR(INDEX('Guts-2'!$K$1:$K$30,MATCH(E8,'Guts-2'!$J$1:$J$30,0)),TRUE) -> TRUE | AI8: =IF(AH8=FALSE,"",IFERROR(CHOOSE('Guts-2'!$D$27,AB8,AC8,AD8,AE8,AF8,AG8),"")) ->  | AK8: =IF(AH8=FALSE,"",IFERROR(CHOOSE('Guts-2'!$D$26,G8,J8,M8,P8,S8,V8,Y8,AR8),"")) ->  | AL8: =IFERROR(IF(Settings!$L$5="Mixed (Standard)",AK8,RANK(AK8,$AK$2:$AK$948,1)),"") ->  | AM8: =IFERROR(IF(Settings!$L$5="Mixed (Standard)",(RANK(AK8,$AK$2:$AK$948,1)/('Guts-2'!$N$1+1))+1,(RANK(AL8,$AL$2:$AL$948,1)/('Guts-2'!$N$1+1))+1),"") ->  | AN8: =IFERROR(CHOOSE('Guts-2'!$D$26,H8,K8,N8,Q8,T8,W8,Z8,AS8),"") ->  | AO8: =IFERROR(CHOOSE('Guts-2'!$D$26,I8,L8,O8,R8,U8,X8,AA8,AT8),"") ->  | AR8: =INDEX('Import (ADP)'!$C$2:$C$999,MATCH(A8, 'Import (ADP)'!$B$2:$B$999,0)) ->  | AU8: =IF(VLOOKUP(A9,'Name-Sort'!$D$2:$E$948,2,FALSE)="",A9,"") -> Dario Agrazal | AV8: =IFERROR(INDEX($AU$1:$AU$948,SMALL(IF($AU$1:$AU$948<>"",ROW($AU$1:$AU$948)),ROW(AU8))),"") -> Dario Agrazal
A9: Dario Agrazal | B9: agrazda01 | C9: RP | E9: DET | F9: 25 | S9: 795 | T9: 596.25 | U9: 1057.35 | V9: 750.78 | W9: 683 | X9: 683 | Y9: 772.89 | Z9: 579.6675 | AA9: 1027.9437 | AH9: =IFERROR(INDEX('Guts-2'!$K$1:$K$30,MATCH(E9,'Guts-2'!$J$1:$J$30,0)),TRUE) -> TRUE | AI9: =IF(AH9=FALSE,"",IFERROR(CHOOSE('Guts-2'!$D$27,AB9,AC9,AD9,AE9,AF9,AG9),"")) ->  | AK9: =IF(AH9=FALSE,"",IFERROR(CHOOSE('Guts-2'!$D$26,G9,J9,M9,P9,S9,V9,Y9,AR9),"")) ->  | AL9: =IFERROR(IF(Settings!$L$5="Mixed (Standard)",AK9,RANK(AK9,$AK$2:$AK$948,1)),"") ->  | AM9: =IFERROR(IF(Settings!$L$5="Mixed (Standard)",(RANK(AK9,$AK$2:$AK$948,1)/('Guts-2'!$N$1+1))+1,(RANK(AL9,$AL$2:$AL$948,1)/('Guts-2'!$N$1+1))+1),"") ->  | AN9: =IFERROR(CHOOSE('Guts-2'!$D$26,H9,K9,N9,Q9,T9,W9,Z9,AS9),"") ->  | AO9: =IFERROR(CHOOSE('Guts-2'!$D$26,I9,L9,O9,R9,U9,X9,AA9,AT9),"") ->  | AR9: =INDEX('Import (ADP)'!$C$2:$C$999,MATCH(A9, 'Import (ADP)'!$B$2:$B$999,0)) ->  | AU9: =IF(VLOOKUP(A10,'Name-Sort'!$D$2:$E$948,2,FALSE)="",A10,"") -> Jesus Aguilar | AV9: =IFERROR(INDEX($AU$1:$AU$948,SMALL(IF($AU$1:$AU$948<>"",ROW($AU$1:$AU$948)),ROW(AU9))),"") -> Jesus Aguilar
A10: Jesus Aguilar | B10: aguilje01 | C10: 1B | E10: MIA | F10: 29 | G10: 503 | H10: 258 | I10: 675 | J10: 300 | K10: 225 | L10: 675 | S10: 402.5 | T10: 258 | U10: 675 | V10: 384.97 | W10: 258 | X10: 675 | Y10: 397.6175 | Z10: 258 | AA10: 675 | AC10: 382 | AE10: 276 | AF10: 322 | AH10: =IFERROR(INDEX('Guts-2'!$K$1:$K$30,MATCH(E10,'Guts-2'!$J$1:$J$30,0)),TRUE) -> TRUE | AI10: =IF(AH10=FALSE,"",IFERROR(CHOOSE('Guts-2'!$D$27,AB10,AC10,AD10,AE10,AF10,AG10),"")) ->  | AK10: =IF(AH10=FALSE,"",IFERROR(CHOOSE('Guts-2'!$D$26,G10,J10,M10,P10,S10,V10,Y10,AR10),"")) ->  | AL10: =IFERROR(IF(Settings!$L$5="Mixed (Standard)",AK10,RANK(AK10,$AK$2:$AK$948,1)),"") ->  | AM10: =IFERROR(IF(Settings!$L$5="Mixed (Standard)",(RANK(AK10,$AK$2:$AK$948,1)/('Guts-2'!$N$1+1))+1,(RANK(AL10,$AL$2:$AL$948,1)/('Guts-2'!$N$1+1))+1),"") ->  | AN10: =IFERROR(CHOOSE('Guts-2'!$D$26,H10,K10,N10,Q10,T10,W10,Z10,AS10),"") ->  | AO10: =IFERROR(CHOOSE('Guts-2'!$D$26,I10,L10,O10,R10,U10,X10,AA10,AT10),"") ->  | AR10: =INDEX('Import (ADP)'!$C$2:$C$999,MATCH(A10, 'Import (ADP)'!$B$2:$B$999,0)) ->  | AU10: =IF(VLOOKUP(A11,'Name-Sort'!$D$2:$E$948,2,FALSE)="",A11,"") -> Nick Ahmed | AV10: =IFERROR(INDEX($AU$1:$AU$948,SMALL(IF($AU$1:$AU$948<>"",ROW($AU$1:$AU$948)),ROW(AU10))),"") -> Nick Ahmed
A11: Nick Ahmed | B11: ahmedni01 | C11: SS | E11: ARI | F11: 30 | G11: 336 | H11: 217 | I11: 454 | J11: 371 | K11: 217 | L11: 493.43 | M11: 382 | N11: 343 | O11: 421 | P11: 335 | Q11: 217 | R11: 454 | S11: 358.6 | T11: 217 | U11: 476.938 | V11: 402.79 | W11: 217 | X11: 454 | Y11: 364.2316667 | Z11: 217 | AA11: 484.4281167 | AC11: 358 | AD11: 192 | AF11: 324 | AH11: =IFERROR(INDEX('Guts-2'!$K$1:$K$30,MATCH(E11,'Guts-2'!$J$1:$J$30,0)),TRUE) -> TRUE | AI11: =IF(AH11=FALSE,"",IFERROR(CHOOSE('Guts-2'!$D$27,AB11,AC11,AD11,AE11,AF11,AG11),"")) -> 192 | AJ11: 192 | AK11: =IF(AH11=FALSE,"",IFERROR(CHOOSE('Guts-2'!$D$26,G11,J11,M11,P11,S11,V11,Y11,AR11),"")) -> 382 | AL11: =IFERROR(IF(Settings!$L$5="Mixed (Standard)",AK11,RANK(AK11,$AK$2:$AK$948,1)),"") -> 382 | AM11: =IFERROR(IF(Settings!$L$5="Mixed (Standard)",(RANK(AK11,$AK$2:$AK$948,1)/('Guts-2'!$N$1+1))+1,(RANK(AL11,$AL$2:$AL$948,1)/('Guts-2'!$N$1+1))+1),"") -> 31.84615385 | AN11: =IFERROR(CHOOSE('Guts-2'!$D$26,H11,K11,N11,Q11,T11,W11,Z11,AS11),"") -> 343 | AO11: =IFERROR(CHOOSE('Guts-2'!$D$26,I11,L11,O11,R11,U11,X11,AA11,AT11),"") -> 421 | AP11: 343 | AQ11: 421 | AR11: =INDEX('Import (ADP)'!$C$2:$C$999,MATCH(A11, 'Import (ADP)'!$B$2:$B$999,0)) ->  | AU11: =IF(VLOOKUP(A12,'Name-Sort'!$D$2:$E$948,2,FALSE)="",A12,"") -> Shogo Akiyama | AV11: =IFERROR(INDEX($AU$1:$AU$948,SMALL(IF($AU$1:$AU$948<>"",ROW($AU$1:$AU$948)),ROW(AU11))),"") -> Shogo Akiyama
A12: Shogo Akiyama | B12: akimash01 | C12: OF | E12: CIN | F12: 31 | G12: 311 | H12: 144 | I12: 694 | J12: 232 | K12: 144 | L12: 694 | M12: 509 | N12: 324 | O12: 694 | P12: 261 | Q12: 144 | R12: 694 | S12: 269.4 | T12: 144 | U12: 694 | V12: 294.74 | W12: 144 | X12: 569 | Y12: 312.8566667 | Z12: 144 | AA12: 694 | AC12: 338 | AD12: 163 | AF12: 372 | AH12: =IFERROR(INDEX('Guts-2'!$K$1:$K$30,MATCH(E12,'Guts-2'!$J$1:$J$30,0)),TRUE) -> TRUE | AI12: =IF(AH12=FALSE,"",IFERROR(CHOOSE('Guts-2'!$D$27,AB12,AC12,AD12,AE12,AF12,AG12),"")) -> 163 | AJ12: 163 | AK12: =IF(AH12=FALSE,"",IFERROR(CHOOSE('Guts-2'!$D$26,G12,J12,M12,P12,S12,V12,Y12,AR12),"")) -> 509 | AL12: =IFERROR(IF(Settings!$L$5="Mixed (Standard)",AK12,RANK(AK12,$AK$2:$AK$948,1)),"") -> 509 | AM12: =IFERROR(IF(Settings!$L$5="Mixed (Standard)",(RANK(AK12,$AK$2:$AK$948,1)/('Guts-2'!$N$1+1))+1,(RANK(AL12,$AL$2:$AL$948,1)/('Guts-2'!$N$1+1))+1),"") -> 37.30769231 | AN12: =IFERROR(CHOOSE('Guts-2'!$D$26,H12,K12,N12,Q12,T12,W12,Z12,AS12),"") -> 324 | AO12: =IFERROR(CHOOSE('Guts-2'!$D$26,I12,L12,O12,R12,U12,X12,AA12,AT12),"") -> 694 | AP12: 324 | AQ12: 694 | AR12: =INDEX('Import (ADP)'!$C$2:$C$999,MATCH(A12, 'Import (ADP)'!$B$2:$B$999,0)) ->  | AU12: =IF(VLOOKUP(A13,'Name-Sort'!$D$2:$E$948,2,FALSE)="",A13,"") -> Hanser Alberto | AV12: =IFERROR(INDEX($AU$1:$AU$948,SMALL(IF($AU$1:$AU$948<>"",ROW($AU$1:$AU$948)),ROW(AU12))),"") -> Hanser Alberto
A13: Hanser Alberto | B13: alberha01 | C13: 2B | E13: BAL | F13: 27 | G13: 324 | H13: 201 | I13: 458 | J13: 339 | K13: 201 | L13: 458 | M13: 289.5 | N13: 201 | O13: 359 | S13: 340.7 | T13: 201 | U13: 458 | V13: 407.76 | W13: 244 | X13: 458 | Y13: 340.192 | Z13: 201 | AA13: 458 | AB13: 243 | AC13: 354 | AF13: 326 | AH13: =IFERROR(INDEX('Guts-2'!$K$1:$K$30,MATCH(E13,'Guts-2'!$J$1:$J$30,0)),TRUE) -> TRUE | AI13: =IF(AH13=FALSE,"",IFERROR(CHOOSE('Guts-2'!$D$27,AB13,AC13,AD13,AE13,AF13,AG13),"")) ->  | AK13: =IF(AH13=FALSE,"",IFERROR(CHOOSE('Guts-2'!$D$26,G13,J13,M13,P13,S13,V13,Y13,AR13),"")) -> 289.5 | AL13: =IFERROR(IF(Settings!$L$5="Mixed (Standard)",AK13,RANK(AK13,$AK$2:$AK$948,1)),"") -> 289.5 | AM13: =IFERROR(IF(Settings!$L$5="Mixed (Standard)",(RANK(AK13,$AK$2:$AK$948,1)/('Guts-2'!$N$1+1))+1,(RANK(AL13,$AL$2:$AL$948,1)/('Guts-2'!$N$1+1))+1),"") -> 25.38461538 | AN13: =IFERROR(CHOOSE('Guts-2'!$D$26,H13,K13,N13,Q13,T13,W13,Z13,AS13),"") -> 201 | AO13: =IFERROR(CHOOSE('Guts-2'!$D$26,I13,L13,O13,R13,U13,X13,AA13,AT13),"") -> 359 | AP13: 201 | AQ13: 359 | AR13: =INDEX('Import (ADP)'!$C$2:$C$999,MATCH(A13, 'Import (ADP)'!$B$2:$B$999,0)) ->  | AU13: =IF(VLOOKUP(A14,'Name-Sort'!$D$2:$E$948,2,FALSE)="",A14,"") -> Ozzie Albies | AV13: =IFERROR(INDEX($AU$1:$AU$948,SMALL(IF($AU$1:$AU$948<>"",ROW($AU$1:$AU$948)),ROW(AU13))),"") -> Ozzie Albies
A14: Ozzie Albies | B14: albieoz01 | C14: 2B | E14: ATL | F14: 23 | G14: 39 | H14: 17 | I14: 93 | J14: 37 | K14: 17 | L14: 93 | M14: 50.62 | N14: 17 | O14: 93 | P14: 40 | Q14: 17 | R14: 93 | S14: 39.4 | T14: 17 | U14: 93 | V14: 39.47 | W14: 25 | X14: 66 | Y14: 40.915 | Z14: 17 | AA14: 93 | AB14: 58 | AC14: 39 | AD14: 30 | AE14: 47 | AF14: 40 | AH14: =IFERROR(INDEX('Guts-2'!$K$1:$K$30,MATCH(E14,'Guts-2'!$J$1:$J$30,0)),TRUE) -> TRUE | AI14: =IF(AH14=FALSE,"",IFERROR(CHOOSE('Guts-2'!$D$27,AB14,AC14,AD14,AE14,AF14,AG14),"")) -> 30 | AJ14: 30 | AK14: =IF(AH14=FALSE,"",IFERROR(CHOOSE('Guts-2'!$D$26,G14,J14,M14,P14,S14,V14,Y14,AR14),"")) -> 50.62 | AL14: =IFERROR(IF(Settings!$L$5="Mixed (Standard)",AK14,RANK(AK14,$AK$2:$AK$948,1)),"") -> 50.62 | AM14: =IFERROR(IF(Settings!$L$5="Mixed (Standard)",(RANK(AK14,$AK$2:$AK$948,1)/('Guts-2'!$N$1+1))+1,(RANK(AL14,$AL$2:$AL$948,1)/('Guts-2'!$N$1+1))+1),"") -> 4.153846154 | AN14: =IFERROR(CHOOSE('Guts-2'!$D$26,H14,K14,N14,Q14,T14,W14,Z14,AS14),"") -> 17 | AO14: =IFERROR(CHOOSE('Guts-2'!$D$26,I14,L14,O14,R14,U14,X14,AA14,AT14),"") -> 93 | AP14: 17 | AQ14: 93 | AR14: =INDEX('Import (ADP)'!$C$2:$C$999,MATCH(A14, 'Import (ADP)'!$B$2:$B$999,0)) ->  | AU14: =IF(VLOOKUP(A15,'Name-Sort'!$D$2:$E$948,2,FALSE)="",A15,"") -> Sandy Alcantara | AV14: =IFERROR(INDEX($AU$1:$AU$948,SMALL(IF($AU$1:$AU$948<>"",ROW($AU$1:$AU$948)),ROW(AU14))),"") -> Sandy Alcantara
A15: Sandy Alcantara | B15: alcansa01 | C15: SP | E15: MIA | F15: 24 | G15: 233 | H15: 134 | I15: 338 | M15: 204.86 | N15: 134 | O15: 338 | P15: 304 | Q15: 134 | R15: 404.32 | S15: 265.3 | T15: 134 | U15: 352.849 | V15: 258.58 | W15: 175 | X15: 331 | Y15: 253.148 | Z15: 134 | AA15: 338 | AC15: 277 | AD15: 237 | AE15: 182 | AF15: 247 | AH15: =IFERROR(INDEX('Guts-2'!$K$1:$K$30,MATCH(E15,'Guts-2'!$J$1:$J$30,0)),TRUE) -> TRUE | AI15: =IF(AH15=FALSE,"",IFERROR(CHOOSE('Guts-2'!$D$27,AB15,AC15,AD15,AE15,AF15,AG15),"")) -> 237 | AJ15: 237 | AK15: =IF(AH15=FALSE,"",IFERROR(CHOOSE('Guts-2'!$D$26,G15,J15,M15,P15,S15,V15,Y15,AR15),"")) -> 204.86 | AL15: =IFERROR(IF(Settings!$L$5="Mixed (Standard)",AK15,RANK(AK15,$AK$2:$AK$948,1)),"") -> 204.86 | AM15: =IFERROR(IF(Settings!$L$5="Mixed (Standard)",(RANK(AK15,$AK$2:$AK$948,1)/('Guts-2'!$N$1+1))+1,(RANK(AL15,$AL$2:$AL$948,1)/('Guts-2'!$N$1+1))+1),"") -> 17.23076923 | AN15: =IFERROR(CHOOSE('Guts-2'!$D$26,H15,K15,N15,Q15,T15,W15,Z15,AS15),"") -> 134 | AO15: =IFERROR(CHOOSE('Guts-2'!$D$26,I15,L15,O15,R15,U15,X15,AA15,AT15),"") -> 338 | AP15: 134 | AQ15: 338 | AR15: =INDEX('Import (ADP)'!$C$2:$C$999,MATCH(A15, 'Import (ADP)'!$B$2:$B$999,0)) ->  | AU15: =IF(VLOOKUP(A16,'Name-Sort'!$D$2:$E$948,2,FALSE)="",A16,"") -> Jorge Alfaro | AV15: =IFERROR(INDEX($AU$1:$AU$948,SMALL(IF($AU$1:$AU$948<>"",ROW($AU$1:$AU$948)),ROW(AU15))),"") -> Jorge Alfaro
A16: Jorge Alfaro | B16: alfarjo01 | C16: C | E16: MIA | F16: 26 | G16: 325 | H16: 141 | I16: 436 | J16: 238 | K16: 141 | L16: 436 | M16: 357.5 | N16: 279 | O16: 436 | S16: 241.3 | T16: 141 | U16: 436 | V16: 210.58 | W16: 141 | X16: 274 | Y16: 274.476 | Z16: 141 | AA16: 436 | AB16: 234 | AC16: 286 | AF16: 313 | AH16: =IFERROR(INDEX('Guts-2'!$K$1:$K$30,MATCH(E16,'Guts-2'!$J$1:$J$30,0)),TRUE) -> TRUE | AI16: =IF(AH16=FALSE,"",IFERROR(CHOOSE('Guts-2'!$D$27,AB16,AC16,AD16,AE16,AF16,AG16),"")) ->  | AK16: =IF(AH16=FALSE,"",IFERROR(CHOOSE('Guts-2'!$D$26,G16,J16,M16,P16,S16,V16,Y16,AR16),"")) -> 357.5 | AL16: =IFERROR(IF(Settings!$L$5="Mixed (Standard)",AK16,RANK(AK16,$AK$2:$AK$948,1)),"") -> 357.5 | AM16: =IFERROR(IF(Settings!$L$5="Mixed (Standard)",(RANK(AK16,$AK$2:$AK$948,1)/('Guts-2'!$N$1+1))+1,(RANK(AL16,$AL$2:$AL$948,1)/('Guts-2'!$N$1+1))+1),"") -> 30.15384615 | AN16: =IFERROR(CHOOSE('Guts-2'!$D$26,H16,K16,N16,Q16,T16,W16,Z16,AS16),"") -> 279 | AO16: =IFERROR(CHOOSE('Guts-2'!$D$26,I16,L16,O16,R16,U16,X16,AA16,AT16),"") -> 436 | AP16: 279 | AQ16: 436 | AR16: =INDEX('Import (ADP)'!$C$2:$C$999,MATCH(A16, 'Import (ADP)'!$B$2:$B$999,0)) ->  | AU16: =IF(VLOOKUP(A17,'Name-Sort'!$D$2:$E$948,2,FALSE)="",A17,"") -> Kolby Allard | AV16: =IFERROR(INDEX($AU$1:$AU$948,SMALL(IF($AU$1:$AU$948<>"",ROW($AU$1:$AU$948)),ROW(AU16))),"") -> Kolby Allard
A17: Kolby Allard | B17: allarko01 | C17: SP | E17: TEX | F17: 22 | V17: 693.63 | W17: 394 | X17: 745 | Y17: 693.63 | Z17: 394 | AA17: 922.5279 | AF17: 584 | AH17: =IFERROR(INDEX('Guts-2'!$K$1:$K$30,MATCH(E17,'Guts-2'!$J$1:$J$30,0)),TRUE) -> TRUE | AI17: =IF(AH17=FALSE,"",IFERROR(CHOOSE('Guts-2'!$D$27,AB17,AC17,AD17,AE17,AF17,AG17),"")) ->  | AK17: =IF(AH17=FALSE,"",IFERROR(CHOOSE('Guts-2'!$D$26,G17,J17,M17,P17,S17,V17,Y17,AR17),"")) ->  | AL17: =IFERROR(IF(Settings!$L$5="Mixed (Standard)",AK17,RANK(AK17,$AK$2:$AK$948,1)),"") ->  | AM17: =IFERROR(IF(Settings!$L$5="Mixed (Standard)",(RANK(AK17,$AK$2:$AK$948,1)/('Guts-2'!$N$1+1))+1,(RANK(AL17,$AL$2:$AL$948,1)/('Guts-2'!$N$1+1))+1),"") ->  | AN17: =IFERROR(CHOOSE('Guts-2'!$D$26,H17,K17,N17,Q17,T17,W17,Z17,AS17),"") ->  | AO17: =IFERROR(CHOOSE('Guts-2'!$D$26,I17,L17,O17,R17,U17,X17,AA17,AT17),"") ->  | AR17: =INDEX('Import (ADP)'!$C$2:$C$999,MATCH(A17, 'Import (ADP)'!$B$2:$B$999,0)) ->  | AU17: =IF(VLOOKUP(A18,'Name-Sort'!$D$2:$E$948,2,FALSE)="",A18,"") -> Austin Allen | AV17: =IFERROR(INDEX($AU$1:$AU$948,SMALL(IF($AU$1:$AU$948<>"",ROW($AU$1:$AU$948)),ROW(AU17))),"") -> Austin Allen
A18: Austin Allen | B18: allenau01 | C18: C | E18: OAK | F18: 26 | V18: 639.01 | W18: 368 | X18: 741 | Y18: 639.01 | Z18: 368 | AA18: 849.8833 | AH18: =IFERROR(INDEX('Guts-2'!$K$1:$K$30,MATCH(E18,'Guts-2'!$J$1:$J$30,0)),TRUE) -> TRUE | AI18: =IF(AH18=FALSE,"",IFERROR(CHOOSE('Guts-2'!$D$27,AB18,AC18,AD18,AE18,AF18,AG18),"")) ->  | AK18: =IF(AH18=FALSE,"",IFERROR(CHOOSE('Guts-2'!$D$26,G18,J18,M18,P18,S18,V18,Y18,AR18),"")) ->  | AL18: =IFERROR(IF(Settings!$L$5="Mixed (Standard)",AK18,RANK(AK18,$AK$2:$AK$948,1)),"") ->  | AM18: =IFERROR(IF(Settings!$L$5="Mixed (Standard)",(RANK(AK18,$AK$2:$AK$948,1)/('Guts-2'!$N$1+1))+1,(RANK(AL18,$AL$2:$AL$948,1)/('Guts-2'!$N$1+1))+1),"") ->  | AN18: =IFERROR(CHOOSE('Guts-2'!$D$26,H18,K18,N18,Q18,T18,W18,Z18,AS18),"") ->  | AO18: =IFERROR(CHOOSE('Guts-2'!$D$26,I18,L18,O18,R18,U18,X18,AA18,AT18),"") ->  | AR18: =INDEX('Import (ADP)'!$C$2:$C$999,MATCH(A18, 'Import (ADP)'!$B$2:$B$999,0)) ->  | AU18: =IF(VLOOKUP(A19,'Name-Sort'!$D$2:$E$948,2,FALSE)="",A19,"") -> Greg Allen | AV18: =IFERROR(INDEX($AU$1:$AU$948,SMALL(IF($AU$1:$AU$948<>"",ROW($AU$1:$AU$948)),ROW(AU18))),"") -> Greg Allen
A19: Greg Allen | B19: allengr01 | C19: OF | D19: LF,CF,RF | E19: CLE | F19: 27 | V19: 709.36 | W19: 452 | X19: 750 | Y19: 709.36 | Z19: 452 | AA19: 943.4488 | AF19: 590 | AH19: =IFERROR(INDEX('Guts-2'!$K$1:$K$30,MATCH(E19,'Guts-2'!$J$1:$J$30,0)),TRUE) -> TRUE | AI19: =IF(AH19=FALSE,"",IFERROR(CHOOSE('Guts-2'!$D$27,AB19,AC19,AD19,AE19,AF19,AG19),"")) ->  | AK19: =IF(AH19=FALSE,"",IFERROR(CHOOSE('Guts-2'!$D$26,G19,J19,M19,P19,S19,V19,Y19,AR19),"")) ->  | AL19: =IFERROR(IF(Settings!$L$5="Mixed (Standard)",AK19,RANK(AK19,$AK$2:$AK$948,1)),"") ->  | AM19: =IFERROR(IF(Settings!$L$5="Mixed (Standard)",(RANK(AK19,$AK$2:$AK$948,1)/('Guts-2'!$N$1+1))+1,(RANK(AL19,$AL$2:$AL$948,1)/('Guts-2'!$N$1+1))+1),"") ->  | AN19: =IFERROR(CHOOSE('Guts-2'!$D$26,H19,K19,N19,Q19,T19,W19,Z19,AS19),"") ->  | AO19: =IFERROR(CHOOSE('Guts-2'!$D$26,I19,L19,O19,R19,U19,X19,AA19,AT19),"") ->  | AR19: =INDEX('Import (ADP)'!$C$2:$C$999,MATCH(A19, 'Import (ADP)'!$B$2:$B$999,0)) ->  | AU19: =IF(VLOOKUP(A20,'Name-Sort'!$D$2:$E$948,2,FALSE)="",A20,"") -> Logan Allen | AV19: =IFERROR(INDEX($AU$1:$AU$948,SMALL(IF($AU$1:$AU$948<>"",ROW($AU$1:$AU$948)),ROW(AU19))),"") -> Logan Allen
A20: Logan Allen | B20: allenlo01 | C20: RP | E20: CLE | F20: 22 | V20: 714.85 | W20: 455 | X20: 749 | Y20: 714.85 | Z20: 455 | AA20: 950.7505 | AH20: =IFERROR(INDEX('Guts-2'!$K$1:$K$30,MATCH(E20,'Guts-2'!$J$1:$J$30,0)),TRUE) -> TRUE | AI20: =IF(AH20=FALSE,"",IFERROR(CHOOSE('Guts-2'!$D$27,AB20,AC20,AD20,AE20,AF20,AG20),"")) ->  | AK20: =IF(AH20=FALSE,"",IFERROR(CHOOSE('Guts-2'!$D$26,G20,J20,M20,P20,S20,V20,Y20,AR20),"")) ->  | AL20: =IFERROR(IF(Settings!$L$5="Mixed (Standard)",AK20,RANK(AK20,$AK$2:$AK$948,1)),"") ->  | AM20: =IFERROR(IF(Settings!$L$5="Mixed (Standard)",(RANK(AK20,$AK$2:$AK$948,1)/('Guts-2'!$N$1+1))+1,(RANK(AL20,$AL$2:$AL$948,1)/('Guts-2'!$N$1+1))+1),"") ->  | AN20: =IFERROR(CHOOSE('Guts-2'!$D$26,H20,K20,N20,Q20,T20,W20,Z20,AS20),"") ->  | AO20: =IFERROR(CHOOSE('Guts-2'!$D$26,I20,L20,O20,R20,U20,X20,AA20,AT20),"") ->  | AR20: =INDEX('Import (ADP)'!$C$2:$C$999,MATCH(A20, 'Import (ADP)'!$B$2:$B$999,0)) ->  | AU20: =IF(VLOOKUP(A21,'Name-Sort'!$D$2:$E$948,2,FALSE)="",A21,"") -> Albert Almora | AV20: =IFERROR(INDEX($AU$1:$AU$948,SMALL(IF($AU$1:$AU$948<>"",ROW($AU$1:$AU$948)),ROW(AU20))),"") -> Albert Almora
A21: Albert Almora | B21: almoral01 | C21: OF | D21: CF | E21: CHC | F21: 25 | P21: 468 | Q21: 351 | R21: 750 | S21: 591.5 | T21: 409 | U21: 786.695 | V21: 737.69 | W21: 409 | X21: 750 | Y21: 599.0633333 | Z21: 409 | AA21: 796.7542333 | AH21: =IFERROR(INDEX('Guts-2'!$K$1:$K$30,MATCH(E21,'Guts-2'!$J$1:$J$30,0)),TRUE) -> TRUE | AI21: =IF(AH21=FALSE,"",IFERROR(CHOOSE('Guts-2'!$D$27,AB21,AC21,AD21,AE21,AF21,AG21),"")) ->  | AK21: =IF(AH21=FALSE,"",IFERROR(CHOOSE('Guts-2'!$D$26,G21,J21,M21,P21,S21,V21,Y21,AR21),"")) ->  | AL21: =IFERROR(IF(Settings!$L$5="Mixed (Standard)",AK21,RANK(AK21,$AK$2:$AK$948,1)),"") ->  | AM21: =IFERROR(IF(Settings!$L$5="Mixed (Standard)",(RANK(AK21,$AK$2:$AK$948,1)/('Guts-2'!$N$1+1))+1,(RANK(AL21,$AL$2:$AL$948,1)/('Guts-2'!$N$1+1))+1),"") ->  | AN21: =IFERROR(CHOOSE('Guts-2'!$D$26,H21,K21,N21,Q21,T21,W21,Z21,AS21),"") ->  | AO21: =IFERROR(CHOOSE('Guts-2'!$D$26,I21,L21,O21,R21,U21,X21,AA21,AT21),"") ->  | AR21: =INDEX('Import (ADP)'!$C$2:$C$999,MATCH(A21, 'Import (ADP)'!$B$2:$B$999,0)) ->  | AU21: =IF(VLOOKUP(A22,'Name-Sort'!$D$2:$E$948,2,FALSE)="",A22,"") -> Pete Alonso | AV21: =IFERROR(INDEX($AU$1:$AU$948,SMALL(IF($AU$1:$AU$948<>"",ROW($AU$1:$AU$948)),ROW(AU21))),"") -> Pete Alonso
A22: Pete Alonso | B22: alonspe01 | C22: 1B | E22: NYM | F22: 25 | G22: 27 | H22: 14 | I22: 52 | J22: 23 | K22: 14 | L22: 52 | M22: 32.12 | N22: 14 | O22: 52 | P22: 24 | Q22: 14 | R22: 52 | S22: 26.4 | T22: 14 | U22: 52 | V22: 31.09 | W22: 16 | X22: 49 | Y22: 27.26833333 | Z22: 14 | AA22: 52 | AB22: 35 | AC22: 24 | AD22: 44 | AE22: 25 | AF22: 34 | AH22: =IFERROR(INDEX('Guts-2'!$K$1:$K$30,MATCH(E22,'Guts-2'!$J$1:$J$30,0)),TRUE) -> TRUE | AI22: =IF(AH22=FALSE,"",IFERROR(CHOOSE('Guts-2'!$D$27,AB22,AC22,AD22,AE22,AF22,AG22),"")) -> 44 | AJ22: 44 | AK22: =IF(AH22=FALSE,"",IFERROR(CHOOSE('Guts-2'!$D$26,G22,J22,M22,P22,S22,V22,Y22,AR22),"")) -> 32.12 | AL22: =IFERROR(IF(Settings!$L$5="Mixed (Standard)",AK22,RANK(AK22,$AK$2:$AK$948,1)),"") -> 32.12 | AM22: =IFERROR(IF(Settings!$L$5="Mixed (Standard)",(RANK(AK22,$AK$2:$AK$948,1)/('Guts-2'!$N$1+1))+1,(RANK(AL22,$AL$2:$AL$948,1)/('Guts-2'!$N$1+1))+1),"") -> 2.923076923 | AN22: =IFERROR(CHOOSE('Guts-2'!$D$26,H22,K22,N22,Q22,T22,W22,Z22,AS22),"") -> 14 | AO22: =IFERROR(CHOOSE('Guts-2'!$D$26,I22,L22,O22,R22,U22,X22,AA22,AT22),"") -> 52 | AP22: 14 | AQ22: 52 | AR22: =INDEX('Import (ADP)'!$C$2:$C$999,MATCH(A22, 'Import (ADP)'!$B$2:$B$999,0)) -> 32 | AS22: 14 | AT22: 52 | AU22: =IF(VLOOKUP(A23,'Name-Sort'!$D$2:$E$948,2,FALSE)="",A23,"") -> Yonder Alonso | AV22: =IFERROR(INDEX($AU$1:$AU$948,SMALL(IF($AU$1:$AU$948<>"",ROW($AU$1:$AU$948)),ROW(AU22))),"") -> Yonder Alonso
A23: Yonder Alonso | B23: alonsyo01 | C23: 1B | E23: COL | F23: 32 | S23: 689 | T23: 327 | U23: 916.37 | V23: 749.45 | W23: 327 | X23: 745 | Y23: 719.225 | Z23: 327 | AA23: 956.56925 | AH23: =IFERROR(INDEX('Guts-2'!$K$1:$K$30,MATCH(E23,'Guts-2'!$J$1:$J$30,0)),TRUE) -> TRUE | AI23: =IF(AH23=FALSE,"",IFERROR(CHOOSE('Guts-2'!$D$27,AB23,AC23,AD23,AE23,AF23,AG23),"")) ->  | AK23: =IF(AH23=FALSE,"",IFERROR(CHOOSE('Guts-2'!$D$26,G23,J23,M23,P23,S23,V23,Y23,AR23),"")) ->  | AL23: =IFERROR(IF(Settings!$L$5="Mixed (Standard)",AK23,RANK(AK23,$AK$2:$AK$948,1)),"") ->  | AM23: =IFERROR(IF(Settings!$L$5="Mixed (Standard)",(RANK(AK23,$AK$2:$AK$948,1)/('Guts-2'!$N$1+1))+1,(RANK(AL23,$AL$2:$AL$948,1)/('Guts-2'!$N$1+1))+1),"") ->  | AN23: =IFERROR(CHOOSE('Guts-2'!$D$26,H23,K23,N23,Q23,T23,W23,Z23,AS23),"") ->  | AO23: =IFERROR(CHOOSE('Guts-2'!$D$26,I23,L23,O23,R23,U23,X23,AA23,AT23),"") ->  | AR23: =INDEX('Import (ADP)'!$C$2:$C$999,MATCH(A23, 'Import (ADP)'!$B$2:$B$999,0)) ->  | AU23: =IF(VLOOKUP(A24,'Name-Sort'!$D$2:$E$948,2,FALSE)="",A24,"") -> Jose Altuve | AV23: =IFERROR(INDEX($AU$1:$AU$948,SMALL(IF($AU$1:$AU$948<>"",ROW($AU$1:$AU$948)),ROW(AU23))),"") -> Jose Altuve
A24: Jose Altuve | B24: altuvjo01 | C24: 2B | E24: HOU | F24: 29 | G24: 33 | H24: 9 | I24: 54 | J24: 31 | K24: 9 | L24: 54 | M24: 22.88 | N24: 9 | O24: 41 | P24: 27 | Q24: 9 | R24: 54 | S24: 31 | T24: 9 | U24: 54 | V24: 34.4 | W24: 17 | X24: 54 | Y24: 29.88 | Z24: 9 | AA24: 54 | AB24: 15 | AC24: 36 | AD24: 29 | AE24: 23 | AF24: 31 | AH24: =IFERROR(INDEX('Guts-2'!$K$1:$K$30,MATCH(E24,'Guts-2'!$J$1:$J$30,0)),TRUE) -> TRUE | AI24: =IF(AH24=FALSE,"",IFERROR(CHOOSE('Guts-2'!$D$27,AB24,AC24,AD24,AE24,AF24,AG24),"")) -> 29 | AJ24: 29 | AK24: =IF(AH24=FALSE,"",IFERROR(CHOOSE('Guts-2'!$D$26,G24,J24,M24,P24,S24,V24,Y24,AR24),"")) -> 22.88 | AL24: =IFERROR(IF(Settings!$L$5="Mixed (Standard)",AK24,RANK(AK24,$AK$2:$AK$948,1)),"") -> 22.88 | AM24: =IFERROR(IF(Settings!$L$5="Mixed (Standard)",(RANK(AK24,$AK$2:$AK$948,1)/('Guts-2'!$N$1+1))+1,(RANK(AL24,$AL$2:$AL$948,1)/('Guts-2'!$N$1+1))+1),"") -> 2.307692308 | AN24: =IFERROR(CHOOSE('Guts-2'!$D$26,H24,K24,N24,Q24,T24,W24,Z24,AS24),"") -> 9 | AO24: =IFERROR(CHOOSE('Guts-2'!$D$26,I24,L24,O24,R24,U24,X24,AA24,AT24),"") -> 41 | AP24: 9 | AQ24: 41 | AR24: =INDEX('Import (ADP)'!$C$2:$C$999,MATCH(A24, 'Import (ADP)'!$B$2:$B$999,0)) -> 22 | AS24: 9 | AT24: 54 | AU24: =IF(VLOOKUP(A25,'Name-Sort'!$D$2:$E$948,2,FALSE)="",A25,"") -> Jose Alvarado | AV24: =IFERROR(INDEX($AU$1:$AU$948,SMALL(IF($AU$1:$AU$948<>"",ROW($AU$1:$AU$948)),ROW(AU24))),"") -> Jose Alvarado
A25: Jose Alvarado | B25: alvarjo03 | C25: RP | E25: TB | F25: 24 | G25: 530 | H25: 283 | I25: 705 | S25: 430.7 | T25: 283 | U25: 705 | V25: 592.03 | W25: 283 | X25: 705 | Y25: 517.5766667 | Z25: 283 | AA25: 705 | AF25: 386 | AH25: =IFERROR(INDEX('Guts-2'!$K$1:$K$30,MATCH(E25,'Guts-2'!$J$1:$J$30,0)),TRUE) -> TRUE | AI25: =IF(AH25=FALSE,"",IFERROR(CHOOSE('Guts-2'!$D$27,AB25,AC25,AD25,AE25,AF25,AG25),"")) ->  | AK25: =IF(AH25=FALSE,"",IFERROR(CHOOSE('Guts-2'!$D$26,G25,J25,M25,P25,S25,V25,Y25,AR25),"")) ->  | AL25: =IFERROR(IF(Settings!$L$5="Mixed (Standard)",AK25,RANK(AK25,$AK$2:$AK$948,1)),"") ->  | AM25: =IFERROR(IF(Settings!$L$5="Mixed (Standard)",(RANK(AK25,$AK$2:$AK$948,1)/('Guts-2'!$N$1+1))+1,(RANK(AL25,$AL$2:$AL$948,1)/('Guts-2'!$N$1+1))+1),"") ->  | AN25: =IFERROR(CHOOSE('Guts-2'!$D$26,H25,K25,N25,Q25,T25,W25,Z25,AS25),"") ->  | AO25: =IFERROR(CHOOSE('Guts-2'!$D$26,I25,L25,O25,R25,U25,X25,AA25,AT25),"") ->  | AR25: =INDEX('Import (ADP)'!$C$2:$C$999,MATCH(A25, 'Import (ADP)'!$B$2:$B$999,0)) ->  | AU25: =IF(VLOOKUP(A26,'Name-Sort'!$D$2:$E$948,2,FALSE)="",A26,"") -> Yordan Alvarez | AV25: =IFERROR(INDEX($AU$1:$AU$948,SMALL(IF($AU$1:$AU$948<>"",ROW($AU$1:$AU$948)),ROW(AU25))),"") -> Yordan Alvarez
A26: Yordan Alvarez | B26: alvaryo01 | C26: DH | D26: LF | E26: HOU | F26: 22 | G26: 29 | H26: 14 | I26: 79 | J26: 34 | K26: 14 | L26: 79 | M26: 44 | N26: 19 | O26: 79 | P26: 44 | Q26: 14 | R26: 79 | S26: 39.4 | T26: 14 | U26: 79 | V26: 39.33 | W26: 14 | X26: 63 | Y26: 38.28833333 | Z26: 14 | AA26: 79 | AB26: 17 | AC26: 35 | AD26: 38 | AE26: 46 | AF26: 30 | AH26: =IFERROR(INDEX('Guts-2'!$K$1:$K$30,MATCH(E26,'Guts-2'!$J$1:$J$30,0)),TRUE) -> TRUE | AI26: =IF(AH26=FALSE,"",IFERROR(CHOOSE('Guts-2'!$D$27,AB26,AC26,AD26,AE26,AF26,AG26),"")) -> 38 | AJ26: 38 | AK26: =IF(AH26=FALSE,"",IFERROR(CHOOSE('Guts-2'!$D$26,G26,J26,M26,P26,S26,V26,Y26,AR26),"")) -> 44 | AL26: =IFERROR(IF(Settings!$L$5="Mixed (Standard)",AK26,RANK(AK26,$AK$2:$AK$948,1)),"") -> 44 | AM26: =IFERROR(IF(Settings!$L$5="Mixed (Standard)",(RANK(AK26,$AK$2:$AK$948,1)/('Guts-2'!$N$1+1))+1,(RANK(AL26,$AL$2:$AL$948,1)/('Guts-2'!$N$1+1))+1),"") -> 3.615384615 | AN26: =IFERROR(CHOOSE('Guts-2'!$D$26,H26,K26,N26,Q26,T26,W26,Z26,AS26),"") -> 19 | AO26: =IFERROR(CHOOSE('Guts-2'!$D$26,I26,L26,O26,R26,U26,X26,AA26,AT26),"") -> 79 | AP26: 19 | AQ26: 79 | AR26: =INDEX('Import (ADP)'!$C$2:$C$999,MATCH(A26, 'Import (ADP)'!$B$2:$B$999,0)) ->  | AU26: =IF(VLOOKUP(A27,'Name-Sort'!$D$2:$E$948,2,FALSE)="",A27,"") -> Adbert Alzolay | AV26: =IFERROR(INDEX($AU$1:$AU$948,SMALL(IF($AU$1:$AU$948<>"",ROW($AU$1:$AU$948)),ROW(AU26))),"") -> Adbert Alzolay
A27: Adbert Alzolay | B27: alzolad01 | C27: SP | E27: CHC | F27: 25 | V27: 705.79 | W27: 408 | X27: 745 | Y27: 705.79 | Z27: 408 | AA27: 938.7007 | AH27: =IFERROR(INDEX('Guts-2'!$K$1:$K$30,MATCH(E27,'Guts-2'!$J$1:$J$30,0)),TRUE) -> TRUE | AI27: =IF(AH27=FALSE,"",IFERROR(CHOOSE('Guts-2'!$D$27,AB27,AC27,AD27,AE27,AF27,AG27),"")) ->  | AK27: =IF(AH27=FALSE,"",IFERROR(CHOOSE('Guts-2'!$D$26,G27,J27,M27,P27,S27,V27,Y27,AR27),"")) ->  | AL27: =IFERROR(IF(Settings!$L$5="Mixed (Standard)",AK27,RANK(AK27,$AK$2:$AK$948,1)),"") ->  | AM27: =IFERROR(IF(Settings!$L$5="Mixed (Standard)",(RANK(AK27,$AK$2:$AK$948,1)/('Guts-2'!$N$1+1))+1,(RANK(AL27,$AL$2:$AL$948,1)/('Guts-2'!$N$1+1))+1),"") ->  | AN27: =IFERROR(CHOOSE('Guts-2'!$D$26,H27,K27,N27,Q27,T27,W27,Z27,AS27),"") ->  | AO27: =IFERROR(CHOOSE('Guts-2'!$D$26,I27,L27,O27,R27,U27,X27,AA27,AT27),"") ->  | AR27: =INDEX('Import (ADP)'!$C$2:$C$999,MATCH(A27, 'Import (ADP)'!$B$2:$B$999,0)) ->  | AU27: =IF(VLOOKUP(A28,'Name-Sort'!$D$2:$E$948,2,FALSE)="",A28,"") -> Brett Anderson | AV27: =IFERROR(INDEX($AU$1:$AU$948,SMALL(IF($AU$1:$AU$948<>"",ROW($AU$1:$AU$948)),ROW(AU27))),"") -> Brett Anderson
A28: Brett Anderson | B28: anderbr04 | C28: SP | E28: MIL | F28: 32 | G28: 545 | H28: 397 | I28: 747 | S28: 491.7 | T28: 368.775 | U28: 747 | V28: 637.72 | W28: 397 | X28: 747 | Y28: 558.14 | Z28: 397 | AA28: 747 | AH28: =IFERROR(INDEX('Guts-2'!$K$1:$K$30,MATCH(E28,'Guts-2'!$J$1:$J$30,0)),TRUE) -> TRUE | AI28: =IF(AH28=FALSE,"",IFERROR(CHOOSE('Guts-2'!$D$27,AB28,AC28,AD28,AE28,AF28,AG28),"")) ->  | AK28: =IF(AH28=FALSE,"",IFERROR(CHOOSE('Guts-2'!$D$26,G28,J28,M28,P28,S28,V28,Y28,AR28),"")) ->  | AL28: =IFERROR(IF(Settings!$L$5="Mixed (Standard)",AK28,RANK(AK28,$AK$2:$AK$948,1)),"") ->  | AM28: =IFERROR(IF(Settings!$L$5="Mixed (Standard)",(RANK(AK28,$AK$2:$AK$948,1)/('Guts-2'!$N$1+1))+1,(RANK(AL28,$AL$2:$AL$948,1)/('Guts-2'!$N$1+1))+1),"") ->  | AN28: =IFERROR(CHOOSE('Guts-2'!$D$26,H28,K28,N28,Q28,T28,W28,Z28,AS28),"") ->  | AO28: =IFERROR(CHOOSE('Guts-2'!$D$26,I28,L28,O28,R28,U28,X28,AA28,AT28),"") ->  | AR28: =INDEX('Import (ADP)'!$C$2:$C$999,MATCH(A28, 'Import (ADP)'!$B$2:$B$999,0)) ->  | AU28: =IF(VLOOKUP(A29,'Name-Sort'!$D$2:$E$948,2,FALSE)="",A29,"") -> Brian Anderson | AV28: =IFERROR(INDEX($AU$1:$AU$948,SMALL(IF($AU$1:$AU$948<>"",ROW($AU$1:$AU$948)),ROW(AU28))),"") -> Brian Anderson
A29: Brian Anderson | B29: anderbr06 | C29: 3B | D29: RF | E29: MIA | F29: 26 | G29: 222 | H29: 138 | I29: 335 | J29: 387 | K29: 138 | L29: 514.71 | M29: 223.17 | N29: 138 | O29: 335 | P29: 172 | Q29: 129 | R29: 335 | S29: 258 | T29: 138 | U29: 343.14 | V29: 238.94 | W29: 162 | X29: 316 | Y29: 250.185 | Z29: 138 | AA29: 335 | AB29: 276 | AC29: 265 | AD29: 203 | AE29: 175 | AF29: 258 | AH29: =IFERROR(INDEX('Guts-2'!$K$1:$K$30,MATCH(E29,'Guts-2'!$J$1:$J$30,0)),TRUE) -> TRUE | AI29: =IF(AH29=FALSE,"",IFERROR(CHOOSE('Guts-2'!$D$27,AB29,AC29,AD29,AE29,AF29,AG29),"")) -> 203 | AJ29: 203 | AK29: =IF(AH29=FALSE,"",IFERROR(CHOOSE('Guts-2'!$D$26,G29,J29,M29,P29,S29,V29,Y29,AR29),"")) -> 223.17 | AL29: =IFERROR(IF(Settings!$L$5="Mixed (Standard)",AK29,RANK(AK29,$AK$2:$AK$948,1)),"") -> 223.17 | AM29: =IFERROR(IF(Settings!$L$5="Mixed (Standard)",(RANK(AK29,$AK$2:$AK$948,1)/('Guts-2'!$N$1+1))+1,(RANK(AL29,$AL$2:$AL$948,1)/('Guts-2'!$N$1+1))+1),"") -> 19.15384615 | AN29: =IFERROR(CHOOSE('Guts-2'!$D$26,H29,K29,N29,Q29,T29,W29,Z29,AS29),"") -> 138 | AO29: =IFERROR(CHOOSE('Guts-2'!$D$26,I29,L29,O29,R29,U29,X29,AA29,AT29),"") -> 335 | AP29: 138 | AQ29: 335 | AR29: =INDEX('Import (ADP)'!$C$2:$C$999,MATCH(A29, 'Import (ADP)'!$B$2:$B$999,0)) ->  | AU29: =IF(VLOOKUP(A30,'Name-Sort'!$D$2:$E$948,2,FALSE)="",A30,"") -> Chase Anderson | AV29: =IFERROR(INDEX($AU$1:$AU$948,SMALL(IF($AU$1:$AU$948<>"",ROW($AU$1:$AU$948)),ROW(AU29))),"") -> Chase Anderson
A30: Chase Anderson | B30: anderch01 | C30: SP | E30: TOR | F30: 32 | G30: 421 | H30: 315.75 | I30: 575 | S30: 430 | T30: 322.5 | U30: 575 | V30: 557.28 | W30: 351 | X30: 575 | Y30: 469.4266667 | Z30: 351 | AA30: 624.3374667 | AB30: 299 | AF30: 419 | AH30: =IFERROR(INDEX('Guts-2'!$K$1:$K$30,MATCH(E30,'Guts-2'!$J$1:$J$30,0)),TRUE) -> TRUE | AI30: =IF(AH30=FALSE,"",IFERROR(CHOOSE('Guts-2'!$D$27,AB30,AC30,AD30,AE30,AF30,AG30),"")) ->  | AK30: =IF(AH30=FALSE,"",IFERROR(CHOOSE('Guts-2'!$D$26,G30,J30,M30,P30,S30,V30,Y30,AR30),"")) ->  | AL30: =IFERROR(IF(Settings!$L$5="Mixed (Standard)",AK30,RANK(AK30,$AK$2:$AK$948,1)),"") ->  | AM30: =IFERROR(IF(Settings!$L$5="Mixed (Standard)",(RANK(AK30,$AK$2:$AK$948,1)/('Guts-2'!$N$1+1))+1,(RANK(AL30,$AL$2:$AL$948,1)/('Guts-2'!$N$1+1))+1),"") ->  | AN30: =IFERROR(CHOOSE('Guts-2'!$D$26,H30,K30,N30,Q30,T30,W30,Z30,AS30),"") ->  | AO30: =IFERROR(CHOOSE('Guts-2'!$D$26,I30,L30,O30,R30,U30,X30,AA30,AT30),"") ->  | AR30: =INDEX('Import (ADP)'!$C$2:$C$999,MATCH(A30, 'Import (ADP)'!$B$2:$B$999,0)) ->  | AU30: =IF(VLOOKUP(A31,'Name-Sort'!$D$2:$E$948,2,FALSE)="",A31,"") -> Ian Anderson | AV30: =IFERROR(INDEX($AU$1:$AU$948,SMALL(IF($AU$1:$AU$948<>"",ROW($AU$1:$AU$948)),ROW(AU30))),"") -> Ian Anderson
A31: Ian Anderson | B31: anderia01 | C31: SP | E31: ATL | F31: 21 | G31: 542 | H31: 167 | I31: 720.86 | M31: 273 | N31: 167 | O31: 468 | S31: 525.5 | T31: 167 | U31: 698.915 | V31: 582.97 | W31: 317 | X31: 661 | Y31: 480.8675 | Z31: 167 | AA31: 661 | AF31: 483 | AH31: =IFERROR(INDEX('Guts-2'!$K$1:$K$30,MATCH(E31,'Guts-2'!$J$1:$J$30,0)),TRUE) -> TRUE | AI31: =IF(AH31=FALSE,"",IFERROR(CHOOSE('Guts-2'!$D$27,AB31,AC31,AD31,AE31,AF31,AG31),"")) ->  | AK31: =IF(AH31=FALSE,"",IFERROR(CHOOSE('Guts-2'!$D$26,G31,J31,M31,P31,S31,V31,Y31,AR31),"")) -> 273 | AL31: =IFERROR(IF(Settings!$L$5="Mixed (Standard)",AK31,RANK(AK31,$AK$2:$AK$948,1)),"") -> 273 | AM31: =IFERROR(IF(Settings!$L$5="Mixed (Standard)",(RANK(AK31,$AK$2:$AK$948,1)/('Guts-2'!$N$1+1))+1,(RANK(AL31,$AL$2:$AL$948,1)/('Guts-2'!$N$1+1))+1),"") -> 23.84615385 | AN31: =IFERROR(CHOOSE('Guts-2'!$D$26,H31,K31,N31,Q31,T31,W31,Z31,AS31),"") -> 167 | AO31: =IFERROR(CHOOSE('Guts-2'!$D$26,I31,L31,O31,R31,U31,X31,AA31,AT31),"") -> 468 | AP31: 167 | AQ31: 468 | AR31: =INDEX('Import (ADP)'!$C$2:$C$999,MATCH(A31, 'Import (ADP)'!$B$2:$B$999,0)) ->  | AU31: =IF(VLOOKUP(A32,'Name-Sort'!$D$2:$E$948,2,FALSE)="",A32,"") -> Nick Anderson | AV31: =IFERROR(INDEX($AU$1:$AU$948,SMALL(IF($AU$1:$AU$948<>"",ROW($AU$1:$AU$948)),ROW(AU31))),"") -> Nick Anderson
A32: Nick Anderson | B32: anderni01 | C32: RP | E32: TB | F32: 29 | G32: 186 | H32: 101 | I32: 418 | J32: 153 | K32: 101 | L32: 418 | M32: 259.33 | N32: 162 | O32: 316 | P32: 139 | Q32: 101 | R32: 418 | S32: 170 | T32: 101 | U32: 418 | V32: 238.11 | W32: 101 | X32: 418 | Y32: 190.9066667 | Z32: 101 | AA32: 418 | AB32: 249 | AC32: 162 | AD32: 142 | AE32: 153 | AF32: 181 | AH32: =IFERROR(INDEX('Guts-2'!$K$1:$K$30,MATCH(E32,'Guts-2'!$J$1:$J$30,0)),TRUE) -> TRUE | AI32: =IF(AH32=FALSE,"",IFERROR(CHOOSE('Guts-2'!$D$27,AB32,AC32,AD32,AE32,AF32,AG32),"")) -> 142 | AJ32: 142 | AK32: =IF(AH32=FALSE,"",IFERROR(CHOOSE('Guts-2'!$D$26,G32,J32,M32,P32,S32,V32,Y32,AR32),"")) -> 259.33 | AL32: =IFERROR(IF(Settings!$L$5="Mixed (Standard)",AK32,RANK(AK32,$AK$2:$AK$948,1)),"") -> 259.33 | AM32: =IFERROR(IF(Settings!$L$5="Mixed (Standard)",(RANK(AK32,$AK$2:$AK$948,1)/('Guts-2'!$N$1+1))+1,(RANK(AL32,$AL$2:$AL$948,1)/('Guts-2'!$N$1+1))+1),"") -> 22.46153846 | AN32: =IFERROR(CHOOSE('Guts-2'!$D$26,H32,K32,N32,Q32,T32,W32,Z32,AS32),"") -> 162 | AO32: =IFERROR(CHOOSE('Guts-2'!$D$26,I32,L32,O32,R32,U32,X32,AA32,AT32),"") -> 316 | AP32: 162 | AQ32: 316 | AR32: =INDEX('Import (ADP)'!$C$2:$C$999,MATCH(A32, 'Import (ADP)'!$B$2:$B$999,0)) ->  | AU32: =IF(VLOOKUP(A33,'Name-Sort'!$D$2:$E$948,2,FALSE)="",A33,"") -> Shaun Anderson | AV32: =IFERROR(INDEX($AU$1:$AU$948,SMALL(IF($AU$1:$AU$948<>"",ROW($AU$1:$AU$948)),ROW(AU32))),"") -> Shaun Anderson
A33: Shaun Anderson | B33: andersh01 | C33: RP | E33: SF | F33: 25 | G33: 512 | H33: 222 | I33: 680.96 | S33: 440 | T33: 222 | U33: 585.2 | V33: 446.47 | W33: 222 | X33: 571 | Y33: 466.1566667 | Z33: 222 | AA33: 619.9883667 | AC33: 372 | AF33: 467 | AH33: =IFERROR(INDEX('Guts-2'!$K$1:$K$30,MATCH(E33,'Guts-2'!$J$1:$J$30,0)),TRUE) -> TRUE | AI33: =IF(AH33=FALSE,"",IFERROR(CHOOSE('Guts-2'!$D$27,AB33,AC33,AD33,AE33,AF33,AG33),"")) ->  | AK33: =IF(AH33=FALSE,"",IFERROR(CHOOSE('Guts-2'!$D$26,G33,J33,M33,P33,S33,V33,Y33,AR33),"")) ->  | AL33: =IFERROR(IF(Settings!$L$5="Mixed (Standard)",AK33,RANK(AK33,$AK$2:$AK$948,1)),"") ->  | AM33: =IFERROR(IF(Settings!$L$5="Mixed (Standard)",(RANK(AK33,$AK$2:$AK$948,1)/('Guts-2'!$N$1+1))+1,(RANK(AL33,$AL$2:$AL$948,1)/('Guts-2'!$N$1+1))+1),"") ->  | AN33: =IFERROR(CHOOSE('Guts-2'!$D$26,H33,K33,N33,Q33,T33,W33,Z33,AS33),"") ->  | AO33: =IFERROR(CHOOSE('Guts-2'!$D$26,I33,L33,O33,R33,U33,X33,AA33,AT33),"") ->  | AR33: =INDEX('Import (ADP)'!$C$2:$C$999,MATCH(A33, 'Import (ADP)'!$B$2:$B$999,0)) ->  | AU33: =IF(VLOOKUP(A34,'Name-Sort'!$D$2:$E$948,2,FALSE)="",A34,"") -> Tim Anderson | AV33: =IFERROR(INDEX($AU$1:$AU$948,SMALL(IF($AU$1:$AU$948<>"",ROW($AU$1:$AU$948)),ROW(AU33))),"") -> Tim Anderson
A34: Tim Anderson | B34: anderti01 | C34: SS | E34: CHW | F34: 26 | G34: 120 | H34: 63 | I34: 186 | J34: 90 | K34: 63 | L34: 186 | M34: 127.12 | N34: 96 | O34: 186 | P34: 126 | Q34: 63 | R34: 186 | S34: 109.6 | T34: 63 | U34: 186 | V34: 98.11 | W34: 63 | X34: 135 | Y34: 111.805 | Z34: 63 | AA34: 186 | AB34: 65 | AC34: 76 | AD34: 57 | AE34: 151 | AF34: 94 | AH34: =IFERROR(INDEX('Guts-2'!$K$1:$K$30,MATCH(E34,'Guts-2'!$J$1:$J$30,0)),TRUE) -> TRUE | AI34: =IF(AH34=FALSE,"",IFERROR(CHOOSE('Guts-2'!$D$27,AB34,AC34,AD34,AE34,AF34,AG34),"")) -> 57 | AJ34: 57 | AK34: =IF(AH34=FALSE,"",IFERROR(CHOOSE('Guts-2'!$D$26,G34,J34,M34,P34,S34,V34,Y34,AR34),"")) -> 127.12 | AL34: =IFERROR(IF(Settings!$L$5="Mixed (Standard)",AK34,RANK(AK34,$AK$2:$AK$948,1)),"") -> 127.12 | AM34: =IFERROR(IF(Settings!$L$5="Mixed (Standard)",(RANK(AK34,$AK$2:$AK$948,1)/('Guts-2'!$N$1+1))+1,(RANK(AL34,$AL$2:$AL$948,1)/('Guts-2'!$N$1+1))+1),"") -> 10.07692308 | AN34: =IFERROR(CHOOSE('Guts-2'!$D$26,H34,K34,N34,Q34,T34,W34,Z34,AS34),"") -> 96 | AO34: =IFERROR(CHOOSE('Guts-2'!$D$26,I34,L34,O34,R34,U34,X34,AA34,AT34),"") -> 186 | AP34: 96 | AQ34: 186 | AR34: =INDEX('Import (ADP)'!$C$2:$C$999,MATCH(A34, 'Import (ADP)'!$B$2:$B$999,0)) ->  | AU34: =IF(VLOOKUP(A35,'Name-Sort'!$D$2:$E$948,2,FALSE)="",A35,"") -> Tyler Anderson | AV34: =IFERROR(INDEX($AU$1:$AU$948,SMALL(IF($AU$1:$AU$948<>"",ROW($AU$1:$AU$948)),ROW(AU34))),"") -> Tyler Anderson
A35: Tyler Anderson | B35: anderty01 | C35: SP | E35: SF | F35: 30 | V35: 708.96 | W35: 492 | X35: 750 | Y35: 708.96 | Z35: 492 | AA35: 942.9168 | AH35: =IFERROR(INDEX('Guts-2'!$K$1:$K$30,MATCH(E35,'Guts-2'!$J$1:$J$30,0)),TRUE) -> TRUE | AI35: =IF(AH35=FALSE,"",IFERROR(CHOOSE('Guts-2'!$D$27,AB35,AC35,AD35,AE35,AF35,AG35),"")) ->  | AK35: =IF(AH35=FALSE,"",IFERROR(CHOOSE('Guts-2'!$D$26,G35,J35,M35,P35,S35,V35,Y35,AR35),"")) ->  | AL35: =IFERROR(IF(Settings!$L$5="Mixed (Standard)",AK35,RANK(AK35,$AK$2:$AK$948,1)),"") ->  | AM35: =IFERROR(IF(Settings!$L$5="Mixed (Standard)",(RANK(AK35,$AK$2:$AK$948,1)/('Guts-2'!$N$1+1))+1,(RANK(AL35,$AL$2:$AL$948,1)/('Guts-2'!$N$1+1))+1),"") ->  | AN35: =IFERROR(CHOOSE('Guts-2'!$D$26,H35,K35,N35,Q35,T35,W35,Z35,AS35),"") ->  | AO35: =IFERROR(CHOOSE('Guts-2'!$D$26,I35,L35,O35,R35,U35,X35,AA35,AT35),"") ->  | AR35: =INDEX('Import (ADP)'!$C$2:$C$999,MATCH(A35, 'Import (ADP)'!$B$2:$B$999,0)) ->  | AU35: =IF(VLOOKUP(A36,'Name-Sort'!$D$2:$E$948,2,FALSE)="",A36,"") -> Elvis Andrus | AV35: =IFERROR(INDEX($AU$1:$AU$948,SMALL(IF($AU$1:$AU$948<>"",ROW($AU$1:$AU$948)),ROW(AU35))),"") -> Elvis Andrus
A36: Elvis Andrus | B36: andruel01 | C36: SS | E36: TEX | F36: 31 | G36: 162 | H36: 88 | I36: 337 | J36: 149 | K36: 88 | L36: 337 | M36: 240.17 | N36: 122 | O36: 337 | P36: 154 | Q36: 88 | R36: 337 | S36: 147.8 | T36: 88 | U36: 337 | V36: 134.83 | W36: 88 | X36: 192 | Y36: 164.6333333 | Z36: 88 | AA36: 337 | AB36: 114 | AC36: 135 | AD36: 50 | AE36: 173 | AF36: 140 | AH36: =IFERROR(INDEX('Guts-2'!$K$1:$K$30,MATCH(E36,'Guts-2'!$J$1:$J$30,0)),TRUE) -> TRUE | AI36: =IF(AH36=FALSE,"",IFERROR(CHOOSE('Guts-2'!$D$27,AB36,AC36,AD36,AE36,AF36,AG36),"")) -> 50 | AJ36: 50 | AK36: =IF(AH36=FALSE,"",IFERROR(CHOOSE('Guts-2'!$D$26,G36,J36,M36,P36,S36,V36,Y36,AR36),"")) -> 240.17 | AL36: =IFERROR(IF(Settings!$L$5="Mixed (Standard)",AK36,RANK(AK36,$AK$2:$AK$948,1)),"") -> 240.17 | AM36: =IFERROR(IF(Settings!$L$5="Mixed (Standard)",(RANK(AK36,$AK$2:$AK$948,1)/('Guts-2'!$N$1+1))+1,(RANK(AL36,$AL$2:$AL$948,1)/('Guts-2'!$N$1+1))+1),"") -> 21.23076923 | AN36: =IFERROR(CHOOSE('Guts-2'!$D$26,H36,K36,N36,Q36,T36,W36,Z36,AS36),"") -> 122 | AO36: =IFERROR(CHOOSE('Guts-2'!$D$26,I36,L36,O36,R36,U36,X36,AA36,AT36),"") -> 337 | AP36: 122 | AQ36: 337 | AR36: =INDEX('Import (ADP)'!$C$2:$C$999,MATCH(A36, 'Import (ADP)'!$B$2:$B$999,0)) ->  | AU36: =IF(VLOOKUP(A37,'Name-Sort'!$D$2:$E$948,2,FALSE)="",A37,"") -> Miguel Andujar | AV36: =IFERROR(INDEX($AU$1:$AU$948,SMALL(IF($AU$1:$AU$948<>"",ROW($AU$1:$AU$948)),ROW(AU36))),"") -> Miguel Andujar
A37: Miguel Andujar | B37: andujmi01 | C37: DH | E37: NYY | F37: 25 | G37: 219 | H37: 125 | I37: 366 | J37: 235 | K37: 125 | L37: 366 | M37: 180.4 | N37: 125 | O37: 249 | P37: 206 | Q37: 125 | R37: 366 | S37: 233 | T37: 125 | U37: 366 | V37: 257.75 | W37: 146 | X37: 366 | Y37: 221.8583333 | Z37: 125 | AA37: 366 | AB37: 286 | AC37: 264 | AE37: 130 | AF37: 245 | AH37: =IFERROR(INDEX('Guts-2'!$K$1:$K$30,MATCH(E37,'Guts-2'!$J$1:$J$30,0)),TRUE) -> TRUE | AI37: =IF(AH37=FALSE,"",IFERROR(CHOOSE('Guts-2'!$D$27,AB37,AC37,AD37,AE37,AF37,AG37),"")) ->  | AK37: =IF(AH37=FALSE,"",IFERROR(CHOOSE('Guts-2'!$D$26,G37,J37,M37,P37,S37,V37,Y37,AR37),"")) -> 180.4 | AL37: =IFERROR(IF(Settings!$L$5="Mixed (Standard)",AK37,RANK(AK37,$AK$2:$AK$948,1)),"") -> 180.4 | AM37: =IFERROR(IF(Settings!$L$5="Mixed (Standard)",(RANK(AK37,$AK$2:$AK$948,1)/('Guts-2'!$N$1+1))+1,(RANK(AL37,$AL$2:$AL$948,1)/('Guts-2'!$N$1+1))+1),"") -> 14.69230769 | AN37: =IFERROR(CHOOSE('Guts-2'!$D$26,H37,K37,N37,Q37,T37,W37,Z37,AS37),"") -> 125 | AO37: =IFERROR(CHOOSE('Guts-2'!$D$26,I37,L37,O37,R37,U37,X37,AA37,AT37),"") -> 249 | AP37: 125 | AQ37: 249 | AR37: =INDEX('Import (ADP)'!$C$2:$C$999,MATCH(A37, 'Import (ADP)'!$B$2:$B$999,0)) ->  | AU37: =IF(VLOOKUP(A38,'Name-Sort'!$D$2:$E$948,2,FALSE)="",A38,"") -> Aristides Aquino | AV37: =IFERROR(INDEX($AU$1:$AU$948,SMALL(IF($AU$1:$AU$948<>"",ROW($AU$1:$AU$948)),ROW(AU37))),"") -> Aristides Aquino
A38: Aristides Aquino | B38: aquinar01 | C38: OF | D38: RF | E38: CIN | F38: 25 | G38: 197 | H38: 75 | I38: 295 | J38: 191 | K38: 75 | L38: 295 | M38: 145.62 | N38: 75 | O38: 236 | P38: 196 | Q38: 75 | R38: 295 | S38: 198 | T38: 75 | U38: 295 | V38: 171.9 | W38: 87 | X38: 295 | Y38: 183.2533333 | Z38: 75 | AA38: 295 | AB38: 117 | AC38: 176 | AE38: 212 | AF38: 199 | AH38: =IFERROR(INDEX('Guts-2'!$K$1:$K$30,MATCH(E38,'Guts-2'!$J$1:$J$30,0)),TRUE) -> TRUE | AI38: =IF(AH38=FALSE,"",IFERROR(CHOOSE('Guts-2'!$D$27,AB38,AC38,AD38,AE38,AF38,AG38),"")) ->  | AK38: =IF(AH38=FALSE,"",IFERROR(CHOOSE('Guts-2'!$D$26,G38,J38,M38,P38,S38,V38,Y38,AR38),"")) -> 145.62 | AL38: =IFERROR(IF(Settings!$L$5="Mixed (Standard)",AK38,RANK(AK38,$AK$2:$AK$948,1)),"") -> 145.62 | AM38: =IFERROR(IF(Settings!$L$5="Mixed (Standard)",(RANK(AK38,$AK$2:$AK$948,1)/('Guts-2'!$N$1+1))+1,(RANK(AL38,$AL$2:$AL$948,1)/('Guts-2'!$N$1+1))+1),"") -> 11.92307692 | AN38: =IFERROR(CHOOSE('Guts-2'!$D$26,H38,K38,N38,Q38,T38,W38,Z38,AS38),"") -> 75 | AO38: =IFERROR(CHOOSE('Guts-2'!$D$26,I38,L38,O38,R38,U38,X38,AA38,AT38),"") -> 236 | AP38: 75 | AQ38: 236 | AR38: =INDEX('Import (ADP)'!$C$2:$C$999,MATCH(A38, 'Import (ADP)'!$B$2:$B$999,0)) ->  | AU38: =IF(VLOOKUP(A39,'Name-Sort'!$D$2:$E$948,2,FALSE)="",A39,"") -> Chris Archer | AV38: =IFERROR(INDEX($AU$1:$AU$948,SMALL(IF($AU$1:$AU$948<>"",ROW($AU$1:$AU$948)),ROW(AU38))),"") -> Chris Archer
A39: Chris Archer | B39: archech01 | C39: SP | E39: PIT | F39: 31 | G39: 235 | H39: 176.25 | I39: 332 | M39: 260.75 | N39: 222 | O39: 292 | P39: 278 | Q39: 208.5 | R39: 369.74 | S39: 283 | T39: 209 | U39: 376.39 | V39: 265.73 | W39: 209 | X39: 332 | Y39: 264.496 | Z39: 198.372 | AA39: 351.77968 | AB39: 241 | AC39: 239 | AD39: 273 | AF39: 225 | AH39: =IFERROR(INDEX('Guts-2'!$K$1:$K$30,MATCH(E39,'Guts-2'!$J$1:$J$30,0)),TRUE) -> TRUE | AI39: =IF(AH39=FALSE,"",IFERROR(CHOOSE('Guts-2'!$D$27,AB39,AC39,AD39,AE39,AF39,AG39),"")) -> 273 | AJ39: 273 | AK39: =IF(AH39=FALSE,"",IFERROR(CHOOSE('Guts-2'!$D$26,G39,J39,M39,P39,S39,V39,Y39,AR39),"")) -> 260.75 | AL39: =IFERROR(IF(Settings!$L$5="Mixed (Standard)",AK39,RANK(AK39,$AK$2:$AK$948,1)),"") -> 260.75 | AM39: =IFERROR(IF(Settings!$L$5="Mixed (Standard)",(RANK(AK39,$AK$2:$AK$948,1)/('Guts-2'!$N$1+1))+1,(RANK(AL39,$AL$2:$AL$948,1)/('Guts-2'!$N$1+1))+1),"") -> 22.92307692 | AN39: =IFERROR(CHOOSE('Guts-2'!$D$26,H39,K39,N39,Q39,T39,W39,Z39,AS39),"") -> 222 | AO39: =IFERROR(CHOOSE('Guts-2'!$D$26,I39,L39,O39,R39,U39,X39,AA39,AT39),"") -> 292 | AP39: 222 | AQ39: 292 | AR39: =INDEX('Import (ADP)'!$C$2:$C$999,MATCH(A39, 'Import (ADP)'!$B$2:$B$999,0)) ->  | AU39: =IF(VLOOKUP(A40,'Name-Sort'!$D$2:$E$948,2,FALSE)="",A40,"") -> Orlando Arcia | AV39: =IFERROR(INDEX($AU$1:$AU$948,SMALL(IF($AU$1:$AU$948<>"",ROW($AU$1:$AU$948)),ROW(AU39))),"") -> Orlando Arcia
A40: Orlando Arcia | B40: arciaor01 | C40: SS | E40: MIL | F40: 25 | V40: 600.38 | W40: 363 | X40: 606 | Y40: 600.38 | Z40: 363 | AA40: 798.5054 | AH40: =IFERROR(INDEX('Guts-2'!$K$1:$K$30,MATCH(E40,'Guts-2'!$J$1:$J$30,0)),TRUE) -> TRUE | AI40: =IF(AH40=FALSE,"",IFERROR(CHOOSE('Guts-2'!$D$27,AB40,AC40,AD40,AE40,AF40,AG40),"")) ->  | AK40: =IF(AH40=FALSE,"",IFERROR(CHOOSE('Guts-2'!$D$26,G40,J40,M40,P40,S40,V40,Y40,AR40),"")) ->  | AL40: =IFERROR(IF(Settings!$L$5="Mixed (Standard)",AK40,RANK(AK40,$AK$2:$AK$948,1)),"") ->  | AM40: =IFERROR(IF(Settings!$L$5="Mixed (Standard)",(RANK(AK40,$AK$2:$AK$948,1)/('Guts-2'!$N$1+1))+1,(RANK(AL40,$AL$2:$AL$948,1)/('Guts-2'!$N$1+1))+1),"") ->  | AN40: =IFERROR(CHOOSE('Guts-2'!$D$26,H40,K40,N40,Q40,T40,W40,Z40,AS40),"") ->  | AO40: =IFERROR(CHOOSE('Guts-2'!$D$26,I40,L40,O40,R40,U40,X40,AA40,AT40),"") ->  | AR40: =INDEX('Import (ADP)'!$C$2:$C$999,MATCH(A40, 'Import (ADP)'!$B$2:$B$999,0)) ->  | AU40: =IF(VLOOKUP(A41,'Name-Sort'!$D$2:$E$948,2,FALSE)="",A41,"") -> Nolan Arenado | AV40: =IFERROR(INDEX($AU$1:$AU$948,SMALL(IF($AU$1:$AU$948<>"",ROW($AU$1:$AU$948)),ROW(AU40))),"") -> Nolan Arenado
A41: Nolan Arenado | B41: arenano01 | C41: 3B | E41: COL | F41: 28 | G41: 10 | H41: 4 | I41: 24 | J41: 9 | K41: 4 | L41: 24 | M41: 12.5 | N41: 8 | O41: 17 | P41: 11 | Q41: 4 | R41: 24 | S41: 11.4 | T41: 4 | U41: 24 | V41: 13.37 | W41: 4 | X41: 24 | Y41: 11.21166667 | Z41: 4 | AA41: 24 | AB41: 7 | AC41: 14 | AD41: 18 | AE41: 11 | AF41: 10 | AH41: =IFERROR(INDEX('Guts-2'!$K$1:$K$30,MATCH(E41,'Guts-2'!$J$1:$J$30,0)),TRUE) -> TRUE | AI41: =IF(AH41=FALSE,"",IFERROR(CHOOSE('Guts-2'!$D$27,AB41,AC41,AD41,AE41,AF41,AG41),"")) -> 18 | AJ41: 18 | AK41: =IF(AH41=FALSE,"",IFERROR(CHOOSE('Guts-2'!$D$26,G41,J41,M41,P41,S41,V41,Y41,AR41),"")) -> 12.5 | AL41: =IFERROR(IF(Settings!$L$5="Mixed (Standard)",AK41,RANK(AK41,$AK$2:$AK$948,1)),"") -> 12.5 | AM41: =IFERROR(IF(Settings!$L$5="Mixed (Standard)",(RANK(AK41,$AK$2:$AK$948,1)/('Guts-2'!$N$1+1))+1,(RANK(AL41,$AL$2:$AL$948,1)/('Guts-2'!$N$1+1))+1),"") -> 1.615384615 | AN41: =IFERROR(CHOOSE('Guts-2'!$D$26,H41,K41,N41,Q41,T41,W41,Z41,AS41),"") -> 8 | AO41: =IFERROR(CHOOSE('Guts-2'!$D$26,I41,L41,O41,R41,U41,X41,AA41,AT41),"") -> 17 | AP41: 8 | AQ41: 17 | AR41: =INDEX('Import (ADP)'!$C$2:$C$999,MATCH(A41, 'Import (ADP)'!$B$2:$B$999,0)) -> 12 | AS41: 4 | AT41: 24 | AU41: =IF(VLOOKUP(A42,'Name-Sort'!$D$2:$E$948,2,FALSE)="",A42,"") -> Rogelio Armenteros | AV41: =IFERROR(INDEX($AU$1:$AU$948,SMALL(IF($AU$1:$AU$948<>"",ROW($AU$1:$AU$948)),ROW(AU41))),"") -> Rogelio Armenteros
A42: Rogelio Armenteros | B42: armenro01 | C42: RP | E42: HOU | F42: 25 | V42: 730.03 | W42: 406 | X42: 750 | Y42: 730.03 | Z42: 406 | AA42: 970.9399 | AH42: =IFERROR(INDEX('Guts-2'!$K$1:$K$30,MATCH(E42,'Guts-2'!$J$1:$J$30,0)),TRUE) -> TRUE | AI42: =IF(AH42=FALSE,"",IFERROR(CHOOSE('Guts-2'!$D$27,AB42,AC42,AD42,AE42,AF42,AG42),"")) ->  | AK42: =IF(AH42=FALSE,"",IFERROR(CHOOSE('Guts-2'!$D$26,G42,J42,M42,P42,S42,V42,Y42,AR42),"")) ->  | AL42: =IFERROR(IF(Settings!$L$5="Mixed (Standard)",AK42,RANK(AK42,$AK$2:$AK$948,1)),"") ->  | AM42: =IFERROR(IF(Settings!$L$5="Mixed (Standard)",(RANK(AK42,$AK$2:$AK$948,1)/('Guts-2'!$N$1+1))+1,(RANK(AL42,$AL$2:$AL$948,1)/('Guts-2'!$N$1+1))+1),"") ->  | AN42: =IFERROR(CHOOSE('Guts-2'!$D$26,H42,K42,N42,Q42,T42,W42,Z42,AS42),"") ->  | AO42: =IFERROR(CHOOSE('Guts-2'!$D$26,I42,L42,O42,R42,U42,X42,AA42,AT42),"") ->  | AR42: =INDEX('Import (ADP)'!$C$2:$C$999,MATCH(A42, 'Import (ADP)'!$B$2:$B$999,0)) ->  | AU42: =IF(VLOOKUP(A43,'Name-Sort'!$D$2:$E$948,2,FALSE)="",A43,"") -> Randy Arozarena | AV42: =IFERROR(INDEX($AU$1:$AU$948,SMALL(IF($AU$1:$AU$948<>"",ROW($AU$1:$AU$948)),ROW(AU42))),"") -> Randy Arozarena
A43: Randy Arozarena | B43: arozara01 | C43: OF | D43: RF | E43: TB | F43: 25 | V43: 651.36 | W43: 274 | X43: 699 | Y43: 651.36 | Z43: 274 | AA43: 866.3088 | AF43: 611 | AH43: =IFERROR(INDEX('Guts-2'!$K$1:$K$30,MATCH(E43,'Guts-2'!$J$1:$J$30,0)),TRUE) -> TRUE | AI43: =IF(AH43=FALSE,"",IFERROR(CHOOSE('Guts-2'!$D$27,AB43,AC43,AD43,AE43,AF43,AG43),"")) ->  | AK43: =IF(AH43=FALSE,"",IFERROR(CHOOSE('Guts-2'!$D$26,G43,J43,M43,P43,S43,V43,Y43,AR43),"")) ->  | AL43: =IFERROR(IF(Settings!$L$5="Mixed (Standard)",AK43,RANK(AK43,$AK$2:$AK$948,1)),"") ->  | AM43: =IFERROR(IF(Settings!$L$5="Mixed (Standard)",(RANK(AK43,$AK$2:$AK$948,1)/('Guts-2'!$N$1+1))+1,(RANK(AL43,$AL$2:$AL$948,1)/('Guts-2'!$N$1+1))+1),"") ->  | AN43: =IFERROR(CHOOSE('Guts-2'!$D$26,H43,K43,N43,Q43,T43,W43,Z43,AS43),"") ->  | AO43: =IFERROR(CHOOSE('Guts-2'!$D$26,I43,L43,O43,R43,U43,X43,AA43,AT43),"") ->  | AR43: =INDEX('Import (ADP)'!$C$2:$C$999,MATCH(A43, 'Import (ADP)'!$B$2:$B$999,0)) ->  | AU43: =IF(VLOOKUP(A44,'Name-Sort'!$D$2:$E$948,2,FALSE)="",A44,"") -> Luis Arraez | AV43: =IFERROR(INDEX($AU$1:$AU$948,SMALL(IF($AU$1:$AU$948<>"",ROW($AU$1:$AU$948)),ROW(AU43))),"") -> Luis Arraez
A44: Luis Arraez | B44: arraelu01 | C44: 2B | D44: LF | E44: MIN | F44: 22 | G44: 255 | H44: 97 | I44: 346 | J44: 283 | K44: 97 | L44: 376.39 | M44: 155 | N44: 97 | O44: 218 | P44: 193 | Q44: 97 | R44: 346 | S44: 251.6 | T44: 97 | U44: 346 | V44: 238.21 | W44: 145 | X44: 346 | Y44: 229.3016667 | Z44: 97 | AA44: 346 | AB44: 208 | AC44: 304 | AD44: 194 | AE44: 282 | AF44: 295 | AH44: =IFERROR(INDEX('Guts-2'!$K$1:$K$30,MATCH(E44,'Guts-2'!$J$1:$J$30,0)),TRUE) -> TRUE | AI44: =IF(AH44=FALSE,"",IFERROR(CHOOSE('Guts-2'!$D$27,AB44,AC44,AD44,AE44,AF44,AG44),"")) -> 194 | AJ44: 194 | AK44: =IF(AH44=FALSE,"",IFERROR(CHOOSE('Guts-2'!$D$26,G44,J44,M44,P44,S44,V44,Y44,AR44),"")) -> 155 | AL44: =IFERROR(IF(Settings!$L$5="Mixed (Standard)",AK44,RANK(AK44,$AK$2:$AK$948,1)),"") -> 155 | AM44: =IFERROR(IF(Settings!$L$5="Mixed (Standard)",(RANK(AK44,$AK$2:$AK$948,1)/('Guts-2'!$N$1+1))+1,(RANK(AL44,$AL$2:$AL$948,1)/('Guts-2'!$N$1+1))+1),"") -> 12.69230769 | AN44: =IFERROR(CHOOSE('Guts-2'!$D$26,H44,K44,N44,Q44,T44,W44,Z44,AS44),"") -> 97 | AO44: =IFERROR(CHOOSE('Guts-2'!$D$26,I44,L44,O44,R44,U44,X44,AA44,AT44),"") -> 218 | AP44: 97 | AQ44: 218 | AR44: =INDEX('Import (ADP)'!$C$2:$C$999,MATCH(A44, 'Import (ADP)'!$B$2:$B$999,0)) ->  | AU44: =IF(VLOOKUP(A45,'Name-Sort'!$D$2:$E$948,2,FALSE)="",A45,"") -> Jake Arrieta | AV44: =IFERROR(INDEX($AU$1:$AU$948,SMALL(IF($AU$1:$AU$948<>"",ROW($AU$1:$AU$948)),ROW(AU44))),"") -> Jake Arrieta
A45: Jake Arrieta | B45: arrieja01 | C45: SP | E45: PHI | F45: 34 | G45: 280 | H45: 205 | I45: 584 | J45: 349 | K45: 205 | L45: 584 | M45: 340.67 | N45: 205 | O45: 446 | P45: 344 | Q45: 205 | R45: 584 | S45: 342.3 | T45: 205 | U45: 584 | V45: 463.22 | W45: 299 | X45: 584 | Y45: 353.1983333 | Z45: 205 | AA45: 584 | AF45: 446 | AH45: =IFERROR(INDEX('Guts-2'!$K$1:$K$30,MATCH(E45,'Guts-2'!$J$1:$J$30,0)),TRUE) -> TRUE | AI45: =IF(AH45=FALSE,"",IFERROR(CHOOSE('Guts-2'!$D$27,AB45,AC45,AD45,AE45,AF45,AG45),"")) ->  | AK45: =IF(AH45=FALSE,"",IFERROR(CHOOSE('Guts-2'!$D$26,G45,J45,M45,P45,S45,V45,Y45,AR45),"")) -> 340.67 | AL45: =IFERROR(IF(Settings!$L$5="Mixed (Standard)",AK45,RANK(AK45,$AK$2:$AK$948,1)),"") -> 340.67 | AM45: =IFERROR(IF(Settings!$L$5="Mixed (Standard)",(RANK(AK45,$AK$2:$AK$948,1)/('Guts-2'!$N$1+1))+1,(RANK(AL45,$AL$2:$AL$948,1)/('Guts-2'!$N$1+1))+1),"") -> 29.23076923 | AN45: =IFERROR(CHOOSE('Guts-2'!$D$26,H45,K45,N45,Q45,T45,W45,Z45,AS45),"") -> 205 | AO45: =IFERROR(CHOOSE('Guts-2'!$D$26,I45,L45,O45,R45,U45,X45,AA45,AT45),"") -> 446 | AP45: 205 | AQ45: 446 | AR45: =INDEX('Import (ADP)'!$C$2:$C$999,MATCH(A45, 'Import (ADP)'!$B$2:$B$999,0)) ->  | AU45: =IF(VLOOKUP(A46,'Name-Sort'!$D$2:$E$948,2,FALSE)="",A46,"") -> Willians Astudillo | AV45: =IFERROR(INDEX($AU$1:$AU$948,SMALL(IF($AU$1:$AU$948<>"",ROW($AU$1:$AU$948)),ROW(AU45))),"") -> Willians Astudillo
A46: Willians Astudillo | B46: astudwi01 | C46: C | E46: MIN | F46: 28 | G46: 483 | H46: 119 | I46: 642.39 | J46: 316 | K46: 119 | L46: 522 | M46: 269 | N46: 119 | O46: 506 | S46: 398.5 | T46: 119 | U46: 530.005 | V46: 452.26 | W46: 286 | X46: 522 | Y46: 383.752 | Z46: 119 | AA46: 522 | AF46: 527 | AH46: =IFERROR(INDEX('Guts-2'!$K$1:$K$30,MATCH(E46,'Guts-2'!$J$1:$J$30,0)),TRUE) -> TRUE | AI46: =IF(AH46=FALSE,"",IFERROR(CHOOSE('Guts-2'!$D$27,AB46,AC46,AD46,AE46,AF46,AG46),"")) ->  | AK46: =IF(AH46=FALSE,"",IFERROR(CHOOSE('Guts-2'!$D$26,G46,J46,M46,P46,S46,V46,Y46,AR46),"")) -> 269 | AL46: =IFERROR(IF(Settings!$L$5="Mixed (Standard)",AK46,RANK(AK46,$AK$2:$AK$948,1)),"") -> 269 | AM46: =IFERROR(IF(Settings!$L$5="Mixed (Standard)",(RANK(AK46,$AK$2:$AK$948,1)/('Guts-2'!$N$1+1))+1,(RANK(AL46,$AL$2:$AL$948,1)/('Guts-2'!$N$1+1))+1),"") -> 23.61538462 | AN46: =IFERROR(CHOOSE('Guts-2'!$D$26,H46,K46,N46,Q46,T46,W46,Z46,AS46),"") -> 119 | AO46: =IFERROR(CHOOSE('Guts-2'!$D$26,I46,L46,O46,R46,U46,X46,AA46,AT46),"") -> 506 | AP46: 119 | AQ46: 506 | AR46: =INDEX('Import (ADP)'!$C$2:$C$999,MATCH(A46, 'Import (ADP)'!$B$2:$B$999,0)) ->  | AU46: =IF(VLOOKUP(A47,'Name-Sort'!$D$2:$E$948,2,FALSE)="",A47,"") -> Alex Avila | AV46: =IFERROR(INDEX($AU$1:$AU$948,SMALL(IF($AU$1:$AU$948<>"",ROW($AU$1:$AU$948)),ROW(AU46))),"") -> Alex Avila
A47: Alex Avila | B47: avilaal01 | C47: C | E47: MIN | F47: 33 | V47: 682.26 | W47: 391 | X47: 750 | Y47: 682.26 | Z47: 391 | AA47: 907.4058 | AH47: =IFERROR(INDEX('Guts-2'!$K$1:$K$30,MATCH(E47,'Guts-2'!$J$1:$J$30,0)),TRUE) -> TRUE | AI47: =IF(AH47=FALSE,"",IFERROR(CHOOSE('Guts-2'!$D$27,AB47,AC47,AD47,AE47,AF47,AG47),"")) ->  | AK47: =IF(AH47=FALSE,"",IFERROR(CHOOSE('Guts-2'!$D$26,G47,J47,M47,P47,S47,V47,Y47,AR47),"")) ->  | AL47: =IFERROR(IF(Settings!$L$5="Mixed (Standard)",AK47,RANK(AK47,$AK$2:$AK$948,1)),"") ->  | AM47: =IFERROR(IF(Settings!$L$5="Mixed (Standard)",(RANK(AK47,$AK$2:$AK$948,1)/('Guts-2'!$N$1+1))+1,(RANK(AL47,$AL$2:$AL$948,1)/('Guts-2'!$N$1+1))+1),"") ->  | AN47: =IFERROR(CHOOSE('Guts-2'!$D$26,H47,K47,N47,Q47,T47,W47,Z47,AS47),"") ->  | AO47: =IFERROR(CHOOSE('Guts-2'!$D$26,I47,L47,O47,R47,U47,X47,AA47,AT47),"") ->  | AR47: =INDEX('Import (ADP)'!$C$2:$C$999,MATCH(A47, 'Import (ADP)'!$B$2:$B$999,0)) ->  | AU47: =IF(VLOOKUP(A48,'Name-Sort'!$D$2:$E$948,2,FALSE)="",A48,"") -> Harrison Bader | AV47: =IFERROR(INDEX($AU$1:$AU$948,SMALL(IF($AU$1:$AU$948<>"",ROW($AU$1:$AU$948)),ROW(AU47))),"") -> Harrison Bader
A48: Harrison Bader | B48: baderha01 | C48: OF | D48: CF | E48: STL | F48: 25 | G48: 523 | H48: 266 | I48: 695.59 | S48: 434 | T48: 266 | U48: 577.22 | V48: 463.53 | W48: 266 | X48: 485 | Y48: 473.51 | Z48: 266 | AA48: 629.7683 | AF48: 426 | AH48: =IFERROR(INDEX('Guts-2'!$K$1:$K$30,MATCH(E48,'Guts-2'!$J$1:$J$30,0)),TRUE) -> TRUE | AI48: =IF(AH48=FALSE,"",IFERROR(CHOOSE('Guts-2'!$D$27,AB48,AC48,AD48,AE48,AF48,AG48),"")) ->  | AK48: =IF(AH48=FALSE,"",IFERROR(CHOOSE('Guts-2'!$D$26,G48,J48,M48,P48,S48,V48,Y48,AR48),"")) ->  | AL48: =IFERROR(IF(Settings!$L$5="Mixed (Standard)",AK48,RANK(AK48,$AK$2:$AK$948,1)),"") ->  | AM48: =IFERROR(IF(Settings!$L$5="Mixed (Standard)",(RANK(AK48,$AK$2:$AK$948,1)/('Guts-2'!$N$1+1))+1,(RANK(AL48,$AL$2:$AL$948,1)/('Guts-2'!$N$1+1))+1),"") ->  | AN48: =IFERROR(CHOOSE('Guts-2'!$D$26,H48,K48,N48,Q48,T48,W48,Z48,AS48),"") ->  | AO48: =IFERROR(CHOOSE('Guts-2'!$D$26,I48,L48,O48,R48,U48,X48,AA48,AT48),"") ->  | AR48: =INDEX('Import (ADP)'!$C$2:$C$999,MATCH(A48, 'Import (ADP)'!$B$2:$B$999,0)) ->  | AU48: =IF(VLOOKUP(A49,'Name-Sort'!$D$2:$E$948,2,FALSE)="",A49,"") -> Javier Baez | AV48: =IFERROR(INDEX($AU$1:$AU$948,SMALL(IF($AU$1:$AU$948<>"",ROW($AU$1:$AU$948)),ROW(AU48))),"") -> Javier Baez
A49: Javier Baez | B49: baezja01 | C49: SS | E49: CHC | F49: 27 | G49: 64 | H49: 7 | I49: 126 | J49: 29 | K49: 7 | L49: 126 | M49: 67.62 | N49: 32 | O49: 126 | P49: 29 | Q49: 7 | R49: 126 | S49: 39.4 | T49: 7 | U49: 126 | V49: 40.11 | W49: 7 | X49: 62 | Y49: 44.855 | Z49: 7 | AA49: 126 | AB49: 28 | AC49: 27 | AD49: 52 | AE49: 27 | AF49: 27 | AH49: =IFERROR(INDEX('Guts-2'!$K$1:$K$30,MATCH(E49,'Guts-2'!$J$1:$J$30,0)),TRUE) -> TRUE | AI49: =IF(AH49=FALSE,"",IFERROR(CHOOSE('Guts-2'!$D$27,AB49,AC49,AD49,AE49,AF49,AG49),"")) -> 52 | AJ49: 52 | AK49: =IF(AH49=FALSE,"",IFERROR(CHOOSE('Guts-2'!$D$26,G49,J49,M49,P49,S49,V49,Y49,AR49),"")) -> 67.62 | AL49: =IFERROR(IF(Settings!$L$5="Mixed (Standard)",AK49,RANK(AK49,$AK$2:$AK$948,1)),"") -> 67.62 | AM49: =IFERROR(IF(Settings!$L$5="Mixed (Standard)",(RANK(AK49,$AK$2:$AK$948,1)/('Guts-2'!$N$1+1))+1,(RANK(AL49,$AL$2:$AL$948,1)/('Guts-2'!$N$1+1))+1),"") -> 5.461538462 | AN49: =IFERROR(CHOOSE('Guts-2'!$D$26,H49,K49,N49,Q49,T49,W49,Z49,AS49),"") -> 32 | AO49: =IFERROR(CHOOSE('Guts-2'!$D$26,I49,L49,O49,R49,U49,X49,AA49,AT49),"") -> 126 | AP49: 32 | AQ49: 126 | AR49: =INDEX('Import (ADP)'!$C$2:$C$999,MATCH(A49, 'Import (ADP)'!$B$2:$B$999,0)) ->  | AU49: =IF(VLOOKUP(A50,'Name-Sort'!$D$2:$E$948,2,FALSE)="",A50,"") -> Pedro Baez | AV49: =IFERROR(INDEX($AU$1:$AU$948,SMALL(IF($AU$1:$AU$948<>"",ROW($AU$1:$AU$948)),ROW(AU49))),"") -> Pedro Baez
A50: Pedro Baez | B50: baezpe01 | C50: RP | E50: LAD | F50: 32 | V50: 688.72 | W50: 314 | X50: 749 | Y50: 688.72 | Z50: 314 | AA50: 915.9976 | AF50: 468 | AH50: =IFERROR(INDEX('Guts-2'!$K$1:$K$30,MATCH(E50,'Guts-2'!$J$1:$J$30,0)),TRUE) -> TRUE | AI50: =IF(AH50=FALSE,"",IFERROR(CHOOSE('Guts-2'!$D$27,AB50,AC50,AD50,AE50,AF50,AG50),"")) ->  | AK50: =IF(AH50=FALSE,"",IFERROR(CHOOSE('Guts-2'!$D$26,G50,J50,M50,P50,S50,V50,Y50,AR50),"")) ->  | AL50: =IFERROR(IF(Settings!$L$5="Mixed (Standard)",AK50,RANK(AK50,$AK$2:$AK$948,1)),"") ->  | AM50: =IFERROR(IF(Settings!$L$5="Mixed (Standard)",(RANK(AK50,$AK$2:$AK$948,1)/('Guts-2'!$N$1+1))+1,(RANK(AL50,$AL$2:$AL$948,1)/('Guts-2'!$N$1+1))+1),"") ->  | AN50: =IFERROR(CHOOSE('Guts-2'!$D$26,H50,K50,N50,Q50,T50,W50,Z50,AS50),"") ->  | AO50: =IFERROR(CHOOSE('Guts-2'!$D$26,I50,L50,O50,R50,U50,X50,AA50,AT50),"") ->  | AR50: =INDEX('Import (ADP)'!$C$2:$C$999,MATCH(A50, 'Import (ADP)'!$B$2:$B$999,0)) ->  | AU50: =IF(VLOOKUP(A51,'Name-Sort'!$D$2:$E$948,2,FALSE)="",A51,"") -> Homer Bailey | AV50: =IFERROR(INDEX($AU$1:$AU$948,SMALL(IF($AU$1:$AU$948<>"",ROW($AU$1:$AU$948)),ROW(AU50))),"") -> Homer Bailey
A51: Homer Bailey | B51: baileho02 | C51: SP | E51: MIN | F51: 33 | G51: 373 | H51: 255 | I51: 619 | M51: 401 | N51: 321 | O51: 481 | S51: 389.5 | T51: 255 | U51: 619 | V51: 473.64 | W51: 255 | X51: 619 | Y51: 409.285 | Z51: 255 | AA51: 619 | AF51: 462 | AH51: =IFERROR(INDEX('Guts-2'!$K$1:$K$30,MATCH(E51,'Guts-2'!$J$1:$J$30,0)),TRUE) -> TRUE | AI51: =IF(AH51=FALSE,"",IFERROR(CHOOSE('Guts-2'!$D$27,AB51,AC51,AD51,AE51,AF51,AG51),"")) ->  | AK51: =IF(AH51=FALSE,"",IFERROR(CHOOSE('Guts-2'!$D$26,G51,J51,M51,P51,S51,V51,Y51,AR51),"")) -> 401 | AL51: =IFERROR(IF(Settings!$L$5="Mixed (Standard)",AK51,RANK(AK51,$AK$2:$AK$948,1)),"") -> 401 | AM51: =IFERROR(IF(Settings!$L$5="Mixed (Standard)",(RANK(AK51,$AK$2:$AK$948,1)/('Guts-2'!$N$1+1))+1,(RANK(AL51,$AL$2:$AL$948,1)/('Guts-2'!$N$1+1))+1),"") -> 33 | AN51: =IFERROR(CHOOSE('Guts-2'!$D$26,H51,K51,N51,Q51,T51,W51,Z51,AS51),"") -> 321 | AO51: =IFERROR(CHOOSE('Guts-2'!$D$26,I51,L51,O51,R51,U51,X51,AA51,AT51),"") -> 481 | AP51: 321 | AQ51: 481 | AR51: =INDEX('Import (ADP)'!$C$2:$C$999,MATCH(A51, 'Import (ADP)'!$B$2:$B$999,0)) ->  | AU51: =IF(VLOOKUP(A52,'Name-Sort'!$D$2:$E$948,2,FALSE)="",A52,"") -> Scott Barlow | AV51: =IFERROR(INDEX($AU$1:$AU$948,SMALL(IF($AU$1:$AU$948<>"",ROW($AU$1:$AU$948)),ROW(AU51))),"") -> Scott Barlow
A52: Scott Barlow | B52: barlosc01 | C52: RP | E52: KC | F52: 27 | G52: 507 | H52: 380.25 | I52: 750 | S52: 594.5 | T52: 445.875 | U52: 790.685 | V52: 718.67 | W52: 512 | X52: 750 | Y52: 606.7233333 | Z52: 455.0425 | AA52: 806.9420333 | AH52: =IFERROR(INDEX('Guts-2'!$K$1:$K$30,MATCH(E52,'Guts-2'!$J$1:$J$30,0)),TRUE) -> TRUE | AI52: =IF(AH52=FALSE,"",IFERROR(CHOOSE('Guts-2'!$D$27,AB52,AC52,AD52,AE52,AF52,AG52),"")) ->  | AK52: =IF(AH52=FALSE,"",IFERROR(CHOOSE('Guts-2'!$D$26,G52,J52,M52,P52,S52,V52,Y52,AR52),"")) ->  | AL52: =IFERROR(IF(Settings!$L$5="Mixed (Standard)",AK52,RANK(AK52,$AK$2:$AK$948,1)),"") ->  | AM52: =IFERROR(IF(Settings!$L$5="Mixed (Standard)",(RANK(AK52,$AK$2:$AK$948,1)/('Guts-2'!$N$1+1))+1,(RANK(AL52,$AL$2:$AL$948,1)/('Guts-2'!$N$1+1))+1),"") ->  | AN52: =IFERROR(CHOOSE('Guts-2'!$D$26,H52,K52,N52,Q52,T52,W52,Z52,AS52),"") ->  | AO52: =IFERROR(CHOOSE('Guts-2'!$D$26,I52,L52,O52,R52,U52,X52,AA52,AT52),"") ->  | AR52: =INDEX('Import (ADP)'!$C$2:$C$999,MATCH(A52, 'Import (ADP)'!$B$2:$B$999,0)) ->  | AU52: =IF(VLOOKUP(A53,'Name-Sort'!$D$2:$E$948,2,FALSE)="",A53,"") -> Austin Barnes | AV52: =IFERROR(INDEX($AU$1:$AU$948,SMALL(IF($AU$1:$AU$948<>"",ROW($AU$1:$AU$948)),ROW(AU52))),"") -> Austin Barnes
A53: Austin Barnes | B53: barneau01 | C53: C | E53: LAD | F53: 30 | S53: 535 | T53: 401.25 | U53: 750 | V53: 693.09 | W53: 424 | X53: 750 | Y53: 614.045 | Z53: 424 | AA53: 816.67985 | AH53: =IFERROR(INDEX('Guts-2'!$K$1:$K$30,MATCH(E53,'Guts-2'!$J$1:$J$30,0)),TRUE) -> TRUE | AI53: =IF(AH53=FALSE,"",IFERROR(CHOOSE('Guts-2'!$D$27,AB53,AC53,AD53,AE53,AF53,AG53),"")) ->  | AK53: =IF(AH53=FALSE,"",IFERROR(CHOOSE('Guts-2'!$D$26,G53,J53,M53,P53,S53,V53,Y53,AR53),"")) ->  | AL53: =IFERROR(IF(Settings!$L$5="Mixed (Standard)",AK53,RANK(AK53,$AK$2:$AK$948,1)),"") ->  | AM53: =IFERROR(IF(Settings!$L$5="Mixed (Standard)",(RANK(AK53,$AK$2:$AK$948,1)/('Guts-2'!$N$1+1))+1,(RANK(AL53,$AL$2:$AL$948,1)/('Guts-2'!$N$1+1))+1),"") ->  | AN53: =IFERROR(CHOOSE('Guts-2'!$D$26,H53,K53,N53,Q53,T53,W53,Z53,AS53),"") ->  | AO53: =IFERROR(CHOOSE('Guts-2'!$D$26,I53,L53,O53,R53,U53,X53,AA53,AT53),"") ->  | AR53: =INDEX('Import (ADP)'!$C$2:$C$999,MATCH(A53, 'Import (ADP)'!$B$2:$B$999,0)) ->  | AU53: =IF(VLOOKUP(A54,'Name-Sort'!$D$2:$E$948,2,FALSE)="",A54,"") -> Matt Barnes | AV53: =IFERROR(INDEX($AU$1:$AU$948,SMALL(IF($AU$1:$AU$948<>"",ROW($AU$1:$AU$948)),ROW(AU53))),"") -> Matt Barnes
A54: Matt Barnes | B54: barnema01 | C54: RP | E54: BOS | F54: 29 | G54: 418 | H54: 188 | I54: 672 | J54: 289 | K54: 188 | L54: 672 | M54: 323.33 | N54: 188 | O54: 491 | S54: 387.7 | T54: 188 | U54: 672 | V54: 561.24 | W54: 282 | X54: 672 | Y54: 395.854 | Z54: 188 | AA54: 672 | AC54: 376 | AF54: 403 | AH54: =IFERROR(INDEX('Guts-2'!$K$1:$K$30,MATCH(E54,'Guts-2'!$J$1:$J$30,0)),TRUE) -> TRUE | AI54: =IF(AH54=FALSE,"",IFERROR(CHOOSE('Guts-2'!$D$27,AB54,AC54,AD54,AE54,AF54,AG54),"")) ->  | AK54: =IF(AH54=FALSE,"",IFERROR(CHOOSE('Guts-2'!$D$26,G54,J54,M54,P54,S54,V54,Y54,AR54),"")) -> 323.33 | AL54: =IFERROR(IF(Settings!$L$5="Mixed (Standard)",AK54,RANK(AK54,$AK$2:$AK$948,1)),"") -> 323.33 | AM54: =IFERROR(IF(Settings!$L$5="Mixed (Standard)",(RANK(AK54,$AK$2:$AK$948,1)/('Guts-2'!$N$1+1))+1,(RANK(AL54,$AL$2:$AL$948,1)/('Guts-2'!$N$1+1))+1),"") -> 27.92307692 | AN54: =IFERROR(CHOOSE('Guts-2'!$D$26,H54,K54,N54,Q54,T54,W54,Z54,AS54),"") -> 188 | AO54: =IFERROR(CHOOSE('Guts-2'!$D$26,I54,L54,O54,R54,U54,X54,AA54,AT54),"") -> 491 | AP54: 188 | AQ54: 491 | AR54: =INDEX('Import (ADP)'!$C$2:$C$999,MATCH(A54, 'Import (ADP)'!$B$2:$B$999,0)) ->  | AU54: =IF(VLOOKUP(A55,'Name-Sort'!$D$2:$E$948,2,FALSE)="",A55,"") -> Tucker Barnhart | AV54: =IFERROR(INDEX($AU$1:$AU$948,SMALL(IF($AU$1:$AU$948<>"",ROW($AU$1:$AU$948)),ROW(AU54))),"") -> Tucker Barnhart
A55: Tucker Barnhart | B55: barnhtu01 | C55: C | E55: CIN | F55: 29 | G55: 485 | H55: 199 | I55: 645.05 | S55: 437.3 | T55: 199 | U55: 581.609 | V55: 388.24 | W55: 199 | X55: 439 | Y55: 436.8466667 | Z55: 199 | AA55: 581.0060667 | AF55: 523 | AH55: =IFERROR(INDEX('Guts-2'!$K$1:$K$30,MATCH(E55,'Guts-2'!$J$1:$J$30,0)),TRUE) -> TRUE | AI55: =IF(AH55=FALSE,"",IFERROR(CHOOSE('Guts-2'!$D$27,AB55,AC55,AD55,AE55,AF55,AG55),"")) ->  | AK55: =IF(AH55=FALSE,"",IFERROR(CHOOSE('Guts-2'!$D$26,G55,J55,M55,P55,S55,V55,Y55,AR55),"")) ->  | AL55: =IFERROR(IF(Settings!$L$5="Mixed (Standard)",AK55,RANK(AK55,$AK$2:$AK$948,1)),"") ->  | AM55: =IFERROR(IF(Settings!$L$5="Mixed (Standard)",(RANK(AK55,$AK$2:$AK$948,1)/('Guts-2'!$N$1+1))+1,(RANK(AL55,$AL$2:$AL$948,1)/('Guts-2'!$N$1+1))+1),"") ->  | AN55: =IFERROR(CHOOSE('Guts-2'!$D$26,H55,K55,N55,Q55,T55,W55,Z55,AS55),"") ->  | AO55: =IFERROR(CHOOSE('Guts-2'!$D$26,I55,L55,O55,R55,U55,X55,AA55,AT55),"") ->  | AR55: =INDEX('Import (ADP)'!$C$2:$C$999,MATCH(A55, 'Import (ADP)'!$B$2:$B$999,0)) ->  | AU55: =IF(VLOOKUP(A56,'Name-Sort'!$D$2:$E$948,2,FALSE)="",A56,"") -> Franklin Barreto | AV55: =IFERROR(INDEX($AU$1:$AU$948,SMALL(IF($AU$1:$AU$948<>"",ROW($AU$1:$AU$948)),ROW(AU55))),"") -> Franklin Barreto
A56: Franklin Barreto | B56: barrefr01 | C56: 2B | E56: OAK | F56: 24 | M56: 440 | N56: 354 | O56: 526 | S56: 473 | T56: 330 | U56: 722 | V56: 594.43 | W56: 330 | X56: 722 | Y56: 502.4766667 | Z56: 330 | AA56: 722 | AB56: 291 | AF56: 466 | AH56: =IFERROR(INDEX('Guts-2'!$K$1:$K$30,MATCH(E56,'Guts-2'!$J$1:$J$30,0)),TRUE) -> TRUE | AI56: =IF(AH56=FALSE,"",IFERROR(CHOOSE('Guts-2'!$D$27,AB56,AC56,AD56,AE56,AF56,AG56),"")) ->  | AK56: =IF(AH56=FALSE,"",IFERROR(CHOOSE('Guts-2'!$D$26,G56,J56,M56,P56,S56,V56,Y56,AR56),"")) -> 440 | AL56: =IFERROR(IF(Settings!$L$5="Mixed (Standard)",AK56,RANK(AK56,$AK$2:$AK$948,1)),"") -> 440 | AM56: =IFERROR(IF(Settings!$L$5="Mixed (Standard)",(RANK(AK56,$AK$2:$AK$948,1)/('Guts-2'!$N$1+1))+1,(RANK(AL56,$AL$2:$AL$948,1)/('Guts-2'!$N$1+1))+1),"") -> 35 | AN56: =IFERROR(CHOOSE('Guts-2'!$D$26,H56,K56,N56,Q56,T56,W56,Z56,AS56),"") -> 354 | AO56: =IFERROR(CHOOSE('Guts-2'!$D$26,I56,L56,O56,R56,U56,X56,AA56,AT56),"") -> 526 | AP56: 354 | AQ56: 526 | AR56: =INDEX('Import (ADP)'!$C$2:$C$999,MATCH(A56, 'Import (ADP)'!$B$2:$B$999,0)) ->  | AU56: =IF(VLOOKUP(A57,'Name-Sort'!$D$2:$E$948,2,FALSE)="",A57,"") -> Joey Bart | AV56: =IFERROR(INDEX($AU$1:$AU$948,SMALL(IF($AU$1:$AU$948<>"",ROW($AU$1:$AU$948)),ROW(AU56))),"") -> Joey Bart
A57: Joey Bart | B57: bartjo01 | C57: C | E57: SF | F57: 23 | M57: 232 | N57: 114 | O57: 462 | S57: 421.5 | T57: 114 | U57: 598 | V57: 567.85 | W57: 314 | X57: 598 | Y57: 407.1166667 | Z57: 114 | AA57: 598 | AH57: =IFERROR(INDEX('Guts-2'!$K$1:$K$30,MATCH(E57,'Guts-2'!$J$1:$J$30,0)),TRUE) -> TRUE | AI57: =IF(AH57=FALSE,"",IFERROR(CHOOSE('Guts-2'!$D$27,AB57,AC57,AD57,AE57,AF57,AG57),"")) ->  | AK57: =IF(AH57=FALSE,"",IFERROR(CHOOSE('Guts-2'!$D$26,G57,J57,M57,P57,S57,V57,Y57,AR57),"")) -> 232 | AL57: =IFERROR(IF(Settings!$L$5="Mixed (Standard)",AK57,RANK(AK57,$AK$2:$AK$948,1)),"") -> 232 | AM57: =IFERROR(IF(Settings!$L$5="Mixed (Standard)",(RANK(AK57,$AK$2:$AK$948,1)/('Guts-2'!$N$1+1))+1,(RANK(AL57,$AL$2:$AL$948,1)/('Guts-2'!$N$1+1))+1),"") -> 20.46153846 | AN57: =IFERROR(CHOOSE('Guts-2'!$D$26,H57,K57,N57,Q57,T57,W57,Z57,AS57),"") -> 114 | AO57: =IFERROR(CHOOSE('Guts-2'!$D$26,I57,L57,O57,R57,U57,X57,AA57,AT57),"") -> 462 | AP57: 114 | AQ57: 462 | AR57: =INDEX('Import (ADP)'!$C$2:$C$999,MATCH(A57, 'Import (ADP)'!$B$2:$B$999,0)) ->  | AU57: =IF(VLOOKUP(A58,'Name-Sort'!$D$2:$E$948,2,FALSE)="",A58,"") -> Anthony Bass | AV57: =IFERROR(INDEX($AU$1:$AU$948,SMALL(IF($AU$1:$AU$948<>"",ROW($AU$1:$AU$948)),ROW(AU57))),"") -> Anthony Bass
A58: Anthony Bass | B58: bassan01 | C58: RP | E58: N/A | F58: 32 | V58: 706.84 | W58: 384 | X58: 749 | Y58: 706.84 | Z58: 384 | AA58: 940.0972 | AH58: =IFERROR(INDEX('Guts-2'!$K$1:$K$30,MATCH(E58,'Guts-2'!$J$1:$J$30,0)),TRUE) -> TRUE | AI58: =IF(AH58=FALSE,"",IFERROR(CHOOSE('Guts-2'!$D$27,AB58,AC58,AD58,AE58,AF58,AG58),"")) ->  | AK58: =IF(AH58=FALSE,"",IFERROR(CHOOSE('Guts-2'!$D$26,G58,J58,M58,P58,S58,V58,Y58,AR58),"")) ->  | AL58: =IFERROR(IF(Settings!$L$5="Mixed (Standard)",AK58,RANK(AK58,$AK$2:$AK$948,1)),"") ->  | AM58: =IFERROR(IF(Settings!$L$5="Mixed (Standard)",(RANK(AK58,$AK$2:$AK$948,1)/('Guts-2'!$N$1+1))+1,(RANK(AL58,$AL$2:$AL$948,1)/('Guts-2'!$N$1+1))+1),"") ->  | AN58: =IFERROR(CHOOSE('Guts-2'!$D$26,H58,K58,N58,Q58,T58,W58,Z58,AS58),"") ->  | AO58: =IFERROR(CHOOSE('Guts-2'!$D$26,I58,L58,O58,R58,U58,X58,AA58,AT58),"") ->  | AR58: =INDEX('Import (ADP)'!$C$2:$C$999,MATCH(A58, 'Import (ADP)'!$B$2:$B$999,0)) ->  | AU58: =IF(VLOOKUP(A59,'Name-Sort'!$D$2:$E$948,2,FALSE)="",A59,"") -> Chris Bassitt | AV58: =IFERROR(INDEX($AU$1:$AU$948,SMALL(IF($AU$1:$AU$948<>"",ROW($AU$1:$AU$948)),ROW(AU58))),"") -> Chris Bassitt
A59: Chris Bassitt | B59: bassich01 | C59: SP | E59: OAK | F59: 31 | G59: 350 | H59: 249 | I59: 634 | J59: 325 | K59: 243.75 | L59: 634 | M59: 471.5 | N59: 309 | O59: 634 | P59: 332 | Q59: 249 | R59: 634 | S59: 331 | T59: 248.25 | U59: 634 | V59: 345.85 | W59: 249 | X59: 425 | Y59: 359.225 | Z59: 249 | AA59: 634 | AB59: 236 | AC59: 278 | AD59: 239 | AF59: 298 | AH59: =IFERROR(INDEX('Guts-2'!$K$1:$K$30,MATCH(E59,'Guts-2'!$J$1:$J$30,0)),TRUE) -> TRUE | AI59: =IF(AH59=FALSE,"",IFERROR(CHOOSE('Guts-2'!$D$27,AB59,AC59,AD59,AE59,AF59,AG59),"")) -> 239 | AJ59: 239 | AK59: =IF(AH59=FALSE,"",IFERROR(CHOOSE('Guts-2'!$D$26,G59,J59,M59,P59,S59,V59,Y59,AR59),"")) -> 471.5 | AL59: =IFERROR(IF(Settings!$L$5="Mixed (Standard)",AK59,RANK(AK59,$AK$2:$AK$948,1)),"") -> 471.5 | AM59: =IFERROR(IF(Settings!$L$5="Mixed (Standard)",(RANK(AK59,$AK$2:$AK$948,1)/('Guts-2'!$N$1+1))+1,(RANK(AL59,$AL$2:$AL$948,1)/('Guts-2'!$N$1+1))+1),"") -> 36.15384615 | AN59: =IFERROR(CHOOSE('Guts-2'!$D$26,H59,K59,N59,Q59,T59,W59,Z59,AS59),"") -> 309 | AO59: =IFERROR(CHOOSE('Guts-2'!$D$26,I59,L59,O59,R59,U59,X59,AA59,AT59),"") -> 634 | AP59: 309 | AQ59: 634 | AR59: =INDEX('Import (ADP)'!$C$2:$C$999,MATCH(A59, 'Import (ADP)'!$B$2:$B$999,0)) ->  | AU59: =IF(VLOOKUP(A60,'Name-Sort'!$D$2:$E$948,2,FALSE)="",A60,"") -> Jake Bauers | AV59: =IFERROR(INDEX($AU$1:$AU$948,SMALL(IF($AU$1:$AU$948<>"",ROW($AU$1:$AU$948)),ROW(AU59))),"") -> Jake Bauers
A60: Jake Bauers | B60: bauerja01 | C60: OF | D60: LF | E60: CLE | F60: 24 | S60: 468 | T60: 320 | U60: 622.44 | V60: 570.59 | W60: 320 | X60: 606 | Y60: 519.295 | Z60: 320 | AA60: 690.66235 | AE60: 251 | AF60: 516 | AH60: =IFERROR(INDEX('Guts-2'!$K$1:$K$30,MATCH(E60,'Guts-2'!$J$1:$J$30,0)),TRUE) -> TRUE | AI60: =IF(AH60=FALSE,"",IFERROR(CHOOSE('Guts-2'!$D$27,AB60,AC60,AD60,AE60,AF60,AG60),"")) ->  | AK60: =IF(AH60=FALSE,"",IFERROR(CHOOSE('Guts-2'!$D$26,G60,J60,M60,P60,S60,V60,Y60,AR60),"")) ->  | AL60: =IFERROR(IF(Settings!$L$5="Mixed (Standard)",AK60,RANK(AK60,$AK$2:$AK$948,1)),"") ->  | AM60: =IFERROR(IF(Settings!$L$5="Mixed (Standard)",(RANK(AK60,$AK$2:$AK$948,1)/('Guts-2'!$N$1+1))+1,(RANK(AL60,$AL$2:$AL$948,1)/('Guts-2'!$N$1+1))+1),"") ->  | AN60: =IFERROR(CHOOSE('Guts-2'!$D$26,H60,K60,N60,Q60,T60,W60,Z60,AS60),"") ->  | AO60: =IFERROR(CHOOSE('Guts-2'!$D$26,I60,L60,O60,R60,U60,X60,AA60,AT60),"") ->  | AR60: =INDEX('Import (ADP)'!$C$2:$C$999,MATCH(A60, 'Import (ADP)'!$B$2:$B$999,0)) ->  | AU60: =IF(VLOOKUP(A61,'Name-Sort'!$D$2:$E$948,2,FALSE)="",A61,"") -> Trevor Bauer | AV60: =IFERROR(INDEX($AU$1:$AU$948,SMALL(IF($AU$1:$AU$948<>"",ROW($AU$1:$AU$948)),ROW(AU60))),"") -> Trevor Bauer
A61: Trevor Bauer | B61: bauertr01 | C61: SP | E61: CIN | F61: 29 | G61: 69 | H61: 50 | I61: 116 | J61: 88 | K61: 50 | L61: 117.04 | M61: 73.5 | N61: 50 | O61: 91 | P61: 88 | Q61: 50 | R61: 117.04 | S61: 79 | T61: 50 | U61: 116 | V61: 81.97 | W61: 56 | X61: 116 | Y61: 79.91166667 | Z61: 50 | AA61: 116 | AB61: 88 | AC61: 89 | AD61: 85 | AE61: 95 | AF61: 95 | AH61: =IFERROR(INDEX('Guts-2'!$K$1:$K$30,MATCH(E61,'Guts-2'!$J$1:$J$30,0)),TRUE) -> TRUE | AI61: =IF(AH61=FALSE,"",IFERROR(CHOOSE('Guts-2'!$D$27,AB61,AC61,AD61,AE61,AF61,AG61),"")) -> 85 | AJ61: 85 | AK61: =IF(AH61=FALSE,"",IFERROR(CHOOSE('Guts-2'!$D$26,G61,J61,M61,P61,S61,V61,Y61,AR61),"")) -> 73.5 | AL61: =IFERROR(IF(Settings!$L$5="Mixed (Standard)",AK61,RANK(AK61,$AK$2:$AK$948,1)),"") -> 73.5 | AM61: =IFERROR(IF(Settings!$L$5="Mixed (Standard)",(RANK(AK61,$AK$2:$AK$948,1)/('Guts-2'!$N$1+1))+1,(RANK(AL61,$AL$2:$AL$948,1)/('Guts-2'!$N$1+1))+1),"") -> 6.307692308 | AN61: =IFERROR(CHOOSE('Guts-2'!$D$26,H61,K61,N61,Q61,T61,W61,Z61,AS61),"") -> 50 | AO61: =IFERROR(CHOOSE('Guts-2'!$D$26,I61,L61,O61,R61,U61,X61,AA61,AT61),"") -> 91 | AP61: 50 | AQ61: 91 | AR61: =INDEX('Import (ADP)'!$C$2:$C$999,MATCH(A61, 'Import (ADP)'!$B$2:$B$999,0)) ->  | AU61: =IF(VLOOKUP(A62,'Name-Sort'!$D$2:$E$948,2,FALSE)="",A62,"") -> Matt Beaty | AV61: =IFERROR(INDEX($AU$1:$AU$948,SMALL(IF($AU$1:$AU$948<>"",ROW($AU$1:$AU$948)),ROW(AU61))),"") -> Matt Beaty
A62: Matt Beaty | B62: beatyma01 | C62: OF | D62: LF | E62: LAD | F62: 26 | P62: 374 | Q62: 280.5 | R62: 649 | S62: 463 | T62: 344 | U62: 649 | V62: 618.49 | W62: 344 | X62: 649 | Y62: 485.1633333 | Z62: 344 | AA62: 649 | AF62: 497 | AH62: =IFERROR(INDEX('Guts-2'!$K$1:$K$30,MATCH(E62,'Guts-2'!$J$1:$J$30,0)),TRUE) -> TRUE | AI62: =IF(AH62=FALSE,"",IFERROR(CHOOSE('Guts-2'!$D$27,AB62,AC62,AD62,AE62,AF62,AG62),"")) ->  | AK62: =IF(AH62=FALSE,"",IFERROR(CHOOSE('Guts-2'!$D$26,G62,J62,M62,P62,S62,V62,Y62,AR62),"")) ->  | AL62: =IFERROR(IF(Settings!$L$5="Mixed (Standard)",AK62,RANK(AK62,$AK$2:$AK$948,1)),"") ->  | AM62: =IFERROR(IF(Settings!$L$5="Mixed (Standard)",(RANK(AK62,$AK$2:$AK$948,1)/('Guts-2'!$N$1+1))+1,(RANK(AL62,$AL$2:$AL$948,1)/('Guts-2'!$N$1+1))+1),"") ->  | AN62: =IFERROR(CHOOSE('Guts-2'!$D$26,H62,K62,N62,Q62,T62,W62,Z62,AS62),"") ->  | AO62: =IFERROR(CHOOSE('Guts-2'!$D$26,I62,L62,O62,R62,U62,X62,AA62,AT62),"") ->  | AR62: =INDEX('Import (ADP)'!$C$2:$C$999,MATCH(A62, 'Import (ADP)'!$B$2:$B$999,0)) ->  | AU62: =IF(VLOOKUP(A63,'Name-Sort'!$D$2:$E$948,2,FALSE)="",A63,"") -> Tim Beckham | AV62: =IFERROR(INDEX($AU$1:$AU$948,SMALL(IF($AU$1:$AU$948<>"",ROW($AU$1:$AU$948)),ROW(AU62))),"") -> Tim Beckham
A63: Tim Beckham | B63: beckhti01 | C63: SS | D63: LF | E63: SEA | F63: 30 | V63: 742.21 | W63: 580 | X63: 747 | Y63: 742.21 | Z63: 556.6575 | AA63: 987.1393 | AH63: =IFERROR(INDEX('Guts-2'!$K$1:$K$30,MATCH(E63,'Guts-2'!$J$1:$J$30,0)),TRUE) -> TRUE | AI63: =IF(AH63=FALSE,"",IFERROR(CHOOSE('Guts-2'!$D$27,AB63,AC63,AD63,AE63,AF63,AG63),"")) ->  | AK63: =IF(AH63=FALSE,"",IFERROR(CHOOSE('Guts-2'!$D$26,G63,J63,M63,P63,S63,V63,Y63,AR63),"")) ->  | AL63: =IFERROR(IF(Settings!$L$5="Mixed (Standard)",AK63,RANK(AK63,$AK$2:$AK$948,1)),"") ->  | AM63: =IFERROR(IF(Settings!$L$5="Mixed (Standard)",(RANK(AK63,$AK$2:$AK$948,1)/('Guts-2'!$N$1+1))+1,(RANK(AL63,$AL$2:$AL$948,1)/('Guts-2'!$N$1+1))+1),"") ->  | AN63: =IFERROR(CHOOSE('Guts-2'!$D$26,H63,K63,N63,Q63,T63,W63,Z63,AS63),"") ->  | AO63: =IFERROR(CHOOSE('Guts-2'!$D$26,I63,L63,O63,R63,U63,X63,AA63,AT63),"") ->  | AR63: =INDEX('Import (ADP)'!$C$2:$C$999,MATCH(A63, 'Import (ADP)'!$B$2:$B$999,0)) ->  | AU63: =IF(VLOOKUP(A64,'Name-Sort'!$D$2:$E$948,2,FALSE)="",A64,"") -> Cam Bedrosian | AV63: =IFERROR(INDEX($AU$1:$AU$948,SMALL(IF($AU$1:$AU$948<>"",ROW($AU$1:$AU$948)),ROW(AU63))),"") -> Cam Bedrosian
A64: Cam Bedrosian | B64: bedroca01 | C64: RP | E64: LAA | F64: 28 | V64: 730.08 | W64: 500 | X64: 749 | Y64: 730.08 | Z64: 500 | AA64: 971.0064 | AH64: =IFERROR(INDEX('Guts-2'!$K$1:$K$30,MATCH(E64,'Guts-2'!$J$1:$J$30,0)),TRUE) -> TRUE | AI64: =IF(AH64=FALSE,"",IFERROR(CHOOSE('Guts-2'!$D$27,AB64,AC64,AD64,AE64,AF64,AG64),"")) ->  | AK64: =IF(AH64=FALSE,"",IFERROR(CHOOSE('Guts-2'!$D$26,G64,J64,M64,P64,S64,V64,Y64,AR64),"")) ->  | AL64: =IFERROR(IF(Settings!$L$5="Mixed (Standard)",AK64,RANK(AK64,$AK$2:$AK$948,1)),"") ->  | AM64: =IFERROR(IF(Settings!$L$5="Mixed (Standard)",(RANK(AK64,$AK$2:$AK$948,1)/('Guts-2'!$N$1+1))+1,(RANK(AL64,$AL$2:$AL$948,1)/('Guts-2'!$N$1+1))+1),"") ->  | AN64: =IFERROR(CHOOSE('Guts-2'!$D$26,H64,K64,N64,Q64,T64,W64,Z64,AS64),"") ->  | AO64: =IFERROR(CHOOSE('Guts-2'!$D$26,I64,L64,O64,R64,U64,X64,AA64,AT64),"") ->  | AR64: =INDEX('Import (ADP)'!$C$2:$C$999,MATCH(A64, 'Import (ADP)'!$B$2:$B$999,0)) ->  | AU64: =IF(VLOOKUP(A65,'Name-Sort'!$D$2:$E$948,2,FALSE)="",A65,"") -> Tyler Beede | AV64: =IFERROR(INDEX($AU$1:$AU$948,SMALL(IF($AU$1:$AU$948<>"",ROW($AU$1:$AU$948)),ROW(AU64))),"") -> Tyler Beede
A65: Tyler Beede | B65: beedety01 | C65: SP | E65: N/A | F65: 26 | G65: 380 | H65: 285 | I65: 607 | M65: 332.5 | N65: 320 | O65: 345 | S65: 381.3 | T65: 285.975 | U65: 607 | V65: 443.85 | W65: 303 | X65: 607 | Y65: 384.4125 | Z65: 288.309375 | AA65: 607 | AF65: 382 | AH65: =IFERROR(INDEX('Guts-2'!$K$1:$K$30,MATCH(E65,'Guts-2'!$J$1:$J$30,0)),TRUE) -> TRUE | AI65: =IF(AH65=FALSE,"",IFERROR(CHOOSE('Guts-2'!$D$27,AB65,AC65,AD65,AE65,AF65,AG65),"")) ->  | AK65: =IF(AH65=FALSE,"",IFERROR(CHOOSE('Guts-2'!$D$26,G65,J65,M65,P65,S65,V65,Y65,AR65),"")) -> 332.5 | AL65: =IFERROR(IF(Settings!$L$5="Mixed (Standard)",AK65,RANK(AK65,$AK$2:$AK$948,1)),"") -> 332.5 | AM65: =IFERROR(IF(Settings!$L$5="Mixed (Standard)",(RANK(AK65,$AK$2:$AK$948,1)/('Guts-2'!$N$1+1))+1,(RANK(AL65,$AL$2:$AL$948,1)/('Guts-2'!$N$1+1))+1),"") -> 28.61538462 | AN65: =IFERROR(CHOOSE('Guts-2'!$D$26,H65,K65,N65,Q65,T65,W65,Z65,AS65),"") -> 320 | AO65: =IFERROR(CHOOSE('Guts-2'!$D$26,I65,L65,O65,R65,U65,X65,AA65,AT65),"") -> 345 | AP65: 320 | AQ65: 345 | AR65: =INDEX('Import (ADP)'!$C$2:$C$999,MATCH(A65, 'Import (ADP)'!$B$2:$B$999,0)) ->  | AU65: =IF(VLOOKUP(A66,'Name-Sort'!$D$2:$E$948,2,FALSE)="",A66,"") -> Jalen Beeks | AV65: =IFERROR(INDEX($AU$1:$AU$948,SMALL(IF($AU$1:$AU$948<>"",ROW($AU$1:$AU$948)),ROW(AU65))),"") -> Jalen Beeks
A66: Jalen Beeks | B66: beeksja02 | C66: RP | E66: TB | F66: 26 | V66: 737.78 | W66: 517 | X66: 750 | Y66: 737.78 | Z66: 517 | AA66: 981.2474 | AH66: =IFERROR(INDEX('Guts-2'!$K$1:$K$30,MATCH(E66,'Guts-2'!$J$1:$J$30,0)),TRUE) -> TRUE | AI66: =IF(AH66=FALSE,"",IFERROR(CHOOSE('Guts-2'!$D$27,AB66,AC66,AD66,AE66,AF66,AG66),"")) ->  | AJ66: =IFERROR(RANK(AI66,$AI$2:$AI$948,1),"") ->  | AK66: =IF(AH66=FALSE,"",IFERROR(CHOOSE('Guts-2'!$D$26,G66,J66,M66,P66,S66,V66,Y66,AR66),"")) ->  | AL66: =IFERROR(IF(Settings!$L$5="Mixed (Standard)",AK66,RANK(AK66,$AK$2:$AK$948,1)),"") ->  | AM66: =IFERROR(IF(Settings!$L$5="Mixed (Standard)",(RANK(AK66,$AK$2:$AK$948,1)/('Guts-2'!$N$1+1))+1,(RANK(AL66,$AL$2:$AL$948,1)/('Guts-2'!$N$1+1))+1),"") ->  | AN66: =IFERROR(CHOOSE('Guts-2'!$D$26,H66,K66,N66,Q66,T66,W66,Z66,AS66),"") ->  | AO66: =IFERROR(CHOOSE('Guts-2'!$D$26,I66,L66,O66,R66,U66,X66,AA66,AT66),"") ->  | AP66: =IFERROR(IF(AH66=TRUE,IF((AN66-COUNTIFS($AN$2:$AN$948,"<"&AN66,$AH$2:$AH$948,FALSE))<1,1,AN66-COUNTIFS($AN$2:$AN$948,"<"&AN66,$AH$2:$AH$948,FALSE)),""),"") ->  | AQ66: =IFERROR(IF(AH66=FALSE,"",IF((AO66-COUNTIFS($AO$2:$AO$948,"<"&AO66,$AH$2:$AH$948,FALSE))<1,1,AO66-COUNTIFS($AO$2:$AO$948,"<"&AO66,$AH$2:$AH$948,FALSE))),"") ->  | AR66: =INDEX('Import (ADP)'!$C$2:$C$999,MATCH(A66, 'Import (ADP)'!$B$2:$B$999,0)) ->  | AS66: =IFERROR(MIN(N66,W66,ROUND(AR66*0.75,0)),ROUND(AR66*0.75,0)) ->  | AT66: =IFERROR(MAX(O66,X66,ROUND(AR66*1.25,0)),ROUND(AS66*1.25,0)) ->  | AU66: =IF(VLOOKUP(A67,'Name-Sort'!$D$2:$E$948,2,FALSE)="",A67,"") -> Seth Beer | AV66: =IFERROR(INDEX($AU$1:$AU$948,SMALL(IF($AU$1:$AU$948<>"",ROW($AU$1:$AU$948)),ROW(AU66))),"") -> Seth Beer
A67: Seth Beer | B67: beerse01 | C67: 1B | D67: LF | E67: ARI | F67: 23 | H67: =MIN(G67*0.75,IFERROR($W67,999),IFERROR($N67,999)) ->  | I67: =MAX(G67*1.33,IFERROR($X67,1),IFERROR($O67,1)) ->  | K67: =MIN(J67*0.75,IFERROR($W67,999),IFERROR($N67,999)) ->  | L67: =MAX(J67*1.33,IFERROR($X67,1),IFERROR($O67,1)) ->  | M67: 421.33 | N67: 356 | O67: 497 | Q67: =MIN(P67*0.75,IFERROR($W67,999),IFERROR($N67,999)) ->  | R67: =MAX(P67*1.33,IFERROR($X67,1),IFERROR($O67,1)) ->  | T67: =MIN(S67*0.75,IFERROR($W67,999),IFERROR($N67,999)) ->  | U67: =MAX(S67*1.33,IFERROR($X67,1),IFERROR($O67,1)) ->  | V67: 716 | W67: 530 | X67: 745 | Y67: =IFERROR((IFERROR(V67,0)+IFERROR(S67,0)+IFERROR(M67,0)+IFERROR(G67,0)+IFERROR(P67,0)+IFERROR(J67,0))/(IF(ISERROR(V67),0,1)+IF(ISERROR(S67),0,1)+IF(ISERROR(M67),0,1)+IF(ISERROR(G67),0,1)+IF(ISERROR(P67),0,1)+IF(ISERROR(J67),0,1)),#N/A) -> 568.665 | Z67: =MIN(Y67*0.75,IFERROR($W67,999),IFERROR($N67,999)) -> 356 | AA67: =MAX(Y67*1.33,IFERROR($X67,1),IFERROR($O67,1)) -> 756.32445 | AH67: =IFERROR(INDEX('Guts-2'!$K$1:$K$30,MATCH(E67,'Guts-2'!$J$1:$J$30,0)),TRUE) -> TRUE | AI67: =IF(AH67=FALSE,"",IFERROR(CHOOSE('Guts-2'!$D$27,AB67,AC67,AD67,AE67,AF67,AG67),"")) ->  | AK67: =IF(AH67=FALSE,"",IFERROR(CHOOSE('Guts-2'!$D$26,G67,J67,M67,P67,S67,V67,Y67,AR67),"")) -> 421.33 | AL67: =IFERROR(IF(Settings!$L$5="Mixed (Standard)",AK67,RANK(AK67,$AK$2:$AK$948,1)),"") -> 421.33 | AM67: =IFERROR(IF(Settings!$L$5="Mixed (Standard)",(RANK(AK67,$AK$2:$AK$948,1)/('Guts-2'!$N$1+1))+1,(RANK(AL67,$AL$2:$AL$948,1)/('Guts-2'!$N$1+1))+1),"") -> 33.53846154 | AN67: =IFERROR(CHOOSE('Guts-2'!$D$26,H67,K67,N67,Q67,T67,W67,Z67,AS67),"") -> 356 | AO67: =IFERROR(CHOOSE('Guts-2'!$D$26,I67,L67,O67,R67,U67,X67,AA67,AT67),"") -> 497 | AP67: 356 | AQ67: 497 | AR67: =INDEX('Import (ADP)'!$C$2:$C$999,MATCH(A67, 'Import (ADP)'!$B$2:$B$999,0)) ->  | AU67: =IF(VLOOKUP(A68,'Name-Sort'!$D$2:$E$948,2,FALSE)="",A68,"") -> Cody Bellinger | AV67: =IFERROR(INDEX($AU$1:$AU$948,SMALL(IF($AU$1:$AU$948<>"",ROW($AU$1:$AU$948)),ROW(AU67))),"") -> Cody Bellinger
A68: Cody Bellinger | B68: bellico01 | C68: OF | D68: CF,RF | E68: LAD | F68: 24 | G68: 4 | H68: 1 | I68: 18 | J68: 4 | K68: 1 | L68: 18 | M68: 8.12 | N68: 4 | O68: 18 | P68: 6 | Q68: 1 | R68: 18 | S68: 4.4 | T68: 1 | U68: 18 | V68: 5.08 | W68: 1 | X68: 10 | Y68: 5.266666667 | Z68: 1 | AA68: 18 | AB68: 6 | AC68: 4 | AD68: 11 | AE68: 5 | AF68: 4 | AH68: =IFERROR(INDEX('Guts-2'!$K$1:$K$30,MATCH(E68,'Guts-2'!$J$1:$J$30,0)),TRUE) -> TRUE | AI68: =IF(AH68=FALSE,"",IFERROR(CHOOSE('Guts-2'!$D$27,AB68,AC68,AD68,AE68,AF68,AG68),"")) -> 11 | AJ68: 11 | AK68: =IF(AH68=FALSE,"",IFERROR(CHOOSE('Guts-2'!$D$26,G68,J68,M68,P68,S68,V68,Y68,AR68),"")) -> 8.12 | AL68: =IFERROR(IF(Settings!$L$5="Mixed (Standard)",AK68,RANK(AK68,$AK$2:$AK$948,1)),"") -> 8.12 | AM68: =IFERROR(IF(Settings!$L$5="Mixed (Standard)",(RANK(AK68,$AK$2:$AK$948,1)/('Guts-2'!$N$1+1))+1,(RANK(AL68,$AL$2:$AL$948,1)/('Guts-2'!$N$1+1))+1),"") -> 1.538461538 | AN68: =IFERROR(CHOOSE('Guts-2'!$D$26,H68,K68,N68,Q68,T68,W68,Z68,AS68),"") -> 4 | AO68: =IFERROR(CHOOSE('Guts-2'!$D$26,I68,L68,O68,R68,U68,X68,AA68,AT68),"") -> 18 | AP68: 4 | AQ68: 18 | AR68: =INDEX('Import (ADP)'!$C$2:$C$999,MATCH(A68, 'Import (ADP)'!$B$2:$B$999,0)) -> 8 | AS68: 1 | AT68: 18 | AU68: =IF(VLOOKUP(A69,'Name-Sort'!$D$2:$E$948,2,FALSE)="",A69,"") -> Josh Bell | AV68: =IFERROR(INDEX($AU$1:$AU$948,SMALL(IF($AU$1:$AU$948<>"",ROW($AU$1:$AU$948)),ROW(AU68))),"") -> Josh Bell
A69: Josh Bell | B69: belljo02 | C69: 1B | E69: PIT | F69: 27 | G69: 85 | H69: 46 | I69: 135 | J69: 91 | K69: 46 | L69: 135 | M69: 79.38 | N69: 60 | O69: 135 | P69: 47 | Q69: 35.25 | R69: 135 | S69: 79.6 | T69: 46 | U69: 135 | V69: 93.61 | W69: 46 | X69: 129 | Y69: 79.265 | Z69: 46 | AA69: 135 | AB69: 107 | AC69: 98 | AD69: 112 | AE69: 64 | AF69: 80 | AH69: =IFERROR(INDEX('Guts-2'!$K$1:$K$30,MATCH(E69,'Guts-2'!$J$1:$J$30,0)),TRUE) -> TRUE | AI69: =IF(AH69=FALSE,"",IFERROR(CHOOSE('Guts-2'!$D$27,AB69,AC69,AD69,AE69,AF69,AG69),"")) -> 112 | AJ69: 112 | AK69: =IF(AH69=FALSE,"",IFERROR(CHOOSE('Guts-2'!$D$26,G69,J69,M69,P69,S69,V69,Y69,AR69),"")) -> 79.38 | AL69: =IFERROR(IF(Settings!$L$5="Mixed (Standard)",AK69,RANK(AK69,$AK$2:$AK$948,1)),"") -> 79.38 | AM69: =IFERROR(IF(Settings!$L$5="Mixed (Standard)",(RANK(AK69,$AK$2:$AK$948,1)/('Guts-2'!$N$1+1))+1,(RANK(AL69,$AL$2:$AL$948,1)/('Guts-2'!$N$1+1))+1),"") -> 6.692307692 | AN69: =IFERROR(CHOOSE('Guts-2'!$D$26,H69,K69,N69,Q69,T69,W69,Z69,AS69),"") -> 60 | AO69: =IFERROR(CHOOSE('Guts-2'!$D$26,I69,L69,O69,R69,U69,X69,AA69,AT69),"") -> 135 | AP69: 60 | AQ69: 135 | AR69: =INDEX('Import (ADP)'!$C$2:$C$999,MATCH(A69, 'Import (ADP)'!$B$2:$B$999,0)) ->  | AU69: =IF(VLOOKUP(A70,'Name-Sort'!$D$2:$E$948,2,FALSE)="",A70,"") -> Brandon Belt | AV69: =IFERROR(INDEX($AU$1:$AU$948,SMALL(IF($AU$1:$AU$948<>"",ROW($AU$1:$AU$948)),ROW(AU69))),"") -> Brandon Belt
A70: Brandon Belt | B70: beltbr01 | C70: 1B | D70: LF | E70: SF | F70: 31 | G70: 403 | H70: 302.25 | I70: 543 | S70: 431 | T70: 311 | U70: 573.23 | V70: 518.2 | W70: 311 | X70: 543 | Y70: 450.7333333 | Z70: 311 | AA70: 599.4753333 | AC70: 384 | AD70: 244 | AE70: 289 | AF70: 365 | AH70: =IFERROR(INDEX('Guts-2'!$K$1:$K$30,MATCH(E70,'Guts-2'!$J$1:$J$30,0)),TRUE) -> TRUE | AI70: =IF(AH70=FALSE,"",IFERROR(CHOOSE('Guts-2'!$D$27,AB70,AC70,AD70,AE70,AF70,AG70),"")) -> 244 | AJ70: 244 | AK70: =IF(AH70=FALSE,"",IFERROR(CHOOSE('Guts-2'!$D$26,G70,J70,M70,P70,S70,V70,Y70,AR70),"")) ->  | AL70: =IFERROR(IF(Settings!$L$5="Mixed (Standard)",AK70,RANK(AK70,$AK$2:$AK$948,1)),"") ->  | AM70: =IFERROR(IF(Settings!$L$5="Mixed (Standard)",(RANK(AK70,$AK$2:$AK$948,1)/('Guts-2'!$N$1+1))+1,(RANK(AL70,$AL$2:$AL$948,1)/('Guts-2'!$N$1+1))+1),"") ->  | AN70: =IFERROR(CHOOSE('Guts-2'!$D$26,H70,K70,N70,Q70,T70,W70,Z70,AS70),"") ->  | AO70: =IFERROR(CHOOSE('Guts-2'!$D$26,I70,L70,O70,R70,U70,X70,AA70,AT70),"") ->  | AR70: =INDEX('Import (ADP)'!$C$2:$C$999,MATCH(A70, 'Import (ADP)'!$B$2:$B$999,0)) ->  | AU70: =IF(VLOOKUP(A71,'Name-Sort'!$D$2:$E$948,2,FALSE)="",A71,"") -> Andrew Benintendi | AV70: =IFERROR(INDEX($AU$1:$AU$948,SMALL(IF($AU$1:$AU$948<>"",ROW($AU$1:$AU$948)),ROW(AU70))),"") -> Andrew Benintendi
A71: Andrew Benintendi | B71: beninan01 | C71: OF | D71: LF,CF | E71: BOS | F71: 25 | G71: 110 | H71: 63 | I71: 153 | J71: 105 | K71: 63 | L71: 153 | M71: 96.88 | N71: 63 | O71: 153 | P71: 99 | Q71: 63 | R71: 153 | S71: 107 | T71: 63 | U71: 153 | V71: 110.23 | W71: 73 | X71: 148 | Y71: 104.685 | Z71: 63 | AA71: 153 | AB71: 100 | AC71: 94 | AD71: 84 | AE71: 49 | AF71: 96 | AH71: =IFERROR(INDEX('Guts-2'!$K$1:$K$30,MATCH(E71,'Guts-2'!$J$1:$J$30,0)),TRUE) -> TRUE | AI71: =IF(AH71=FALSE,"",IFERROR(CHOOSE('Guts-2'!$D$27,AB71,AC71,AD71,AE71,AF71,AG71),"")) -> 84 | AJ71: 84 | AK71: =IF(AH71=FALSE,"",IFERROR(CHOOSE('Guts-2'!$D$26,G71,J71,M71,P71,S71,V71,Y71,AR71),"")) -> 96.88 | AL71: =IFERROR(IF(Settings!$L$5="Mixed (Standard)",AK71,RANK(AK71,$AK$2:$AK$948,1)),"") -> 96.88 | AM71: =IFERROR(IF(Settings!$L$5="Mixed (Standard)",(RANK(AK71,$AK$2:$AK$948,1)/('Guts-2'!$N$1+1))+1,(RANK(AL71,$AL$2:$AL$948,1)/('Guts-2'!$N$1+1))+1),"") -> 7.615384615 | AN71: =IFERROR(CHOOSE('Guts-2'!$D$26,H71,K71,N71,Q71,T71,W71,Z71,AS71),"") -> 63 | AO71: =IFERROR(CHOOSE('Guts-2'!$D$26,I71,L71,O71,R71,U71,X71,AA71,AT71),"") -> 153 | AP71: 63 | AQ71: 153 | AR71: =INDEX('Import (ADP)'!$C$2:$C$999,MATCH(A71, 'Import (ADP)'!$B$2:$B$999,0)) ->  | AU71: =IF(VLOOKUP(A72,'Name-Sort'!$D$2:$E$948,2,FALSE)="",A72,"") -> Jose Berrios | AV71: =IFERROR(INDEX($AU$1:$AU$948,SMALL(IF($AU$1:$AU$948<>"",ROW($AU$1:$AU$948)),ROW(AU71))),"") -> Jose Berrios
A72: Jose Berrios | B72: berrijo01 | C72: SP | E72: MIN | F72: 25 | G72: 62 | H72: 20 | I72: 115 | J72: 82 | K72: 20 | L72: 115 | M72: 45.62 | N72: 20 | O72: 67 | P72: 98 | Q72: 20 | R72: 130.34 | S72: 79.4 | T72: 20 | U72: 115 | V72: 88.9 | W72: 60 | X72: 115 | Y72: 75.98666667 | Z72: 20 | AA72: 115 | AB72: 118 | AC72: 83 | AD72: 68 | AE72: 87 | AF72: 93 | AH72: =IFERROR(INDEX('Guts-2'!$K$1:$K$30,MATCH(E72,'Guts-2'!$J$1:$J$30,0)),TRUE) -> TRUE | AI72: =IF(AH72=FALSE,"",IFERROR(CHOOSE('Guts-2'!$D$27,AB72,AC72,AD72,AE72,AF72,AG72),"")) -> 68 | AJ72: 68 | AK72: =IF(AH72=FALSE,"",IFERROR(CHOOSE('Guts-2'!$D$26,G72,J72,M72,P72,S72,V72,Y72,AR72),"")) -> 45.62 | AL72: =IFERROR(IF(Settings!$L$5="Mixed (Standard)",AK72,RANK(AK72,$AK$2:$AK$948,1)),"") -> 45.62 | AM72: =IFERROR(IF(Settings!$L$5="Mixed (Standard)",(RANK(AK72,$AK$2:$AK$948,1)/('Guts-2'!$N$1+1))+1,(RANK(AL72,$AL$2:$AL$948,1)/('Guts-2'!$N$1+1))+1),"") -> 3.846153846 | AN72: =IFERROR(CHOOSE('Guts-2'!$D$26,H72,K72,N72,Q72,T72,W72,Z72,AS72),"") -> 20 | AO72: =IFERROR(CHOOSE('Guts-2'!$D$26,I72,L72,O72,R72,U72,X72,AA72,AT72),"") -> 67 | AP72: 20 | AQ72: 67 | AR72: =INDEX('Import (ADP)'!$C$2:$C$999,MATCH(A72, 'Import (ADP)'!$B$2:$B$999,0)) ->  | AU72: =IF(VLOOKUP(A73,'Name-Sort'!$D$2:$E$948,2,FALSE)="",A73,"") -> Jon Berti | AV72: =IFERROR(INDEX($AU$1:$AU$948,SMALL(IF($AU$1:$AU$948<>"",ROW($AU$1:$AU$948)),ROW(AU72))),"") -> Jon Berti
A73: Jon Berti | B73: bertijo01 | C73: SS | D73: CF | E73: MIA | F73: 30 | G73: 268 | H73: 137 | I73: 374 | J73: 367 | K73: 137 | L73: 488.11 | M73: 318 | N73: 262 | O73: 374 | P73: 269 | Q73: 137 | R73: 374 | S73: 282 | T73: 137 | U73: 375.06 | V73: 251.12 | W73: 137 | X73: 366 | Y73: 292.52 | Z73: 137 | AA73: 389.0516 | AC73: 288 | AD73: 184 | AE73: 246 | AF73: 303 | AH73: =IFERROR(INDEX('Guts-2'!$K$1:$K$30,MATCH(E73,'Guts-2'!$J$1:$J$30,0)),TRUE) -> TRUE | AI73: =IF(AH73=FALSE,"",IFERROR(CHOOSE('Guts-2'!$D$27,AB73,AC73,AD73,AE73,AF73,AG73),"")) -> 184 | AJ73: 184 | AK73: =IF(AH73=FALSE,"",IFERROR(CHOOSE('Guts-2'!$D$26,G73,J73,M73,P73,S73,V73,Y73,AR73),"")) -> 318 | AL73: =IFERROR(IF(Settings!$L$5="Mixed (Standard)",AK73,RANK(AK73,$AK$2:$AK$948,1)),"") -> 318 | AM73: =IFERROR(IF(Settings!$L$5="Mixed (Standard)",(RANK(AK73,$AK$2:$AK$948,1)/('Guts-2'!$N$1+1))+1,(RANK(AL73,$AL$2:$AL$948,1)/('Guts-2'!$N$1+1))+1),"") -> 27.61538462 | AN73: =IFERROR(CHOOSE('Guts-2'!$D$26,H73,K73,N73,Q73,T73,W73,Z73,AS73),"") -> 262 | AO73: =IFERROR(CHOOSE('Guts-2'!$D$26,I73,L73,O73,R73,U73,X73,AA73,AT73),"") -> 374 | AP73: 262 | AQ73: 374 | AR73: =INDEX('Import (ADP)'!$C$2:$C$999,MATCH(A73, 'Import (ADP)'!$B$2:$B$999,0)) ->  | AU73: =IF(VLOOKUP(A74,'Name-Sort'!$D$2:$E$948,2,FALSE)="",A74,"") -> Dellin Betances | AV73: =IFERROR(INDEX($AU$1:$AU$948,SMALL(IF($AU$1:$AU$948<>"",ROW($AU$1:$AU$948)),ROW(AU73))),"") -> Dellin Betances
A74: Dellin Betances | B74: betande01 | C74: RP | E74: NYM | F74: 32 | G74: 286 | H74: 214 | I74: 720 | J74: 267 | K74: 200.25 | L74: 720 | M74: 373.67 | N74: 284 | O74: 458 | P74: 249 | Q74: 186.75 | R74: 720 | S74: 327.4 | T74: 214 | U74: 720 | V74: 435.48 | W74: 214 | X74: 720 | Y74: 323.0916667 | Z74: 214 | AA74: 720 | AC74: 356 | AF74: 321 | AH74: =IFERROR(INDEX('Guts-2'!$K$1:$K$30,MATCH(E74,'Guts-2'!$J$1:$J$30,0)),TRUE) -> TRUE | AI74: =IF(AH74=FALSE,"",IFERROR(CHOOSE('Guts-2'!$D$27,AB74,AC74,AD74,AE74,AF74,AG74),"")) ->  | AK74: =IF(AH74=FALSE,"",IFERROR(CHOOSE('Guts-2'!$D$26,G74,J74,M74,P74,S74,V74,Y74,AR74),"")) -> 373.67 | AL74: =IFERROR(IF(Settings!$L$5="Mixed (Standard)",AK74,RANK(AK74,$AK$2:$AK$948,1)),"") -> 373.67 | AM74: =IFERROR(IF(Settings!$L$5="Mixed (Standard)",(RANK(AK74,$AK$2:$AK$948,1)/('Guts-2'!$N$1+1))+1,(RANK(AL74,$AL$2:$AL$948,1)/('Guts-2'!$N$1+1))+1),"") -> 31.30769231 | AN74: =IFERROR(CHOOSE('Guts-2'!$D$26,H74,K74,N74,Q74,T74,W74,Z74,AS74),"") -> 284 | AO74: =IFERROR(CHOOSE('Guts-2'!$D$26,I74,L74,O74,R74,U74,X74,AA74,AT74),"") -> 458 | AP74: 284 | AQ74: 458 | AR74: =INDEX('Import (ADP)'!$C$2:$C$999,MATCH(A74, 'Import (ADP)'!$B$2:$B$999,0)) ->  | AU74: =IF(VLOOKUP(A75,'Name-Sort'!$D$2:$E$948,2,FALSE)="",A75,"") -> Mookie Betts | AV74: =IFERROR(INDEX($AU$1:$AU$948,SMALL(IF($AU$1:$AU$948<>"",ROW($AU$1:$AU$948)),ROW(AU74))),"") -> Mookie Betts
A75: Mookie Betts | B75: bettsmo01 | C75: OF | D75: CF,RF | E75: LAD | F75: 27 | G75: 6 | H75: 1 | I75: 11 | J75: 5 | K75: 1 | L75: 11 | M75: 4.88 | N75: 2 | O75: 9 | P75: 4 | Q75: 1 | R75: 11 | S75: 5.2 | T75: 1 | U75: 11 | V75: 5.32 | W75: 1 | X75: 11 | Y75: 5.066666667 | Z75: 1 | AA75: 11 | AB75: 4 | AC75: 5 | AD75: 8 | AE75: 4 | AF75: 5 | AH75: =IFERROR(INDEX('Guts-2'!$K$1:$K$30,MATCH(E75,'Guts-2'!$J$1:$J$30,0)),TRUE) -> TRUE | AI75: =IF(AH75=FALSE,"",IFERROR(CHOOSE('Guts-2'!$D$27,AB75,AC75,AD75,AE75,AF75,AG75),"")) -> 8 | AJ75: 8 | AK75: =IF(AH75=FALSE,"",IFERROR(CHOOSE('Guts-2'!$D$26,G75,J75,M75,P75,S75,V75,Y75,AR75),"")) -> 4.88 | AL75: =IFERROR(IF(Settings!$L$5="Mixed (Standard)",AK75,RANK(AK75,$AK$2:$AK$948,1)),"") -> 4.88 | AM75: =IFERROR(IF(Settings!$L$5="Mixed (Standard)",(RANK(AK75,$AK$2:$AK$948,1)/('Guts-2'!$N$1+1))+1,(RANK(AL75,$AL$2:$AL$948,1)/('Guts-2'!$N$1+1))+1),"") -> 1.230769231 | AN75: =IFERROR(CHOOSE('Guts-2'!$D$26,H75,K75,N75,Q75,T75,W75,Z75,AS75),"") -> 2 | AO75: =IFERROR(CHOOSE('Guts-2'!$D$26,I75,L75,O75,R75,U75,X75,AA75,AT75),"") -> 9 | AP75: 2 | AQ75: 9 | AR75: =INDEX('Import (ADP)'!$C$2:$C$999,MATCH(A75, 'Import (ADP)'!$B$2:$B$999,0)) -> 4 | AS75: 1 | AT75: 11 | AU75: =IF(VLOOKUP(A76,'Name-Sort'!$D$2:$E$948,2,FALSE)="",A76,"") -> Bo Bichette | AV75: =IFERROR(INDEX($AU$1:$AU$948,SMALL(IF($AU$1:$AU$948<>"",ROW($AU$1:$AU$948)),ROW(AU75))),"") -> Bo Bichette
A76: Bo Bichette | B76: bichebo01 | C76: SS | E76: TOR | F76: 22 | G76: 71 | H76: 21 | I76: 100 | J76: 68 | K76: 21 | L76: 100 | M76: 52.14 | N76: 21 | O76: 85 | P76: 89 | Q76: 21 | R76: 118.37 | S76: 75.2 | T76: 21 | U76: 100.016 | V76: 70.8 | W76: 46 | X76: 100 | Y76: 71.02333333 | Z76: 21 | AA76: 100 | AB76: 67 | AC76: 72 | AD76: 41 | AE76: 54 | AF76: 69 | AH76: =IFERROR(INDEX('Guts-2'!$K$1:$K$30,MATCH(E76,'Guts-2'!$J$1:$J$30,0)),TRUE) -> TRUE | AI76: =IF(AH76=FALSE,"",IFERROR(CHOOSE('Guts-2'!$D$27,AB76,AC76,AD76,AE76,AF76,AG76),"")) -> 41 | AJ76: 41 | AK76: =IF(AH76=FALSE,"",IFERROR(CHOOSE('Guts-2'!$D$26,G76,J76,M76,P76,S76,V76,Y76,AR76),"")) -> 52.14 | AL76: =IFERROR(IF(Settings!$L$5="Mixed (Standard)",AK76,RANK(AK76,$AK$2:$AK$948,1)),"") -> 52.14 | AM76: =IFERROR(IF(Settings!$L$5="Mixed (Standard)",(RANK(AK76,$AK$2:$AK$948,1)/('Guts-2'!$N$1+1))+1,(RANK(AL76,$AL$2:$AL$948,1)/('Guts-2'!$N$1+1))+1),"") -> 4.461538462 | AN76: =IFERROR(CHOOSE('Guts-2'!$D$26,H76,K76,N76,Q76,T76,W76,Z76,AS76),"") -> 21 | AO76: =IFERROR(CHOOSE('Guts-2'!$D$26,I76,L76,O76,R76,U76,X76,AA76,AT76),"") -> 85 | AP76: 21 | AQ76: 85 | AR76: =INDEX('Import (ADP)'!$C$2:$C$999,MATCH(A76, 'Import (ADP)'!$B$2:$B$999,0)) ->  | AU76: =IF(VLOOKUP(A77,'Name-Sort'!$D$2:$E$948,2,FALSE)="",A77,"") -> Shane Bieber | AV76: =IFERROR(INDEX($AU$1:$AU$948,SMALL(IF($AU$1:$AU$948<>"",ROW($AU$1:$AU$948)),ROW(AU76))),"") -> Shane Bieber
A77: Shane Bieber | B77: biebesh01 | C77: SP | E77: CLE | F77: 24 | G77: 23 | H77: 4 | I77: 51 | J77: 30 | K77: 4 | L77: 51 | M77: 28.5 | N77: 18 | O77: 51 | P77: 37 | Q77: 4 | R77: 51 | S77: 28.2 | T77: 4 | U77: 51 | V77: 28.11 | W77: 4 | X77: 43 | Y77: 29.135 | Z77: 4 | AA77: 51 | AB77: 40 | AC77: 33 | AD77: 12 | AE77: 32 | AF77: 32 | AH77: =IFERROR(INDEX('Guts-2'!$K$1:$K$30,MATCH(E77,'Guts-2'!$J$1:$J$30,0)),TRUE) -> TRUE | AI77: =IF(AH77=FALSE,"",IFERROR(CHOOSE('Guts-2'!$D$27,AB77,AC77,AD77,AE77,AF77,AG77),"")) -> 12 | AJ77: 12 | AK77: =IF(AH77=FALSE,"",IFERROR(CHOOSE('Guts-2'!$D$26,G77,J77,M77,P77,S77,V77,Y77,AR77),"")) -> 28.5 | AL77: =IFERROR(IF(Settings!$L$5="Mixed (Standard)",AK77,RANK(AK77,$AK$2:$AK$948,1)),"") -> 28.5 | AM77: =IFERROR(IF(Settings!$L$5="Mixed (Standard)",(RANK(AK77,$AK$2:$AK$948,1)/('Guts-2'!$N$1+1))+1,(RANK(AL77,$AL$2:$AL$948,1)/('Guts-2'!$N$1+1))+1),"") -> 2.692307692 | AN77: =IFERROR(CHOOSE('Guts-2'!$D$26,H77,K77,N77,Q77,T77,W77,Z77,AS77),"") -> 18 | AO77: =IFERROR(CHOOSE('Guts-2'!$D$26,I77,L77,O77,R77,U77,X77,AA77,AT77),"") -> 51 | AP77: 18 | AQ77: 51 | AR77: =INDEX('Import (ADP)'!$C$2:$C$999,MATCH(A77, 'Import (ADP)'!$B$2:$B$999,0)) -> 28 | AS77: 4 | AT77: 51 | AU77: =IF(VLOOKUP(A78,'Name-Sort'!$D$2:$E$948,2,FALSE)="",A78,"") -> Cavan Biggio | AV77: =IFERROR(INDEX($AU$1:$AU$948,SMALL(IF($AU$1:$AU$948<>"",ROW($AU$1:$AU$948)),ROW(AU77))),"") -> Cavan Biggio
A78: Cavan Biggio | B78: biggica01 | C78: 2B | D78: RF | E78: TOR | F78: 24 | G78: 124 | H78: 50 | I78: 174 | J78: 163 | K78: 50 | L78: 216.79 | M78: 111.75 | N78: 50 | O78: 174 | P78: 119 | Q78: 50 | R78: 174 | S78: 135.8 | T78: 50 | U78: 180.614 | V78: 133.18 | W78: 97 | X78: 171 | Y78: 131.1216667 | Z78: 50 | AA78: 174.3918167 | AB78: 147 | AC78: 198 | AD78: 48 | AE78: 88 | AF78: 152 | AH78: =IFERROR(INDEX('Guts-2'!$K$1:$K$30,MATCH(E78,'Guts-2'!$J$1:$J$30,0)),TRUE) -> TRUE | AI78: =IF(AH78=FALSE,"",IFERROR(CHOOSE('Guts-2'!$D$27,AB78,AC78,AD78,AE78,AF78,AG78),"")) -> 48 | AJ78: 48 | AK78: =IF(AH78=FALSE,"",IFERROR(CHOOSE('Guts-2'!$D$26,G78,J78,M78,P78,S78,V78,Y78,AR78),"")) -> 111.75 | AL78: =IFERROR(IF(Settings!$L$5="Mixed (Standard)",AK78,RANK(AK78,$AK$2:$AK$948,1)),"") -> 111.75 | AM78: =IFERROR(IF(Settings!$L$5="Mixed (Standard)",(RANK(AK78,$AK$2:$AK$948,1)/('Guts-2'!$N$1+1))+1,(RANK(AL78,$AL$2:$AL$948,1)/('Guts-2'!$N$1+1))+1),"") -> 8.769230769 | AN78: =IFERROR(CHOOSE('Guts-2'!$D$26,H78,K78,N78,Q78,T78,W78,Z78,AS78),"") -> 50 | AO78: =IFERROR(CHOOSE('Guts-2'!$D$26,I78,L78,O78,R78,U78,X78,AA78,AT78),"") -> 174 | AP78: 50 | AQ78: 174 | AR78: =INDEX('Import (ADP)'!$C$2:$C$999,MATCH(A78, 'Import (ADP)'!$B$2:$B$999,0)) ->  | AU78: =IF(VLOOKUP(A79,'Name-Sort'!$D$2:$E$948,2,FALSE)="",A79,"") -> Greg Bird | AV78: =IFERROR(INDEX($AU$1:$AU$948,SMALL(IF($AU$1:$AU$948<>"",ROW($AU$1:$AU$948)),ROW(AU78))),"") -> Greg Bird
A79: Greg Bird | B79: birdgr01 | C79: 1B | E79: TEX | F79: 27 | V79: 689.54 | W79: 339 | X79: 748 | Y79: 689.54 | Z79: 339 | AA79: 917.0882 | AH79: =IFERROR(INDEX('Guts-2'!$K$1:$K$30,MATCH(E79,'Guts-2'!$J$1:$J$30,0)),TRUE) -> TRUE | AI79: =IF(AH79=FALSE,"",IFERROR(CHOOSE('Guts-2'!$D$27,AB79,AC79,AD79,AE79,AF79,AG79),"")) ->  | AK79: =IF(AH79=FALSE,"",IFERROR(CHOOSE('Guts-2'!$D$26,G79,J79,M79,P79,S79,V79,Y79,AR79),"")) ->  | AL79: =IFERROR(IF(Settings!$L$5="Mixed (Standard)",AK79,RANK(AK79,$AK$2:$AK$948,1)),"") ->  | AM79: =IFERROR(IF(Settings!$L$5="Mixed (Standard)",(RANK(AK79,$AK$2:$AK$948,1)/('Guts-2'!$N$1+1))+1,(RANK(AL79,$AL$2:$AL$948,1)/('Guts-2'!$N$1+1))+1),"") ->  | AN79: =IFERROR(CHOOSE('Guts-2'!$D$26,H79,K79,N79,Q79,T79,W79,Z79,AS79),"") ->  | AO79: =IFERROR(CHOOSE('Guts-2'!$D$26,I79,L79,O79,R79,U79,X79,AA79,AT79),"") ->  | AR79: =INDEX('Import (ADP)'!$C$2:$C$999,MATCH(A79, 'Import (ADP)'!$B$2:$B$999,0)) ->  | AU79: =IF(VLOOKUP(A80,'Name-Sort'!$D$2:$E$948,2,FALSE)="",A80,"") -> Charlie Blackmon | AV79: =IFERROR(INDEX($AU$1:$AU$948,SMALL(IF($AU$1:$AU$948<>"",ROW($AU$1:$AU$948)),ROW(AU79))),"") -> Charlie Blackmon
A80: Charlie Blackmon | B80: blackch02 | C80: OF | D80: CF,RF | E80: COL | F80: 33 | G80: 38 | H80: 21 | I80: 86 | J80: 36 | K80: 21 | L80: 86 | M80: 55.75 | N80: 21 | O80: 86 | P80: 26 | Q80: 19.5 | R80: 86 | S80: 36.4 | T80: 21 | U80: 86 | V80: 45.9 | W80: 25 | X80: 66 | Y80: 39.675 | Z80: 21 | AA80: 86 | AB80: 13 | AC80: 38 | AD80: 33 | AE80: 28 | AF80: 35 | AH80: =IFERROR(INDEX('Guts-2'!$K$1:$K$30,MATCH(E80,'Guts-2'!$J$1:$J$30,0)),TRUE) -> TRUE | AI80: =IF(AH80=FALSE,"",IFERROR(CHOOSE('Guts-2'!$D$27,AB80,AC80,AD80,AE80,AF80,AG80),"")) -> 33 | AJ80: 33 | AK80: =IF(AH80=FALSE,"",IFERROR(CHOOSE('Guts-2'!$D$26,G80,J80,M80,P80,S80,V80,Y80,AR80),"")) -> 55.75 | AL80: =IFERROR(IF(Settings!$L$5="Mixed (Standard)",AK80,RANK(AK80,$AK$2:$AK$948,1)),"") -> 55.75 | AM80: =IFERROR(IF(Settings!$L$5="Mixed (Standard)",(RANK(AK80,$AK$2:$AK$948,1)/('Guts-2'!$N$1+1))+1,(RANK(AL80,$AL$2:$AL$948,1)/('Guts-2'!$N$1+1))+1),"") -> 4.846153846 | AN80: =IFERROR(CHOOSE('Guts-2'!$D$26,H80,K80,N80,Q80,T80,W80,Z80,AS80),"") -> 21 | AO80: =IFERROR(CHOOSE('Guts-2'!$D$26,I80,L80,O80,R80,U80,X80,AA80,AT80),"") -> 86 | AP80: 21 | AQ80: 86 | AR80: =INDEX('Import (ADP)'!$C$2:$C$999,MATCH(A80, 'Import (ADP)'!$B$2:$B$999,0)) ->  | AU80: =IF(VLOOKUP(A81,'Name-Sort'!$D$2:$E$948,2,FALSE)="",A81,"") -> Xander Bogaerts | AV80: =IFERROR(INDEX($AU$1:$AU$948,SMALL(IF($AU$1:$AU$948<>"",ROW($AU$1:$AU$948)),ROW(AU80))),"") -> Xander Bogaerts
A81: Xander Bogaerts | B81: bogaexa01 | C81: SS | E81: BOS | F81: 27 | G81: 37 | H81: 14 | I81: 55 | J81: 35 | K81: 14 | L81: 55 | M81: 27.25 | N81: 14 | O81: 44 | P81: 31 | Q81: 14 | R81: 55 | S81: 34.4 | T81: 14 | U81: 55 | V81: 37.79 | W81: 20 | X81: 55 | Y81: 33.74 | Z81: 14 | AA81: 55 | AB81: 27 | AC81: 31 | AD81: 39 | AE81: 33 | AF81: 25 | AH81: =IFERROR(INDEX('Guts-2'!$K$1:$K$30,MATCH(E81,'Guts-2'!$J$1:$J$30,0)),TRUE) -> TRUE | AI81: =IF(AH81=FALSE,"",IFERROR(CHOOSE('Guts-2'!$D$27,AB81,AC81,AD81,AE81,AF81,AG81),"")) -> 39 | AJ81: 39 | AK81: =IF(AH81=FALSE,"",IFERROR(CHOOSE('Guts-2'!$D$26,G81,J81,M81,P81,S81,V81,Y81,AR81),"")) -> 27.25 | AL81: =IFERROR(IF(Settings!$L$5="Mixed (Standard)",AK81,RANK(AK81,$AK$2:$AK$948,1)),"") -> 27.25 | AM81: =IFERROR(IF(Settings!$L$5="Mixed (Standard)",(RANK(AK81,$AK$2:$AK$948,1)/('Guts-2'!$N$1+1))+1,(RANK(AL81,$AL$2:$AL$948,1)/('Guts-2'!$N$1+1))+1),"") -> 2.538461538 | AN81: =IFERROR(CHOOSE('Guts-2'!$D$26,H81,K81,N81,Q81,T81,W81,Z81,AS81),"") -> 14 | AO81: =IFERROR(CHOOSE('Guts-2'!$D$26,I81,L81,O81,R81,U81,X81,AA81,AT81),"") -> 44 | AP81: 14 | AQ81: 44 | AR81: =INDEX('Import (ADP)'!$C$2:$C$999,MATCH(A81, 'Import (ADP)'!$B$2:$B$999,0)) -> 27 | AS81: 14 | AT81: 55 | AU81: =IF(VLOOKUP(A82,'Name-Sort'!$D$2:$E$948,2,FALSE)="",A82,"") -> Alec Bohm | AV81: =IFERROR(INDEX($AU$1:$AU$948,SMALL(IF($AU$1:$AU$948<>"",ROW($AU$1:$AU$948)),ROW(AU81))),"") -> Alec Bohm
A82: Alec Bohm | B82: bohmal01 | C82: 3B | E82: PHI | F82: 23 | G82: 443 | H82: 145 | I82: 591 | M82: 232.8 | N82: 145 | O82: 464 | P82: 422 | Q82: 145 | R82: 591 | S82: 437.3 | T82: 145 | U82: 591 | V82: 530.53 | W82: 296 | X82: 591 | Y82: 413.126 | Z82: 145 | AA82: 591 | AF82: 509 | AH82: =IFERROR(INDEX('Guts-2'!$K$1:$K$30,MATCH(E82,'Guts-2'!$J$1:$J$30,0)),TRUE) -> TRUE | AI82: =IF(AH82=FALSE,"",IFERROR(CHOOSE('Guts-2'!$D$27,AB82,AC82,AD82,AE82,AF82,AG82),"")) ->  | AK82: =IF(AH82=FALSE,"",IFERROR(CHOOSE('Guts-2'!$D$26,G82,J82,M82,P82,S82,V82,Y82,AR82),"")) -> 232.8 | AL82: =IFERROR(IF(Settings!$L$5="Mixed (Standard)",AK82,RANK(AK82,$AK$2:$AK$948,1)),"") -> 232.8 | AM82: =IFERROR(IF(Settings!$L$5="Mixed (Standard)",(RANK(AK82,$AK$2:$AK$948,1)/('Guts-2'!$N$1+1))+1,(RANK(AL82,$AL$2:$AL$948,1)/('Guts-2'!$N$1+1))+1),"") -> 20.61538462 | AN82: =IFERROR(CHOOSE('Guts-2'!$D$26,H82,K82,N82,Q82,T82,W82,Z82,AS82),"") -> 145 | AO82: =IFERROR(CHOOSE('Guts-2'!$D$26,I82,L82,O82,R82,U82,X82,AA82,AT82),"") -> 464 | AP82: 145 | AQ82: 464 | AR82: =INDEX('Import (ADP)'!$C$2:$C$999,MATCH(A82, 'Import (ADP)'!$B$2:$B$999,0)) ->  | AU82: =IF(VLOOKUP(A83,'Name-Sort'!$D$2:$E$948,2,FALSE)="",A83,"") -> David Bote | AV82: =IFERROR(INDEX($AU$1:$AU$948,SMALL(IF($AU$1:$AU$948<>"",ROW($AU$1:$AU$948)),ROW(AU82))),"") -> David Bote
A83: David Bote | B83: boteda01 | C83: 3B | E83: CHC | F83: 26 | P83: 379 | Q83: 284.25 | R83: 690 | S83: 447.5 | T83: 319 | U83: 690 | V83: 586.79 | W83: 319 | X83: 690 | Y83: 471.0966667 | Z83: 319 | AA83: 690 | AF83: 532 | AH83: =IFERROR(INDEX('Guts-2'!$K$1:$K$30,MATCH(E83,'Guts-2'!$J$1:$J$30,0)),TRUE) -> TRUE | AI83: =IF(AH83=FALSE,"",IFERROR(CHOOSE('Guts-2'!$D$27,AB83,AC83,AD83,AE83,AF83,AG83),"")) ->  | AK83: =IF(AH83=FALSE,"",IFERROR(CHOOSE('Guts-2'!$D$26,G83,J83,M83,P83,S83,V83,Y83,AR83),"")) ->  | AL83: =IFERROR(IF(Settings!$L$5="Mixed (Standard)",AK83,RANK(AK83,$AK$2:$AK$948,1)),"") ->  | AM83: =IFERROR(IF(Settings!$L$5="Mixed (Standard)",(RANK(AK83,$AK$2:$AK$948,1)/('Guts-2'!$N$1+1))+1,(RANK(AL83,$AL$2:$AL$948,1)/('Guts-2'!$N$1+1))+1),"") ->  | AN83: =IFERROR(CHOOSE('Guts-2'!$D$26,H83,K83,N83,Q83,T83,W83,Z83,AS83),"") ->  | AO83: =IFERROR(CHOOSE('Guts-2'!$D$26,I83,L83,O83,R83,U83,X83,AA83,AT83),"") ->  | AR83: =INDEX('Import (ADP)'!$C$2:$C$999,MATCH(A83, 'Import (ADP)'!$B$2:$B$999,0)) ->  | AU83: =IF(VLOOKUP(A84,'Name-Sort'!$D$2:$E$948,2,FALSE)="",A84,"") -> Matt Boyd | AV83: =IFERROR(INDEX($AU$1:$AU$948,SMALL(IF($AU$1:$AU$948<>"",ROW($AU$1:$AU$948)),ROW(AU83))),"") -> Matt Boyd
A84: Matt Boyd | B84: boydma01 | C84: SP | E84: DET | F84: 29 | G84: 143 | H84: 90 | I84: 213 | J84: 145 | K84: 90 | L84: 213 | M84: 160.83 | N84: 90 | O84: 213 | P84: 181 | Q84: 90 | R84: 240.73 | S84: 158.6 | T84: 90 | U84: 213 | V84: 168.1 | W84: 95 | X84: 205 | Y84: 159.4216667 | Z84: 90 | AA84: 213 | AB84: 198 | AC84: 143 | AD84: 174 | AE84: 172 | AF84: 151 | AH84: =IFERROR(INDEX('Guts-2'!$K$1:$K$30,MATCH(E84,'Guts-2'!$J$1:$J$30,0)),TRUE) -> TRUE | AI84: =IF(AH84=FALSE,"",IFERROR(CHOOSE('Guts-2'!$D$27,AB84,AC84,AD84,AE84,AF84,AG84),"")) -> 174 | AJ84: 174 | AK84: =IF(AH84=FALSE,"",IFERROR(CHOOSE('Guts-2'!$D$26,G84,J84,M84,P84,S84,V84,Y84,AR84),"")) -> 160.83 | AL84: =IFERROR(IF(Settings!$L$5="Mixed (Standard)",AK84,RANK(AK84,$AK$2:$AK$948,1)),"") -> 160.83 | AM84: =IFERROR(IF(Settings!$L$5="Mixed (Standard)",(RANK(AK84,$AK$2:$AK$948,1)/('Guts-2'!$N$1+1))+1,(RANK(AL84,$AL$2:$AL$948,1)/('Guts-2'!$N$1+1))+1),"") -> 13.07692308 | AN84: =IFERROR(CHOOSE('Guts-2'!$D$26,H84,K84,N84,Q84,T84,W84,Z84,AS84),"") -> 90 | AO84: =IFERROR(CHOOSE('Guts-2'!$D$26,I84,L84,O84,R84,U84,X84,AA84,AT84),"") -> 213 | AP84: 90 | AQ84: 213 | AR84: =INDEX('Import (ADP)'!$C$2:$C$999,MATCH(A84, 'Import (ADP)'!$B$2:$B$999,0)) ->  | AU84: =IF(VLOOKUP(A85,'Name-Sort'!$D$2:$E$948,2,FALSE)="",A85,"") -> Archie Bradley | AV84: =IFERROR(INDEX($AU$1:$AU$948,SMALL(IF($AU$1:$AU$948<>"",ROW($AU$1:$AU$948)),ROW(AU84))),"") -> Archie Bradley
A85: Archie Bradley | B85: bradlar01 | C85: RP | E85: ARI | F85: 27 | G85: 180 | H85: 135 | I85: 311 | J85: 157 | K85: 117.75 | L85: 311 | M85: 242.4 | N85: 215 | O85: 281 | P85: 141 | Q85: 105.75 | R85: 311 | S85: 163.6 | T85: 122.7 | U85: 311 | V85: 181.16 | W85: 137 | X85: 311 | Y85: 177.5266667 | Z85: 133.145 | AA85: 311 | AB85: 155 | AC85: 183 | AD85: 245 | AE85: 133 | AF85: 183 | AH85: =IFERROR(INDEX('Guts-2'!$K$1:$K$30,MATCH(E85,'Guts-2'!$J$1:$J$30,0)),TRUE) -> TRUE | AI85: =IF(AH85=FALSE,"",IFERROR(CHOOSE('Guts-2'!$D$27,AB85,AC85,AD85,AE85,AF85,AG85),"")) -> 245 | AJ85: 245 | AK85: =IF(AH85=FALSE,"",IFERROR(CHOOSE('Guts-2'!$D$26,G85,J85,M85,P85,S85,V85,Y85,AR85),"")) -> 242.4 | AL85: =IFERROR(IF(Settings!$L$5="Mixed (Standard)",AK85,RANK(AK85,$AK$2:$AK$948,1)),"") -> 242.4 | AM85: =IFERROR(IF(Settings!$L$5="Mixed (Standard)",(RANK(AK85,$AK$2:$AK$948,1)/('Guts-2'!$N$1+1))+1,(RANK(AL85,$AL$2:$AL$948,1)/('Guts-2'!$N$1+1))+1),"") -> 21.46153846 | AN85: =IFERROR(CHOOSE('Guts-2'!$D$26,H85,K85,N85,Q85,T85,W85,Z85,AS85),"") -> 215 | AO85: =IFERROR(CHOOSE('Guts-2'!$D$26,I85,L85,O85,R85,U85,X85,AA85,AT85),"") -> 281 | AP85: 215 | AQ85: 281 | AR85: =INDEX('Import (ADP)'!$C$2:$C$999,MATCH(A85, 'Import (ADP)'!$B$2:$B$999,0)) ->  | AU85: =IF(VLOOKUP(A86,'Name-Sort'!$D$2:$E$948,2,FALSE)="",A86,"") -> Jackie Bradley Jr. | AV85: =IFERROR(INDEX($AU$1:$AU$948,SMALL(IF($AU$1:$AU$948<>"",ROW($AU$1:$AU$948)),ROW(AU85))),"") -> Jackie Bradley Jr.
A86: Jackie Bradley Jr. | B86: bradlja02 | C86: OF | D86: CF | E86: BOS | F86: 29 | G86: 397 | H86: 114 | I86: 528.01 | J86: 255 | K86: 114 | L86: 508 | P86: 285 | Q86: 114 | R86: 508 | S86: 348.8 | T86: 114 | U86: 508 | V86: 470.82 | W86: 114 | X86: 508 | Y86: 351.324 | Z86: 114 | AA86: 508 | AD86: 254 | AF86: 371 | AH86: =IFERROR(INDEX('Guts-2'!$K$1:$K$30,MATCH(E86,'Guts-2'!$J$1:$J$30,0)),TRUE) -> TRUE | AI86: =IF(AH86=FALSE,"",IFERROR(CHOOSE('Guts-2'!$D$27,AB86,AC86,AD86,AE86,AF86,AG86),"")) -> 254 | AJ86: 254 | AK86: =IF(AH86=FALSE,"",IFERROR(CHOOSE('Guts-2'!$D$26,G86,J86,M86,P86,S86,V86,Y86,AR86),"")) ->  | AL86: =IFERROR(IF(Settings!$L$5="Mixed (Standard)",AK86,RANK(AK86,$AK$2:$AK$948,1)),"") ->  | AM86: =IFERROR(IF(Settings!$L$5="Mixed (Standard)",(RANK(AK86,$AK$2:$AK$948,1)/('Guts-2'!$N$1+1))+1,(RANK(AL86,$AL$2:$AL$948,1)/('Guts-2'!$N$1+1))+1),"") ->  | AN86: =IFERROR(CHOOSE('Guts-2'!$D$26,H86,K86,N86,Q86,T86,W86,Z86,AS86),"") ->  | AO86: =IFERROR(CHOOSE('Guts-2'!$D$26,I86,L86,O86,R86,U86,X86,AA86,AT86),"") ->  | AR86: =INDEX('Import (ADP)'!$C$2:$C$999,MATCH(A86, 'Import (ADP)'!$B$2:$B$999,0)) ->  | AU86: =IF(VLOOKUP(A87,'Name-Sort'!$D$2:$E$948,2,FALSE)="",A87,"") -> Michael Brantley | AV86: =IFERROR(INDEX($AU$1:$AU$948,SMALL(IF($AU$1:$AU$948<>"",ROW($AU$1:$AU$948)),ROW(AU86))),"") -> Michael Brantley
A87: Michael Brantley | B87: brantmi02 | C87: OF | D87: LF,RF | E87: HOU | F87: 32 | G87: 121 | H87: 67 | I87: 193 | J87: 116 | K87: 67 | L87: 193 | M87: 126.38 | N87: 67 | O87: 193 | P87: 94 | Q87: 67 | R87: 193 | S87: 117.6 | T87: 67 | U87: 193 | V87: 128.55 | W87: 78 | X87: 168 | Y87: 117.255 | Z87: 67 | AA87: 193 | AB87: 60 | AC87: 104 | AD87: 73 | AE87: 104 | AF87: 86 | AH87: =IFERROR(INDEX('Guts-2'!$K$1:$K$30,MATCH(E87,'Guts-2'!$J$1:$J$30,0)),TRUE) -> TRUE | AI87: =IF(AH87=FALSE,"",IFERROR(CHOOSE('Guts-2'!$D$27,AB87,AC87,AD87,AE87,AF87,AG87),"")) -> 73 | AJ87: 73 | AK87: =IF(AH87=FALSE,"",IFERROR(CHOOSE('Guts-2'!$D$26,G87,J87,M87,P87,S87,V87,Y87,AR87),"")) -> 126.38 | AL87: =IFERROR(IF(Settings!$L$5="Mixed (Standard)",AK87,RANK(AK87,$AK$2:$AK$948,1)),"") -> 126.38 | AM87: =IFERROR(IF(Settings!$L$5="Mixed (Standard)",(RANK(AK87,$AK$2:$AK$948,1)/('Guts-2'!$N$1+1))+1,(RANK(AL87,$AL$2:$AL$948,1)/('Guts-2'!$N$1+1))+1),"") -> 9.923076923 | AN87: =IFERROR(CHOOSE('Guts-2'!$D$26,H87,K87,N87,Q87,T87,W87,Z87,AS87),"") -> 67 | AO87: =IFERROR(CHOOSE('Guts-2'!$D$26,I87,L87,O87,R87,U87,X87,AA87,AT87),"") -> 193 | AP87: 67 | AQ87: 193 | AR87: =INDEX('Import (ADP)'!$C$2:$C$999,MATCH(A87, 'Import (ADP)'!$B$2:$B$999,0)) ->  | AU87: =IF(VLOOKUP(A88,'Name-Sort'!$D$2:$E$948,2,FALSE)="",A88,"") -> Steven Brault | AV87: =IFERROR(INDEX($AU$1:$AU$948,SMALL(IF($AU$1:$AU$948<>"",ROW($AU$1:$AU$948)),ROW(AU87))),"") -> Steven Brault
A88: Steven Brault | B88: braulst01 | C88: RP | E88: PIT | F88: 27 | V88: 715.46 | W88: 482 | X88: 747 | Y88: 715.46 | Z88: 482 | AA88: 951.5618 | AH88: =IFERROR(INDEX('Guts-2'!$K$1:$K$30,MATCH(E88,'Guts-2'!$J$1:$J$30,0)),TRUE) -> TRUE | AI88: =IF(AH88=FALSE,"",IFERROR(CHOOSE('Guts-2'!$D$27,AB88,AC88,AD88,AE88,AF88,AG88),"")) ->  | AK88: =IF(AH88=FALSE,"",IFERROR(CHOOSE('Guts-2'!$D$26,G88,J88,M88,P88,S88,V88,Y88,AR88),"")) ->  | AL88: =IFERROR(IF(Settings!$L$5="Mixed (Standard)",AK88,RANK(AK88,$AK$2:$AK$948,1)),"") ->  | AM88: =IFERROR(IF(Settings!$L$5="Mixed (Standard)",(RANK(AK88,$AK$2:$AK$948,1)/('Guts-2'!$N$1+1))+1,(RANK(AL88,$AL$2:$AL$948,1)/('Guts-2'!$N$1+1))+1),"") ->  | AN88: =IFERROR(CHOOSE('Guts-2'!$D$26,H88,K88,N88,Q88,T88,W88,Z88,AS88),"") ->  | AO88: =IFERROR(CHOOSE('Guts-2'!$D$26,I88,L88,O88,R88,U88,X88,AA88,AT88),"") ->  | AR88: =INDEX('Import (ADP)'!$C$2:$C$999,MATCH(A88, 'Import (ADP)'!$B$2:$B$999,0)) ->  | AU88: =IF(VLOOKUP(A89,'Name-Sort'!$D$2:$E$948,2,FALSE)="",A89,"") -> Ryan Braun | AV88: =IFERROR(INDEX($AU$1:$AU$948,SMALL(IF($AU$1:$AU$948<>"",ROW($AU$1:$AU$948)),ROW(AU88))),"") -> Ryan Braun
A89: Ryan Braun | B89: braunry02 | C89: OF | D89: LF | E89: MIL | F89: 36 | G89: 272 | H89: 176 | I89: 448 | J89: 352 | K89: 176 | L89: 468.16 | M89: 333.33 | N89: 176 | O89: 448 | P89: 233 | Q89: 174.75 | R89: 448 | S89: 278.4 | T89: 176 | U89: 448 | V89: 244.84 | W89: 187 | X89: 327 | Y89: 285.595 | Z89: 176 | AA89: 448 | AB89: 159 | AC89: 220 | AD89: 176 | AE89: 211 | AF89: 223 | AH89: =IFERROR(INDEX('Guts-2'!$K$1:$K$30,MATCH(E89,'Guts-2'!$J$1:$J$30,0)),TRUE) -> TRUE | AI89: =IF(AH89=FALSE,"",IFERROR(CHOOSE('Guts-2'!$D$27,AB89,AC89,AD89,AE89,AF89,AG89),"")) -> 176 | AJ89: 176 | AK89: =IF(AH89=FALSE,"",IFERROR(CHOOSE('Guts-2'!$D$26,G89,J89,M89,P89,S89,V89,Y89,AR89),"")) -> 333.33 | AL89: =IFERROR(IF(Settings!$L$5="Mixed (Standard)",AK89,RANK(AK89,$AK$2:$AK$948,1)),"") -> 333.33 | AM89: =IFERROR(IF(Settings!$L$5="Mixed (Standard)",(RANK(AK89,$AK$2:$AK$948,1)/('Guts-2'!$N$1+1))+1,(RANK(AL89,$AL$2:$AL$948,1)/('Guts-2'!$N$1+1))+1),"") -> 28.76923077 | AN89: =IFERROR(CHOOSE('Guts-2'!$D$26,H89,K89,N89,Q89,T89,W89,Z89,AS89),"") -> 176 | AO89: =IFERROR(CHOOSE('Guts-2'!$D$26,I89,L89,O89,R89,U89,X89,AA89,AT89),"") -> 448 | AP89: 176 | AQ89: 448 | AR89: =INDEX('Import (ADP)'!$C$2:$C$999,MATCH(A89, 'Import (ADP)'!$B$2:$B$999,0)) ->  | AU89: =IF(VLOOKUP(A90,'Name-Sort'!$D$2:$E$948,2,FALSE)="",A90,"") -> John Brebbia | AV89: =IFERROR(INDEX($AU$1:$AU$948,SMALL(IF($AU$1:$AU$948<>"",ROW($AU$1:$AU$948)),ROW(AU89))),"") -> John Brebbia
A90: John Brebbia | B90: brebbjo01 | C90: RP | E90: STL | F90: 29 | G90: 559 | H90: 419.25 | I90: 749 | S90: 626.5 | T90: 469.875 | U90: 833.245 | V90: 725.37 | W90: 483 | X90: 749 | Y90: 636.9566667 | Z90: 477.7175 | AA90: 847.1523667 | AH90: =IFERROR(INDEX('Guts-2'!$K$1:$K$30,MATCH(E90,'Guts-2'!$J$1:$J$30,0)),TRUE) -> TRUE | AI90: =IF(AH90=FALSE,"",IFERROR(CHOOSE('Guts-2'!$D$27,AB90,AC90,AD90,AE90,AF90,AG90),"")) ->  | AK90: =IF(AH90=FALSE,"",IFERROR(CHOOSE('Guts-2'!$D$26,G90,J90,M90,P90,S90,V90,Y90,AR90),"")) ->  | AL90: =IFERROR(IF(Settings!$L$5="Mixed (Standard)",AK90,RANK(AK90,$AK$2:$AK$948,1)),"") ->  | AM90: =IFERROR(IF(Settings!$L$5="Mixed (Standard)",(RANK(AK90,$AK$2:$AK$948,1)/('Guts-2'!$N$1+1))+1,(RANK(AL90,$AL$2:$AL$948,1)/('Guts-2'!$N$1+1))+1),"") ->  | AN90: =IFERROR(CHOOSE('Guts-2'!$D$26,H90,K90,N90,Q90,T90,W90,Z90,AS90),"") ->  | AO90: =IFERROR(CHOOSE('Guts-2'!$D$26,I90,L90,O90,R90,U90,X90,AA90,AT90),"") ->  | AR90: =INDEX('Import (ADP)'!$C$2:$C$999,MATCH(A90, 'Import (ADP)'!$B$2:$B$999,0)) ->  | AU90: =IF(VLOOKUP(A91,'Name-Sort'!$D$2:$E$948,2,FALSE)="",A91,"") -> Alex Bregman | AV90: =IFERROR(INDEX($AU$1:$AU$948,SMALL(IF($AU$1:$AU$948<>"",ROW($AU$1:$AU$948)),ROW(AU90))),"") -> Alex Bregman
A91: Alex Bregman | B91: bregmal01 | C91: 3B | E91: HOU | F91: 25 | G91: 13 | H91: 4 | I91: 24 | J91: 17 | K91: 4 | L91: 24 | M91: 7.75 | N91: 4 | O91: 11 | P91: 10 | Q91: 4 | R91: 24 | S91: 12.6 | T91: 4 | U91: 24 | V91: 11.62 | W91: 4 | X91: 24 | Y91: 11.995 | Z91: 4 | AA91: 24 | AB91: 20 | AC91: 18 | AD91: 17 | AE91: 10 | AF91: 14 | AH91: =IFERROR(INDEX('Guts-2'!$K$1:$K$30,MATCH(E91,'Guts-2'!$J$1:$J$30,0)),TRUE) -> TRUE | AI91: =IF(AH91=FALSE,"",IFERROR(CHOOSE('Guts-2'!$D$27,AB91,AC91,AD91,AE91,AF91,AG91),"")) -> 17 | AJ91: 17 | AK91: =IF(AH91=FALSE,"",IFERROR(CHOOSE('Guts-2'!$D$26,G91,J91,M91,P91,S91,V91,Y91,AR91),"")) -> 7.75 | AL91: =IFERROR(IF(Settings!$L$5="Mixed (Standard)",AK91,RANK(AK91,$AK$2:$AK$948,1)),"") -> 7.75 | AM91: =IFERROR(IF(Settings!$L$5="Mixed (Standard)",(RANK(AK91,$AK$2:$AK$948,1)/('Guts-2'!$N$1+1))+1,(RANK(AL91,$AL$2:$AL$948,1)/('Guts-2'!$N$1+1))+1),"") -> 1.461538462 | AN91: =IFERROR(CHOOSE('Guts-2'!$D$26,H91,K91,N91,Q91,T91,W91,Z91,AS91),"") -> 4 | AO91: =IFERROR(CHOOSE('Guts-2'!$D$26,I91,L91,O91,R91,U91,X91,AA91,AT91),"") -> 11 | AP91: 4 | AQ91: 11 | AR91: =INDEX('Import (ADP)'!$C$2:$C$999,MATCH(A91, 'Import (ADP)'!$B$2:$B$999,0)) -> 7 | AS91: 4 | AT91: 24 | AU91: =IF(VLOOKUP(A92,'Name-Sort'!$D$2:$E$948,2,FALSE)="",A92,"") -> Lewis Brinson | AV91: =IFERROR(INDEX($AU$1:$AU$948,SMALL(IF($AU$1:$AU$948<>"",ROW($AU$1:$AU$948)),ROW(AU91))),"") -> Lewis Brinson
A92: Lewis Brinson | B92: brinsle01 | C92: OF | D92: CF,RF | E92: MIA | F92: 25 | S92: 532.5 | T92: 392 | U92: 744 | V92: 686.3 | W92: 392 | X92: 744 | Y92: 609.4 | Z92: 392 | AA92: 810.502 | AF92: 544 | AH92: =IFERROR(INDEX('Guts-2'!$K$1:$K$30,MATCH(E92,'Guts-2'!$J$1:$J$30,0)),TRUE) -> TRUE | AI92: =IF(AH92=FALSE,"",IFERROR(CHOOSE('Guts-2'!$D$27,AB92,AC92,AD92,AE92,AF92,AG92),"")) ->  | AK92: =IF(AH92=FALSE,"",IFERROR(CHOOSE('Guts-2'!$D$26,G92,J92,M92,P92,S92,V92,Y92,AR92),"")) ->  | AL92: =IFERROR(IF(Settings!$L$5="Mixed (Standard)",AK92,RANK(AK92,$AK$2:$AK$948,1)),"") ->  | AM92: =IFERROR(IF(Settings!$L$5="Mixed (Standard)",(RANK(AK92,$AK$2:$AK$948,1)/('Guts-2'!$N$1+1))+1,(RANK(AL92,$AL$2:$AL$948,1)/('Guts-2'!$N$1+1))+1),"") ->  | AN92: =IFERROR(CHOOSE('Guts-2'!$D$26,H92,K92,N92,Q92,T92,W92,Z92,AS92),"") ->  | AO92: =IFERROR(CHOOSE('Guts-2'!$D$26,I92,L92,O92,R92,U92,X92,AA92,AT92),"") ->  | AR92: =INDEX('Import (ADP)'!$C$2:$C$999,MATCH(A92, 'Import (ADP)'!$B$2:$B$999,0)) ->  | AU92: =IF(VLOOKUP(A93,'Name-Sort'!$D$2:$E$948,2,FALSE)="",A93,"") -> Zach Britton | AV92: =IFERROR(INDEX($AU$1:$AU$948,SMALL(IF($AU$1:$AU$948<>"",ROW($AU$1:$AU$948)),ROW(AU92))),"") -> Zach Britton
A93: Zach Britton | B93: brittza01 | C93: RP | E93: NYY | F93: 32 | G93: 390 | H93: 124 | I93: 669 | J93: 230 | K93: 124 | L93: 669 | M93: 261.33 | N93: 124 | O93: 397 | P93: 297 | Q93: 124 | R93: 669 | S93: 337 | T93: 124 | U93: 669 | V93: 590.67 | W93: 330 | X93: 669 | Y93: 351 | Z93: 124 | AA93: 669 | AF93: 459 | AH93: =IFERROR(INDEX('Guts-2'!$K$1:$K$30,MATCH(E93,'Guts-2'!$J$1:$J$30,0)),TRUE) -> TRUE | AI93: =IF(AH93=FALSE,"",IFERROR(CHOOSE('Guts-2'!$D$27,AB93,AC93,AD93,AE93,AF93,AG93),"")) ->  | AK93: =IF(AH93=FALSE,"",IFERROR(CHOOSE('Guts-2'!$D$26,G93,J93,M93,P93,S93,V93,Y93,AR93),"")) -> 261.33 | AL93: =IFERROR(IF(Settings!$L$5="Mixed (Standard)",AK93,RANK(AK93,$AK$2:$AK$948,1)),"") -> 261.33 | AM93: =IFERROR(IF(Settings!$L$5="Mixed (Standard)",(RANK(AK93,$AK$2:$AK$948,1)/('Guts-2'!$N$1+1))+1,(RANK(AL93,$AL$2:$AL$948,1)/('Guts-2'!$N$1+1))+1),"") -> 23.07692308 | AN93: =IFERROR(CHOOSE('Guts-2'!$D$26,H93,K93,N93,Q93,T93,W93,Z93,AS93),"") -> 124 | AO93: =IFERROR(CHOOSE('Guts-2'!$D$26,I93,L93,O93,R93,U93,X93,AA93,AT93),"") -> 397 | AP93: 124 | AQ93: 397 | AR93: =INDEX('Import (ADP)'!$C$2:$C$999,MATCH(A93, 'Import (ADP)'!$B$2:$B$999,0)) ->  | AU93: =IF(VLOOKUP(A94,'Name-Sort'!$D$2:$E$948,2,FALSE)="",A94,"") -> Michael Brosseau | AV93: =IFERROR(INDEX($AU$1:$AU$948,SMALL(IF($AU$1:$AU$948<>"",ROW($AU$1:$AU$948)),ROW(AU93))),"") -> Michael Brosseau
A94: Michael Brosseau | B94: brossmi01 | C94: 3B | E94: TB | F94: 26 | P94: 450 | Q94: 337.5 | R94: 748 | S94: 619.5 | T94: 464.625 | U94: 823.935 | V94: 741.12 | W94: 613 | X94: 748 | Y94: 603.54 | Z94: 452.655 | AA94: 802.7082 | AH94: =IFERROR(INDEX('Guts-2'!$K$1:$K$30,MATCH(E94,'Guts-2'!$J$1:$J$30,0)),TRUE) -> TRUE | AI94: =IF(AH94=FALSE,"",IFERROR(CHOOSE('Guts-2'!$D$27,AB94,AC94,AD94,AE94,AF94,AG94),"")) ->  | AK94: =IF(AH94=FALSE,"",IFERROR(CHOOSE('Guts-2'!$D$26,G94,J94,M94,P94,S94,V94,Y94,AR94),"")) ->  | AL94: =IFERROR(IF(Settings!$L$5="Mixed (Standard)",AK94,RANK(AK94,$AK$2:$AK$948,1)),"") ->  | AM94: =IFERROR(IF(Settings!$L$5="Mixed (Standard)",(RANK(AK94,$AK$2:$AK$948,1)/('Guts-2'!$N$1+1))+1,(RANK(AL94,$AL$2:$AL$948,1)/('Guts-2'!$N$1+1))+1),"") ->  | AN94: =IFERROR(CHOOSE('Guts-2'!$D$26,H94,K94,N94,Q94,T94,W94,Z94,AS94),"") ->  | AO94: =IFERROR(CHOOSE('Guts-2'!$D$26,I94,L94,O94,R94,U94,X94,AA94,AT94),"") ->  | AR94: =INDEX('Import (ADP)'!$C$2:$C$999,MATCH(A94, 'Import (ADP)'!$B$2:$B$999,0)) ->  | AU94: =IF(VLOOKUP(A95,'Name-Sort'!$D$2:$E$948,2,FALSE)="",A95,"") -> Seth Brown | AV94: =IFERROR(INDEX($AU$1:$AU$948,SMALL(IF($AU$1:$AU$948<>"",ROW($AU$1:$AU$948)),ROW(AU94))),"") -> Seth Brown
A95: Seth Brown | B95: brownse01 | C95: OF | D95: LF,RF | E95: OAK | F95: 27 | V95: 658.48 | W95: 302 | X95: 732 | Y95: 658.48 | Z95: 302 | AA95: 875.7784 | AB95: 110 | AF95: 408 | AH95: =IFERROR(INDEX('Guts-2'!$K$1:$K$30,MATCH(E95,'Guts-2'!$J$1:$J$30,0)),TRUE) -> TRUE | AI95: =IF(AH95=FALSE,"",IFERROR(CHOOSE('Guts-2'!$D$27,AB95,AC95,AD95,AE95,AF95,AG95),"")) ->  | AK95: =IF(AH95=FALSE,"",IFERROR(CHOOSE('Guts-2'!$D$26,G95,J95,M95,P95,S95,V95,Y95,AR95),"")) ->  | AL95: =IFERROR(IF(Settings!$L$5="Mixed (Standard)",AK95,RANK(AK95,$AK$2:$AK$948,1)),"") ->  | AM95: =IFERROR(IF(Settings!$L$5="Mixed (Standard)",(RANK(AK95,$AK$2:$AK$948,1)/('Guts-2'!$N$1+1))+1,(RANK(AL95,$AL$2:$AL$948,1)/('Guts-2'!$N$1+1))+1),"") ->  | AN95: =IFERROR(CHOOSE('Guts-2'!$D$26,H95,K95,N95,Q95,T95,W95,Z95,AS95),"") ->  | AO95: =IFERROR(CHOOSE('Guts-2'!$D$26,I95,L95,O95,R95,U95,X95,AA95,AT95),"") ->  | AR95: =INDEX('Import (ADP)'!$C$2:$C$999,MATCH(A95, 'Import (ADP)'!$B$2:$B$999,0)) ->  | AU95: =IF(VLOOKUP(A96,'Name-Sort'!$D$2:$E$948,2,FALSE)="",A96,"") -> Jay Bruce | AV95: =IFERROR(INDEX($AU$1:$AU$948,SMALL(IF($AU$1:$AU$948<>"",ROW($AU$1:$AU$948)),ROW(AU95))),"") -> Jay Bruce
A96: Jay Bruce | B96: bruceja01 | C96: OF | D96: LF,RF | E96: PHI | F96: 32 | S96: 506 | T96: 309 | U96: 693 | V96: 634.71 | W96: 309 | X96: 693 | Y96: 570.355 | Z96: 309 | AA96: 758.57215 | AF96: 601 | AH96: =IFERROR(INDEX('Guts-2'!$K$1:$K$30,MATCH(E96,'Guts-2'!$J$1:$J$30,0)),TRUE) -> TRUE | AI96: =IF(AH96=FALSE,"",IFERROR(CHOOSE('Guts-2'!$D$27,AB96,AC96,AD96,AE96,AF96,AG96),"")) ->  | AK96: =IF(AH96=FALSE,"",IFERROR(CHOOSE('Guts-2'!$D$26,G96,J96,M96,P96,S96,V96,Y96,AR96),"")) ->  | AL96: =IFERROR(IF(Settings!$L$5="Mixed (Standard)",AK96,RANK(AK96,$AK$2:$AK$948,1)),"") ->  | AM96: =IFERROR(IF(Settings!$L$5="Mixed (Standard)",(RANK(AK96,$AK$2:$AK$948,1)/('Guts-2'!$N$1+1))+1,(RANK(AL96,$AL$2:$AL$948,1)/('Guts-2'!$N$1+1))+1),"") ->  | AN96: =IFERROR(CHOOSE('Guts-2'!$D$26,H96,K96,N96,Q96,T96,W96,Z96,AS96),"") ->  | AO96: =IFERROR(CHOOSE('Guts-2'!$D$26,I96,L96,O96,R96,U96,X96,AA96,AT96),"") ->  | AR96: =INDEX('Import (ADP)'!$C$2:$C$999,MATCH(A96, 'Import (ADP)'!$B$2:$B$999,0)) ->  | AU96: =IF(VLOOKUP(A97,'Name-Sort'!$D$2:$E$948,2,FALSE)="",A97,"") -> Vidal Brujan | AV96: =IFERROR(INDEX($AU$1:$AU$948,SMALL(IF($AU$1:$AU$948<>"",ROW($AU$1:$AU$948)),ROW(AU96))),"") -> Vidal Brujan
A97: Vidal Brujan | B97: brujavi01 | C97: 2B | E97: TB | F97: 22 | M97: 324 | N97: 190 | O97: 513 | V97: 688.56 | W97: 281 | X97: 749 | Y97: 506.28 | Z97: 190 | AA97: 749 | AH97: =IFERROR(INDEX('Guts-2'!$K$1:$K$30,MATCH(E97,'Guts-2'!$J$1:$J$30,0)),TRUE) -> TRUE | AI97: =IF(AH97=FALSE,"",IFERROR(CHOOSE('Guts-2'!$D$27,AB97,AC97,AD97,AE97,AF97,AG97),"")) ->  | AK97: =IF(AH97=FALSE,"",IFERROR(CHOOSE('Guts-2'!$D$26,G97,J97,M97,P97,S97,V97,Y97,AR97),"")) -> 324 | AL97: =IFERROR(IF(Settings!$L$5="Mixed (Standard)",AK97,RANK(AK97,$AK$2:$AK$948,1)),"") -> 324 | AM97: =IFERROR(IF(Settings!$L$5="Mixed (Standard)",(RANK(AK97,$AK$2:$AK$948,1)/('Guts-2'!$N$1+1))+1,(RANK(AL97,$AL$2:$AL$948,1)/('Guts-2'!$N$1+1))+1),"") -> 28 | AN97: =IFERROR(CHOOSE('Guts-2'!$D$26,H97,K97,N97,Q97,T97,W97,Z97,AS97),"") -> 190 | AO97: =IFERROR(CHOOSE('Guts-2'!$D$26,I97,L97,O97,R97,U97,X97,AA97,AT97),"") -> 513 | AP97: 190 | AQ97: 513 | AR97: =INDEX('Import (ADP)'!$C$2:$C$999,MATCH(A97, 'Import (ADP)'!$B$2:$B$999,0)) ->  | AU97: =IF(VLOOKUP(A98,'Name-Sort'!$D$2:$E$948,2,FALSE)="",A98,"") -> Kris Bryant | AV97: =IFERROR(INDEX($AU$1:$AU$948,SMALL(IF($AU$1:$AU$948<>"",ROW($AU$1:$AU$948)),ROW(AU97))),"") -> Kris Bryant
A98: Kris Bryant | B98: bryankr01 | C98: 3B | D98: LF,RF | E98: CHC | F98: 28 | G98: 51 | H98: 23 | I98: 84 | J98: 43 | K98: 23 | L98: 84 | M98: 51 | N98: 23 | O98: 83 | P98: 39 | Q98: 23 | R98: 84 | S98: 48.2 | T98: 23 | U98: 84 | V98: 57.47 | W98: 29 | X98: 84 | Y98: 48.27833333 | Z98: 23 | AA98: 84 | AB98: 80 | AC98: 41 | AD98: 81 | AE98: 48 | AF98: 51 | AH98: =IFERROR(INDEX('Guts-2'!$K$1:$K$30,MATCH(E98,'Guts-2'!$J$1:$J$30,0)),TRUE) -> TRUE | AI98: =IF(AH98=FALSE,"",IFERROR(CHOOSE('Guts-2'!$D$27,AB98,AC98,AD98,AE98,AF98,AG98),"")) -> 81 | AJ98: 81 | AK98: =IF(AH98=FALSE,"",IFERROR(CHOOSE('Guts-2'!$D$26,G98,J98,M98,P98,S98,V98,Y98,AR98),"")) -> 51 | AL98: =IFERROR(IF(Settings!$L$5="Mixed (Standard)",AK98,RANK(AK98,$AK$2:$AK$948,1)),"") -> 51 | AM98: =IFERROR(IF(Settings!$L$5="Mixed (Standard)",(RANK(AK98,$AK$2:$AK$948,1)/('Guts-2'!$N$1+1))+1,(RANK(AL98,$AL$2:$AL$948,1)/('Guts-2'!$N$1+1))+1),"") -> 4.230769231 | AN98: =IFERROR(CHOOSE('Guts-2'!$D$26,H98,K98,N98,Q98,T98,W98,Z98,AS98),"") -> 23 | AO98: =IFERROR(CHOOSE('Guts-2'!$D$26,I98,L98,O98,R98,U98,X98,AA98,AT98),"") -> 83 | AP98: 23 | AQ98: 83 | AR98: =INDEX('Import (ADP)'!$C$2:$C$999,MATCH(A98, 'Import (ADP)'!$B$2:$B$999,0)) ->  | AU98: =IF(VLOOKUP(A99,'Name-Sort'!$D$2:$E$948,2,FALSE)="",A99,"") -> Walker Buehler | AV98: =IFERROR(INDEX($AU$1:$AU$948,SMALL(IF($AU$1:$AU$948<>"",ROW($AU$1:$AU$948)),ROW(AU98))),"") -> Walker Buehler
A99: Walker Buehler | B99: buehlwa01 | C99: SP | E99: LAD | F99: 25 | G99: 15 | H99: 7 | I99: 30 | J99: 16 | K99: 7 | L99: 30 | M99: 16.88 | N99: 9 | O99: 30 | P99: 20 | Q99: 7 | R99: 30 | S99: 16.8 | T99: 7 | U99: 30 | V99: 16.98 | W99: 7 | X99: 28 | Y99: 16.94333333 | Z99: 7 | AA99: 30 | AB99: 39 | AC99: 17 | AD99: 19 | AE99: 26 | AF99: 19 | AH99: =IFERROR(INDEX('Guts-2'!$K$1:$K$30,MATCH(E99,'Guts-2'!$J$1:$J$30,0)),TRUE) -> TRUE | AI99: =IF(AH99=FALSE,"",IFERROR(CHOOSE('Guts-2'!$D$27,AB99,AC99,AD99,AE99,AF99,AG99),"")) -> 19 | AJ99: 19 | AK99: =IF(AH99=FALSE,"",IFERROR(CHOOSE('Guts-2'!$D$26,G99,J99,M99,P99,S99,V99,Y99,AR99),"")) -> 16.88 | AL99: =IFERROR(IF(Settings!$L$5="Mixed (Standard)",AK99,RANK(AK99,$AK$2:$AK$948,1)),"") -> 16.88 | AM99: =IFERROR(IF(Settings!$L$5="Mixed (Standard)",(RANK(AK99,$AK$2:$AK$948,1)/('Guts-2'!$N$1+1))+1,(RANK(AL99,$AL$2:$AL$948,1)/('Guts-2'!$N$1+1))+1),"") -> 2 | AN99: =IFERROR(CHOOSE('Guts-2'!$D$26,H99,K99,N99,Q99,T99,W99,Z99,AS99),"") -> 9 | AO99: =IFERROR(CHOOSE('Guts-2'!$D$26,I99,L99,O99,R99,U99,X99,AA99,AT99),"") -> 30 | AP99: 9 | AQ99: 30 | AR99: =INDEX('Import (ADP)'!$C$2:$C$999,MATCH(A99, 'Import (ADP)'!$B$2:$B$999,0)) -> 16 | AS99: 7 | AT99: 30 | AU99: =IF(VLOOKUP(A100,'Name-Sort'!$D$2:$E$948,2,FALSE)="",A100,"") -> Madison Bumgarner | AV99: =IFERROR(INDEX($AU$1:$AU$948,SMALL(IF($AU$1:$AU$948<>"",ROW($AU$1:$AU$948)),ROW(AU99))),"") -> Madison Bumgarner
A100: Madison Bumgarner | B100: bumgama01 | C100: SP | E100: ARI | F100: 30 | G100: 113 | H100: 48 | I100: 184 | J100: 131 | K100: 48 | L100: 184 | M100: 111 | N100: 48 | O100: 184 | P100: 125 | Q100: 48 | R100: 184 | S100: 117.4 | T100: 48 | U100: 184 | V100: 123.09 | W100: 85 | X100: 162 | Y100: 120.0816667 | Z100: 48 | AA100: 184 | AB100: 149 | AC100: 158 | AD100: 79 | AE100: 110 | AF100: 127 | AH100: =IFERROR(INDEX('Guts-2'!$K$1:$K$30,MATCH(E100,'Guts-2'!$J$1:$J$30,0)),TRUE) -> TRUE | AI100: =IF(AH100=FALSE,"",IFERROR(CHOOSE('Guts-2'!$D$27,AB100,AC100,AD100,AE100,AF100,AG100),"")) -> 79 | AJ100: 79 | AK100: =IF(AH100=FALSE,"",IFERROR(CHOOSE('Guts-2'!$D$26,G100,J100,M100,P100,S100,V100,Y100,AR100),"")) -> 111 | AL100: =IFERROR(IF(Settings!$L$5="Mixed (Standard)",AK100,RANK(AK100,$AK$2:$AK$948,1)),"") -> 111 | AM100: =IFERROR(IF(Settings!$L$5="Mixed (Standard)",(RANK(AK100,$AK$2:$AK$948,1)/('Guts-2'!$N$1+1))+1,(RANK(AL100,$AL$2:$AL$948,1)/('Guts-2'!$N$1+1))+1),"") -> 8.615384615 | AN100: =IFERROR(CHOOSE('Guts-2'!$D$26,H100,K100,N100,Q100,T100,W100,Z100,AS100),"") -> 48 | AO100: =IFERROR(CHOOSE('Guts-2'!$D$26,I100,L100,O100,R100,U100,X100,AA100,AT100),"") -> 184 | AP100: 48 | AQ100: 184 | AR100: =INDEX('Import (ADP)'!$C$2:$C$999,MATCH(A100, 'Import (ADP)'!$B$2:$B$999,0)) ->  | AU100: =IF(VLOOKUP(A101,'Name-Sort'!$D$2:$E$948,2,FALSE)="",A101,"") -> Aaron Bummer | AV100: =IFERROR(INDEX($AU$1:$AU$948,SMALL(IF($AU$1:$AU$948<>"",ROW($AU$1:$AU$948)),ROW(AU100))),"") -> Aaron Bummer
A101: Aaron Bummer | B101: bummeaa01 | C101: RP | E101: CHW | F101: 26 | G101: 490 | H101: 243 | I101: 651.7 | J101: 296 | K101: 222 | L101: 619 | M101: 502 | N101: 399 | O101: 605 | S101: 426 | T101: 243 | U101: 619 | V101: 580.03 | W101: 243 | X101: 619 | Y101: 458.806 | Z101: 243 | AA101: 619 | AF101: 546 | AH101: =IFERROR(INDEX('Guts-2'!$K$1:$K$30,MATCH(E101,'Guts-2'!$J$1:$J$30,0)),TRUE) -> TRUE | AI101: =IF(AH101=FALSE,"",IFERROR(CHOOSE('Guts-2'!$D$27,AB101,AC101,AD101,AE101,AF101,AG101),"")) ->  | AK101: =IF(AH101=FALSE,"",IFERROR(CHOOSE('Guts-2'!$D$26,G101,J101,M101,P101,S101,V101,Y101,AR101),"")) -> 502 | AL101: =IFERROR(IF(Settings!$L$5="Mixed (Standard)",AK101,RANK(AK101,$AK$2:$AK$948,1)),"") -> 502 | AM101: =IFERROR(IF(Settings!$L$5="Mixed (Standard)",(RANK(AK101,$AK$2:$AK$948,1)/('Guts-2'!$N$1+1))+1,(RANK(AL101,$AL$2:$AL$948,1)/('Guts-2'!$N$1+1))+1),"") -> 37.15384615 | AN101: =IFERROR(CHOOSE('Guts-2'!$D$26,H101,K101,N101,Q101,T101,W101,Z101,AS101),"") -> 399 | AO101: =IFERROR(CHOOSE('Guts-2'!$D$26,I101,L101,O101,R101,U101,X101,AA101,AT101),"") -> 605 | AP101: 399 | AQ101: 605 | AR101: =INDEX('Import (ADP)'!$C$2:$C$999,MATCH(A101, 'Import (ADP)'!$B$2:$B$999,0)) ->  | AU101: =IF(VLOOKUP(A102,'Name-Sort'!$D$2:$E$948,2,FALSE)="",A102,"") -> Dylan Bundy | AV101: =IFERROR(INDEX($AU$1:$AU$948,SMALL(IF($AU$1:$AU$948<>"",ROW($AU$1:$AU$948)),ROW(AU101))),"") -> Dylan Bundy
A102: Dylan Bundy | B102: bundydy01 | C102: SP | E102: LAA | F102: 27 | G102: 226 | H102: 145 | I102: 448 | J102: 260 | K102: 145 | L102: 448 | M102: 235.4 | N102: 145 | O102: 344 | P102: 254 | Q102: 145 | R102: 448 | S102: 260 | T102: 145 | U102: 448 | V102: 292.72 | W102: 212 | X102: 448 | Y102: 254.6866667 | Z102: 145 | AA102: 448 | AC102: 266 | AD102: 198 | AE102: 274 | AF102: 270 | AH102: =IFERROR(INDEX('Guts-2'!$K$1:$K$30,MATCH(E102,'Guts-2'!$J$1:$J$30,0)),TRUE) -> TRUE | AI102: =IF(AH102=FALSE,"",IFERROR(CHOOSE('Guts-2'!$D$27,AB102,AC102,AD102,AE102,AF102,AG102),"")) -> 198 | AJ102: 198 | AK102: =IF(AH102=FALSE,"",IFERROR(CHOOSE('Guts-2'!$D$26,G102,J102,M102,P102,S102,V102,Y102,AR102),"")) -> 235.4 | AL102: =IFERROR(IF(Settings!$L$5="Mixed (Standard)",AK102,RANK(AK102,$AK$2:$AK$948,1)),"") -> 235.4 | AM102: =IFERROR(IF(Settings!$L$5="Mixed (Standard)",(RANK(AK102,$AK$2:$AK$948,1)/('Guts-2'!$N$1+1))+1,(RANK(AL102,$AL$2:$AL$948,1)/('Guts-2'!$N$1+1))+1),"") -> 20.92307692 | AN102: =IFERROR(CHOOSE('Guts-2'!$D$26,H102,K102,N102,Q102,T102,W102,Z102,AS102),"") -> 145 | AO102: =IFERROR(CHOOSE('Guts-2'!$D$26,I102,L102,O102,R102,U102,X102,AA102,AT102),"") -> 344 | AP102: 145 | AQ102: 344 | AR102: =INDEX('Import (ADP)'!$C$2:$C$999,MATCH(A102, 'Import (ADP)'!$B$2:$B$999,0)) ->  | AU102: =IF(VLOOKUP(A103,'Name-Sort'!$D$2:$E$948,2,FALSE)="",A103,"") -> Corbin Burnes | AV102: =IFERROR(INDEX($AU$1:$AU$948,SMALL(IF($AU$1:$AU$948<>"",ROW($AU$1:$AU$948)),ROW(AU102))),"") -> Corbin Burnes
A103: Corbin Burnes | B103: burneco01 | C103: RP | E103: MIL | F103: 25 | G103: 395 | H103: 274 | I103: 590 | M103: 396.33 | N103: 274 | O103: 590 | S103: 408.5 | T103: 274 | U103: 590 | V103: 533.79 | W103: 340 | X103: 585 | Y103: 433.405 | Z103: 274 | AA103: 590 | AF103: 473 | AH103: =IFERROR(INDEX('Guts-2'!$K$1:$K$30,MATCH(E103,'Guts-2'!$J$1:$J$30,0)),TRUE) -> TRUE | AI103: =IF(AH103=FALSE,"",IFERROR(CHOOSE('Guts-2'!$D$27,AB103,AC103,AD103,AE103,AF103,AG103),"")) ->  | AK103: =IF(AH103=FALSE,"",IFERROR(CHOOSE('Guts-2'!$D$26,G103,J103,M103,P103,S103,V103,Y103,AR103),"")) -> 396.33 | AL103: =IFERROR(IF(Settings!$L$5="Mixed (Standard)",AK103,RANK(AK103,$AK$2:$AK$948,1)),"") -> 396.33 | AM103: =IFERROR(IF(Settings!$L$5="Mixed (Standard)",(RANK(AK103,$AK$2:$AK$948,1)/('Guts-2'!$N$1+1))+1,(RANK(AL103,$AL$2:$AL$948,1)/('Guts-2'!$N$1+1))+1),"") -> 32.69230769 | AN103: =IFERROR(CHOOSE('Guts-2'!$D$26,H103,K103,N103,Q103,T103,W103,Z103,AS103),"") -> 274 | AO103: =IFERROR(CHOOSE('Guts-2'!$D$26,I103,L103,O103,R103,U103,X103,AA103,AT103),"") -> 590 | AP103: 274 | AQ103: 590 | AR103: =INDEX('Import (ADP)'!$C$2:$C$999,MATCH(A103, 'Import (ADP)'!$B$2:$B$999,0)) ->  | AU103: =IF(VLOOKUP(A104,'Name-Sort'!$D$2:$E$948,2,FALSE)="",A104,"") -> Ty Buttrey | AV103: =IFERROR(INDEX($AU$1:$AU$948,SMALL(IF($AU$1:$AU$948<>"",ROW($AU$1:$AU$948)),ROW(AU103))),"") -> Ty Buttrey
A104: Ty Buttrey | B104: buttrty01 | C104: RP | E104: LAA | F104: 26 | G104: 529 | H104: 363 | I104: 746 | S104: 527.5 | T104: 363 | U104: 746 | V104: 607.21 | W104: 363 | X104: 746 | Y104: 554.57 | Z104: 363 | AA104: 746 | AF104: 425 | AH104: =IFERROR(INDEX('Guts-2'!$K$1:$K$30,MATCH(E104,'Guts-2'!$J$1:$J$30,0)),TRUE) -> TRUE | AI104: =IF(AH104=FALSE,"",IFERROR(CHOOSE('Guts-2'!$D$27,AB104,AC104,AD104,AE104,AF104,AG104),"")) ->  | AK104: =IF(AH104=FALSE,"",IFERROR(CHOOSE('Guts-2'!$D$26,G104,J104,M104,P104,S104,V104,Y104,AR104),"")) ->  | AL104: =IFERROR(IF(Settings!$L$5="Mixed (Standard)",AK104,RANK(AK104,$AK$2:$AK$948,1)),"") ->  | AM104: =IFERROR(IF(Settings!$L$5="Mixed (Standard)",(RANK(AK104,$AK$2:$AK$948,1)/('Guts-2'!$N$1+1))+1,(RANK(AL104,$AL$2:$AL$948,1)/('Guts-2'!$N$1+1))+1),"") ->  | AN104: =IFERROR(CHOOSE('Guts-2'!$D$26,H104,K104,N104,Q104,T104,W104,Z104,AS104),"") ->  | AO104: =IFERROR(CHOOSE('Guts-2'!$D$26,I104,L104,O104,R104,U104,X104,AA104,AT104),"") ->  | AR104: =INDEX('Import (ADP)'!$C$2:$C$999,MATCH(A104, 'Import (ADP)'!$B$2:$B$999,0)) ->  | AU104: =IF(VLOOKUP(A105,'Name-Sort'!$D$2:$E$948,2,FALSE)="",A105,"") -> Byron Buxton | AV104: =IFERROR(INDEX($AU$1:$AU$948,SMALL(IF($AU$1:$AU$948<>"",ROW($AU$1:$AU$948)),ROW(AU104))),"") -> Byron Buxton
A105: Byron Buxton | B105: buxtoby01 | C105: OF | D105: CF | E105: MIN | F105: 26 | G105: 189 | H105: 93 | I105: 252 | J105: 192 | K105: 93 | L105: 255.36 | M105: 186.17 | N105: 114 | O105: 252 | P105: 177 | Q105: 93 | R105: 252 | S105: 179.6 | T105: 93 | U105: 252 | V105: 162.51 | W105: 93 | X105: 221 | Y105: 181.0466667 | Z105: 93 | AA105: 252 | AC105: 133 | AD105: 88 | AE105: 254 | AF105: 155 | AH105: =IFERROR(INDEX('Guts-2'!$K$1:$K$30,MATCH(E105,'Guts-2'!$J$1:$J$30,0)),TRUE) -> TRUE | AI105: =IF(AH105=FALSE,"",IFERROR(CHOOSE('Guts-2'!$D$27,AB105,AC105,AD105,AE105,AF105,AG105),"")) -> 88 | AJ105: 88 | AK105: =IF(AH105=FALSE,"",IFERROR(CHOOSE('Guts-2'!$D$26,G105,J105,M105,P105,S105,V105,Y105,AR105),"")) -> 186.17 | AL105: =IFERROR(IF(Settings!$L$5="Mixed (Standard)",AK105,RANK(AK105,$AK$2:$AK$948,1)),"") -> 186.17 | AM105: =IFERROR(IF(Settings!$L$5="Mixed (Standard)",(RANK(AK105,$AK$2:$AK$948,1)/('Guts-2'!$N$1+1))+1,(RANK(AL105,$AL$2:$AL$948,1)/('Guts-2'!$N$1+1))+1),"") -> 15 | AN105: =IFERROR(CHOOSE('Guts-2'!$D$26,H105,K105,N105,Q105,T105,W105,Z105,AS105),"") -> 114 | AO105: =IFERROR(CHOOSE('Guts-2'!$D$26,I105,L105,O105,R105,U105,X105,AA105,AT105),"") -> 252 | AP105: 114 | AQ105: 252 | AR105: =INDEX('Import (ADP)'!$C$2:$C$999,MATCH(A105, 'Import (ADP)'!$B$2:$B$999,0)) ->  | AU105: =IF(VLOOKUP(A106,'Name-Sort'!$D$2:$E$948,2,FALSE)="",A106,"") -> Asdrubal Cabrera | AV105: =IFERROR(INDEX($AU$1:$AU$948,SMALL(IF($AU$1:$AU$948<>"",ROW($AU$1:$AU$948)),ROW(AU105))),"") -> Asdrubal Cabrera
A106: Asdrubal Cabrera | B106: cabreas01 | C106: 3B | E106: WAS | F106: 34 | G106: 469 | H106: 227 | I106: 623.77 | J106: 288 | K106: 216 | L106: 481 | M106: 429.5 | N106: 420 | O106: 439 | P106: 323 | Q106: 227 | R106: 481 | S106: 364.6 | T106: 227 | U106: 484.918 | V106: 444.98 | W106: 227 | X106: 481 | Y106: 386.5133333 | Z106: 227 | AA106: 514.0627333 | AC106: 357 | AD106: 243 | AF106: 397 | AH106: =IFERROR(INDEX('Guts-2'!$K$1:$K$30,MATCH(E106,'Guts-2'!$J$1:$J$30,0)),TRUE) -> TRUE | AI106: =IF(AH106=FALSE,"",IFERROR(CHOOSE('Guts-2'!$D$27,AB106,AC106,AD106,AE106,AF106,AG106),"")) -> 243 | AJ106: 243 | AK106: =IF(AH106=FALSE,"",IFERROR(CHOOSE('Guts-2'!$D$26,G106,J106,M106,P106,S106,V106,Y106,AR106),"")) -> 429.5 | AL106: =IFERROR(IF(Settings!$L$5="Mixed (Standard)",AK106,RANK(AK106,$AK$2:$AK$948,1)),"") -> 429.5 | AM106: =IFERROR(IF(Settings!$L$5="Mixed (Standard)",(RANK(AK106,$AK$2:$AK$948,1)/('Guts-2'!$N$1+1))+1,(RANK(AL106,$AL$2:$AL$948,1)/('Guts-2'!$N$1+1))+1),"") -> 34.15384615 | AN106: =IFERROR(CHOOSE('Guts-2'!$D$26,H106,K106,N106,Q106,T106,W106,Z106,AS106),"") -> 420 | AO106: =IFERROR(CHOOSE('Guts-2'!$D$26,I106,L106,O106,R106,U106,X106,AA106,AT106),"") -> 439 | AP106: 420 | AQ106: 439 | AR106: =INDEX('Import (ADP)'!$C$2:$C$999,MATCH(A106, 'Import (ADP)'!$B$2:$B$999,0)) ->  | AU106: =IF(VLOOKUP(A107,'Name-Sort'!$D$2:$E$948,2,FALSE)="",A107,"") -> Miguel Cabrera | AV106: =IFERROR(INDEX($AU$1:$AU$948,SMALL(IF($AU$1:$AU$948<>"",ROW($AU$1:$AU$948)),ROW(AU106))),"") -> Miguel Cabrera
A107: Miguel Cabrera | B107: cabremi01 | C107: 1B | E107: DET | F107: 36 | G107: 386 | H107: 217 | I107: 747 | J107: 248 | K107: 186 | L107: 747 | M107: 524.5 | N107: 302 | O107: 747 | P107: 273 | Q107: 204.75 | R107: 747 | S107: 342.8 | T107: 217 | U107: 747 | V107: 462.79 | W107: 217 | X107: 518 | Y107: 372.8483333 | Z107: 217 | AA107: 747 | AC107: 333 | AF107: 336 | AH107: =IFERROR(INDEX('Guts-2'!$K$1:$K$30,MATCH(E107,'Guts-2'!$J$1:$J$30,0)),TRUE) -> TRUE | AI107: =IF(AH107=FALSE,"",IFERROR(CHOOSE('Guts-2'!$D$27,AB107,AC107,AD107,AE107,AF107,AG107),"")) ->  | AK107: =IF(AH107=FALSE,"",IFERROR(CHOOSE('Guts-2'!$D$26,G107,J107,M107,P107,S107,V107,Y107,AR107),"")) -> 524.5 | AL107: =IFERROR(IF(Settings!$L$5="Mixed (Standard)",AK107,RANK(AK107,$AK$2:$AK$948,1)),"") -> 524.5 | AM107: =IFERROR(IF(Settings!$L$5="Mixed (Standard)",(RANK(AK107,$AK$2:$AK$948,1)/('Guts-2'!$N$1+1))+1,(RANK(AL107,$AL$2:$AL$948,1)/('Guts-2'!$N$1+1))+1),"") -> 37.53846154 | AN107: =IFERROR(CHOOSE('Guts-2'!$D$26,H107,K107,N107,Q107,T107,W107,Z107,AS107),"") -> 302 | AO107: =IFERROR(CHOOSE('Guts-2'!$D$26,I107,L107,O107,R107,U107,X107,AA107,AT107),"") -> 747 | AP107: 302 | AQ107: 747 | AR107: =INDEX('Import (ADP)'!$C$2:$C$999,MATCH(A107, 'Import (ADP)'!$B$2:$B$999,0)) ->  | AU107: =IF(VLOOKUP(A108,'Name-Sort'!$D$2:$E$948,2,FALSE)="",A108,"") -> Lorenzo Cain | AV107: =IFERROR(INDEX($AU$1:$AU$948,SMALL(IF($AU$1:$AU$948<>"",ROW($AU$1:$AU$948)),ROW(AU107))),"") -> Lorenzo Cain
A108: Lorenzo Cain | B108: cainlo01 | C108: OF | D108: CF | E108: MIL | F108: 33 | G108: 191 | H108: 125 | I108: 353 | J108: 164 | K108: 123 | L108: 353 | M108: 304 | N108: 255 | O108: 353 | P108: 131 | Q108: 98.25 | R108: 353 | S108: 170 | T108: 125 | U108: 353 | V108: 184.82 | W108: 125 | X108: 247 | Y108: 190.8033333 | Z108: 125 | AA108: 353 | AB108: 176 | AC108: 128 | AD108: 97 | AE108: 106 | AF108: 138 | AH108: =IFERROR(INDEX('Guts-2'!$K$1:$K$30,MATCH(E108,'Guts-2'!$J$1:$J$30,0)),TRUE) -> TRUE | AI108: =IF(AH108=FALSE,"",IFERROR(CHOOSE('Guts-2'!$D$27,AB108,AC108,AD108,AE108,AF108,AG108),"")) -> 97 | AJ108: 97 | AK108: =IF(AH108=FALSE,"",IFERROR(CHOOSE('Guts-2'!$D$26,G108,J108,M108,P108,S108,V108,Y108,AR108),"")) -> 304 | AL108: =IFERROR(IF(Settings!$L$5="Mixed (Standard)",AK108,RANK(AK108,$AK$2:$AK$948,1)),"") -> 304 | AM108: =IFERROR(IF(Settings!$L$5="Mixed (Standard)",(RANK(AK108,$AK$2:$AK$948,1)/('Guts-2'!$N$1+1))+1,(RANK(AL108,$AL$2:$AL$948,1)/('Guts-2'!$N$1+1))+1),"") -> 26.84615385 | AN108: =IFERROR(CHOOSE('Guts-2'!$D$26,H108,K108,N108,Q108,T108,W108,Z108,AS108),"") -> 255 | AO108: =IFERROR(CHOOSE('Guts-2'!$D$26,I108,L108,O108,R108,U108,X108,AA108,AT108),"") -> 353 | AP108: 255 | AQ108: 353 | AR108: =INDEX('Import (ADP)'!$C$2:$C$999,MATCH(A108, 'Import (ADP)'!$B$2:$B$999,0)) ->  | AU108: =IF(VLOOKUP(A109,'Name-Sort'!$D$2:$E$948,2,FALSE)="",A109,"") -> Kole Calhoun | AV108: =IFERROR(INDEX($AU$1:$AU$948,SMALL(IF($AU$1:$AU$948<>"",ROW($AU$1:$AU$948)),ROW(AU108))),"") -> Kole Calhoun
A109: Kole Calhoun | B109: calhoko01 | C109: OF | D109: RF | E109: ARI | F109: 32 | G109: 306 | H109: 170 | I109: 501 | J109: 337 | K109: 170 | L109: 501 | M109: 340.67 | N109: 170 | O109: 438 | P109: 224 | Q109: 168 | R109: 501 | S109: 289.2 | T109: 170 | U109: 501 | V109: 333.7 | W109: 197 | X109: 501 | Y109: 305.095 | Z109: 170 | AA109: 501 | AC109: 344 | AD109: 180 | AE109: 221 | AF109: 304 | AH109: =IFERROR(INDEX('Guts-2'!$K$1:$K$30,MATCH(E109,'Guts-2'!$J$1:$J$30,0)),TRUE) -> TRUE | AI109: =IF(AH109=FALSE,"",IFERROR(CHOOSE('Guts-2'!$D$27,AB109,AC109,AD109,AE109,AF109,AG109),"")) -> 180 | AJ109: 180 | AK109: =IF(AH109=FALSE,"",IFERROR(CHOOSE('Guts-2'!$D$26,G109,J109,M109,P109,S109,V109,Y109,AR109),"")) -> 340.67 | AL109: =IFERROR(IF(Settings!$L$5="Mixed (Standard)",AK109,RANK(AK109,$AK$2:$AK$948,1)),"") -> 340.67 | AM109: =IFERROR(IF(Settings!$L$5="Mixed (Standard)",(RANK(AK109,$AK$2:$AK$948,1)/('Guts-2'!$N$1+1))+1,(RANK(AL109,$AL$2:$AL$948,1)/('Guts-2'!$N$1+1))+1),"") -> 29.23076923 | AN109: =IFERROR(CHOOSE('Guts-2'!$D$26,H109,K109,N109,Q109,T109,W109,Z109,AS109),"") -> 170 | AO109: =IFERROR(CHOOSE('Guts-2'!$D$26,I109,L109,O109,R109,U109,X109,AA109,AT109),"") -> 438 | AP109: 170 | AQ109: 438 | AR109: =INDEX('Import (ADP)'!$C$2:$C$999,MATCH(A109, 'Import (ADP)'!$B$2:$B$999,0)) ->  | AU109: =IF(VLOOKUP(A110,'Name-Sort'!$D$2:$E$948,2,FALSE)="",A110,"") -> Willie Calhoun | AV109: =IFERROR(INDEX($AU$1:$AU$948,SMALL(IF($AU$1:$AU$948<>"",ROW($AU$1:$AU$948)),ROW(AU109))),"") -> Willie Calhoun
A110: Willie Calhoun | B110: calhowi01 | C110: OF | D110: LF | E110: TEX | F110: 25 | G110: 164 | H110: 48 | I110: 218.12 | J110: 171 | K110: 48 | L110: 227.43 | M110: 117.62 | N110: 48 | O110: 158 | P110: 175 | Q110: 48 | R110: 232.75 | S110: 172.8 | T110: 48 | U110: 229.824 | V110: 167.57 | W110: 106 | X110: 216 | Y110: 161.3316667 | Z110: 48 | AA110: 216 | AB110: 237 | AC110: 145 | AD110: 220 | AE110: 174 | AF110: 174 | AH110: =IFERROR(INDEX('Guts-2'!$K$1:$K$30,MATCH(E110,'Guts-2'!$J$1:$J$30,0)),TRUE) -> TRUE | AI110: =IF(AH110=FALSE,"",IFERROR(CHOOSE('Guts-2'!$D$27,AB110,AC110,AD110,AE110,AF110,AG110),"")) -> 220 | AJ110: 220 | AK110: =IF(AH110=FALSE,"",IFERROR(CHOOSE('Guts-2'!$D$26,G110,J110,M110,P110,S110,V110,Y110,AR110),"")) -> 117.62 | AL110: =IFERROR(IF(Settings!$L$5="Mixed (Standard)",AK110,RANK(AK110,$AK$2:$AK$948,1)),"") -> 117.62 | AM110: =IFERROR(IF(Settings!$L$5="Mixed (Standard)",(RANK(AK110,$AK$2:$AK$948,1)/('Guts-2'!$N$1+1))+1,(RANK(AL110,$AL$2:$AL$948,1)/('Guts-2'!$N$1+1))+1),"") -> 9.461538462 | AN110: =IFERROR(CHOOSE('Guts-2'!$D$26,H110,K110,N110,Q110,T110,W110,Z110,AS110),"") -> 48 | AO110: =IFERROR(CHOOSE('Guts-2'!$D$26,I110,L110,O110,R110,U110,X110,AA110,AT110),"") -> 158 | AP110: 48 | AQ110: 158 | AR110: =INDEX('Import (ADP)'!$C$2:$C$999,MATCH(A110, 'Import (ADP)'!$B$2:$B$999,0)) ->  | AU110: =IF(VLOOKUP(A111,'Name-Sort'!$D$2:$E$948,2,FALSE)="",A111,"") -> Johan Camargo | AV110: =IFERROR(INDEX($AU$1:$AU$948,SMALL(IF($AU$1:$AU$948<>"",ROW($AU$1:$AU$948)),ROW(AU110))),"") -> Johan Camargo
A111: Johan Camargo | B111: camarjo01 | C111: SS | D111: LF,RF | E111: ATL | F111: 26 | G111: 450 | H111: 336 | I111: 750 | S111: 488.5 | T111: 336 | U111: 750 | V111: 626.09 | W111: 336 | X111: 750 | Y111: 521.53 | Z111: 336 | AA111: 750 | AF111: 505 | AH111: =IFERROR(INDEX('Guts-2'!$K$1:$K$30,MATCH(E111,'Guts-2'!$J$1:$J$30,0)),TRUE) -> TRUE | AI111: =IF(AH111=FALSE,"",IFERROR(CHOOSE('Guts-2'!$D$27,AB111,AC111,AD111,AE111,AF111,AG111),"")) ->  | AK111: =IF(AH111=FALSE,"",IFERROR(CHOOSE('Guts-2'!$D$26,G111,J111,M111,P111,S111,V111,Y111,AR111),"")) ->  | AL111: =IFERROR(IF(Settings!$L$5="Mixed (Standard)",AK111,RANK(AK111,$AK$2:$AK$948,1)),"") ->  | AM111: =IFERROR(IF(Settings!$L$5="Mixed (Standard)",(RANK(AK111,$AK$2:$AK$948,1)/('Guts-2'!$N$1+1))+1,(RANK(AL111,$AL$2:$AL$948,1)/('Guts-2'!$N$1+1))+1),"") ->  | AN111: =IFERROR(CHOOSE('Guts-2'!$D$26,H111,K111,N111,Q111,T111,W111,Z111,AS111),"") ->  | AO111: =IFERROR(CHOOSE('Guts-2'!$D$26,I111,L111,O111,R111,U111,X111,AA111,AT111),"") ->  | AR111: =INDEX('Import (ADP)'!$C$2:$C$999,MATCH(A111, 'Import (ADP)'!$B$2:$B$999,0)) ->  | AU111: =IF(VLOOKUP(A112,'Name-Sort'!$D$2:$E$948,2,FALSE)="",A112,"") -> Daz Cameron | AV111: =IFERROR(INDEX($AU$1:$AU$948,SMALL(IF($AU$1:$AU$948<>"",ROW($AU$1:$AU$948)),ROW(AU111))),"") -> Daz Cameron
A112: Daz Cameron | B112: camerda01 | C112: OF | D112: CF | E112: DET | F112: 23 | V112: 721.84 | W112: 301 | X112: 749 | Y112: 721.84 | Z112: 301 | AA112: 960.0472 | AH112: =IFERROR(INDEX('Guts-2'!$K$1:$K$30,MATCH(E112,'Guts-2'!$J$1:$J$30,0)),TRUE) -> TRUE | AI112: =IF(AH112=FALSE,"",IFERROR(CHOOSE('Guts-2'!$D$27,AB112,AC112,AD112,AE112,AF112,AG112),"")) ->  | AK112: =IF(AH112=FALSE,"",IFERROR(CHOOSE('Guts-2'!$D$26,G112,J112,M112,P112,S112,V112,Y112,AR112),"")) ->  | AL112: =IFERROR(IF(Settings!$L$5="Mixed (Standard)",AK112,RANK(AK112,$AK$2:$AK$948,1)),"") ->  | AM112: =IFERROR(IF(Settings!$L$5="Mixed (Standard)",(RANK(AK112,$AK$2:$AK$948,1)/('Guts-2'!$N$1+1))+1,(RANK(AL112,$AL$2:$AL$948,1)/('Guts-2'!$N$1+1))+1),"") ->  | AN112: =IFERROR(CHOOSE('Guts-2'!$D$26,H112,K112,N112,Q112,T112,W112,Z112,AS112),"") ->  | AO112: =IFERROR(CHOOSE('Guts-2'!$D$26,I112,L112,O112,R112,U112,X112,AA112,AT112),"") ->  | AR112: =INDEX('Import (ADP)'!$C$2:$C$999,MATCH(A112, 'Import (ADP)'!$B$2:$B$999,0)) ->  | AU112: =IF(VLOOKUP(A113,'Name-Sort'!$D$2:$E$948,2,FALSE)="",A113,"") -> Jeimer Candelario | AV112: =IFERROR(INDEX($AU$1:$AU$948,SMALL(IF($AU$1:$AU$948<>"",ROW($AU$1:$AU$948)),ROW(AU112))),"") -> Jeimer Candelario
A113: Jeimer Candelario | B113: candeje01 | C113: 3B | E113: DET | F113: 26 | V113: 583.74 | W113: 371 | X113: 622 | Y113: 583.74 | Z113: 371 | AA113: 776.3742 | AF113: 470 | AH113: =IFERROR(INDEX('Guts-2'!$K$1:$K$30,MATCH(E113,'Guts-2'!$J$1:$J$30,0)),TRUE) -> TRUE | AI113: =IF(AH113=FALSE,"",IFERROR(CHOOSE('Guts-2'!$D$27,AB113,AC113,AD113,AE113,AF113,AG113),"")) ->  | AK113: =IF(AH113=FALSE,"",IFERROR(CHOOSE('Guts-2'!$D$26,G113,J113,M113,P113,S113,V113,Y113,AR113),"")) ->  | AL113: =IFERROR(IF(Settings!$L$5="Mixed (Standard)",AK113,RANK(AK113,$AK$2:$AK$948,1)),"") ->  | AM113: =IFERROR(IF(Settings!$L$5="Mixed (Standard)",(RANK(AK113,$AK$2:$AK$948,1)/('Guts-2'!$N$1+1))+1,(RANK(AL113,$AL$2:$AL$948,1)/('Guts-2'!$N$1+1))+1),"") ->  | AN113: =IFERROR(CHOOSE('Guts-2'!$D$26,H113,K113,N113,Q113,T113,W113,Z113,AS113),"") ->  | AO113: =IFERROR(CHOOSE('Guts-2'!$D$26,I113,L113,O113,R113,U113,X113,AA113,AT113),"") ->  | AR113: =INDEX('Import (ADP)'!$C$2:$C$999,MATCH(A113, 'Import (ADP)'!$B$2:$B$999,0)) ->  | AU113: =IF(VLOOKUP(A114,'Name-Sort'!$D$2:$E$948,2,FALSE)="",A114,"") -> Mark Canha | AV113: =IFERROR(INDEX($AU$1:$AU$948,SMALL(IF($AU$1:$AU$948<>"",ROW($AU$1:$AU$948)),ROW(AU113))),"") -> Mark Canha
A114: Mark Canha | B114: canhama01 | C114: OF | D114: LF,CF,RF | E114: OAK | F114: 31 | G114: 220 | H114: 92 | I114: 353 | J114: 373 | K114: 92 | L114: 496.09 | M114: 223 | N114: 92 | O114: 346 | P114: 243 | Q114: 92 | R114: 353 | S114: 269.6 | T114: 92 | U114: 358.568 | V114: 266.8 | W114: 170 | X114: 353 | Y114: 265.9 | Z114: 92 | AA114: 353.647 | AB114: 287 | AC114: 263 | AD114: 272 | AE114: 227 | AF114: 229 | AH114: =IFERROR(INDEX('Guts-2'!$K$1:$K$30,MATCH(E114,'Guts-2'!$J$1:$J$30,0)),TRUE) -> TRUE | AI114: =IF(AH114=FALSE,"",IFERROR(CHOOSE('Guts-2'!$D$27,AB114,AC114,AD114,AE114,AF114,AG114),"")) -> 272 | AJ114: 272 | AK114: =IF(AH114=FALSE,"",IFERROR(CHOOSE('Guts-2'!$D$26,G114,J114,M114,P114,S114,V114,Y114,AR114),"")) -> 223 | AL114: =IFERROR(IF(Settings!$L$5="Mixed (Standard)",AK114,RANK(AK114,$AK$2:$AK$948,1)),"") -> 223 | AM114: =IFERROR(IF(Settings!$L$5="Mixed (Standard)",(RANK(AK114,$AK$2:$AK$948,1)/('Guts-2'!$N$1+1))+1,(RANK(AL114,$AL$2:$AL$948,1)/('Guts-2'!$N$1+1))+1),"") -> 19.07692308 | AN114: =IFERROR(CHOOSE('Guts-2'!$D$26,H114,K114,N114,Q114,T114,W114,Z114,AS114),"") -> 92 | AO114: =IFERROR(CHOOSE('Guts-2'!$D$26,I114,L114,O114,R114,U114,X114,AA114,AT114),"") -> 346 | AP114: 92 | AQ114: 346 | AR114: =INDEX('Import (ADP)'!$C$2:$C$999,MATCH(A114, 'Import (ADP)'!$B$2:$B$999,0)) ->  | AU114: =IF(VLOOKUP(A115,'Name-Sort'!$D$2:$E$948,2,FALSE)="",A115,"") -> Griffin Canning | AV114: =IFERROR(INDEX($AU$1:$AU$948,SMALL(IF($AU$1:$AU$948<>"",ROW($AU$1:$AU$948)),ROW(AU114))),"") -> Griffin Canning
A115: Griffin Canning | B115: cannigr01 | C115: SP | E115: LAA | F115: 23 | G115: 256 | H115: 156 | I115: 340.48 | J115: 210 | K115: 156 | L115: 304 | M115: 213.4 | N115: 181 | O115: 301 | S115: 253.5 | T115: 156 | U115: 337.155 | V115: 224.95 | W115: 156 | X115: 304 | Y115: 231.57 | Z115: 156 | AA115: 307.9881 | AB115: 262 | AC115: 187 | AF115: 197 | AH115: =IFERROR(INDEX('Guts-2'!$K$1:$K$30,MATCH(E115,'Guts-2'!$J$1:$J$30,0)),TRUE) -> TRUE | AI115: =IF(AH115=FALSE,"",IFERROR(CHOOSE('Guts-2'!$D$27,AB115,AC115,AD115,AE115,AF115,AG115),"")) ->  | AK115: =IF(AH115=FALSE,"",IFERROR(CHOOSE('Guts-2'!$D$26,G115,J115,M115,P115,S115,V115,Y115,AR115),"")) -> 213.4 | AL115: =IFERROR(IF(Settings!$L$5="Mixed (Standard)",AK115,RANK(AK115,$AK$2:$AK$948,1)),"") -> 213.4 | AM115: =IFERROR(IF(Settings!$L$5="Mixed (Standard)",(RANK(AK115,$AK$2:$AK$948,1)/('Guts-2'!$N$1+1))+1,(RANK(AL115,$AL$2:$AL$948,1)/('Guts-2'!$N$1+1))+1),"") -> 17.76923077 | AN115: =IFERROR(CHOOSE('Guts-2'!$D$26,H115,K115,N115,Q115,T115,W115,Z115,AS115),"") -> 181 | AO115: =IFERROR(CHOOSE('Guts-2'!$D$26,I115,L115,O115,R115,U115,X115,AA115,AT115),"") -> 301 | AP115: 181 | AQ115: 301 | AR115: =INDEX('Import (ADP)'!$C$2:$C$999,MATCH(A115, 'Import (ADP)'!$B$2:$B$999,0)) ->  | AU115: =IF(VLOOKUP(A116,'Name-Sort'!$D$2:$E$948,2,FALSE)="",A116,"") -> Robinson Cano | AV115: =IFERROR(INDEX($AU$1:$AU$948,SMALL(IF($AU$1:$AU$948<>"",ROW($AU$1:$AU$948)),ROW(AU115))),"") -> Robinson Cano
A116: Robinson Cano | B116: canoro01 | C116: 2B | E116: NYM | F116: 37 | G116: 370 | H116: 71 | I116: 492.1 | J116: 250 | K116: 71 | L116: 475 | M116: 187.25 | N116: 71 | O116: 334 | P116: 271 | Q116: 71 | R116: 475 | S116: 321 | T116: 71 | U116: 475 | V116: 375.87 | W116: 234 | X116: 475 | Y116: 295.8533333 | Z116: 71 | AA116: 475 | AC116: 315 | AE116: 230 | AF116: 297 | AH116: =IFERROR(INDEX('Guts-2'!$K$1:$K$30,MATCH(E116,'Guts-2'!$J$1:$J$30,0)),TRUE) -> TRUE | AI116: =IF(AH116=FALSE,"",IFERROR(CHOOSE('Guts-2'!$D$27,AB116,AC116,AD116,AE116,AF116,AG116),"")) ->  | AK116: =IF(AH116=FALSE,"",IFERROR(CHOOSE('Guts-2'!$D$26,G116,J116,M116,P116,S116,V116,Y116,AR116),"")) -> 187.25 | AL116: =IFERROR(IF(Settings!$L$5="Mixed (Standard)",AK116,RANK(AK116,$AK$2:$AK$948,1)),"") -> 187.25 | AM116: =IFERROR(IF(Settings!$L$5="Mixed (Standard)",(RANK(AK116,$AK$2:$AK$948,1)/('Guts-2'!$N$1+1))+1,(RANK(AL116,$AL$2:$AL$948,1)/('Guts-2'!$N$1+1))+1),"") -> 15.07692308 | AN116: =IFERROR(CHOOSE('Guts-2'!$D$26,H116,K116,N116,Q116,T116,W116,Z116,AS116),"") -> 71 | AO116: =IFERROR(CHOOSE('Guts-2'!$D$26,I116,L116,O116,R116,U116,X116,AA116,AT116),"") -> 334 | AP116: 71 | AQ116: 334 | AR116: =INDEX('Import (ADP)'!$C$2:$C$999,MATCH(A116, 'Import (ADP)'!$B$2:$B$999,0)) ->  | AU116: =IF(VLOOKUP(A117,'Name-Sort'!$D$2:$E$948,2,FALSE)="",A117,"") -> Victor Caratini | AV116: =IFERROR(INDEX($AU$1:$AU$948,SMALL(IF($AU$1:$AU$948<>"",ROW($AU$1:$AU$948)),ROW(AU116))),"") -> Victor Caratini
A117: Victor Caratini | B117: caratvi01 | C117: C | E117: CHC | F117: 26 | G117: 531 | H117: 269 | I117: 706.23 | P117: 382 | Q117: 269 | R117: 508.06 | S117: 427 | T117: 269 | U117: 567.91 | V117: 420.9 | W117: 269 | X117: 451 | Y117: 440.225 | Z117: 269 | AA117: 585.49925 | AF117: 598 | AH117: =IFERROR(INDEX('Guts-2'!$K$1:$K$30,MATCH(E117,'Guts-2'!$J$1:$J$30,0)),TRUE) -> TRUE | AI117: =IF(AH117=FALSE,"",IFERROR(CHOOSE('Guts-2'!$D$27,AB117,AC117,AD117,AE117,AF117,AG117),"")) ->  | AK117: =IF(AH117=FALSE,"",IFERROR(CHOOSE('Guts-2'!$D$26,G117,J117,M117,P117,S117,V117,Y117,AR117),"")) ->  | AL117: =IFERROR(IF(Settings!$L$5="Mixed (Standard)",AK117,RANK(AK117,$AK$2:$AK$948,1)),"") ->  | AM117: =IFERROR(IF(Settings!$L$5="Mixed (Standard)",(RANK(AK117,$AK$2:$AK$948,1)/('Guts-2'!$N$1+1))+1,(RANK(AL117,$AL$2:$AL$948,1)/('Guts-2'!$N$1+1))+1),"") ->  | AN117: =IFERROR(CHOOSE('Guts-2'!$D$26,H117,K117,N117,Q117,T117,W117,Z117,AS117),"") ->  | AO117: =IFERROR(CHOOSE('Guts-2'!$D$26,I117,L117,O117,R117,U117,X117,AA117,AT117),"") ->  | AR117: =INDEX('Import (ADP)'!$C$2:$C$999,MATCH(A117, 'Import (ADP)'!$B$2:$B$999,0)) ->  | AU117: =IF(VLOOKUP(A118,'Name-Sort'!$D$2:$E$948,2,FALSE)="",A118,"") -> Dylan Carlson | AV117: =IFERROR(INDEX($AU$1:$AU$948,SMALL(IF($AU$1:$AU$948<>"",ROW($AU$1:$AU$948)),ROW(AU117))),"") -> Dylan Carlson
A118: Dylan Carlson | B118: carlsdy01 | C118: OF | D118: CF,RF | E118: STL | F118: 21 | G118: 279 | H118: 109 | I118: 456 | J118: 374 | K118: 109 | L118: 497.42 | M118: 249.4 | N118: 109 | O118: 456 | P118: 313 | Q118: 109 | R118: 456 | S118: 310.8 | T118: 109 | U118: 456 | V118: 321.41 | W118: 204 | X118: 430 | Y118: 307.935 | Z118: 109 | AA118: 456 | AC118: 309 | AF118: 374 | AH118: =IFERROR(INDEX('Guts-2'!$K$1:$K$30,MATCH(E118,'Guts-2'!$J$1:$J$30,0)),TRUE) -> TRUE | AI118: =IF(AH118=FALSE,"",IFERROR(CHOOSE('Guts-2'!$D$27,AB118,AC118,AD118,AE118,AF118,AG118),"")) ->  | AK118: =IF(AH118=FALSE,"",IFERROR(CHOOSE('Guts-2'!$D$26,G118,J118,M118,P118,S118,V118,Y118,AR118),"")) -> 249.4 | AL118: =IFERROR(IF(Settings!$L$5="Mixed (Standard)",AK118,RANK(AK118,$AK$2:$AK$948,1)),"") -> 249.4 | AM118: =IFERROR(IF(Settings!$L$5="Mixed (Standard)",(RANK(AK118,$AK$2:$AK$948,1)/('Guts-2'!$N$1+1))+1,(RANK(AL118,$AL$2:$AL$948,1)/('Guts-2'!$N$1+1))+1),"") -> 21.84615385 | AN118: =IFERROR(CHOOSE('Guts-2'!$D$26,H118,K118,N118,Q118,T118,W118,Z118,AS118),"") -> 109 | AO118: =IFERROR(CHOOSE('Guts-2'!$D$26,I118,L118,O118,R118,U118,X118,AA118,AT118),"") -> 456 | AP118: 109 | AQ118: 456 | AR118: =INDEX('Import (ADP)'!$C$2:$C$999,MATCH(A118, 'Import (ADP)'!$B$2:$B$999,0)) ->  | AU118: =IF(VLOOKUP(A119,'Name-Sort'!$D$2:$E$948,2,FALSE)="",A119,"") -> Matt Carpenter | AV118: =IFERROR(INDEX($AU$1:$AU$948,SMALL(IF($AU$1:$AU$948<>"",ROW($AU$1:$AU$948)),ROW(AU118))),"") -> Matt Carpenter
A119: Matt Carpenter | B119: carpema01 | C119: 3B | E119: STL | F119: 34 | G119: 339 | H119: 203 | I119: 450.87 | J119: 302 | K119: 203 | L119: 428 | M119: 329 | N119: 203 | O119: 428 | P119: 210 | Q119: 157.5 | R119: 428 | S119: 299.6 | T119: 203 | U119: 428 | V119: 375.34 | W119: 246 | X119: 423 | Y119: 309.1566667 | Z119: 203 | AA119: 428 | AC119: 350 | AD119: 276 | AE119: 206 | AF119: 306 | AH119: =IFERROR(INDEX('Guts-2'!$K$1:$K$30,MATCH(E119,'Guts-2'!$J$1:$J$30,0)),TRUE) -> TRUE | AI119: =IF(AH119=FALSE,"",IFERROR(CHOOSE('Guts-2'!$D$27,AB119,AC119,AD119,AE119,AF119,AG119),"")) -> 276 | AJ119: 276 | AK119: =IF(AH119=FALSE,"",IFERROR(CHOOSE('Guts-2'!$D$26,G119,J119,M119,P119,S119,V119,Y119,AR119),"")) -> 329 | AL119: =IFERROR(IF(Settings!$L$5="Mixed (Standard)",AK119,RANK(AK119,$AK$2:$AK$948,1)),"") -> 329 | AM119: =IFERROR(IF(Settings!$L$5="Mixed (Standard)",(RANK(AK119,$AK$2:$AK$948,1)/('Guts-2'!$N$1+1))+1,(RANK(AL119,$AL$2:$AL$948,1)/('Guts-2'!$N$1+1))+1),"") -> 28.38461538 | AN119: =IFERROR(CHOOSE('Guts-2'!$D$26,H119,K119,N119,Q119,T119,W119,Z119,AS119),"") -> 203 | AO119: =IFERROR(CHOOSE('Guts-2'!$D$26,I119,L119,O119,R119,U119,X119,AA119,AT119),"") -> 428 | AP119: 203 | AQ119: 428 | AR119: =INDEX('Import (ADP)'!$C$2:$C$999,MATCH(A119, 'Import (ADP)'!$B$2:$B$999,0)) ->  | AU119: =IF(VLOOKUP(A120,'Name-Sort'!$D$2:$E$948,2,FALSE)="",A120,"") -> Carlos Carrasco | AV119: =IFERROR(INDEX($AU$1:$AU$948,SMALL(IF($AU$1:$AU$948<>"",ROW($AU$1:$AU$948)),ROW(AU119))),"") -> Carlos Carrasco
A120: Carlos Carrasco | B120: carraca01 | C120: SP | E120: CLE | F120: 33 | G120: 118 | H120: 63 | I120: 162 | J120: 115 | K120: 63 | L120: 162 | M120: 101.5 | N120: 63 | O120: 131 | P120: 118 | Q120: 63 | R120: 162 | S120: 115.6 | T120: 63 | U120: 162 | V120: 107.5 | W120: 77 | X120: 162 | Y120: 112.6 | Z120: 63 | AA120: 162 | AB120: 143 | AC120: 107 | AD120: 130 | AE120: 137 | AF120: 105 | AH120: =IFERROR(INDEX('Guts-2'!$K$1:$K$30,MATCH(E120,'Guts-2'!$J$1:$J$30,0)),TRUE) -> TRUE | AI120: =IF(AH120=FALSE,"",IFERROR(CHOOSE('Guts-2'!$D$27,AB120,AC120,AD120,AE120,AF120,AG120),"")) -> 130 | AJ120: 130 | AK120: =IF(AH120=FALSE,"",IFERROR(CHOOSE('Guts-2'!$D$26,G120,J120,M120,P120,S120,V120,Y120,AR120),"")) -> 101.5 | AL120: =IFERROR(IF(Settings!$L$5="Mixed (Standard)",AK120,RANK(AK120,$AK$2:$AK$948,1)),"") -> 101.5 | AM120: =IFERROR(IF(Settings!$L$5="Mixed (Standard)",(RANK(AK120,$AK$2:$AK$948,1)/('Guts-2'!$N$1+1))+1,(RANK(AL120,$AL$2:$AL$948,1)/('Guts-2'!$N$1+1))+1),"") -> 7.923076923 | AN120: =IFERROR(CHOOSE('Guts-2'!$D$26,H120,K120,N120,Q120,T120,W120,Z120,AS120),"") -> 63 | AO120: =IFERROR(CHOOSE('Guts-2'!$D$26,I120,L120,O120,R120,U120,X120,AA120,AT120),"") -> 131 | AP120: 63 | AQ120: 131 | AR120: =INDEX('Import (ADP)'!$C$2:$C$999,MATCH(A120, 'Import (ADP)'!$B$2:$B$999,0)) ->  | AU120: =IF(VLOOKUP(A121,'Name-Sort'!$D$2:$E$948,2,FALSE)="",A121,"") -> Curt Casali | AV120: =IFERROR(INDEX($AU$1:$AU$948,SMALL(IF($AU$1:$AU$948<>"",ROW($AU$1:$AU$948)),ROW(AU120))),"") -> Curt Casali
A121: Curt Casali | B121: casalcu01 | C121: C | E121: CIN | F121: 31 | V121: 678.37 | W121: 418 | X121: 718 | Y121: 678.37 | Z121: 418 | AA121: 902.2321 | AH121: =IFERROR(INDEX('Guts-2'!$K$1:$K$30,MATCH(E121,'Guts-2'!$J$1:$J$30,0)),TRUE) -> TRUE | AI121: =IF(AH121=FALSE,"",IFERROR(CHOOSE('Guts-2'!$D$27,AB121,AC121,AD121,AE121,AF121,AG121),"")) ->  | AK121: =IF(AH121=FALSE,"",IFERROR(CHOOSE('Guts-2'!$D$26,G121,J121,M121,P121,S121,V121,Y121,AR121),"")) ->  | AL121: =IFERROR(IF(Settings!$L$5="Mixed (Standard)",AK121,RANK(AK121,$AK$2:$AK$948,1)),"") ->  | AM121: =IFERROR(IF(Settings!$L$5="Mixed (Standard)",(RANK(AK121,$AK$2:$AK$948,1)/('Guts-2'!$N$1+1))+1,(RANK(AL121,$AL$2:$AL$948,1)/('Guts-2'!$N$1+1))+1),"") ->  | AN121: =IFERROR(CHOOSE('Guts-2'!$D$26,H121,K121,N121,Q121,T121,W121,Z121,AS121),"") ->  | AO121: =IFERROR(CHOOSE('Guts-2'!$D$26,I121,L121,O121,R121,U121,X121,AA121,AT121),"") ->  | AR121: =INDEX('Import (ADP)'!$C$2:$C$999,MATCH(A121, 'Import (ADP)'!$B$2:$B$999,0)) ->  | AU121: =IF(VLOOKUP(A122,'Name-Sort'!$D$2:$E$948,2,FALSE)="",A122,"") -> Nick Castellanos | AV121: =IFERROR(INDEX($AU$1:$AU$948,SMALL(IF($AU$1:$AU$948<>"",ROW($AU$1:$AU$948)),ROW(AU121))),"") -> Nick Castellanos
A122: Nick Castellanos | B122: casteni01 | C122: OF | D122: LF,RF | E122: CIN | F122: 28 | G122: 101 | H122: 27 | I122: 152 | J122: 94 | K122: 27 | L122: 152 | M122: 81.75 | N122: 27 | O122: 129 | P122: 73 | Q122: 27 | R122: 152 | S122: 96.6 | T122: 27 | U122: 152 | V122: 108.01 | W122: 61 | X122: 152 | Y122: 92.39333333 | Z122: 27 | AA122: 152 | AB122: 120 | AC122: 86 | AD122: 62 | AE122: 84 | AF122: 91 | AH122: =IFERROR(INDEX('Guts-2'!$K$1:$K$30,MATCH(E122,'Guts-2'!$J$1:$J$30,0)),TRUE) -> TRUE | AI122: =IF(AH122=FALSE,"",IFERROR(CHOOSE('Guts-2'!$D$27,AB122,AC122,AD122,AE122,AF122,AG122),"")) -> 62 | AJ122: 62 | AK122: =IF(AH122=FALSE,"",IFERROR(CHOOSE('Guts-2'!$D$26,G122,J122,M122,P122,S122,V122,Y122,AR122),"")) -> 81.75 | AL122: =IFERROR(IF(Settings!$L$5="Mixed (Standard)",AK122,RANK(AK122,$AK$2:$AK$948,1)),"") -> 81.75 | AM122: =IFERROR(IF(Settings!$L$5="Mixed (Standard)",(RANK(AK122,$AK$2:$AK$948,1)/('Guts-2'!$N$1+1))+1,(RANK(AL122,$AL$2:$AL$948,1)/('Guts-2'!$N$1+1))+1),"") -> 6.846153846 | AN122: =IFERROR(CHOOSE('Guts-2'!$D$26,H122,K122,N122,Q122,T122,W122,Z122,AS122),"") -> 27 | AO122: =IFERROR(CHOOSE('Guts-2'!$D$26,I122,L122,O122,R122,U122,X122,AA122,AT122),"") -> 129 | AP122: 27 | AQ122: 129 | AR122: =INDEX('Import (ADP)'!$C$2:$C$999,MATCH(A122, 'Import (ADP)'!$B$2:$B$999,0)) ->  | AU122: =IF(VLOOKUP(A123,'Name-Sort'!$D$2:$E$948,2,FALSE)="",A123,"") -> Diego Castillo | AV122: =IFERROR(INDEX($AU$1:$AU$948,SMALL(IF($AU$1:$AU$948<>"",ROW($AU$1:$AU$948)),ROW(AU122))),"") -> Diego Castillo
A123: Diego Castillo | B123: castidi01 | C123: RP | E123: TB | F123: 26 | G123: 369 | H123: 237 | I123: 596 | J123: 357 | K123: 237 | L123: 596 | M123: 460 | N123: 324 | O123: 596 | P123: 376 | Q123: 237 | R123: 596 | S123: 375.3 | T123: 237 | U123: 596 | V123: 503.19 | W123: 237 | X123: 538 | Y123: 406.7483333 | Z123: 237 | AA123: 596 | AB123: 300 | AF123: 346 | AH123: =IFERROR(INDEX('Guts-2'!$K$1:$K$30,MATCH(E123,'Guts-2'!$J$1:$J$30,0)),TRUE) -> TRUE | AI123: =IF(AH123=FALSE,"",IFERROR(CHOOSE('Guts-2'!$D$27,AB123,AC123,AD123,AE123,AF123,AG123),"")) ->  | AK123: =IF(AH123=FALSE,"",IFERROR(CHOOSE('Guts-2'!$D$26,G123,J123,M123,P123,S123,V123,Y123,AR123),"")) -> 460 | AL123: =IFERROR(IF(Settings!$L$5="Mixed (Standard)",AK123,RANK(AK123,$AK$2:$AK$948,1)),"") -> 460 | AM123: =IFERROR(IF(Settings!$L$5="Mixed (Standard)",(RANK(AK123,$AK$2:$AK$948,1)/('Guts-2'!$N$1+1))+1,(RANK(AL123,$AL$2:$AL$948,1)/('Guts-2'!$N$1+1))+1),"") -> 35.69230769 | AN123: =IFERROR(CHOOSE('Guts-2'!$D$26,H123,K123,N123,Q123,T123,W123,Z123,AS123),"") -> 324 | AO123: =IFERROR(CHOOSE('Guts-2'!$D$26,I123,L123,O123,R123,U123,X123,AA123,AT123),"") -> 596 | AP123: 324 | AQ123: 596 | AR123: =INDEX('Import (ADP)'!$C$2:$C$999,MATCH(A123, 'Import (ADP)'!$B$2:$B$999,0)) ->  | AU123: =IF(VLOOKUP(A124,'Name-Sort'!$D$2:$E$948,2,FALSE)="",A124,"") -> Luis Castillo | AV123: =IFERROR(INDEX($AU$1:$AU$948,SMALL(IF($AU$1:$AU$948<>"",ROW($AU$1:$AU$948)),ROW(AU123))),"") -> Luis Castillo
A124: Luis Castillo | B124: castilu02 | C124: SP | E124: CIN | F124: 27 | G124: 35 | H124: 26.25 | I124: 93 | J124: 47 | K124: 27 | L124: 93 | M124: 58 | N124: 39 | O124: 93 | P124: 58 | Q124: 27 | R124: 93 | S124: 44.2 | T124: 27 | U124: 93 | V124: 45.07 | W124: 27 | X124: 71 | Y124: 47.87833333 | Z124: 27 | AA124: 93 | AB124: 102 | AC124: 52 | AD124: 117 | AE124: 50 | AF124: 46 | AH124: =IFERROR(INDEX('Guts-2'!$K$1:$K$30,MATCH(E124,'Guts-2'!$J$1:$J$30,0)),TRUE) -> TRUE | AI124: =IF(AH124=FALSE,"",IFERROR(CHOOSE('Guts-2'!$D$27,AB124,AC124,AD124,AE124,AF124,AG124),"")) -> 117 | AJ124: 117 | AK124: =IF(AH124=FALSE,"",IFERROR(CHOOSE('Guts-2'!$D$26,G124,J124,M124,P124,S124,V124,Y124,AR124),"")) -> 58 | AL124: =IFERROR(IF(Settings!$L$5="Mixed (Standard)",AK124,RANK(AK124,$AK$2:$AK$948,1)),"") -> 58 | AM124: =IFERROR(IF(Settings!$L$5="Mixed (Standard)",(RANK(AK124,$AK$2:$AK$948,1)/('Guts-2'!$N$1+1))+1,(RANK(AL124,$AL$2:$AL$948,1)/('Guts-2'!$N$1+1))+1),"") -> 5.230769231 | AN124: =IFERROR(CHOOSE('Guts-2'!$D$26,H124,K124,N124,Q124,T124,W124,Z124,AS124),"") -> 39 | AO124: =IFERROR(CHOOSE('Guts-2'!$D$26,I124,L124,O124,R124,U124,X124,AA124,AT124),"") -> 93 | AP124: 39 | AQ124: 93 | AR124: =INDEX('Import (ADP)'!$C$2:$C$999,MATCH(A124, 'Import (ADP)'!$B$2:$B$999,0)) ->  | AU124: =IF(VLOOKUP(A125,'Name-Sort'!$D$2:$E$948,2,FALSE)="",A125,"") -> Welington Castillo | AV124: =IFERROR(INDEX($AU$1:$AU$948,SMALL(IF($AU$1:$AU$948<>"",ROW($AU$1:$AU$948)),ROW(AU124))),"") -> Welington Castillo
A125: Welington Castillo | B125: castiwe01 | C125: C | E125: WAS | F125: 32 | S125: 407 | T125: 276 | U125: 730 | V125: 610.92 | W125: 276 | X125: 730 | Y125: 508.96 | Z125: 276 | AA125: 730 | AH125: =IFERROR(INDEX('Guts-2'!$K$1:$K$30,MATCH(E125,'Guts-2'!$J$1:$J$30,0)),TRUE) -> TRUE | AI125: =IF(AH125=FALSE,"",IFERROR(CHOOSE('Guts-2'!$D$27,AB125,AC125,AD125,AE125,AF125,AG125),"")) ->  | AK125: =IF(AH125=FALSE,"",IFERROR(CHOOSE('Guts-2'!$D$26,G125,J125,M125,P125,S125,V125,Y125,AR125),"")) ->  | AL125: =IFERROR(IF(Settings!$L$5="Mixed (Standard)",AK125,RANK(AK125,$AK$2:$AK$948,1)),"") ->  | AM125: =IFERROR(IF(Settings!$L$5="Mixed (Standard)",(RANK(AK125,$AK$2:$AK$948,1)/('Guts-2'!$N$1+1))+1,(RANK(AL125,$AL$2:$AL$948,1)/('Guts-2'!$N$1+1))+1),"") ->  | AN125: =IFERROR(CHOOSE('Guts-2'!$D$26,H125,K125,N125,Q125,T125,W125,Z125,AS125),"") ->  | AO125: =IFERROR(CHOOSE('Guts-2'!$D$26,I125,L125,O125,R125,U125,X125,AA125,AT125),"") ->  | AR125: =INDEX('Import (ADP)'!$C$2:$C$999,MATCH(A125, 'Import (ADP)'!$B$2:$B$999,0)) ->  | AU125: =IF(VLOOKUP(A126,'Name-Sort'!$D$2:$E$948,2,FALSE)="",A126,"") -> Harold Castro | AV125: =IFERROR(INDEX($AU$1:$AU$948,SMALL(IF($AU$1:$AU$948<>"",ROW($AU$1:$AU$948)),ROW(AU125))),"") -> Harold Castro
... 143 more rows

Sheet Guts-1 (hidden)
A1: =Settings!B6 -> AB | B1: =IF(Settings!C6=0,"",Settings!C6) ->  | C1: 3 | D1: =Settings!B24 -> W | E1: =IF(Settings!C24=0,"",Settings!C24) -> 5 | F1: 2 | I1: Stats or Points or Hide? | K1: =IF('Your Points Draft'!R6=O5,1,IF('Your Points Draft'!R6=O6,2,IF('Your Points Draft'!R6=O7,3,""))) -> 1 | L1: =MAX(COUNTIF(K2:K14,">"""),COUNTIF(K20:K34,">""")) -> 13 | N1: List | O1: List | P1: Pos | Q1: Sort by ADP | R1: Show All Positions | S1: =IFERROR(INDEX($R$1:$R$24,SMALL(IF($R$1:$R$24<>"",ROW($R$1:$R$24)),ROW(B1))),"") -> Show All Positions
A2: =Settings!B8 -> Single | B2: =IF(Settings!C8=0,"",Settings!C8) -> 1 | C2: 6 | D2: =Settings!B25 -> L | E2: =IF(Settings!C25=0,"",Settings!C25) -> -5 | F2: 3 | I2: H1 | J2: =IF(Settings!C5=0,"",Settings!B5) ->  | K2: =IFERROR(INDEX($J$1:$J$18,SMALL(IF($J$1:$J$18<>"",ROW($J$1:$J$18)),ROW(A1))),"") -> Single | L2: =IF(K$1=2,1,IF(OR(K2="AVG",K2="OBP",K2="SLG",K2="OPS"),2,IF(K2="","",1))) -> 1 | M2: =IF(OR(K2="AVG",K2="OBP",K2="SLG",K2="OPS"),2,IF(K2="","",1)) -> 1 | N2: =IFERROR(INDEX($K$1:$K$34,SMALL(IF($K$1:$K$34<>"",ROW($K$1:$K$34)),ROW(B2))),"") -> Single | O2: Stats | P2: =IF('Guts-2'!$N$2>=ROW(P1),"C","") -> C | Q2: Sort by Projected Points | R2: =IF('Guts-2'!$N2>0,"Only Show: "&'Guts-2'!M2,"") -> Only Show: C | S2: =IFERROR(INDEX($R$1:$R$24,SMALL(IF($R$1:$R$24<>"",ROW($R$1:$R$24)),ROW(B2))),"") -> Only Show: C
A3: =Settings!B9 -> Double | B3: =IF(Settings!C9=0,"",Settings!C9) -> 2 | C3: 7 | D3: =Settings!B26 -> IP | E3: =IF(Settings!C26=0,"",Settings!C26) -> 1.5 | F3: 4 | I3: H2 | J3: =IF(Settings!C6=0,"",Settings!B6) ->  | K3: =IFERROR(INDEX($J$1:$J$18,SMALL(IF($J$1:$J$18<>"",ROW($J$1:$J$18)),ROW(A2))),"") -> Double | L3: =IF(K$1=2,1,IF(OR(K3="AVG",K3="OBP",K3="SLG",K3="OPS"),2,IF(K3="","",1))) -> 1 | M3: =IF(OR(K3="AVG",K3="OBP",K3="SLG",K3="OPS"),2,IF(K3="","",1)) -> 1 | N3: =IFERROR(INDEX($K$1:$K$34,SMALL(IF($K$1:$K$34<>"",ROW($K$1:$K$34)),ROW(B3))),"") -> Double | O3: Ranks | P3: =IF('Guts-2'!$N$2>=ROW(P2),"C","") ->  | Q3: Sort by Expert Ranking | R3: =IF('Guts-2'!$N3>0,"Only Show: "&'Guts-2'!M3,"") -> Only Show: 1B | S3: =IFERROR(INDEX($R$1:$R$24,SMALL(IF($R$1:$R$24<>"",ROW($R$1:$R$24)),ROW(B3))),"") -> Only Show: 1B
A4: =Settings!B10 -> Triple | B4: =IF(Settings!C10=0,"",Settings!C10) -> 3 | C4: 8 | D4: =Settings!B27 -> Hit Allowed | E4: =IF(Settings!C27=0,"",Settings!C27) -> -0.5 | F4: 5 | I4: H3 | J4: =IF(Settings!C7=0,"",Settings!B7) ->  | K4: =IFERROR(INDEX($J$1:$J$18,SMALL(IF($J$1:$J$18<>"",ROW($J$1:$J$18)),ROW(A3))),"") -> Triple | L4: 1 | M4: 1 | N4: =IFERROR(INDEX($K$1:$K$34,SMALL(IF($K$1:$K$34<>"",ROW($K$1:$K$34)),ROW(B4))),"") -> Triple | O4: List | P4: =IF('Guts-2'!$N$2>=ROW(P3),"C","") ->  | Q4: Sort by Points Above Replacement | R4: =IF('Guts-2'!$N4>0,"Only Show: "&'Guts-2'!M4,"") -> Only Show: 2B | S4: =IFERROR(INDEX($R$1:$R$24,SMALL(IF($R$1:$R$24<>"",ROW($R$1:$R$24)),ROW(B4))),"") -> Only Show: 2B
A5: =Settings!B11 -> HR | B5: =IF(Settings!C11=0,"",Settings!C11) -> 5 | C5: 9 | D5: =Settings!B28 -> BB | E5: =IF(Settings!C28=0,"",Settings!C28) -> -1 | F5: 6 | I5: H4 | J5: =IF(Settings!C8=0,"",Settings!B8) -> Single | K5: =IFERROR(INDEX($J$1:$J$18,SMALL(IF($J$1:$J$18<>"",ROW($J$1:$J$18)),ROW(A4))),"") -> HR | L5: 1 | M5: 1 | N5: =IFERROR(INDEX($K$1:$K$34,SMALL(IF($K$1:$K$34<>"",ROW($K$1:$K$34)),ROW(B5))),"") -> HR | O5: Show Basic Stats | P5: =IF('Guts-2'!$N$2>=ROW(P4),"C","") ->  | Q5: Sort by Points Per IP | R5: =IF('Guts-2'!$N5>0,"Only Show: "&'Guts-2'!M5,"") -> Only Show: 3B | S5: =IFERROR(INDEX($R$1:$R$24,SMALL(IF($R$1:$R$24<>"",ROW($R$1:$R$24)),ROW(B5))),"") -> Only Show: 3B
A6: =Settings!B12 -> BB | B6: =IF(Settings!C12=0,"",Settings!C12) -> 1 | C6: 13 | D6: =Settings!B29 -> K | E6: =IF(Settings!C29=0,"",Settings!C29) -> 1 | F6: 7 | I6: H5 | J6: =IF(Settings!C9=0,"",Settings!B9) -> Double | K6: =IFERROR(INDEX($J$1:$J$18,SMALL(IF($J$1:$J$18<>"",ROW($J$1:$J$18)),ROW(A5))),"") -> BB | L6: 1 | M6: 1 | N6: =IFERROR(INDEX($K$1:$K$34,SMALL(IF($K$1:$K$34<>"",ROW($K$1:$K$34)),ROW(B6))),"") -> BB | O6: Show Point Totals | P6: =IF('Guts-2'!$N$3>=ROW(P1),"1B","") -> 1B | Q6: Sort by Points Per PA | R6: =IF('Guts-2'!$N6>0,"Only Show: "&'Guts-2'!M6,"") -> Only Show: SS | S6: =IFERROR(INDEX($R$1:$R$24,SMALL(IF($R$1:$R$24<>"",ROW($R$1:$R$24)),ROW(B6))),"") -> Only Show: SS
A7: =Settings!B13 -> SB | B7: =IF(Settings!C13=0,"",Settings!C13) -> 2 | C7: 11 | D7: =Settings!B30 -> ER | E7: =IF(Settings!C30=0,"",Settings!C30) -> -1 | F7: 8 | I7: H6 | J7: =IF(Settings!C10=0,"",Settings!B10) -> Triple | K7: =IFERROR(INDEX($J$1:$J$18,SMALL(IF($J$1:$J$18<>"",ROW($J$1:$J$18)),ROW(A6))),"") -> SB | L7: 1 | M7: 1 | N7: =IFERROR(INDEX($K$1:$K$34,SMALL(IF($K$1:$K$34<>"",ROW($K$1:$K$34)),ROW(B7))),"") -> SB | O7: Show Neither | P7: =IF('Guts-2'!$N$3>=ROW(P2),"1B","") ->  | R7: =IF('Guts-2'!$N7>0,"Only Show: "&'Guts-2'!M7,"") ->  | S7: =IFERROR(INDEX($R$1:$R$24,SMALL(IF($R$1:$R$24<>"",ROW($R$1:$R$24)),ROW(B7))),"") -> Only Show: OF
A8: =Settings!B14 -> CS | B8: =IF(Settings!C14=0,"",Settings!C14) -> -1 | C8: 12 | D8: SV | E8: =IF(Settings!C31=0,"",Settings!C31) -> 10 | F8: 9 | I8: H7 | J8: =IF(Settings!C11=0,"",Settings!B11) -> HR | K8: =IFERROR(INDEX($J$1:$J$18,SMALL(IF($J$1:$J$18<>"",ROW($J$1:$J$18)),ROW(A7))),"") -> CS | L8: 1 | M8: 1 | N8: =IFERROR(INDEX($K$1:$K$34,SMALL(IF($K$1:$K$34<>"",ROW($K$1:$K$34)),ROW(B8))),"") -> CS | O8: List | P8: =IF('Guts-2'!$N$3>=ROW(P3),"1B","") ->  | R8: =IF('Guts-2'!$N8>0,"Only Show: "&'Guts-2'!M8,"") ->  | S8: =IFERROR(INDEX($R$1:$R$24,SMALL(IF($R$1:$R$24<>"",ROW($R$1:$R$24)),ROW(B8))),"") -> Only Show: DH
A9: =Settings!B15 -> K | B9: =IF(Settings!C15=0,"",Settings!C15) -> -1 | C9: 14 | D9: =Settings!B32 -> QS | E9: =IF(Settings!C32=0,"",Settings!C32) -> 10 | F9: 10 | I9: H8 | J9: =IF(Settings!C12=0,"",Settings!B12) -> BB | K9: =IFERROR(INDEX($J$1:$J$18,SMALL(IF($J$1:$J$18<>"",ROW($J$1:$J$18)),ROW(A8))),"") -> K | L9: 1 | M9: 1 | N9: =IFERROR(INDEX($K$1:$K$34,SMALL(IF($K$1:$K$34<>"",ROW($K$1:$K$34)),ROW(B9))),"") -> K | O9: Mixed (Standard) | P9: =IF('Guts-2'!$N$4>=ROW(P1),"2B","") -> 2B | R9: =IF('Guts-2'!$N9>0,"Only Show: "&'Guts-2'!M9,"") -> Only Show: OF | S9: =IFERROR(INDEX($R$1:$R$24,SMALL(IF($R$1:$R$24<>"",ROW($R$1:$R$24)),ROW(B9))),"") -> Only Show: SP
A10: =Settings!B16 -> R | B10: =IF(Settings!C16=0,"",Settings!C16) -> 1 | C10: 4 | D10: =Settings!B33 -> CG | E10: =IF(Settings!C33=0,"",Settings!C33) -> 10 | F10: 14 | I10: H9 | J10: =IF(Settings!C13=0,"",Settings!B13) -> SB | K10: =IFERROR(INDEX($J$1:$J$18,SMALL(IF($J$1:$J$18<>"",ROW($J$1:$J$18)),ROW(A9))),"") -> R | L10: 1 | M10: 1 | N10: =IFERROR(INDEX($K$1:$K$34,SMALL(IF($K$1:$K$34<>"",ROW($K$1:$K$34)),ROW(B10))),"") -> R | O10: AL-Only | P10: =IF('Guts-2'!$N$4>=ROW(P2),"2B","") ->  | R10: =IF('Guts-2'!$N10>0,"Only Show: "&'Guts-2'!M10,"") -> Only Show: DH | S10: =IFERROR(INDEX($R$1:$R$24,SMALL(IF($R$1:$R$24<>"",ROW($R$1:$R$24)),ROW(B10))),"") -> Only Show: RP
A11: =Settings!B17 -> RBI | B11: =IF(Settings!C17=0,"",Settings!C17) -> 1 | C11: 10 | D11: =Settings!B34 -> Shutout | E11: =IF(Settings!C34=0,"",Settings!C34) -> 10 | F11: 15 | I11: H10 | J11: =IF(Settings!C14=0,"",Settings!B14) -> CS | K11: =IFERROR(INDEX($J$1:$J$18,SMALL(IF($J$1:$J$18<>"",ROW($J$1:$J$18)),ROW(A10))),"") -> RBI | L11: 1 | M11: 1 | N11: =IFERROR(INDEX($K$1:$K$34,SMALL(IF($K$1:$K$34<>"",ROW($K$1:$K$34)),ROW(B11))),"") -> RBI | O11: NL-Only | P11: =IF('Guts-2'!$N$4>=ROW(P3),"2B","") ->  | R11: Only Show: SP | S11: =IFERROR(INDEX($R$1:$R$24,SMALL(IF($R$1:$R$24<>"",ROW($R$1:$R$24)),ROW(B11))),"") -> Only Show: P
A12: =Settings!B18 -> Errors | B12: =IF(Settings!C18=0,"",Settings!C18) -> -1 | C12: 15 | D12: =Settings!B35 -> Holds | E12: =IF(Settings!C35=0,"",Settings!C35) ->  | F12: 16 | I12: H11 | J12: =IF(Settings!C15=0,"",Settings!B15) -> K | K12: =IFERROR(INDEX($J$1:$J$18,SMALL(IF($J$1:$J$18<>"",ROW($J$1:$J$18)),ROW(A11))),"") -> Errors | L12: 1 | M12: 1 | N12: =IFERROR(INDEX($K$1:$K$34,SMALL(IF($K$1:$K$34<>"",ROW($K$1:$K$34)),ROW(B12))),"") -> Errors | O12: Specific Teams Only | P12: =IF('Guts-2'!$N$5>=ROW(P1),"3B","") -> 3B | R12: Only Show: RP | S12: =IFERROR(INDEX($R$1:$R$24,SMALL(IF($R$1:$R$24<>"",ROW($R$1:$R$24)),ROW(B12))),"") -> 
A13: =Settings!B19 -> GIDP | B13: =IF(Settings!C19=0,"",Settings!C19) -> -1 | C13: 16 | D13: =Settings!B36 -> Game Started | E13: =IF(Settings!C36=0,"",Settings!C36) ->  | F13: 17 | I13: H12 | J13: =IF(Settings!C16=0,"",Settings!B16) -> R | K13: =IFERROR(INDEX($J$1:$J$18,SMALL(IF($J$1:$J$18<>"",ROW($J$1:$J$18)),ROW(A12))),"") -> GIDP | L13: 1 | M13: 1 | N13: =IFERROR(INDEX($K$1:$K$34,SMALL(IF($K$1:$K$34<>"",ROW($K$1:$K$34)),ROW(B13))),"") -> GIDP | O13: Y | P13: =IF('Guts-2'!$N$5>=ROW(P2),"3B","") ->  | R13: Only Show: P | S13: =IFERROR(INDEX($R$1:$R$24,SMALL(IF($R$1:$R$24<>"",ROW($R$1:$R$24)),ROW(B13))),"") -> 
A14: HBP | B14: =IF(Settings!C20=0,"",Settings!C20) -> 1 | C14: 17 | D14: =Settings!B37 -> HRA | E14: =IF(Settings!C37=0,"",Settings!C37) ->  | F14: 18 | I14: H13 | J14: =IF(Settings!C17=0,"",Settings!B17) -> RBI | K14: =IFERROR(INDEX($J$1:$J$18,SMALL(IF($J$1:$J$18<>"",ROW($J$1:$J$18)),ROW(A13))),"") -> HBP | L14: =IF(K$1=2,1,IF(OR(K14="AVG",K14="OBP",K14="SLG",K14="OPS"),2,IF(K14="","",1))) -> 1 | M14: =IF(OR(K14="AVG",K14="OBP",K14="SLG",K14="OPS"),2,IF(K14="","",1)) -> 1 | N14: =IFERROR(INDEX($K$1:$K$34,SMALL(IF($K$1:$K$34<>"",ROW($K$1:$K$34)),ROW(B14))),"") -> HBP | O14: N | P14: =IF('Guts-2'!$N$5>=ROW(P3),"3B","") ->  | R14: =IF('Guts-2'!$N14>0,"Only Show: "&'Guts-2'!M14,"") ->  | S14: =IFERROR(INDEX($R$1:$R$24,SMALL(IF($R$1:$R$24<>"",ROW($R$1:$R$24)),ROW(#REF!))),"") -> 
A15: XBH | B15: =IF(Settings!C21=0,"",Settings!C21) ->  | C15: 18 | D15: Blown Save | E15: =IF(Settings!C38=0,"",Settings!C38) -> -5 | F15: 19 | I15: H14 | J15: =IF(Settings!C18=0,"",Settings!B18) -> Errors | K15: =IFERROR(INDEX($J$1:$J$18,SMALL(IF($J$1:$J$18<>"",ROW($J$1:$J$18)),ROW(A14))),"") ->  | N15: =IFERROR(INDEX($K$1:$K$34,SMALL(IF($K$1:$K$34<>"",ROW($K$1:$K$34)),ROW(B15))),"") -> W | O15: Full | P15: =IF('Guts-2'!$N$6>=ROW(P1),"SS","") -> SS | R15: =IF('Guts-2'!$N15>0,"Only Show: "&'Guts-2'!M15,"") ->  | S15: =IFERROR(INDEX($R$1:$R$24,SMALL(IF($R$1:$R$24<>"",ROW($R$1:$R$24)),ROW(#REF!))),"") -> 
A16: PA | B16: =IF(Settings!C5=0,"",Settings!C5) ->  | C16: 2 | I16: H15 | J16: =IF(Settings!C19=0,"",Settings!B19) -> GIDP | K16: =IFERROR(INDEX($J$1:$J$18,SMALL(IF($J$1:$J$18<>"",ROW($J$1:$J$18)),ROW(A15))),"") ->  | L16: =IF(K$1=2,1,IF(OR(K20="ERA",K20="WHIP"),4,IF(OR(K20="K/9",K20="K/BB"),3,IF(K20="BAA",2,IF(K20="","",1))))) -> 1 | M16: =IF(OR(K20="ERA",K20="WHIP"),4,IF(OR(K20="K/9",K20="K/BB"),3,IF(K20="BAA",2,IF(K20="","",1)))) -> 1 | N16: =IFERROR(INDEX($K$1:$K$34,SMALL(IF($K$1:$K$34<>"",ROW($K$1:$K$34)),ROW(B16))),"") -> L | O16: Half | P16: =IF('Guts-2'!$N$6>=ROW(P2),"SS","") ->  | R16: =IF('Guts-2'!$N16>0,"Only Show: "&'Guts-2'!M16,"") ->  | S16: =IFERROR(INDEX($R$1:$R$24,SMALL(IF($R$1:$R$24<>"",ROW($R$1:$R$24)),ROW(#REF!))),"") -> 
A17: Hit | B17: =IF(Settings!C7=0,"",Settings!C7) ->  | C17: 5 | I17: H16 | J17: =IF(Settings!C20=0,"",Settings!B20) -> HBP | K17: =IFERROR(INDEX($J$1:$J$18,SMALL(IF($J$1:$J$18<>"",ROW($J$1:$J$18)),ROW(A16))),"") ->  | L17: 1 | M17: =IF(OR(K21="ERA",K21="WHIP"),4,IF(OR(K21="K/9",K21="K/BB"),3,IF(K21="BAA",2,IF(K21="","",1)))) -> 1 | N17: =IFERROR(INDEX($K$1:$K$34,SMALL(IF($K$1:$K$34<>"",ROW($K$1:$K$34)),ROW(B17))),"") -> IP | O17: Snake Draft | P17: =IF('Guts-2'!$N$6>=ROW(P3),"SS","") ->  | R17: =IF('Guts-2'!$N17>0,"Only Show: "&'Guts-2'!M17,"") ->  | S17: =IFERROR(INDEX($R$1:$R$24,SMALL(IF($R$1:$R$24<>"",ROW($R$1:$R$24)),ROW(#REF!))),"") -> 
I18: H17 | J18: =IF(Settings!C21=0,"",Settings!B21) ->  | K18: =IFERROR(INDEX($J$1:$J$18,SMALL(IF($J$1:$J$18<>"",ROW($J$1:$J$18)),ROW(A17))),"") ->  | L18: 1 | M18: 1 | N18: =IFERROR(INDEX($K$1:$K$34,SMALL(IF($K$1:$K$34<>"",ROW($K$1:$K$34)),ROW(B18))),"") -> Hit Allowed | O18: Same Order Every Round | P18: =IF('Guts-2'!$N$7>=ROW(P1),"CI","") -> 
L19: 1 | M19: 1 | N19: =IFERROR(INDEX($K$1:$K$34,SMALL(IF($K$1:$K$34<>"",ROW($K$1:$K$34)),ROW(B19))),"") -> BB | O19: Show Drafted Players | P19: =IF('Guts-2'!$N$7>=ROW(P2),"CI","") -> 
I20: P1 | J20: =IF(Settings!C24=0,"",Settings!B24) -> W | K20: =IFERROR(INDEX($J$1:$J$34,SMALL(IF($J$1:$J$34<>"",ROW($J$1:$J$34)),COUNTIF(($K$2:$K$14),">""")+ROW(A1))),"") -> W | L20: 1 | M20: 1 | N20: =IFERROR(INDEX($K$1:$K$34,SMALL(IF($K$1:$K$34<>"",ROW($K$1:$K$34)),ROW(B20))),"") -> K | O20: Hide Drafted Players | P20: =IF('Guts-2'!$N$7>=ROW(P3),"CI","") -> 
I21: P2 | J21: =IF(Settings!C25=0,"",Settings!B25) -> L | K21: =IFERROR(INDEX($J$1:$J$34,SMALL(IF($J$1:$J$34<>"",ROW($J$1:$J$34)),COUNTIF(($K$2:$K$14),">""")+ROW(A2))),"") -> L | L21: 1 | M21: 1 | N21: =IFERROR(INDEX($K$1:$K$34,SMALL(IF($K$1:$K$34<>"",ROW($K$1:$K$34)),ROW(B21))),"") -> ER | P21: =IF('Guts-2'!$N$8>=ROW(P1),"MI","") -> 
I22: P3 | J22: =IF(Settings!C26=0,"",Settings!B26) -> IP | K22: =IFERROR(INDEX($J$1:$J$34,SMALL(IF($J$1:$J$34<>"",ROW($J$1:$J$34)),COUNTIF(($K$2:$K$14),">""")+ROW(A3))),"") -> IP | L22: 1 | M22: 1 | N22: =IFERROR(INDEX($K$1:$K$34,SMALL(IF($K$1:$K$34<>"",ROW($K$1:$K$34)),ROW(B22))),"") -> SV | O22: Hot | P22: =IF('Guts-2'!$N$8>=ROW(P2),"MI","") -> 
I23: P4 | J23: =IF(Settings!C27=0,"",Settings!B27) -> Hit Allowed | K23: =IFERROR(INDEX($J$1:$J$34,SMALL(IF($J$1:$J$34<>"",ROW($J$1:$J$34)),COUNTIF(($K$2:$K$14),">""")+ROW(A4))),"") -> Hit Allowed | L23: 1 | M23: 1 | N23: =IFERROR(INDEX($K$1:$K$34,SMALL(IF($K$1:$K$34<>"",ROW($K$1:$K$34)),ROW(B23))),"") -> QS | O23: Cold | P23: =IF('Guts-2'!$N$8>=ROW(P3),"MI","") -> 
I24: P5 | J24: =IF(Settings!C28=0,"",Settings!B28) -> BB | K24: =IFERROR(INDEX($J$1:$J$34,SMALL(IF($J$1:$J$34<>"",ROW($J$1:$J$34)),COUNTIF(($K$2:$K$14),">""")+ROW(A5))),"") -> BB | L24: 1 | M24: 1 | N24: =IFERROR(INDEX($K$1:$K$34,SMALL(IF($K$1:$K$34<>"",ROW($K$1:$K$34)),ROW(B24))),"") -> CG | O24: Target | P24: =IF('Guts-2'!$N$17>=ROW(P1),"IF","") -> 
I25: P6 | J25: =IF(Settings!C29=0,"",Settings!B29) -> K | K25: =IFERROR(INDEX($J$1:$J$34,SMALL(IF($J$1:$J$34<>"",ROW($J$1:$J$34)),COUNTIF(($K$2:$K$14),">""")+ROW(A6))),"") -> K | L25: 1 | M25: 1 | N25: =IFERROR(INDEX($K$1:$K$34,SMALL(IF($K$1:$K$34<>"",ROW($K$1:$K$34)),ROW(B25))),"") -> Shutout | O25: Avoid | P25: =IF('Guts-2'!$N$17>=ROW(P2),"IF","") -> 
I26: P7 | J26: =IF(Settings!C30=0,"",Settings!B30) -> ER | K26: =IFERROR(INDEX($J$1:$J$34,SMALL(IF($J$1:$J$34<>"",ROW($J$1:$J$34)),COUNTIF(($K$2:$K$14),">""")+ROW(A7))),"") -> ER | L26: 1 | M26: 1 | O26: Injury | P26: =IF('Guts-2'!$N$17>=ROW(P3),"IF","") -> 
I27: P8 | J27: =IF(Settings!C31=0,"",Settings!B31) -> SV | K27: =IFERROR(INDEX($J$1:$J$34,SMALL(IF($J$1:$J$34<>"",ROW($J$1:$J$34)),COUNTIF(($K$2:$K$14),">""")+ROW(A8))),"") -> SV | L27: 1 | M27: 1 | O27: Note | P27: =IF('Guts-2'!$N$17>=ROW(P4),"IF","") -> 
I28: P9 | J28: =IF(Settings!C32=0,"",Settings!B32) -> QS | K28: =IFERROR(INDEX($J$1:$J$34,SMALL(IF($J$1:$J$34<>"",ROW($J$1:$J$34)),COUNTIF(($K$2:$K$14),">""")+ROW(A9))),"") -> QS | M28: =IF(OR(K32="ERA",K32="WHIP"),4,IF(OR(K32="K/9",K32="K/BB"),3,IF(K32="BAA",2,IF(K32="","",1)))) ->  | O28: Sleeper | P28: =IF('Guts-2'!$N$17>=ROW(P5),"IF","") -> 
I29: P10 | J29: =IF(Settings!C33=0,"",Settings!B33) -> CG | K29: =IFERROR(INDEX($J$1:$J$34,SMALL(IF($J$1:$J$34<>"",ROW($J$1:$J$34)),COUNTIF(($K$2:$K$14),">""")+ROW(A10))),"") -> CG | M29: =IF(OR(K33="ERA",K33="WHIP"),4,IF(OR(K33="K/9",K33="K/BB"),3,IF(K33="BAA",2,IF(K33="","",1)))) ->  | O29: Bust | P29: =IF('Guts-2'!$N$17>=ROW(P6),"IF","") -> 
I30: P11 | J30: =IF(Settings!C34=0,"",Settings!B34) -> Shutout | K30: =IFERROR(INDEX($J$1:$J$34,SMALL(IF($J$1:$J$34<>"",ROW($J$1:$J$34)),COUNTIF(($K$2:$K$14),">""")+ROW(A11))),"") -> Shutout | M30: =IF(OR(K34="ERA",K34="WHIP"),4,IF(OR(K34="K/9",K34="K/BB"),3,IF(K34="BAA",2,IF(K34="","",1)))) ->  | P30: =IF('Guts-2'!$N$9>=ROW(P1),"OF","") -> OF
I31: P12 | J31: =IF(Settings!C35=0,"",Settings!B35) ->  | K31: =IFERROR(INDEX($J$1:$J$34,SMALL(IF($J$1:$J$34<>"",ROW($J$1:$J$34)),COUNTIF(($K$2:$K$14),">""")+ROW(A12))),"") -> Blown Save | P31: =IF('Guts-2'!$N$9>=ROW(P2),"OF","") -> OF
I32: P13 | J32: =IF(Settings!C36=0,"",Settings!B36) ->  | K32: =IFERROR(INDEX($J$1:$J$34,SMALL(IF($J$1:$J$34<>"",ROW($J$1:$J$34)),COUNTIF(($K$2:$K$14),">""")+ROW(A13))),"") ->  | P32: =IF('Guts-2'!$N$9>=ROW(P3),"OF","") -> OF
I33: P14 | J33: =IF(Settings!C37=0,"",Settings!B37) ->  | K33: =IFERROR(INDEX($J$1:$J$34,SMALL(IF($J$1:$J$34<>"",ROW($J$1:$J$34)),COUNTIF(($K$2:$K$14),">""")+ROW(A14))),"") ->  | P33: =IF('Guts-2'!$N$9>=ROW(P4),"OF","") -> 
I34: P15 | J34: =IF(Settings!C38=0,"",Settings!B38) -> Blown Save | K34: =IFERROR(INDEX($J$1:$J$34,SMALL(IF($J$1:$J$34<>"",ROW($J$1:$J$34)),COUNTIF(($K$2:$K$14),">""")+ROW(A15))),"") ->  | P34: =IF('Guts-2'!$N$9>=ROW(P5),"OF","") -> 
P35: =IF('Guts-2'!$N$9>=ROW(P6),"OF","") -> 
P36: =IF('Guts-2'!$N$9>=ROW(P7),"OF","") -> 
P37: =IF('Guts-2'!$N$9>=ROW(P8),"OF","") -> 
P38: =IF('Guts-2'!$N$9>=ROW(P9),"OF","") -> 
P39: =IF('Guts-2'!$N$14>=ROW(P1),"LF","") -> 
P40: =IF('Guts-2'!$N$14>=ROW(P2),"LF","") -> 
P41: =IF('Guts-2'!$N$14>=ROW(P3),"LF","") -> 
P42: =IF('Guts-2'!$N$15>=ROW(P1),"CF","") -> 
P43: =IF('Guts-2'!$N$15>=ROW(P2),"CF","") -> 
P44: =IF('Guts-2'!$N$15>=ROW(P3),"CF","") -> 
P45: =IF('Guts-2'!$N$16>=ROW(P1),"RF","") -> 
P46: =IF('Guts-2'!$N$16>=ROW(P2),"RF","") -> 
P47: =IF('Guts-2'!$N$16>=ROW(P3),"RF","") -> 
P48: =IF('Guts-2'!$N$10>=ROW(P1),"DH","") -> DH
P49: =IF('Guts-2'!$N$10>=ROW(P2),"DH","") -> 
P50: =IF('Guts-2'!$N$10>=ROW(P3),"DH","") -> 
P51: =IF('Guts-2'!$N$10>=ROW(P4),"DH","") -> 
P52: =IF('Guts-2'!$N$10>=ROW(P5),"DH","") -> 
P53: =IF('Guts-2'!$N$10>=ROW(P6),"DH","") -> 
P54: =IF('Guts-2'!$N$11>=ROW(P1),"SP","") -> SP
P55: =IF('Guts-2'!$N$11>=ROW(P2),"SP","") -> SP
P56: =IF('Guts-2'!$N$11>=ROW(P3),"SP","") -> SP
P57: =IF('Guts-2'!$N$11>=ROW(P4),"SP","") -> SP
P58: =IF('Guts-2'!$N$11>=ROW(P5),"SP","") -> SP
P59: =IF('Guts-2'!$N$11>=ROW(P6),"SP","") -> 
P60: =IF('Guts-2'!$N$11>=ROW(P7),"SP","") -> 
P61: =IF('Guts-2'!$N$11>=ROW(P8),"SP","") -> 
P62: =IF('Guts-2'!$N$11>=ROW(P9),"SP","") -> 
P63: =IF('Guts-2'!$N$11>=ROW(P10),"SP","") -> 
P64: =IF('Guts-2'!$N$12>=ROW(P1),"RP","") -> RP
P65: =IF('Guts-2'!$N$12>=ROW(P2),"RP","") -> RP
P66: =IF('Guts-2'!$N$12>=ROW(P3),"RP","") -> 
P67: =IF('Guts-2'!$N$12>=ROW(P4),"RP","") -> 
P68: =IF('Guts-2'!$N$12>=ROW(P5),"RP","") -> 
P69: =IF('Guts-2'!$N$12>=ROW(P6),"RP","") -> 
P70: =IF('Guts-2'!$N$12>=ROW(P7),"RP","") -> 
P71: =IF('Guts-2'!$N$12>=ROW(P8),"RP","") -> 
P72: =IF('Guts-2'!$N$12>=ROW(P9),"RP","") -> 
P73: =IF('Guts-2'!$N$12>=ROW(P10),"RP","") -> 
P74: =IF('Guts-2'!$N$13>=ROW(P1),"P","") -> P
P75: =IF('Guts-2'!$N$13>=ROW(P2),"P","") -> 
P76: =IF('Guts-2'!$N$13>=ROW(P3),"P","") -> 
P77: =IF('Guts-2'!$N$13>=ROW(P4),"P","") -> 
P78: =IF('Guts-2'!$N$13>=ROW(P5),"P","") -> 
P79: =IF('Guts-2'!$N$13>=ROW(P6),"P","") -> 
P80: =IF('Guts-2'!$N$13>=ROW(P7),"P","") -> 
P81: =IF('Guts-2'!$N$13>=ROW(P8),"P","") -> 
P82: =IF('Guts-2'!$N$13>=ROW(P9),"P","") -> 
P83: =IF('Guts-2'!$N$13>=ROW(P10),"P","") -> 
P84: =IF('Guts-2'!$N$13>=ROW(P11),"P","") -> 
P85: =IF('Guts-2'!$N$13>=ROW(P12),"P","") -> 
P86: =IF('Guts-2'!$N$13>=ROW(P13),"P","") -> 
P87: =IF('Guts-2'!$N$13>=ROW(P14),"P","") -> 
P88: =IF('Guts-2'!$N$13>=ROW(P15),"P","") -> 

Sheet Guts-2 (hidden)
A1: =Settings!J10 -> Team 1 | B1: CBS - Points Leagues | D1: THE BAT | E1: Teams | F1: Starters | G1: THE BAT | H1: =IF(OR(Settings!$R$24<>100,Settings!$Q$24<>100),0,Settings!Q15) -> 20 | I1: =IF(OR(Settings!$R$24<>100,Settings!$Q$24<>100),0,Settings!R15) -> 20 | J1: LAA | K1: =IF(OR(Settings!$L$5="AL-Only",Settings!$L$5="Mixed (Standard)"),TRUE,IF(Settings!$L$5="Specific Teams Only",IF(Settings!N6="Y",TRUE,FALSE),FALSE)) -> TRUE | L1: C | M1: # of Teams | N1: =Settings!J5 -> 12
A2: =Settings!J11 -> Team 2 | C2: ESPN - Points Rankings | D2: Clay Davenport | E2: 6 | F2: 0 | G2: Clay Davenport | H2: =IF(OR(Settings!$R$24<>100,Settings!$Q$24<>100),0,Settings!Q16) -> 20 | I2: =IF(OR(Settings!$R$24<>100,Settings!$Q$24<>100),0,Settings!R16) -> 20 | J2: ARI | K2: =IF(OR(Settings!$L$5="NL-Only",Settings!$L$5="Mixed (Standard)"),TRUE,IF(Settings!$L$5="Specific Teams Only",IF(Settings!N7="Y",TRUE,FALSE),FALSE)) -> TRUE | L2: 1B | M2: C | N2: =Settings!F5 -> 1
A3: =Settings!J12 -> Team 3 | B3: FantasyPros Avg | C3: ESPN - Karabell (Roto) | D3: Fangraphs - Depth Chart | E3: 7 | F3: 1 | G3: Fangraphs - Depth Chart | H3: =IF(OR(Settings!$R$24<>100,Settings!$Q$24<>100),0,Settings!Q17) -> 0 | I3: =IF(OR(Settings!$R$24<>100,Settings!$Q$24<>100),0,Settings!R17) -> 0 | J3: ATL | K3: =IF(OR(Settings!$L$5="NL-Only",Settings!$L$5="Mixed (Standard)"),TRUE,IF(Settings!$L$5="Specific Teams Only",IF(Settings!N8="Y",TRUE,FALSE),FALSE)) -> TRUE | L3: 2B | M3: 1B | N3: =Settings!F6 -> 1
A4: =Settings!J13 -> Team 4 | B4: Fantrax | C4: FantasyPros Avg | D4: Mr. Cheatsheet's Special Blend | E4: 8 | F4: 2 | G4: Fangraphs - Fan Projections | H4: =IF(OR(Settings!$R$24<>100,Settings!$Q$24<>100),0,Settings!Q18) -> 20 | I4: =IF(OR(Settings!$R$24<>100,Settings!$Q$24<>100),0,Settings!R18) -> 20 | J4: BAL | K4: =IF(OR(Settings!$L$5="AL-Only",Settings!$L$5="Mixed (Standard)"),TRUE,IF(Settings!$L$5="Specific Teams Only",IF(Settings!N9="Y",TRUE,FALSE),FALSE)) -> TRUE | L4: 3B | M4: 2B | N4: =Settings!F7 -> 1
A5: =Settings!J14 -> Team 5 | B5: NFBC | E5: 9 | F5: 3 | G5: Steamer | H5: =IF(OR(Settings!$R$24<>100,Settings!$Q$24<>100),0,Settings!Q19) -> 40 | I5: =IF(OR(Settings!$R$24<>100,Settings!$Q$24<>100),0,Settings!R19) -> 40 | J5: BOS | K5: =IF(OR(Settings!$L$5="AL-Only",Settings!$L$5="Mixed (Standard)"),TRUE,IF(Settings!$L$5="Specific Teams Only",IF(Settings!N10="Y",TRUE,FALSE),FALSE)) -> TRUE | L5: SS | M5: 3B | N5: =Settings!F8 -> 1
A6: =Settings!J15 -> Team 6 | B6: Yahoo | C6: RotoChamp | E6: 10 | F6: 4 | G6: Steamer - 600 PA | H6: =IF(OR(Settings!$R$24<>100,Settings!$Q$24<>100),0,Settings!Q20) -> 0 | I6: =IF(OR(Settings!$R$24<>100,Settings!$Q$24<>100),0,Settings!R20) -> 0 | J6: CHC | K6: =IF(OR(Settings!$L$5="NL-Only",Settings!$L$5="Mixed (Standard)"),TRUE,IF(Settings!$L$5="Specific Teams Only",IF(Settings!N11="Y",TRUE,FALSE),FALSE)) -> TRUE | L6: OF | M6: SS | N6: =Settings!F9 -> 1
A7: =IF($N$1>=ROW(A7),Settings!J16,#N/A) -> Team 7 | B7: Avg of ADP Sources | C7: Yahoo Staff | D7: Steamer | E7: 11 | F7: 5 | G7: ZiPS | H7: =IF(OR(Settings!$R$24<>100,Settings!$Q$24<>100),0,Settings!Q21) -> 0 | I7: =IF(OR(Settings!$R$24<>100,Settings!$Q$24<>100),0,Settings!R21) -> 0 | J7: CHW | K7: =IF(OR(Settings!$L$5="AL-Only",Settings!$L$5="Mixed (Standard)"),TRUE,IF(Settings!$L$5="Specific Teams Only",IF(Settings!N12="Y",TRUE,FALSE),FALSE)) -> TRUE | L7: SP | M7: CI | N7: =Settings!F12 -> 0
A8: =IF($N$1>=ROW(A8),Settings!J17,#N/A) -> Team 8 | B8: Imported ADP | D8: Steamer - 600 PA | E8: 12 | F8: 6 | J8: CIN | K8: =IF(OR(Settings!$L$5="NL-Only",Settings!$L$5="Mixed (Standard)"),TRUE,IF(Settings!$L$5="Specific Teams Only",IF(Settings!N13="Y",TRUE,FALSE),FALSE)) -> TRUE | L8: RP | M8: MI | N8: =Settings!F13 -> 0
A9: =IF($N$1>=ROW(A9),Settings!J18,#N/A) -> Team 9 | B9: =IFERROR(INDEX($B$1:$B$8,SMALL(IF($B$1:$B$8<>"",ROW($B$1:$B$8)),ROW(B1))),"") -> CBS - Points Leagues | C9: =IFERROR(INDEX($C$1:$C$8,SMALL(IF($C$1:$C$8<>"",ROW($C$1:$C$8)),ROW(C1))),"") -> ESPN - Points Rankings | D9: ZiPS | E9: 13 | F9: 7 | J9: CLE | K9: =IF(OR(Settings!$L$5="AL-Only",Settings!$L$5="Mixed (Standard)"),TRUE,IF(Settings!$L$5="Specific Teams Only",IF(Settings!N14="Y",TRUE,FALSE),FALSE)) -> TRUE | L9: DH | M9: OF | N9: =Settings!F10 -> 3
A10: =IF($N$1>=ROW(A10),Settings!J19,#N/A) -> Team 10 | B10: =IFERROR(INDEX($B$1:$B$8,SMALL(IF($B$1:$B$8<>"",ROW($B$1:$B$8)),ROW(B2))),"") -> FantasyPros Avg | C10: =IFERROR(INDEX($C$1:$C$8,SMALL(IF($C$1:$C$8<>"",ROW($C$1:$C$8)),ROW(C2))),"") -> ESPN - Karabell (Roto) | D10: Import Your Own Projections | E10: 14 | F10: 8 | J10: COL | K10: =IF(OR(Settings!$L$5="NL-Only",Settings!$L$5="Mixed (Standard)"),TRUE,IF(Settings!$L$5="Specific Teams Only",IF(Settings!N15="Y",TRUE,FALSE),FALSE)) -> TRUE | M10: DH | N10: =Settings!F11 -> 1
A11: =IF($N$1>=ROW(A11),Settings!J20,#N/A) -> Team 11 | B11: =IFERROR(INDEX($B$1:$B$8,SMALL(IF($B$1:$B$8<>"",ROW($B$1:$B$8)),ROW(B3))),"") -> Fantrax | C11: =IFERROR(INDEX($C$1:$C$8,SMALL(IF($C$1:$C$8<>"",ROW($C$1:$C$8)),ROW(C3))),"") -> FantasyPros Avg | D11: Your Own Custom Combination | E11: 15 | F11: 9 | J11: DET | K11: =IF(OR(Settings!$L$5="AL-Only",Settings!$L$5="Mixed (Standard)"),TRUE,IF(Settings!$L$5="Specific Teams Only",IF(Settings!N16="Y",TRUE,FALSE),FALSE)) -> TRUE | M11: SP | N11: =Settings!F19 -> 5
A12: =IF($N$1>=ROW(A12),Settings!J21,#N/A) -> Team 12 | B12: =IFERROR(INDEX($B$1:$B$8,SMALL(IF($B$1:$B$8<>"",ROW($B$1:$B$8)),ROW(B4))),"") -> NFBC | C12: =IFERROR(INDEX($C$1:$C$8,SMALL(IF($C$1:$C$8<>"",ROW($C$1:$C$8)),ROW(C4))),"") -> RotoChamp | E12: 16 | J12: HOU | K12: =IF(OR(Settings!$L$5="AL-Only",Settings!$L$5="Mixed (Standard)"),TRUE,IF(Settings!$L$5="Specific Teams Only",IF(Settings!N17="Y",TRUE,FALSE),FALSE)) -> TRUE | M12: RP | N12: =Settings!F20 -> 2
A13: =IF($N$1>=ROW(A13),Settings!J22,#N/A) ->  | B13: =IFERROR(INDEX($B$1:$B$8,SMALL(IF($B$1:$B$8<>"",ROW($B$1:$B$8)),ROW(B5))),"") -> Yahoo | C13: =IFERROR(INDEX($C$1:$C$8,SMALL(IF($C$1:$C$8<>"",ROW($C$1:$C$8)),ROW(C5))),"") -> Yahoo Staff | E13: 17 | J13: KC | K13: =IF(OR(Settings!$L$5="AL-Only",Settings!$L$5="Mixed (Standard)"),TRUE,IF(Settings!$L$5="Specific Teams Only",IF(Settings!N18="Y",TRUE,FALSE),FALSE)) -> TRUE | M13: P | N13: =Settings!F21 -> 1
A14: =IF($N$1>=ROW(A14),Settings!J23,#N/A) ->  | B14: =IFERROR(INDEX($B$1:$B$8,SMALL(IF($B$1:$B$8<>"",ROW($B$1:$B$8)),ROW(B6))),"") -> Avg of ADP Sources | C14: =IFERROR(INDEX($C$1:$C$8,SMALL(IF($C$1:$C$8<>"",ROW($C$1:$C$8)),ROW(C6))),"") ->  | D14: =IFERROR(INDEX($D$1:$D$12,SMALL(IF($D$1:$D$12<>"",ROW($D$1:$D$12)),ROW(D1))),"") -> THE BAT | E14: 18 | J14: LAD | K14: =IF(OR(Settings!$L$5="NL-Only",Settings!$L$5="Mixed (Standard)"),TRUE,IF(Settings!$L$5="Specific Teams Only",IF(Settings!N19="Y",TRUE,FALSE),FALSE)) -> TRUE | M14: LF | N14: =Settings!F15 -> 0
A15: =IF($N$1>=ROW(A15),Settings!J24,#N/A) ->  | B15: =IFERROR(INDEX($B$1:$B$8,SMALL(IF($B$1:$B$8<>"",ROW($B$1:$B$8)),ROW(B7))),"") -> Imported ADP | C15: =IFERROR(INDEX($C$1:$C$8,SMALL(IF($C$1:$C$8<>"",ROW($C$1:$C$8)),ROW(C7))),"") ->  | D15: =IFERROR(INDEX($D$1:$D$12,SMALL(IF($D$1:$D$12<>"",ROW($D$1:$D$12)),ROW(D2))),"") -> Clay Davenport | E15: 19 | J15: MIA | K15: =IF(OR(Settings!$L$5="NL-Only",Settings!$L$5="Mixed (Standard)"),TRUE,IF(Settings!$L$5="Specific Teams Only",IF(Settings!N20="Y",TRUE,FALSE),FALSE)) -> TRUE | M15: CF | N15: =Settings!F16 -> 0
A16: =IF($N$1>=ROW(A16),Settings!J25,#N/A) ->  | B16: =IFERROR(INDEX($B$1:$B$8,SMALL(IF($B$1:$B$8<>"",ROW($B$1:$B$8)),ROW(B8))),"") ->  | C16: =IFERROR(INDEX($C$1:$C$8,SMALL(IF($C$1:$C$8<>"",ROW($C$1:$C$8)),ROW(C8))),"") ->  | D16: =IFERROR(INDEX($D$1:$D$12,SMALL(IF($D$1:$D$12<>"",ROW($D$1:$D$12)),ROW(D3))),"") -> Fangraphs - Depth Chart | E16: 20 | J16: MIL | K16: =IF(OR(Settings!$L$5="NL-Only",Settings!$L$5="Mixed (Standard)"),TRUE,IF(Settings!$L$5="Specific Teams Only",IF(Settings!N21="Y",TRUE,FALSE),FALSE)) -> TRUE | M16: RF | N16: =Settings!F17 -> 0
A17: =IF($N$1>=ROW(A17),Settings!J26,#N/A) ->  | D17: =IFERROR(INDEX($D$1:$D$12,SMALL(IF($D$1:$D$12<>"",ROW($D$1:$D$12)),ROW(D4))),"") -> Mr. Cheatsheet's Special Blend | E17: 21 | J17: MIN | K17: =IF(OR(Settings!$L$5="AL-Only",Settings!$L$5="Mixed (Standard)"),TRUE,IF(Settings!$L$5="Specific Teams Only",IF(Settings!N22="Y",TRUE,FALSE),FALSE)) -> TRUE | M17: IF | N17: =Settings!F14 -> 0
A18: =IF($N$1>=ROW(A18),Settings!J27,#N/A) ->  | D18: =IFERROR(INDEX($D$1:$D$12,SMALL(IF($D$1:$D$12<>"",ROW($D$1:$D$12)),ROW(D5))),"") -> Steamer | E18: 22 | J18: NYM | K18: =IF(OR(Settings!$L$5="NL-Only",Settings!$L$5="Mixed (Standard)"),TRUE,IF(Settings!$L$5="Specific Teams Only",IF(Settings!N23="Y",TRUE,FALSE),FALSE)) -> TRUE
A19: =IF($N$1>=ROW(A19),Settings!J28,#N/A) ->  | D19: =IFERROR(INDEX($D$1:$D$12,SMALL(IF($D$1:$D$12<>"",ROW($D$1:$D$12)),ROW(D6))),"") -> Steamer - 600 PA | E19: 23 | J19: NYY | K19: =IF(OR(Settings!$L$5="AL-Only",Settings!$L$5="Mixed (Standard)"),TRUE,IF(Settings!$L$5="Specific Teams Only",IF(Settings!N24="Y",TRUE,FALSE),FALSE)) -> TRUE
A20: =IF($N$1>=ROW(A20),Settings!J29,#N/A) ->  | D20: =IFERROR(INDEX($D$1:$D$12,SMALL(IF($D$1:$D$12<>"",ROW($D$1:$D$12)),ROW(D7))),"") -> ZiPS | E20: 24 | J20: OAK | K20: =IF(OR(Settings!$L$5="AL-Only",Settings!$L$5="Mixed (Standard)"),TRUE,IF(Settings!$L$5="Specific Teams Only",IF(Settings!N25="Y",TRUE,FALSE),FALSE)) -> TRUE
A21: =IF($N$1>=ROW(A21),Settings!J30,#N/A) ->  | D21: =IFERROR(INDEX($D$1:$D$12,SMALL(IF($D$1:$D$12<>"",ROW($D$1:$D$12)),ROW(D8))),"") -> Import Your Own Projections | J21: PHI | K21: =IF(OR(Settings!$L$5="NL-Only",Settings!$L$5="Mixed (Standard)"),TRUE,IF(Settings!$L$5="Specific Teams Only",IF(Settings!N26="Y",TRUE,FALSE),FALSE)) -> TRUE
A22: =IF($N$1>=ROW(A22),Settings!J31,#N/A) ->  | D22: =IFERROR(INDEX($D$1:$D$12,SMALL(IF($D$1:$D$12<>"",ROW($D$1:$D$12)),ROW(D9))),"") -> Your Own Custom Combination | J22: PIT | K22: =IF(OR(Settings!$L$5="NL-Only",Settings!$L$5="Mixed (Standard)"),TRUE,IF(Settings!$L$5="Specific Teams Only",IF(Settings!N27="Y",TRUE,FALSE),FALSE)) -> TRUE
A23: =IF($N$1>=ROW(A23),Settings!J32,#N/A) ->  | D23: =IFERROR(INDEX($D$1:$D$12,SMALL(IF($D$1:$D$12<>"",ROW($D$1:$D$12)),ROW(D10))),"") ->  | J23: SD | K23: =IF(OR(Settings!$L$5="NL-Only",Settings!$L$5="Mixed (Standard)"),TRUE,IF(Settings!$L$5="Specific Teams Only",IF(Settings!N28="Y",TRUE,FALSE),FALSE)) -> TRUE
A24: =IF($N$1>=ROW(A24),Settings!J33,#N/A) ->  | D24: =IFERROR(INDEX($D$1:$D$12,SMALL(IF($D$1:$D$12<>"",ROW($D$1:$D$12)),ROW(D11))),"") ->  | J24: SEA | K24: =IF(OR(Settings!$L$5="AL-Only",Settings!$L$5="Mixed (Standard)"),TRUE,IF(Settings!$L$5="Specific Teams Only",IF(Settings!N29="Y",TRUE,FALSE),FALSE)) -> TRUE
D25: =IFERROR(INDEX($D$1:$D$12,SMALL(IF($D$1:$D$12<>"",ROW($D$1:$D$12)),ROW(D12))),"") ->  | J25: SF | K25: =IF(OR(Settings!$L$5="NL-Only",Settings!$L$5="Mixed (Standard)"),TRUE,IF(Settings!$L$5="Specific Teams Only",IF(Settings!N30="Y",TRUE,FALSE),FALSE)) -> TRUE
A26: From Settings | B26: =Settings!Q5 -> CBS - Points Leagues | C26: ADP Site: | D26: =IF(B26="Fantrax",1,IF(B26="Yahoo",2,IF(B26="CBS - Points Leagues",3,IF(B26="ESPN",4,IF(B26="FantasyPros Avg",5,IF(B26="NFBC",6,IF(B26="Avg of ADP Sources",7,IF(B26="Imported ADP",8,0)))))))) -> 3 | J26: STL | K26: =IF(OR(Settings!$L$5="NL-Only",Settings!$L$5="Mixed (Standard)"),TRUE,IF(Settings!$L$5="Specific Teams Only",IF(Settings!N31="Y",TRUE,FALSE),FALSE)) -> TRUE
A27: For a List | B27: =Settings!Q9 -> ESPN - Points Rankings | C27: Rankings: | D27: =IF(B27="RotoChamp",1,IF(B27="Yahoo Staff",2,IF(B27="ESPN - Points Rankings",3,IF(B27="ESPN - Karabell (Roto)",4,IF(B27="FantasyPros Avg",5,IF(B27="Mr. Cheatsheet",6)))))) -> 3 | J27: TB | K27: =IF(OR(Settings!$L$5="AL-Only",Settings!$L$5="Mixed (Standard)"),TRUE,IF(Settings!$L$5="Specific Teams Only",IF(Settings!N32="Y",TRUE,FALSE),FALSE)) -> TRUE
A28: Controlled by Formulas | B28: =Settings!Q7 -> Mr. Cheatsheet's Special Blend | C28: Projections: | D28: =IF(B28="THE BAT",1,IF(B28="Steamer",2,IF(B28="Steamer - 600 PA",7,IF(B28="ZiPS",4,IF(B28="Fangraphs - Depth Chart",5,IF(B28="Your Own Custom Combination",8,IF(B28="Mr. Cheatsheet's Special Blend",9,IF(B28="Special Blend w/ Steamer Replacements",10,IF(B28="Fangraphs - Fan Projections",3,IF(B28="Clay Davenport",6,IF(B28="Import Your Own Projections",11,0))))))))))) -> 9 | J28: TEX | K28: =IF(OR(Settings!$L$5="AL-Only",Settings!$L$5="Mixed (Standard)"),TRUE,IF(Settings!$L$5="Specific Teams Only",IF(Settings!N33="Y",TRUE,FALSE),FALSE)) -> TRUE
J29: TOR | K29: =IF(OR(Settings!$L$5="AL-Only",Settings!$L$5="Mixed (Standard)"),TRUE,IF(Settings!$L$5="Specific Teams Only",IF(Settings!N34="Y",TRUE,FALSE),FALSE)) -> TRUE
J30: WAS | K30: =IF(OR(Settings!$L$5="NL-Only",Settings!$L$5="Mixed (Standard)"),TRUE,IF(Settings!$L$5="Specific Teams Only",IF(Settings!N35="Y",TRUE,FALSE),FALSE)) -> TRUE

Sheet Name-Sort (hidden)
B1: =IFERROR(INDEX($A$1:$A$948,SMALL(IF($A$1:$A$948<>"",ROW($A$1:$A$948)),ROW(A1))),"") -> Mike Trout | C1: ORDER | D1: PLAYERNAME | E1: Team | F1: Original Pos | G1: New Pos | H1: Pos to Use | I1: New Pos | J1: Show Team? | K1: Drafted | L1: Show or No | M1: ADP | N1: Projected Points | O1: Expert Ranking | P1: Points Above Replacement | Q1: Points Per IP | R1: Points Per PA | S1: Pos.ADPRank | W1: =IFERROR(INDEX($V$1:$V$948,SMALL(IF($V$1:$V$948<>"",ROW($V$1:$V$948)),ROW(V1))),"") -> Mike Trout
A2: =IFERROR(IF(VLOOKUP(ROW($A1),$C$2:$N$948,9,FALSE)=FALSE,VLOOKUP(ROW($A1),$C$2:$N$948,2,FALSE),""),"") -> Mike Trout | B2: =IFERROR(INDEX($A$1:$A$948,SMALL(IF($A$1:$A$948<>"",ROW($A$1:$A$948)),ROW(A2))),"") -> Christian Yelich | C2: =IFERROR(IF(L2=FALSE,"",CHOOSE(MATCH(RIGHT('Your Points Draft'!$R$3,LEN('Your Points Draft'!$R$3)-8),$M$1:$R$1,0),1+SUMPRODUCT(($L$2:$L$949=TRUE)*($M$2:$M$949<M2))+COUNTIFS($L$2:L2,L2,$M$2:M2,M2)-1,1+SUMPRODUCT(($L$2:$L$949=TRUE)*($N$2:$N$949>N2))+COUNTIFS($L$2:L2,L2,$N$2:N2,N2)-1,1+SUMPRODUCT(($L$2:$L$949=TRUE)*($O$2:$O$949<O2))+COUNTIFS($L$2:L2,L2,$O$2:O2,O2)-1,1+SUMPRODUCT(($L$2:$L$949=TRUE)*($P$2:$P$949>P2))+COUNTIFS($L$2:L2,L2,$P$2:P2,P2)-1,1+SUMPRODUCT(($L$2:$L$949=TRUE)*($Q$2:$Q$949>Q2))+COUNTIFS($L$2:L2,L2,$Q$2:Q2,Q2)-1,1+SUMPRODUCT(($L$2:$L$949=TRUE)*($R$2:$R$949>R2))+COUNTIFS($L$2:L2,L2,$R$2:R2,R2)-1,)),"") -> 492 | D2: Bryan Abreu | E2: =IFERROR(INDEX('Draft Log'!$D$3:$D$807,MATCH(D2,'Draft Log'!$C$3:$C$807,0)),"") ->  | F2: =IFERROR(INDEX('ADP-Rank'!$C$2:$C$819,MATCH(D2,'ADP-Rank'!$A$2:$A$819,0)),"") -> RP | G2: =IFERROR(IF(F2=I2,"",IF(INDEX('Your Points Draft'!$B$10:$B$633,MATCH(D2,'Your Points Draft'!$C$10:$C$633,0))="",IF(I2<>"",I2,""),INDEX('Your Points Draft'!$B$10:$B$633,MATCH(D2,'Your Points Draft'!$C$10:$C$633,0)))),"") ->  | H2: =IFERROR(IF(I2="",F2,IF(I2<>F2,I2,F2)),"") -> RP | J2: =INDEX('ADP-Rank'!$AH$2:$AH$819,MATCH(D2,'ADP-Rank'!$A$2:$A$819,0)) -> TRUE | K2: =IF(E2="",FALSE,TRUE) -> FALSE | L2: =IF(J2=FALSE,FALSE,IF(AND('Your Points Draft'!$R$5="Hide Drafted Players",K2=TRUE),FALSE,IF(OR('Your Points Draft'!$R$4="Show All Positions",AND('Your Points Draft'!$R$4="Only Show: C",H2="C"),AND('Your Points Draft'!$R$4="Only Show: 1B",H2="1B"),AND('Your Points Draft'!$R$4="Only Show: 2B",H2="2B"),AND('Your Points Draft'!$R$4="Only Show: 3B",H2="3B"),AND('Your Points Draft'!$R$4="Only Show: SS",H2="SS"),AND('Your Points Draft'!$R$4="Only Show: OF",H2="OF"),AND('Your Points Draft'!$R$4="Only Show: SP",H2="SP"),AND('Your Points Draft'!$R$4="Only Show: RP",H2="RP"),AND('Your Points Draft'!$R$4="Only Show: CI",OR(H2={"1B","3B"})),AND('Your Points Draft'!$R$4="Only Show: MI",OR(H2={"2B","SS"})),AND('Your Points Draft'!$R$4="Only Show: IF",OR(H2={"C","1B","2B","3B","SS"})),AND('Your Points Draft'!$R$4="Only Show: DH",OR(H2={"C","1B","2B","3B","SS","OF","DH"})),AND('Your Points Draft'!$R$4="Only Show: P",OR(H2={"SP","RP"})),AND('Your Points Draft'!$R$4="Only Show: LF",ISERROR(SEARCH("LF",VLOOKUP($D2,'ADP-Rank'!$A$2:$D$948,4,FALSE)))=FALSE),AND('Your Points Draft'!$R$4="Only Show: RF",ISERROR(SEARCH("RF",VLOOKUP($D2,'ADP-Rank'!$A$2:$D$948,4,FALSE)))=FALSE),AND('Your Points Draft'!$R$4="Only Show: CF",ISERROR(SEARCH("CF",VLOOKUP($D2,'ADP-Rank'!$A$2:$D$948,4,FALSE)))=FALSE)),TRUE,FALSE))) -> TRUE | M2: =IFERROR(IF(VLOOKUP($D2,'ADP-Rank'!$A$2:$AV$948,38,FALSE)="",9999,VLOOKUP($D2,'ADP-Rank'!$A$2:$AV$948,38,FALSE)),9999) -> 9999 | N2: =IF(D2="Non-Ranked Player",-1001,IF(VLOOKUP($D2,'Starter Calc'!$B$2:$D$948,3,FALSE)="",-1000,VLOOKUP($D2,'Starter Calc'!$B$2:$D$948,3,FALSE))) -> -1000 | O2: =IF(D2="Non-Ranked Player",10000,IFERROR(IF(VLOOKUP(D2,'ADP-Rank'!A2:AJ948,36,FALSE)="",9999,VLOOKUP(D2,'ADP-Rank'!A2:AJ948,36,FALSE)),9999)) -> 9999 | P2: =IF($D2="Unlisted Player",-1001,IFERROR(IF(IF(OR($H2="RP",$H2="SP"),VLOOKUP($D2,'Filtered-P'!$A$3:$X$938,13,FALSE),VLOOKUP($D2,'Filtered-H'!$A$3:$Z$937,22,FALSE))="",-1000,IF(OR($H2="RP",$H2="SP"),VLOOKUP($D2,'Filtered-P'!$A$3:$X$938,13,FALSE),VLOOKUP($D2,'Filtered-H'!$A$3:$Z$937,22,FALSE))),-1000)) -> -1000 | Q2: =IFERROR(IF($D2="Unlisted Player",-1001,IF(OR(H2="SP",H2="RP"),N2/VLOOKUP($D2,'Filtered-P'!$A$1:$AB$961,4,FALSE),-1000)),-1000) -> -1000 | R2: =IFERROR(IF($D2="Unlisted Player",-1001,IF(OR(H2="SP",H2="RP"),-1000,N2/VLOOKUP($D2,'Filtered-H'!$A$1:$AD$948,2,FALSE))),-1000) -> -1000 | S2: =IF(H2="",#N/A,H2&"."&1+SUMPRODUCT(($H$2:$H$949=H2)*($M$2:$M$949<M2))+COUNTIFS($M$2:M2,M2,$H$2:H2,H2)-1) -> RP.82 | T2: =IFERROR(IF(D2=0,1001,IF(VLOOKUP($D2,'ADP-Rank'!$A$2:$AV$948,38,FALSE)="",999+(IF(J2=FALSE,1,0)),VLOOKUP($D2,'ADP-Rank'!$A$2:$AV$948,38,FALSE))),999+(IF(J2=FALSE,1,0))) -> 999 | U2: =IF(H2="",#N/A,1+SUMPRODUCT(($H$2:$H$949=H2)*($M$2:$M$949<M2))+COUNTIFS($M$2:M2,M2,$H$2:H2,H2)-1) -> 82 | V2: =IF(ISERROR(VLOOKUP($B1,Keepers!$C$2:$D$450,2,FALSE)),B1,"") -> Mike Trout | W2: =IFERROR(INDEX($V$1:$V$948,SMALL(IF($V$1:$V$948<>"",ROW($V$1:$V$948)),ROW(V2))),"") -> Christian Yelich | X2: =IF(D2="Non-Ranked Player",0,IF(VLOOKUP($D2,'Starter Calc'!$B$2:$D$948,3,FALSE)="",0,VLOOKUP($D2,'Starter Calc'!$B$2:$D$948,3,FALSE))) -> 0 | Y2: =IFERROR(VLOOKUP(D2,'Starter Calc'!B$2:BS$948,70,FALSE),"") -> Bench
A3: Christian Yelich | B3: =IFERROR(INDEX($A$1:$A$948,SMALL(IF($A$1:$A$948<>"",ROW($A$1:$A$948)),ROW(A3))),"") -> Mookie Betts | C3: =IFERROR(IF(L3=FALSE,"",CHOOSE(MATCH(RIGHT('Your Points Draft'!$R$3,LEN('Your Points Draft'!$R$3)-8),$M$1:$R$1,0),1+SUMPRODUCT(($L$2:$L$949=TRUE)*($M$2:$M$949<M3))+COUNTIFS($L$2:L3,L3,$M$2:M3,M3)-1,1+SUMPRODUCT(($L$2:$L$949=TRUE)*($N$2:$N$949>N3))+COUNTIFS($L$2:L3,L3,$N$2:N3,N3)-1,1+SUMPRODUCT(($L$2:$L$949=TRUE)*($O$2:$O$949<O3))+COUNTIFS($L$2:L3,L3,$O$2:O3,O3)-1,1+SUMPRODUCT(($L$2:$L$949=TRUE)*($P$2:$P$949>P3))+COUNTIFS($L$2:L3,L3,$P$2:P3,P3)-1,1+SUMPRODUCT(($L$2:$L$949=TRUE)*($Q$2:$Q$949>Q3))+COUNTIFS($L$2:L3,L3,$Q$2:Q3,Q3)-1,1+SUMPRODUCT(($L$2:$L$949=TRUE)*($R$2:$R$949>R3))+COUNTIFS($L$2:L3,L3,$R$2:R3,R3)-1,)),"") -> 71 | D3: Jose Abreu | E3: =IFERROR(INDEX('Draft Log'!$D$3:$D$807,MATCH(D3,'Draft Log'!$C$3:$C$807,0)),"") ->  | F3: =IFERROR(INDEX('ADP-Rank'!$C$2:$C$819,MATCH(D3,'ADP-Rank'!$A$2:$A$819,0)),"") -> 1B | G3: =IFERROR(IF(F3=I3,"",IF(INDEX('Your Points Draft'!$B$10:$B$633,MATCH(D3,'Your Points Draft'!$C$10:$C$633,0))="",IF(I3<>"",I3,""),INDEX('Your Points Draft'!$B$10:$B$633,MATCH(D3,'Your Points Draft'!$C$10:$C$633,0)))),"") ->  | H3: 1B | J3: =INDEX('ADP-Rank'!$AH$2:$AH$819,MATCH(D3,'ADP-Rank'!$A$2:$A$819,0)) -> TRUE | K3: =IF(E3="",FALSE,TRUE) -> FALSE | L3: =IF(J3=FALSE,FALSE,IF(AND('Your Points Draft'!$R$5="Hide Drafted Players",K3=TRUE),FALSE,IF(OR('Your Points Draft'!$R$4="Show All Positions",AND('Your Points Draft'!$R$4="Only Show: C",H3="C"),AND('Your Points Draft'!$R$4="Only Show: 1B",H3="1B"),AND('Your Points Draft'!$R$4="Only Show: 2B",H3="2B"),AND('Your Points Draft'!$R$4="Only Show: 3B",H3="3B"),AND('Your Points Draft'!$R$4="Only Show: SS",H3="SS"),AND('Your Points Draft'!$R$4="Only Show: OF",H3="OF"),AND('Your Points Draft'!$R$4="Only Show: SP",H3="SP"),AND('Your Points Draft'!$R$4="Only Show: RP",H3="RP"),AND('Your Points Draft'!$R$4="Only Show: CI",OR(H3={"1B","3B"})),AND('Your Points Draft'!$R$4="Only Show: MI",OR(H3={"2B","SS"})),AND('Your Points Draft'!$R$4="Only Show: IF",OR(H3={"C","1B","2B","3B","SS"})),AND('Your Points Draft'!$R$4="Only Show: DH",OR(H3={"C","1B","2B","3B","SS","OF","DH"})),AND('Your Points Draft'!$R$4="Only Show: P",OR(H3={"SP","RP"})),AND('Your Points Draft'!$R$4="Only Show: LF",ISERROR(SEARCH("LF",VLOOKUP($D3,'ADP-Rank'!$A$2:$D$948,4,FALSE)))=FALSE),AND('Your Points Draft'!$R$4="Only Show: RF",ISERROR(SEARCH("RF",VLOOKUP($D3,'ADP-Rank'!$A$2:$D$948,4,FALSE)))=FALSE),AND('Your Points Draft'!$R$4="Only Show: CF",ISERROR(SEARCH("CF",VLOOKUP($D3,'ADP-Rank'!$A$2:$D$948,4,FALSE)))=FALSE)),TRUE,FALSE))) -> TRUE | M3: =IFERROR(IF(VLOOKUP($D3,'ADP-Rank'!$A$2:$AV$948,38,FALSE)="",9999,VLOOKUP($D3,'ADP-Rank'!$A$2:$AV$948,38,FALSE)),9999) -> 76 | N3: =IF(D3="Non-Ranked Player",-1001,IF(VLOOKUP($D3,'Starter Calc'!$B$2:$D$948,3,FALSE)="",-1000,VLOOKUP($D3,'Starter Calc'!$B$2:$D$948,3,FALSE))) -> 374.6529598 | O3: =IF(D3="Non-Ranked Player",10000,IFERROR(IF(VLOOKUP(D3,'ADP-Rank'!A3:AJ949,36,FALSE)="",9999,VLOOKUP(D3,'ADP-Rank'!A3:AJ949,36,FALSE)),9999)) -> 51 | P3: =IF($D3="Unlisted Player",-1001,IFERROR(IF(IF(OR($H3="RP",$H3="SP"),VLOOKUP($D3,'Filtered-P'!$A$3:$X$938,13,FALSE),VLOOKUP($D3,'Filtered-H'!$A$3:$Z$937,22,FALSE))="",-1000,IF(OR($H3="RP",$H3="SP"),VLOOKUP($D3,'Filtered-P'!$A$3:$X$938,13,FALSE),VLOOKUP($D3,'Filtered-H'!$A$3:$Z$937,22,FALSE))),-1000)) -> 51.45037403 | Q3: =IFERROR(IF($D3="Unlisted Player",-1001,IF(OR(H3="SP",H3="RP"),N3/VLOOKUP($D3,'Filtered-P'!$A$1:$AB$961,4,FALSE),-1000)),-1000) -> -1000 | R3: =IFERROR(IF($D3="Unlisted Player",-1001,IF(OR(H3="SP",H3="RP"),-1000,N3/VLOOKUP($D3,'Filtered-H'!$A$1:$AD$948,2,FALSE))),-1000) -> 0.5864949277 | S3: =IF(H3="",#N/A,H3&"."&1+SUMPRODUCT(($H$2:$H$949=H3)*($M$2:$M$949<M3))+COUNTIFS($M$2:M3,M3,$H$2:H3,H3)-1) -> 1B.4 | T3: =IFERROR(IF(D3=0,1001,IF(VLOOKUP($D3,'ADP-Rank'!$A$2:$AV$948,38,FALSE)="",999+(IF(J3=FALSE,1,0)),VLOOKUP($D3,'ADP-Rank'!$A$2:$AV$948,38,FALSE))),999+(IF(J3=FALSE,1,0))) -> 76 | U3: =IF(H3="",#N/A,1+SUMPRODUCT(($H$2:$H$949=H3)*($M$2:$M$949<M3))+COUNTIFS($M$2:M3,M3,$H$2:H3,H3)-1) -> 4 | V3: =IF(ISERROR(VLOOKUP($B2,Keepers!$C$2:$D$450,2,FALSE)),B2,"") -> Christian Yelich | W3: =IFERROR(INDEX($V$1:$V$948,SMALL(IF($V$1:$V$948<>"",ROW($V$1:$V$948)),ROW(V3))),"") -> Mookie Betts | X3: =IF(D3="Non-Ranked Player",0,IF(VLOOKUP($D3,'Starter Calc'!$B$2:$D$948,3,FALSE)="",0,VLOOKUP($D3,'Starter Calc'!$B$2:$D$948,3,FALSE))) -> 374.6529598 | Y3: =IFERROR(VLOOKUP(D3,'Starter Calc'!B$2:BS$948,70,FALSE),"") -> Bench
A4: Mookie Betts | B4: =IFERROR(INDEX($A$1:$A$948,SMALL(IF($A$1:$A$948<>"",ROW($A$1:$A$948)),ROW(A4))),"") -> Ronald Acuna | C4: =IFERROR(IF(L4=FALSE,"",CHOOSE(MATCH(RIGHT('Your Points Draft'!$R$3,LEN('Your Points Draft'!$R$3)-8),$M$1:$R$1,0),1+SUMPRODUCT(($L$2:$L$949=TRUE)*($M$2:$M$949<M4))+COUNTIFS($L$2:L4,L4,$M$2:M4,M4)-1,1+SUMPRODUCT(($L$2:$L$949=TRUE)*($N$2:$N$949>N4))+COUNTIFS($L$2:L4,L4,$N$2:N4,N4)-1,1+SUMPRODUCT(($L$2:$L$949=TRUE)*($O$2:$O$949<O4))+COUNTIFS($L$2:L4,L4,$O$2:O4,O4)-1,1+SUMPRODUCT(($L$2:$L$949=TRUE)*($P$2:$P$949>P4))+COUNTIFS($L$2:L4,L4,$P$2:P4,P4)-1,1+SUMPRODUCT(($L$2:$L$949=TRUE)*($Q$2:$Q$949>Q4))+COUNTIFS($L$2:L4,L4,$Q$2:Q4,Q4)-1,1+SUMPRODUCT(($L$2:$L$949=TRUE)*($R$2:$R$949>R4))+COUNTIFS($L$2:L4,L4,$R$2:R4,R4)-1,)),"") -> 4 | D4: Ronald Acuna | E4: =IFERROR(INDEX('Draft Log'!$D$3:$D$807,MATCH(D4,'Draft Log'!$C$3:$C$807,0)),"") ->  | F4: =IFERROR(INDEX('ADP-Rank'!$C$2:$C$819,MATCH(D4,'ADP-Rank'!$A$2:$A$819,0)),"") -> OF | G4: =IFERROR(IF(F4=I4,"",IF(INDEX('Your Points Draft'!$B$10:$B$633,MATCH(D4,'Your Points Draft'!$C$10:$C$633,0))="",IF(I4<>"",I4,""),INDEX('Your Points Draft'!$B$10:$B$633,MATCH(D4,'Your Points Draft'!$C$10:$C$633,0)))),"") ->  | H4: OF | J4: =INDEX('ADP-Rank'!$AH$2:$AH$819,MATCH(D4,'ADP-Rank'!$A$2:$A$819,0)) -> TRUE | K4: FALSE | L4: =IF(J4=FALSE,FALSE,IF(AND('Your Points Draft'!$R$5="Hide Drafted Players",K4=TRUE),FALSE,IF(OR('Your Points Draft'!$R$4="Show All Positions",AND('Your Points Draft'!$R$4="Only Show: C",H4="C"),AND('Your Points Draft'!$R$4="Only Show: 1B",H4="1B"),AND('Your Points Draft'!$R$4="Only Show: 2B",H4="2B"),AND('Your Points Draft'!$R$4="Only Show: 3B",H4="3B"),AND('Your Points Draft'!$R$4="Only Show: SS",H4="SS"),AND('Your Points Draft'!$R$4="Only Show: OF",H4="OF"),AND('Your Points Draft'!$R$4="Only Show: SP",H4="SP"),AND('Your Points Draft'!$R$4="Only Show: RP",H4="RP"),AND('Your Points Draft'!$R$4="Only Show: CI",OR(H4={"1B","3B"})),AND('Your Points Draft'!$R$4="Only Show: MI",OR(H4={"2B","SS"})),AND('Your Points Draft'!$R$4="Only Show: IF",OR(H4={"C","1B","2B","3B","SS"})),AND('Your Points Draft'!$R$4="Only Show: DH",OR(H4={"C","1B","2B","3B","SS","OF","DH"})),AND('Your Points Draft'!$R$4="Only Show: P",OR(H4={"SP","RP"})),AND('Your Points Draft'!$R$4="Only Show: LF",ISERROR(SEARCH("LF",VLOOKUP($D4,'ADP-Rank'!$A$2:$D$948,4,FALSE)))=FALSE),AND('Your Points Draft'!$R$4="Only Show: RF",ISERROR(SEARCH("RF",VLOOKUP($D4,'ADP-Rank'!$A$2:$D$948,4,FALSE)))=FALSE),AND('Your Points Draft'!$R$4="Only Show: CF",ISERROR(SEARCH("CF",VLOOKUP($D4,'ADP-Rank'!$A$2:$D$948,4,FALSE)))=FALSE)),TRUE,FALSE))) -> TRUE | M4: =IFERROR(IF(VLOOKUP($D4,'ADP-Rank'!$A$2:$AV$948,38,FALSE)="",9999,VLOOKUP($D4,'ADP-Rank'!$A$2:$AV$948,38,FALSE)),9999) -> 5.88 | N4: =IF(D4="Non-Ranked Player",-1001,IF(VLOOKUP($D4,'Starter Calc'!$B$2:$D$948,3,FALSE)="",-1000,VLOOKUP($D4,'Starter Calc'!$B$2:$D$948,3,FALSE))) -> 511.2080882 | O4: =IF(D4="Non-Ranked Player",10000,IFERROR(IF(VLOOKUP(D4,'ADP-Rank'!A4:AJ950,36,FALSE)="",9999,VLOOKUP(D4,'ADP-Rank'!A4:AJ950,36,FALSE)),9999)) -> 1 | P4: =IF($D4="Unlisted Player",-1001,IFERROR(IF(IF(OR($H4="RP",$H4="SP"),VLOOKUP($D4,'Filtered-P'!$A$3:$X$938,13,FALSE),VLOOKUP($D4,'Filtered-H'!$A$3:$Z$937,22,FALSE))="",-1000,IF(OR($H4="RP",$H4="SP"),VLOOKUP($D4,'Filtered-P'!$A$3:$X$938,13,FALSE),VLOOKUP($D4,'Filtered-H'!$A$3:$Z$937,22,FALSE))),-1000)) -> 197.2455795 | Q4: =IFERROR(IF($D4="Unlisted Player",-1001,IF(OR(H4="SP",H4="RP"),N4/VLOOKUP($D4,'Filtered-P'!$A$1:$AB$961,4,FALSE),-1000)),-1000) -> -1000 | R4: =IFERROR(IF($D4="Unlisted Player",-1001,IF(OR(H4="SP",H4="RP"),-1000,N4/VLOOKUP($D4,'Filtered-H'!$A$1:$AD$948,2,FALSE))),-1000) -> 0.7571770542 | S4: =IF(H4="",#N/A,H4&"."&1+SUMPRODUCT(($H$2:$H$949=H4)*($M$2:$M$949<M4))+COUNTIFS($M$2:M4,M4,$H$2:H4,H4)-1) -> OF.4 | T4: =IFERROR(IF(D4=0,1001,IF(VLOOKUP($D4,'ADP-Rank'!$A$2:$AV$948,38,FALSE)="",999+(IF(J4=FALSE,1,0)),VLOOKUP($D4,'ADP-Rank'!$A$2:$AV$948,38,FALSE))),999+(IF(J4=FALSE,1,0))) -> 5.88 | U4: =IF(H4="",#N/A,1+SUMPRODUCT(($H$2:$H$949=H4)*($M$2:$M$949<M4))+COUNTIFS($M$2:M4,M4,$H$2:H4,H4)-1) -> 4 | V4: =IF(ISERROR(VLOOKUP($B3,Keepers!$C$2:$D$450,2,FALSE)),B3,"") -> Mookie Betts | W4: =IFERROR(INDEX($V$1:$V$948,SMALL(IF($V$1:$V$948<>"",ROW($V$1:$V$948)),ROW(V4))),"") -> Ronald Acuna | X4: =IF(D4="Non-Ranked Player",0,IF(VLOOKUP($D4,'Starter Calc'!$B$2:$D$948,3,FALSE)="",0,VLOOKUP($D4,'Starter Calc'!$B$2:$D$948,3,FALSE))) -> 511.2080882 | Y4: =IFERROR(VLOOKUP(D4,'Starter Calc'!B$2:BS$948,70,FALSE),"") -> Bench
A5: Ronald Acuna | B5: =IFERROR(INDEX($A$1:$A$948,SMALL(IF($A$1:$A$948<>"",ROW($A$1:$A$948)),ROW(A5))),"") -> Gerrit Cole | C5: =IFERROR(IF(L5=FALSE,"",CHOOSE(MATCH(RIGHT('Your Points Draft'!$R$3,LEN('Your Points Draft'!$R$3)-8),$M$1:$R$1,0),1+SUMPRODUCT(($L$2:$L$949=TRUE)*($M$2:$M$949<M5))+COUNTIFS($L$2:L5,L5,$M$2:M5,M5)-1,1+SUMPRODUCT(($L$2:$L$949=TRUE)*($N$2:$N$949>N5))+COUNTIFS($L$2:L5,L5,$N$2:N5,N5)-1,1+SUMPRODUCT(($L$2:$L$949=TRUE)*($O$2:$O$949<O5))+COUNTIFS($L$2:L5,L5,$O$2:O5,O5)-1,1+SUMPRODUCT(($L$2:$L$949=TRUE)*($P$2:$P$949>P5))+COUNTIFS($L$2:L5,L5,$P$2:P5,P5)-1,1+SUMPRODUCT(($L$2:$L$949=TRUE)*($Q$2:$Q$949>Q5))+COUNTIFS($L$2:L5,L5,$Q$2:Q5,Q5)-1,1+SUMPRODUCT(($L$2:$L$949=TRUE)*($R$2:$R$949>R5))+COUNTIFS($L$2:L5,L5,$R$2:R5,R5)-1,)),"") -> 297 | D5: Willy Adames | E5: =IFERROR(INDEX('Draft Log'!$D$3:$D$807,MATCH(D5,'Draft Log'!$C$3:$C$807,0)),"") ->  | F5: =IFERROR(INDEX('ADP-Rank'!$C$2:$C$819,MATCH(D5,'ADP-Rank'!$A$2:$A$819,0)),"") -> SS | G5: =IFERROR(IF(F5=I5,"",IF(INDEX('Your Points Draft'!$B$10:$B$633,MATCH(D5,'Your Points Draft'!$C$10:$C$633,0))="",IF(I5<>"",I5,""),INDEX('Your Points Draft'!$B$10:$B$633,MATCH(D5,'Your Points Draft'!$C$10:$C$633,0)))),"") ->  | H5: SS | J5: =INDEX('ADP-Rank'!$AH$2:$AH$819,MATCH(D5,'ADP-Rank'!$A$2:$A$819,0)) -> TRUE | K5: FALSE | L5: =IF(J5=FALSE,FALSE,IF(AND('Your Points Draft'!$R$5="Hide Drafted Players",K5=TRUE),FALSE,IF(OR('Your Points Draft'!$R$4="Show All Positions",AND('Your Points Draft'!$R$4="Only Show: C",H5="C"),AND('Your Points Draft'!$R$4="Only Show: 1B",H5="1B"),AND('Your Points Draft'!$R$4="Only Show: 2B",H5="2B"),AND('Your Points Draft'!$R$4="Only Show: 3B",H5="3B"),AND('Your Points Draft'!$R$4="Only Show: SS",H5="SS"),AND('Your Points Draft'!$R$4="Only Show: OF",H5="OF"),AND('Your Points Draft'!$R$4="Only Show: SP",H5="SP"),AND('Your Points Draft'!$R$4="Only Show: RP",H5="RP"),AND('Your Points Draft'!$R$4="Only Show: CI",OR(H5={"1B","3B"})),AND('Your Points Draft'!$R$4="Only Show: MI",OR(H5={"2B","SS"})),AND('Your Points Draft'!$R$4="Only Show: IF",OR(H5={"C","1B","2B","3B","SS"})),AND('Your Points Draft'!$R$4="Only Show: DH",OR(H5={"C","1B","2B","3B","SS","OF","DH"})),AND('Your Points Draft'!$R$4="Only Show: P",OR(H5={"SP","RP"})),AND('Your Points Draft'!$R$4="Only Show: LF",ISERROR(SEARCH("LF",VLOOKUP($D5,'ADP-Rank'!$A$2:$D$948,4,FALSE)))=FALSE),AND('Your Points Draft'!$R$4="Only Show: RF",ISERROR(SEARCH("RF",VLOOKUP($D5,'ADP-Rank'!$A$2:$D$948,4,FALSE)))=FALSE),AND('Your Points Draft'!$R$4="Only Show: CF",ISERROR(SEARCH("CF",VLOOKUP($D5,'ADP-Rank'!$A$2:$D$948,4,FALSE)))=FALSE)),TRUE,FALSE))) -> TRUE | M5: =IFERROR(IF(VLOOKUP($D5,'ADP-Rank'!$A$2:$AV$948,38,FALSE)="",9999,VLOOKUP($D5,'ADP-Rank'!$A$2:$AV$948,38,FALSE)),9999) -> 273 | N5: =IF(D5="Non-Ranked Player",-1001,IF(VLOOKUP($D5,'Starter Calc'!$B$2:$D$948,3,FALSE)="",-1000,VLOOKUP($D5,'Starter Calc'!$B$2:$D$948,3,FALSE))) -> 265.1182342 | O5: =IF(D5="Non-Ranked Player",10000,IFERROR(IF(VLOOKUP(D5,'ADP-Rank'!A5:AJ951,36,FALSE)="",9999,VLOOKUP(D5,'ADP-Rank'!A5:AJ951,36,FALSE)),9999)) -> 260 | P5: =IF($D5="Unlisted Player",-1001,IFERROR(IF(IF(OR($H5="RP",$H5="SP"),VLOOKUP($D5,'Filtered-P'!$A$3:$X$938,13,FALSE),VLOOKUP($D5,'Filtered-H'!$A$3:$Z$937,22,FALSE))="",-1000,IF(OR($H5="RP",$H5="SP"),VLOOKUP($D5,'Filtered-P'!$A$3:$X$938,13,FALSE),VLOOKUP($D5,'Filtered-H'!$A$3:$Z$937,22,FALSE))),-1000)) -> -58.05824677 | Q5: =IFERROR(IF($D5="Unlisted Player",-1001,IF(OR(H5="SP",H5="RP"),N5/VLOOKUP($D5,'Filtered-P'!$A$1:$AB$961,4,FALSE),-1000)),-1000) -> -1000 | R5: =IFERROR(IF($D5="Unlisted Player",-1001,IF(OR(H5="SP",H5="RP"),-1000,N5/VLOOKUP($D5,'Filtered-H'!$A$1:$AD$948,2,FALSE))),-1000) -> 0.4350122802 | S5: =IF(H5="",#N/A,H5&"."&1+SUMPRODUCT(($H$2:$H$949=H5)*($M$2:$M$949<M5))+COUNTIFS($M$2:M5,M5,$H$2:H5,H5)-1) -> SS.27 | T5: =IFERROR(IF(D5=0,1001,IF(VLOOKUP($D5,'ADP-Rank'!$A$2:$AV$948,38,FALSE)="",999+(IF(J5=FALSE,1,0)),VLOOKUP($D5,'ADP-Rank'!$A$2:$AV$948,38,FALSE))),999+(IF(J5=FALSE,1,0))) -> 273 | U5: =IF(H5="",#N/A,1+SUMPRODUCT(($H$2:$H$949=H5)*($M$2:$M$949<M5))+COUNTIFS($M$2:M5,M5,$H$2:H5,H5)-1) -> 27 | V5: =IF(ISERROR(VLOOKUP($B4,Keepers!$C$2:$D$450,2,FALSE)),B4,"") -> Ronald Acuna | W5: =IFERROR(INDEX($V$1:$V$948,SMALL(IF($V$1:$V$948<>"",ROW($V$1:$V$948)),ROW(V5))),"") -> Gerrit Cole | X5: =IF(D5="Non-Ranked Player",0,IF(VLOOKUP($D5,'Starter Calc'!$B$2:$D$948,3,FALSE)="",0,VLOOKUP($D5,'Starter Calc'!$B$2:$D$948,3,FALSE))) -> 265.1182342 | Y5: =IFERROR(VLOOKUP(D5,'Starter Calc'!B$2:BS$948,70,FALSE),"") -> Bench
A6: Gerrit Cole | B6: =IFERROR(INDEX($A$1:$A$948,SMALL(IF($A$1:$A$948<>"",ROW($A$1:$A$948)),ROW(A6))),"") -> Alex Bregman | C6: =IFERROR(IF(L6=FALSE,"",CHOOSE(MATCH(RIGHT('Your Points Draft'!$R$3,LEN('Your Points Draft'!$R$3)-8),$M$1:$R$1,0),1+SUMPRODUCT(($L$2:$L$949=TRUE)*($M$2:$M$949<M6))+COUNTIFS($L$2:L6,L6,$M$2:M6,M6)-1,1+SUMPRODUCT(($L$2:$L$949=TRUE)*($N$2:$N$949>N6))+COUNTIFS($L$2:L6,L6,$N$2:N6,N6)-1,1+SUMPRODUCT(($L$2:$L$949=TRUE)*($O$2:$O$949<O6))+COUNTIFS($L$2:L6,L6,$O$2:O6,O6)-1,1+SUMPRODUCT(($L$2:$L$949=TRUE)*($P$2:$P$949>P6))+COUNTIFS($L$2:L6,L6,$P$2:P6,P6)-1,1+SUMPRODUCT(($L$2:$L$949=TRUE)*($Q$2:$Q$949>Q6))+COUNTIFS($L$2:L6,L6,$Q$2:Q6,Q6)-1,1+SUMPRODUCT(($L$2:$L$949=TRUE)*($R$2:$R$949>R6))+COUNTIFS($L$2:L6,L6,$R$2:R6,R6)-1,)),"") -> 493 | D6: Matt Adams | E6: =IFERROR(INDEX('Draft Log'!$D$3:$D$807,MATCH(D6,'Draft Log'!$C$3:$C$807,0)),"") ->  | F6: =IFERROR(INDEX('ADP-Rank'!$C$2:$C$819,MATCH(D6,'ADP-Rank'!$A$2:$A$819,0)),"") -> 1B | G6: =IFERROR(IF(F6=I6,"",IF(INDEX('Your Points Draft'!$B$10:$B$633,MATCH(D6,'Your Points Draft'!$C$10:$C$633,0))="",IF(I6<>"",I6,""),INDEX('Your Points Draft'!$B$10:$B$633,MATCH(D6,'Your Points Draft'!$C$10:$C$633,0)))),"") ->  | H6: 1B | J6: =INDEX('ADP-Rank'!$AH$2:$AH$819,MATCH(D6,'ADP-Rank'!$A$2:$A$819,0)) -> TRUE | K6: FALSE | L6: =IF(J6=FALSE,FALSE,IF(AND('Your Points Draft'!$R$5="Hide Drafted Players",K6=TRUE),FALSE,IF(OR('Your Points Draft'!$R$4="Show All Positions",AND('Your Points Draft'!$R$4="Only Show: C",H6="C"),AND('Your Points Draft'!$R$4="Only Show: 1B",H6="1B"),AND('Your Points Draft'!$R$4="Only Show: 2B",H6="2B"),AND('Your Points Draft'!$R$4="Only Show: 3B",H6="3B"),AND('Your Points Draft'!$R$4="Only Show: SS",H6="SS"),AND('Your Points Draft'!$R$4="Only Show: OF",H6="OF"),AND('Your Points Draft'!$R$4="Only Show: SP",H6="SP"),AND('Your Points Draft'!$R$4="Only Show: RP",H6="RP"),AND('Your Points Draft'!$R$4="Only Show: CI",OR(H6={"1B","3B"})),AND('Your Points Draft'!$R$4="Only Show: MI",OR(H6={"2B","SS"})),AND('Your Points Draft'!$R$4="Only Show: IF",OR(H6={"C","1B","2B","3B","SS"})),AND('Your Points Draft'!$R$4="Only Show: DH",OR(H6={"C","1B","2B","3B","SS","OF","DH"})),AND('Your Points Draft'!$R$4="Only Show: P",OR(H6={"SP","RP"})),AND('Your Points Draft'!$R$4="Only Show: LF",ISERROR(SEARCH("LF",VLOOKUP($D6,'ADP-Rank'!$A$2:$D$948,4,FALSE)))=FALSE),AND('Your Points Draft'!$R$4="Only Show: RF",ISERROR(SEARCH("RF",VLOOKUP($D6,'ADP-Rank'!$A$2:$D$948,4,FALSE)))=FALSE),AND('Your Points Draft'!$R$4="Only Show: CF",ISERROR(SEARCH("CF",VLOOKUP($D6,'ADP-Rank'!$A$2:$D$948,4,FALSE)))=FALSE)),TRUE,FALSE))) -> TRUE | M6: =IFERROR(IF(VLOOKUP($D6,'ADP-Rank'!$A$2:$AV$948,38,FALSE)="",9999,VLOOKUP($D6,'ADP-Rank'!$A$2:$AV$948,38,FALSE)),9999) -> 9999 | N6: =IF(D6="Non-Ranked Player",-1001,IF(VLOOKUP($D6,'Starter Calc'!$B$2:$D$948,3,FALSE)="",-1000,VLOOKUP($D6,'Starter Calc'!$B$2:$D$948,3,FALSE))) -> 78.70552662 | O6: =IF(D6="Non-Ranked Player",10000,IFERROR(IF(VLOOKUP(D6,'ADP-Rank'!A6:AJ952,36,FALSE)="",9999,VLOOKUP(D6,'ADP-Rank'!A6:AJ952,36,FALSE)),9999)) -> 9999 | P6: =IF($D6="Unlisted Player",-1001,IFERROR(IF(IF(OR($H6="RP",$H6="SP"),VLOOKUP($D6,'Filtered-P'!$A$3:$X$938,13,FALSE),VLOOKUP($D6,'Filtered-H'!$A$3:$Z$937,22,FALSE))="",-1000,IF(OR($H6="RP",$H6="SP"),VLOOKUP($D6,'Filtered-P'!$A$3:$X$938,13,FALSE),VLOOKUP($D6,'Filtered-H'!$A$3:$Z$937,22,FALSE))),-1000)) -> -244.4970592 | Q6: =IFERROR(IF($D6="Unlisted Player",-1001,IF(OR(H6="SP",H6="RP"),N6/VLOOKUP($D6,'Filtered-P'!$A$1:$AB$961,4,FALSE),-1000)),-1000) -> -1000 | R6: =IFERROR(IF($D6="Unlisted Player",-1001,IF(OR(H6="SP",H6="RP"),-1000,N6/VLOOKUP($D6,'Filtered-H'!$A$1:$AD$948,2,FALSE))),-1000) -> 0.6268859149 | S6: =IF(H6="",#N/A,H6&"."&1+SUMPRODUCT(($H$2:$H$949=H6)*($M$2:$M$949<M6))+COUNTIFS($M$2:M6,M6,$H$2:H6,H6)-1) -> 1B.28 | T6: =IFERROR(IF(D6=0,1001,IF(VLOOKUP($D6,'ADP-Rank'!$A$2:$AV$948,38,FALSE)="",999+(IF(J6=FALSE,1,0)),VLOOKUP($D6,'ADP-Rank'!$A$2:$AV$948,38,FALSE))),999+(IF(J6=FALSE,1,0))) -> 999 | U6: =IF(H6="",#N/A,1+SUMPRODUCT(($H$2:$H$949=H6)*($M$2:$M$949<M6))+COUNTIFS($M$2:M6,M6,$H$2:H6,H6)-1) -> 28 | V6: =IF(ISERROR(VLOOKUP($B5,Keepers!$C$2:$D$450,2,FALSE)),B5,"") -> Gerrit Cole | W6: =IFERROR(INDEX($V$1:$V$948,SMALL(IF($V$1:$V$948<>"",ROW($V$1:$V$948)),ROW(V6))),"") -> Alex Bregman | X6: =IF(D6="Non-Ranked Player",0,IF(VLOOKUP($D6,'Starter Calc'!$B$2:$D$948,3,FALSE)="",0,VLOOKUP($D6,'Starter Calc'!$B$2:$D$948,3,FALSE))) -> 78.70552662 | Y6: =IFERROR(VLOOKUP(D6,'Starter Calc'!B$2:BS$948,70,FALSE),"") -> Bench
A7: Alex Bregman | B7: =IFERROR(INDEX($A$1:$A$948,SMALL(IF($A$1:$A$948<>"",ROW($A$1:$A$948)),ROW(A7))),"") -> Cody Bellinger | C7: =IFERROR(IF(L7=FALSE,"",CHOOSE(MATCH(RIGHT('Your Points Draft'!$R$3,LEN('Your Points Draft'!$R$3)-8),$M$1:$R$1,0),1+SUMPRODUCT(($L$2:$L$949=TRUE)*($M$2:$M$949<M7))+COUNTIFS($L$2:L7,L7,$M$2:M7,M7)-1,1+SUMPRODUCT(($L$2:$L$949=TRUE)*($N$2:$N$949>N7))+COUNTIFS($L$2:L7,L7,$N$2:N7,N7)-1,1+SUMPRODUCT(($L$2:$L$949=TRUE)*($O$2:$O$949<O7))+COUNTIFS($L$2:L7,L7,$O$2:O7,O7)-1,1+SUMPRODUCT(($L$2:$L$949=TRUE)*($P$2:$P$949>P7))+COUNTIFS($L$2:L7,L7,$P$2:P7,P7)-1,1+SUMPRODUCT(($L$2:$L$949=TRUE)*($Q$2:$Q$949>Q7))+COUNTIFS($L$2:L7,L7,$Q$2:Q7,Q7)-1,1+SUMPRODUCT(($L$2:$L$949=TRUE)*($R$2:$R$949>R7))+COUNTIFS($L$2:L7,L7,$R$2:R7,R7)-1,)),"") -> 179 | D7: Jo Adell | E7: =IFERROR(INDEX('Draft Log'!$D$3:$D$807,MATCH(D7,'Draft Log'!$C$3:$C$807,0)),"") ->  | F7: =IFERROR(INDEX('ADP-Rank'!$C$2:$C$819,MATCH(D7,'ADP-Rank'!$A$2:$A$819,0)),"") -> OF | G7: =IFERROR(IF(F7=I7,"",IF(INDEX('Your Points Draft'!$B$10:$B$633,MATCH(D7,'Your Points Draft'!$C$10:$C$633,0))="",IF(I7<>"",I7,""),INDEX('Your Points Draft'!$B$10:$B$633,MATCH(D7,'Your Points Draft'!$C$10:$C$633,0)))),"") ->  | H7: OF | J7: =INDEX('ADP-Rank'!$AH$2:$AH$819,MATCH(D7,'ADP-Rank'!$A$2:$A$819,0)) -> TRUE | K7: FALSE | L7: =IF(J7=FALSE,FALSE,IF(AND('Your Points Draft'!$R$5="Hide Drafted Players",K7=TRUE),FALSE,IF(OR('Your Points Draft'!$R$4="Show All Positions",AND('Your Points Draft'!$R$4="Only Show: C",H7="C"),AND('Your Points Draft'!$R$4="Only Show: 1B",H7="1B"),AND('Your Points Draft'!$R$4="Only Show: 2B",H7="2B"),AND('Your Points Draft'!$R$4="Only Show: 3B",H7="3B"),AND('Your Points Draft'!$R$4="Only Show: SS",H7="SS"),AND('Your Points Draft'!$R$4="Only Show: OF",H7="OF"),AND('Your Points Draft'!$R$4="Only Show: SP",H7="SP"),AND('Your Points Draft'!$R$4="Only Show: RP",H7="RP"),AND('Your Points Draft'!$R$4="Only Show: CI",OR(H7={"1B","3B"})),AND('Your Points Draft'!$R$4="Only Show: MI",OR(H7={"2B","SS"})),AND('Your Points Draft'!$R$4="Only Show: IF",OR(H7={"C","1B","2B","3B","SS"})),AND('Your Points Draft'!$R$4="Only Show: DH",OR(H7={"C","1B","2B","3B","SS","OF","DH"})),AND('Your Points Draft'!$R$4="Only Show: P",OR(H7={"SP","RP"})),AND('Your Points Draft'!$R$4="Only Show: LF",ISERROR(SEARCH("LF",VLOOKUP($D7,'ADP-Rank'!$A$2:$D$948,4,FALSE)))=FALSE),AND('Your Points Draft'!$R$4="Only Show: RF",ISERROR(SEARCH("RF",VLOOKUP($D7,'ADP-Rank'!$A$2:$D$948,4,FALSE)))=FALSE),AND('Your Points Draft'!$R$4="Only Show: CF",ISERROR(SEARCH("CF",VLOOKUP($D7,'ADP-Rank'!$A$2:$D$948,4,FALSE)))=FALSE)),TRUE,FALSE))) -> TRUE | M7: =IFERROR(IF(VLOOKUP($D7,'ADP-Rank'!$A$2:$AV$948,38,FALSE)="",9999,VLOOKUP($D7,'ADP-Rank'!$A$2:$AV$948,38,FALSE)),9999) -> 181.83 | N7: =IF(D7="Non-Ranked Player",-1001,IF(VLOOKUP($D7,'Starter Calc'!$B$2:$D$948,3,FALSE)="",-1000,VLOOKUP($D7,'Starter Calc'!$B$2:$D$948,3,FALSE))) -> 174.947243 | O7: =IF(D7="Non-Ranked Player",10000,IFERROR(IF(VLOOKUP(D7,'ADP-Rank'!A7:AJ953,36,FALSE)="",9999,VLOOKUP(D7,'ADP-Rank'!A7:AJ953,36,FALSE)),9999)) -> 9999 | P7: =IF($D7="Unlisted Player",-1001,IFERROR(IF(IF(OR($H7="RP",$H7="SP"),VLOOKUP($D7,'Filtered-P'!$A$3:$X$938,13,FALSE),VLOOKUP($D7,'Filtered-H'!$A$3:$Z$937,22,FALSE))="",-1000,IF(OR($H7="RP",$H7="SP"),VLOOKUP($D7,'Filtered-P'!$A$3:$X$938,13,FALSE),VLOOKUP($D7,'Filtered-H'!$A$3:$Z$937,22,FALSE))),-1000)) -> -139.0152657 | Q7: =IFERROR(IF($D7="Unlisted Player",-1001,IF(OR(H7="SP",H7="RP"),N7/VLOOKUP($D7,'Filtered-P'!$A$1:$AB$961,4,FALSE),-1000)),-1000) -> -1000 | R7: =IFERROR(IF($D7="Unlisted Player",-1001,IF(OR(H7="SP",H7="RP"),-1000,N7/VLOOKUP($D7,'Filtered-H'!$A$1:$AD$948,2,FALSE))),-1000) -> 0.4459526969 | S7: =IF(H7="",#N/A,H7&"."&1+SUMPRODUCT(($H$2:$H$949=H7)*($M$2:$M$949<M7))+COUNTIFS($M$2:M7,M7,$H$2:H7,H7)-1) -> OF.38 | T7: =IFERROR(IF(D7=0,1001,IF(VLOOKUP($D7,'ADP-Rank'!$A$2:$AV$948,38,FALSE)="",999+(IF(J7=FALSE,1,0)),VLOOKUP($D7,'ADP-Rank'!$A$2:$AV$948,38,FALSE))),999+(IF(J7=FALSE,1,0))) -> 181.83 | U7: =IF(H7="",#N/A,1+SUMPRODUCT(($H$2:$H$949=H7)*($M$2:$M$949<M7))+COUNTIFS($M$2:M7,M7,$H$2:H7,H7)-1) -> 38 | V7: =IF(ISERROR(VLOOKUP($B6,Keepers!$C$2:$D$450,2,FALSE)),B6,"") -> Alex Bregman | W7: =IFERROR(INDEX($V$1:$V$948,SMALL(IF($V$1:$V$948<>"",ROW($V$1:$V$948)),ROW(V7))),"") -> Cody Bellinger | X7: =IF(D7="Non-Ranked Player",0,IF(VLOOKUP($D7,'Starter Calc'!$B$2:$D$948,3,FALSE)="",0,VLOOKUP($D7,'Starter Calc'!$B$2:$D$948,3,FALSE))) -> 174.947243 | Y7: =IFERROR(VLOOKUP(D7,'Starter Calc'!B$2:BS$948,70,FALSE),"") -> Bench
A8: Cody Bellinger | B8: =IFERROR(INDEX($A$1:$A$948,SMALL(IF($A$1:$A$948<>"",ROW($A$1:$A$948)),ROW(A8))),"") -> Nolan Arenado | C8: =IFERROR(IF(L8=FALSE,"",CHOOSE(MATCH(RIGHT('Your Points Draft'!$R$3,LEN('Your Points Draft'!$R$3)-8),$M$1:$R$1,0),1+SUMPRODUCT(($L$2:$L$949=TRUE)*($M$2:$M$949<M8))+COUNTIFS($L$2:L8,L8,$M$2:M8,M8)-1,1+SUMPRODUCT(($L$2:$L$949=TRUE)*($N$2:$N$949>N8))+COUNTIFS($L$2:L8,L8,$N$2:N8,N8)-1,1+SUMPRODUCT(($L$2:$L$949=TRUE)*($O$2:$O$949<O8))+COUNTIFS($L$2:L8,L8,$O$2:O8,O8)-1,1+SUMPRODUCT(($L$2:$L$949=TRUE)*($P$2:$P$949>P8))+COUNTIFS($L$2:L8,L8,$P$2:P8,P8)-1,1+SUMPRODUCT(($L$2:$L$949=TRUE)*($Q$2:$Q$949>Q8))+COUNTIFS($L$2:L8,L8,$Q$2:Q8,Q8)-1,1+SUMPRODUCT(($L$2:$L$949=TRUE)*($R$2:$R$949>R8))+COUNTIFS($L$2:L8,L8,$R$2:R8,R8)-1,)),"") -> 494 | D8: Ehire Adrianza | E8: =IFERROR(INDEX('Draft Log'!$D$3:$D$807,MATCH(D8,'Draft Log'!$C$3:$C$807,0)),"") ->  | F8: =IFERROR(INDEX('ADP-Rank'!$C$2:$C$819,MATCH(D8,'ADP-Rank'!$A$2:$A$819,0)),"") -> SS | G8: =IFERROR(IF(F8=I8,"",IF(INDEX('Your Points Draft'!$B$10:$B$633,MATCH(D8,'Your Points Draft'!$C$10:$C$633,0))="",IF(I8<>"",I8,""),INDEX('Your Points Draft'!$B$10:$B$633,MATCH(D8,'Your Points Draft'!$C$10:$C$633,0)))),"") ->  | H8: SS | J8: =INDEX('ADP-Rank'!$AH$2:$AH$819,MATCH(D8,'ADP-Rank'!$A$2:$A$819,0)) -> TRUE | K8: FALSE | L8: =IF(J8=FALSE,FALSE,IF(AND('Your Points Draft'!$R$5="Hide Drafted Players",K8=TRUE),FALSE,IF(OR('Your Points Draft'!$R$4="Show All Positions",AND('Your Points Draft'!$R$4="Only Show: C",H8="C"),AND('Your Points Draft'!$R$4="Only Show: 1B",H8="1B"),AND('Your Points Draft'!$R$4="Only Show: 2B",H8="2B"),AND('Your Points Draft'!$R$4="Only Show: 3B",H8="3B"),AND('Your Points Draft'!$R$4="Only Show: SS",H8="SS"),AND('Your Points Draft'!$R$4="Only Show: OF",H8="OF"),AND('Your Points Draft'!$R$4="Only Show: SP",H8="SP"),AND('Your Points Draft'!$R$4="Only Show: RP",H8="RP"),AND('Your Points Draft'!$R$4="Only Show: CI",OR(H8={"1B","3B"})),AND('Your Points Draft'!$R$4="Only Show: MI",OR(H8={"2B","SS"})),AND('Your Points Draft'!$R$4="Only Show: IF",OR(H8={"C","1B","2B","3B","SS"})),AND('Your Points Draft'!$R$4="Only Show: DH",OR(H8={"C","1B","2B","3B","SS","OF","DH"})),AND('Your Points Draft'!$R$4="Only Show: P",OR(H8={"SP","RP"})),AND('Your Points Draft'!$R$4="Only Show: LF",ISERROR(SEARCH("LF",VLOOKUP($D8,'ADP-Rank'!$A$2:$D$948,4,FALSE)))=FALSE),AND('Your Points Draft'!$R$4="Only Show: RF",ISERROR(SEARCH("RF",VLOOKUP($D8,'ADP-Rank'!$A$2:$D$948,4,FALSE)))=FALSE),AND('Your Points Draft'!$R$4="Only Show: CF",ISERROR(SEARCH("CF",VLOOKUP($D8,'ADP-Rank'!$A$2:$D$948,4,FALSE)))=FALSE)),TRUE,FALSE))) -> TRUE | M8: =IFERROR(IF(VLOOKUP($D8,'ADP-Rank'!$A$2:$AV$948,38,FALSE)="",9999,VLOOKUP($D8,'ADP-Rank'!$A$2:$AV$948,38,FALSE)),9999) -> 9999 | N8: =IF(D8="Non-Ranked Player",-1001,IF(VLOOKUP($D8,'Starter Calc'!$B$2:$D$948,3,FALSE)="",-1000,VLOOKUP($D8,'Starter Calc'!$B$2:$D$948,3,FALSE))) -> 90.00496851 | O8: =IF(D8="Non-Ranked Player",10000,IFERROR(IF(VLOOKUP(D8,'ADP-Rank'!A8:AJ954,36,FALSE)="",9999,VLOOKUP(D8,'ADP-Rank'!A8:AJ954,36,FALSE)),9999)) -> 9999 | P8: =IF($D8="Unlisted Player",-1001,IFERROR(IF(IF(OR($H8="RP",$H8="SP"),VLOOKUP($D8,'Filtered-P'!$A$3:$X$938,13,FALSE),VLOOKUP($D8,'Filtered-H'!$A$3:$Z$937,22,FALSE))="",-1000,IF(OR($H8="RP",$H8="SP"),VLOOKUP($D8,'Filtered-P'!$A$3:$X$938,13,FALSE),VLOOKUP($D8,'Filtered-H'!$A$3:$Z$937,22,FALSE))),-1000)) -> -233.1715124 | Q8: =IFERROR(IF($D8="Unlisted Player",-1001,IF(OR(H8="SP",H8="RP"),N8/VLOOKUP($D8,'Filtered-P'!$A$1:$AB$961,4,FALSE),-1000)),-1000) -> -1000 | R8: =IFERROR(IF($D8="Unlisted Player",-1001,IF(OR(H8="SP",H8="RP"),-1000,N8/VLOOKUP($D8,'Filtered-H'!$A$1:$AD$948,2,FALSE))),-1000) -> 0.5464782545 | S8: =IF(H8="",#N/A,H8&"."&1+SUMPRODUCT(($H$2:$H$949=H8)*($M$2:$M$949<M8))+COUNTIFS($M$2:M8,M8,$H$2:H8,H8)-1) -> SS.38 | T8: =IFERROR(IF(D8=0,1001,IF(VLOOKUP($D8,'ADP-Rank'!$A$2:$AV$948,38,FALSE)="",999+(IF(J8=FALSE,1,0)),VLOOKUP($D8,'ADP-Rank'!$A$2:$AV$948,38,FALSE))),999+(IF(J8=FALSE,1,0))) -> 999 | U8: =IF(H8="",#N/A,1+SUMPRODUCT(($H$2:$H$949=H8)*($M$2:$M$949<M8))+COUNTIFS($M$2:M8,M8,$H$2:H8,H8)-1) -> 38 | V8: =IF(ISERROR(VLOOKUP($B7,Keepers!$C$2:$D$450,2,FALSE)),B7,"") -> Cody Bellinger | W8: =IFERROR(INDEX($V$1:$V$948,SMALL(IF($V$1:$V$948<>"",ROW($V$1:$V$948)),ROW(V8))),"") -> Nolan Arenado | X8: =IF(D8="Non-Ranked Player",0,IF(VLOOKUP($D8,'Starter Calc'!$B$2:$D$948,3,FALSE)="",0,VLOOKUP($D8,'Starter Calc'!$B$2:$D$948,3,FALSE))) -> 90.00496851 | Y8: =IFERROR(VLOOKUP(D8,'Starter Calc'!B$2:BS$948,70,FALSE),"") -> Bench
A9: Nolan Arenado | B9: =IFERROR(INDEX($A$1:$A$948,SMALL(IF($A$1:$A$948<>"",ROW($A$1:$A$948)),ROW(A9))),"") -> Jacob deGrom | C9: =IFERROR(IF(L9=FALSE,"",CHOOSE(MATCH(RIGHT('Your Points Draft'!$R$3,LEN('Your Points Draft'!$R$3)-8),$M$1:$R$1,0),1+SUMPRODUCT(($L$2:$L$949=TRUE)*($M$2:$M$949<M9))+COUNTIFS($L$2:L9,L9,$M$2:M9,M9)-1,1+SUMPRODUCT(($L$2:$L$949=TRUE)*($N$2:$N$949>N9))+COUNTIFS($L$2:L9,L9,$N$2:N9,N9)-1,1+SUMPRODUCT(($L$2:$L$949=TRUE)*($O$2:$O$949<O9))+COUNTIFS($L$2:L9,L9,$O$2:O9,O9)-1,1+SUMPRODUCT(($L$2:$L$949=TRUE)*($P$2:$P$949>P9))+COUNTIFS($L$2:L9,L9,$P$2:P9,P9)-1,1+SUMPRODUCT(($L$2:$L$949=TRUE)*($Q$2:$Q$949>Q9))+COUNTIFS($L$2:L9,L9,$Q$2:Q9,Q9)-1,1+SUMPRODUCT(($L$2:$L$949=TRUE)*($R$2:$R$949>R9))+COUNTIFS($L$2:L9,L9,$R$2:R9,R9)-1,)),"") -> 495 | D9: Dario Agrazal | E9: =IFERROR(INDEX('Draft Log'!$D$3:$D$807,MATCH(D9,'Draft Log'!$C$3:$C$807,0)),"") ->  | F9: =IFERROR(INDEX('ADP-Rank'!$C$2:$C$819,MATCH(D9,'ADP-Rank'!$A$2:$A$819,0)),"") -> RP | G9: =IFERROR(IF(F9=I9,"",IF(INDEX('Your Points Draft'!$B$10:$B$633,MATCH(D9,'Your Points Draft'!$C$10:$C$633,0))="",IF(I9<>"",I9,""),INDEX('Your Points Draft'!$B$10:$B$633,MATCH(D9,'Your Points Draft'!$C$10:$C$633,0)))),"") ->  | H9: RP | J9: =INDEX('ADP-Rank'!$AH$2:$AH$819,MATCH(D9,'ADP-Rank'!$A$2:$A$819,0)) -> TRUE | K9: FALSE | L9: =IF(J9=FALSE,FALSE,IF(AND('Your Points Draft'!$R$5="Hide Drafted Players",K9=TRUE),FALSE,IF(OR('Your Points Draft'!$R$4="Show All Positions",AND('Your Points Draft'!$R$4="Only Show: C",H9="C"),AND('Your Points Draft'!$R$4="Only Show: 1B",H9="1B"),AND('Your Points Draft'!$R$4="Only Show: 2B",H9="2B"),AND('Your Points Draft'!$R$4="Only Show: 3B",H9="3B"),AND('Your Points Draft'!$R$4="Only Show: SS",H9="SS"),AND('Your Points Draft'!$R$4="Only Show: OF",H9="OF"),AND('Your Points Draft'!$R$4="Only Show: SP",H9="SP"),AND('Your Points Draft'!$R$4="Only Show: RP",H9="RP"),AND('Your Points Draft'!$R$4="Only Show: CI",OR(H9={"1B","3B"})),AND('Your Points Draft'!$R$4="Only Show: MI",OR(H9={"2B","SS"})),AND('Your Points Draft'!$R$4="Only Show: IF",OR(H9={"C","1B","2B","3B","SS"})),AND('Your Points Draft'!$R$4="Only Show: DH",OR(H9={"C","1B","2B","3B","SS","OF","DH"})),AND('Your Points Draft'!$R$4="Only Show: P",OR(H9={"SP","RP"})),AND('Your Points Draft'!$R$4="Only Show: LF",ISERROR(SEARCH("LF",VLOOKUP($D9,'ADP-Rank'!$A$2:$D$948,4,FALSE)))=FALSE),AND('Your Points Draft'!$R$4="Only Show: RF",ISERROR(SEARCH("RF",VLOOKUP($D9,'ADP-Rank'!$A$2:$D$948,4,FALSE)))=FALSE),AND('Your Points Draft'!$R$4="Only Show: CF",ISERROR(SEARCH("CF",VLOOKUP($D9,'ADP-Rank'!$A$2:$D$948,4,FALSE)))=FALSE)),TRUE,FALSE))) -> TRUE | M9: =IFERROR(IF(VLOOKUP($D9,'ADP-Rank'!$A$2:$AV$948,38,FALSE)="",9999,VLOOKUP($D9,'ADP-Rank'!$A$2:$AV$948,38,FALSE)),9999) -> 9999 | N9: =IF(D9="Non-Ranked Player",-1001,IF(VLOOKUP($D9,'Starter Calc'!$B$2:$D$948,3,FALSE)="",-1000,VLOOKUP($D9,'Starter Calc'!$B$2:$D$948,3,FALSE))) -> -1000 | O9: =IF(D9="Non-Ranked Player",10000,IFERROR(IF(VLOOKUP(D9,'ADP-Rank'!A9:AJ955,36,FALSE)="",9999,VLOOKUP(D9,'ADP-Rank'!A9:AJ955,36,FALSE)),9999)) -> 9999 | P9: =IF($D9="Unlisted Player",-1001,IFERROR(IF(IF(OR($H9="RP",$H9="SP"),VLOOKUP($D9,'Filtered-P'!$A$3:$X$938,13,FALSE),VLOOKUP($D9,'Filtered-H'!$A$3:$Z$937,22,FALSE))="",-1000,IF(OR($H9="RP",$H9="SP"),VLOOKUP($D9,'Filtered-P'!$A$3:$X$938,13,FALSE),VLOOKUP($D9,'Filtered-H'!$A$3:$Z$937,22,FALSE))),-1000)) -> -1000 | Q9: =IFERROR(IF($D9="Unlisted Player",-1001,IF(OR(H9="SP",H9="RP"),N9/VLOOKUP($D9,'Filtered-P'!$A$1:$AB$961,4,FALSE),-1000)),-1000) -> -1000 | R9: =IFERROR(IF($D9="Unlisted Player",-1001,IF(OR(H9="SP",H9="RP"),-1000,N9/VLOOKUP($D9,'Filtered-H'!$A$1:$AD$948,2,FALSE))),-1000) -> -1000 | S9: =IF(H9="",#N/A,H9&"."&1+SUMPRODUCT(($H$2:$H$949=H9)*($M$2:$M$949<M9))+COUNTIFS($M$2:M9,M9,$H$2:H9,H9)-1) -> RP.83 | T9: =IFERROR(IF(D9=0,1001,IF(VLOOKUP($D9,'ADP-Rank'!$A$2:$AV$948,38,FALSE)="",999+(IF(J9=FALSE,1,0)),VLOOKUP($D9,'ADP-Rank'!$A$2:$AV$948,38,FALSE))),999+(IF(J9=FALSE,1,0))) -> 999 | U9: =IF(H9="",#N/A,1+SUMPRODUCT(($H$2:$H$949=H9)*($M$2:$M$949<M9))+COUNTIFS($M$2:M9,M9,$H$2:H9,H9)-1) -> 83 | V9: =IF(ISERROR(VLOOKUP($B8,Keepers!$C$2:$D$450,2,FALSE)),B8,"") -> Nolan Arenado | W9: =IFERROR(INDEX($V$1:$V$948,SMALL(IF($V$1:$V$948<>"",ROW($V$1:$V$948)),ROW(V9))),"") -> Jacob deGrom | X9: =IF(D9="Non-Ranked Player",0,IF(VLOOKUP($D9,'Starter Calc'!$B$2:$D$948,3,FALSE)="",0,VLOOKUP($D9,'Starter Calc'!$B$2:$D$948,3,FALSE))) -> 0 | Y9: =IFERROR(VLOOKUP(D9,'Starter Calc'!B$2:BS$948,70,FALSE),"") -> Bench
A10: Jacob deGrom | B10: =IFERROR(INDEX($A$1:$A$948,SMALL(IF($A$1:$A$948<>"",ROW($A$1:$A$948)),ROW(A10))),"") -> Francisco Lindor | C10: =IFERROR(IF(L10=FALSE,"",CHOOSE(MATCH(RIGHT('Your Points Draft'!$R$3,LEN('Your Points Draft'!$R$3)-8),$M$1:$R$1,0),1+SUMPRODUCT(($L$2:$L$949=TRUE)*($M$2:$M$949<M10))+COUNTIFS($L$2:L10,L10,$M$2:M10,M10)-1,1+SUMPRODUCT(($L$2:$L$949=TRUE)*($N$2:$N$949>N10))+COUNTIFS($L$2:L10,L10,$N$2:N10,N10)-1,1+SUMPRODUCT(($L$2:$L$949=TRUE)*($O$2:$O$949<O10))+COUNTIFS($L$2:L10,L10,$O$2:O10,O10)-1,1+SUMPRODUCT(($L$2:$L$949=TRUE)*($P$2:$P$949>P10))+COUNTIFS($L$2:L10,L10,$P$2:P10,P10)-1,1+SUMPRODUCT(($L$2:$L$949=TRUE)*($Q$2:$Q$949>Q10))+COUNTIFS($L$2:L10,L10,$Q$2:Q10,Q10)-1,1+SUMPRODUCT(($L$2:$L$949=TRUE)*($R$2:$R$949>R10))+COUNTIFS($L$2:L10,L10,$R$2:R10,R10)-1,)),"") -> 496 | D10: Jesus Aguilar | E10: =IFERROR(INDEX('Draft Log'!$D$3:$D$807,MATCH(D10,'Draft Log'!$C$3:$C$807,0)),"") ->  | F10: =IFERROR(INDEX('ADP-Rank'!$C$2:$C$819,MATCH(D10,'ADP-Rank'!$A$2:$A$819,0)),"") -> 1B | G10: =IFERROR(IF(F10=I10,"",IF(INDEX('Your Points Draft'!$B$10:$B$633,MATCH(D10,'Your Points Draft'!$C$10:$C$633,0))="",IF(I10<>"",I10,""),INDEX('Your Points Draft'!$B$10:$B$633,MATCH(D10,'Your Points Draft'!$C$10:$C$633,0)))),"") ->  | H10: 1B | J10: =INDEX('ADP-Rank'!$AH$2:$AH$819,MATCH(D10,'ADP-Rank'!$A$2:$A$819,0)) -> TRUE | K10: FALSE | L10: =IF(J10=FALSE,FALSE,IF(AND('Your Points Draft'!$R$5="Hide Drafted Players",K10=TRUE),FALSE,IF(OR('Your Points Draft'!$R$4="Show All Positions",AND('Your Points Draft'!$R$4="Only Show: C",H10="C"),AND('Your Points Draft'!$R$4="Only Show: 1B",H10="1B"),AND('Your Points Draft'!$R$4="Only Show: 2B",H10="2B"),AND('Your Points Draft'!$R$4="Only Show: 3B",H10="3B"),AND('Your Points Draft'!$R$4="Only Show: SS",H10="SS"),AND('Your Points Draft'!$R$4="Only Show: OF",H10="OF"),AND('Your Points Draft'!$R$4="Only Show: SP",H10="SP"),AND('Your Points Draft'!$R$4="Only Show: RP",H10="RP"),AND('Your Points Draft'!$R$4="Only Show: CI",OR(H10={"1B","3B"})),AND('Your Points Draft'!$R$4="Only Show: MI",OR(H10={"2B","SS"})),AND('Your Points Draft'!$R$4="Only Show: IF",OR(H10={"C","1B","2B","3B","SS"})),AND('Your Points Draft'!$R$4="Only Show: DH",OR(H10={"C","1B","2B","3B","SS","OF","DH"})),AND('Your Points Draft'!$R$4="Only Show: P",OR(H10={"SP","RP"})),AND('Your Points Draft'!$R$4="Only Show: LF",ISERROR(SEARCH("LF",VLOOKUP($D10,'ADP-Rank'!$A$2:$D$948,4,FALSE)))=FALSE),AND('Your Points Draft'!$R$4="Only Show: RF",ISERROR(SEARCH("RF",VLOOKUP($D10,'ADP-Rank'!$A$2:$D$948,4,FALSE)))=FALSE),AND('Your Points Draft'!$R$4="Only Show: CF",ISERROR(SEARCH("CF",VLOOKUP($D10,'ADP-Rank'!$A$2:$D$948,4,FALSE)))=FALSE)),TRUE,FALSE))) -> TRUE | M10: =IFERROR(IF(VLOOKUP($D10,'ADP-Rank'!$A$2:$AV$948,38,FALSE)="",9999,VLOOKUP($D10,'ADP-Rank'!$A$2:$AV$948,38,FALSE)),9999) -> 9999 | N10: =IF(D10="Non-Ranked Player",-1001,IF(VLOOKUP($D10,'Starter Calc'!$B$2:$D$948,3,FALSE)="",-1000,VLOOKUP($D10,'Starter Calc'!$B$2:$D$948,3,FALSE))) -> 207.9752572 | O10: =IF(D10="Non-Ranked Player",10000,IFERROR(IF(VLOOKUP(D10,'ADP-Rank'!A10:AJ956,36,FALSE)="",9999,VLOOKUP(D10,'ADP-Rank'!A10:AJ956,36,FALSE)),9999)) -> 9999 | P10: =IF($D10="Unlisted Player",-1001,IFERROR(IF(IF(OR($H10="RP",$H10="SP"),VLOOKUP($D10,'Filtered-P'!$A$3:$X$938,13,FALSE),VLOOKUP($D10,'Filtered-H'!$A$3:$Z$937,22,FALSE))="",-1000,IF(OR($H10="RP",$H10="SP"),VLOOKUP($D10,'Filtered-P'!$A$3:$X$938,13,FALSE),VLOOKUP($D10,'Filtered-H'!$A$3:$Z$937,22,FALSE))),-1000)) -> -115.2273286 | Q10: =IFERROR(IF($D10="Unlisted Player",-1001,IF(OR(H10="SP",H10="RP"),N10/VLOOKUP($D10,'Filtered-P'!$A$1:$AB$961,4,FALSE),-1000)),-1000) -> -1000 | R10: =IFERROR(IF($D10="Unlisted Player",-1001,IF(OR(H10="SP",H10="RP"),-1000,N10/VLOOKUP($D10,'Filtered-H'!$A$1:$AD$948,2,FALSE))),-1000) -> 0.5102435163 | S10: =IF(H10="",#N/A,H10&"."&1+SUMPRODUCT(($H$2:$H$949=H10)*($M$2:$M$949<M10))+COUNTIFS($M$2:M10,M10,$H$2:H10,H10)-1) -> 1B.29 | T10: =IFERROR(IF(D10=0,1001,IF(VLOOKUP($D10,'ADP-Rank'!$A$2:$AV$948,38,FALSE)="",999+(IF(J10=FALSE,1,0)),VLOOKUP($D10,'ADP-Rank'!$A$2:$AV$948,38,FALSE))),999+(IF(J10=FALSE,1,0))) -> 999 | U10: =IF(H10="",#N/A,1+SUMPRODUCT(($H$2:$H$949=H10)*($M$2:$M$949<M10))+COUNTIFS($M$2:M10,M10,$H$2:H10,H10)-1) -> 29 | V10: =IF(ISERROR(VLOOKUP($B9,Keepers!$C$2:$D$450,2,FALSE)),B9,"") -> Jacob deGrom | W10: =IFERROR(INDEX($V$1:$V$948,SMALL(IF($V$1:$V$948<>"",ROW($V$1:$V$948)),ROW(V10))),"") -> Francisco Lindor | X10: =IF(D10="Non-Ranked Player",0,IF(VLOOKUP($D10,'Starter Calc'!$B$2:$D$948,3,FALSE)="",0,VLOOKUP($D10,'Starter Calc'!$B$2:$D$948,3,FALSE))) -> 207.9752572 | Y10: =IFERROR(VLOOKUP(D10,'Starter Calc'!B$2:BS$948,70,FALSE),"") -> Bench
A11: Francisco Lindor | B11: =IFERROR(INDEX($A$1:$A$948,SMALL(IF($A$1:$A$948<>"",ROW($A$1:$A$948)),ROW(A11))),"") -> Justin Verlander | C11: =IFERROR(IF(L11=FALSE,"",CHOOSE(MATCH(RIGHT('Your Points Draft'!$R$3,LEN('Your Points Draft'!$R$3)-8),$M$1:$R$1,0),1+SUMPRODUCT(($L$2:$L$949=TRUE)*($M$2:$M$949<M11))+COUNTIFS($L$2:L11,L11,$M$2:M11,M11)-1,1+SUMPRODUCT(($L$2:$L$949=TRUE)*($N$2:$N$949>N11))+COUNTIFS($L$2:L11,L11,$N$2:N11,N11)-1,1+SUMPRODUCT(($L$2:$L$949=TRUE)*($O$2:$O$949<O11))+COUNTIFS($L$2:L11,L11,$O$2:O11,O11)-1,1+SUMPRODUCT(($L$2:$L$949=TRUE)*($P$2:$P$949>P11))+COUNTIFS($L$2:L11,L11,$P$2:P11,P11)-1,1+SUMPRODUCT(($L$2:$L$949=TRUE)*($Q$2:$Q$949>Q11))+COUNTIFS($L$2:L11,L11,$Q$2:Q11,Q11)-1,1+SUMPRODUCT(($L$2:$L$949=TRUE)*($R$2:$R$949>R11))+COUNTIFS($L$2:L11,L11,$R$2:R11,R11)-1,)),"") -> 401 | D11: Nick Ahmed | E11: =IFERROR(INDEX('Draft Log'!$D$3:$D$807,MATCH(D11,'Draft Log'!$C$3:$C$807,0)),"") ->  | F11: =IFERROR(INDEX('ADP-Rank'!$C$2:$C$819,MATCH(D11,'ADP-Rank'!$A$2:$A$819,0)),"") -> SS | G11: =IFERROR(IF(F11=I11,"",IF(INDEX('Your Points Draft'!$B$10:$B$633,MATCH(D11,'Your Points Draft'!$C$10:$C$633,0))="",IF(I11<>"",I11,""),INDEX('Your Points Draft'!$B$10:$B$633,MATCH(D11,'Your Points Draft'!$C$10:$C$633,0)))),"") ->  | H11: SS | J11: =INDEX('ADP-Rank'!$AH$2:$AH$819,MATCH(D11,'ADP-Rank'!$A$2:$A$819,0)) -> TRUE | K11: FALSE | L11: =IF(J11=FALSE,FALSE,IF(AND('Your Points Draft'!$R$5="Hide Drafted Players",K11=TRUE),FALSE,IF(OR('Your Points Draft'!$R$4="Show All Positions",AND('Your Points Draft'!$R$4="Only Show: C",H11="C"),AND('Your Points Draft'!$R$4="Only Show: 1B",H11="1B"),AND('Your Points Draft'!$R$4="Only Show: 2B",H11="2B"),AND('Your Points Draft'!$R$4="Only Show: 3B",H11="3B"),AND('Your Points Draft'!$R$4="Only Show: SS",H11="SS"),AND('Your Points Draft'!$R$4="Only Show: OF",H11="OF"),AND('Your Points Draft'!$R$4="Only Show: SP",H11="SP"),AND('Your Points Draft'!$R$4="Only Show: RP",H11="RP"),AND('Your Points Draft'!$R$4="Only Show: CI",OR(H11={"1B","3B"})),AND('Your Points Draft'!$R$4="Only Show: MI",OR(H11={"2B","SS"})),AND('Your Points Draft'!$R$4="Only Show: IF",OR(H11={"C","1B","2B","3B","SS"})),AND('Your Points Draft'!$R$4="Only Show: DH",OR(H11={"C","1B","2B","3B","SS","OF","DH"})),AND('Your Points Draft'!$R$4="Only Show: P",OR(H11={"SP","RP"})),AND('Your Points Draft'!$R$4="Only Show: LF",ISERROR(SEARCH("LF",VLOOKUP($D11,'ADP-Rank'!$A$2:$D$948,4,FALSE)))=FALSE),AND('Your Points Draft'!$R$4="Only Show: RF",ISERROR(SEARCH("RF",VLOOKUP($D11,'ADP-Rank'!$A$2:$D$948,4,FALSE)))=FALSE),AND('Your Points Draft'!$R$4="Only Show: CF",ISERROR(SEARCH("CF",VLOOKUP($D11,'ADP-Rank'!$A$2:$D$948,4,FALSE)))=FALSE)),TRUE,FALSE))) -> TRUE | M11: =IFERROR(IF(VLOOKUP($D11,'ADP-Rank'!$A$2:$AV$948,38,FALSE)="",9999,VLOOKUP($D11,'ADP-Rank'!$A$2:$AV$948,38,FALSE)),9999) -> 382 | N11: =IF(D11="Non-Ranked Player",-1001,IF(VLOOKUP($D11,'Starter Calc'!$B$2:$D$948,3,FALSE)="",-1000,VLOOKUP($D11,'Starter Calc'!$B$2:$D$948,3,FALSE))) -> 299.8301621 | O11: =IF(D11="Non-Ranked Player",10000,IFERROR(IF(VLOOKUP(D11,'ADP-Rank'!A11:AJ957,36,FALSE)="",9999,VLOOKUP(D11,'ADP-Rank'!A11:AJ957,36,FALSE)),9999)) -> 192 | P11: =IF($D11="Unlisted Player",-1001,IFERROR(IF(IF(OR($H11="RP",$H11="SP"),VLOOKUP($D11,'Filtered-P'!$A$3:$X$938,13,FALSE),VLOOKUP($D11,'Filtered-H'!$A$3:$Z$937,22,FALSE))="",-1000,IF(OR($H11="RP",$H11="SP"),VLOOKUP($D11,'Filtered-P'!$A$3:$X$938,13,FALSE),VLOOKUP($D11,'Filtered-H'!$A$3:$Z$937,22,FALSE))),-1000)) -> -23.34631888 | Q11: =IFERROR(IF($D11="Unlisted Player",-1001,IF(OR(H11="SP",H11="RP"),N11/VLOOKUP($D11,'Filtered-P'!$A$1:$AB$961,4,FALSE),-1000)),-1000) -> -1000 | R11: =IFERROR(IF($D11="Unlisted Player",-1001,IF(OR(H11="SP",H11="RP"),-1000,N11/VLOOKUP($D11,'Filtered-H'!$A$1:$AD$948,2,FALSE))),-1000) -> 0.5064270958 | S11: =IF(H11="",#N/A,H11&"."&1+SUMPRODUCT(($H$2:$H$949=H11)*($M$2:$M$949<M11))+COUNTIFS($M$2:M11,M11,$H$2:H11,H11)-1) -> SS.33 | T11: =IFERROR(IF(D11=0,1001,IF(VLOOKUP($D11,'ADP-Rank'!$A$2:$AV$948,38,FALSE)="",999+(IF(J11=FALSE,1,0)),VLOOKUP($D11,'ADP-Rank'!$A$2:$AV$948,38,FALSE))),999+(IF(J11=FALSE,1,0))) -> 382 | U11: =IF(H11="",#N/A,1+SUMPRODUCT(($H$2:$H$949=H11)*($M$2:$M$949<M11))+COUNTIFS($M$2:M11,M11,$H$2:H11,H11)-1) -> 33 | V11: =IF(ISERROR(VLOOKUP($B10,Keepers!$C$2:$D$450,2,FALSE)),B10,"") -> Francisco Lindor | W11: =IFERROR(INDEX($V$1:$V$948,SMALL(IF($V$1:$V$948<>"",ROW($V$1:$V$948)),ROW(V11))),"") -> Justin Verlander | X11: =IF(D11="Non-Ranked Player",0,IF(VLOOKUP($D11,'Starter Calc'!$B$2:$D$948,3,FALSE)="",0,VLOOKUP($D11,'Starter Calc'!$B$2:$D$948,3,FALSE))) -> 299.8301621 | Y11: =IFERROR(VLOOKUP(D11,'Starter Calc'!B$2:BS$948,70,FALSE),"") -> Bench
A12: Justin Verlander | B12: =IFERROR(INDEX($A$1:$A$948,SMALL(IF($A$1:$A$948<>"",ROW($A$1:$A$948)),ROW(A12))),"") -> Juan Soto | C12: =IFERROR(IF(L12=FALSE,"",CHOOSE(MATCH(RIGHT('Your Points Draft'!$R$3,LEN('Your Points Draft'!$R$3)-8),$M$1:$R$1,0),1+SUMPRODUCT(($L$2:$L$949=TRUE)*($M$2:$M$949<M12))+COUNTIFS($L$2:L12,L12,$M$2:M12,M12)-1,1+SUMPRODUCT(($L$2:$L$949=TRUE)*($N$2:$N$949>N12))+COUNTIFS($L$2:L12,L12,$N$2:N12,N12)-1,1+SUMPRODUCT(($L$2:$L$949=TRUE)*($O$2:$O$949<O12))+COUNTIFS($L$2:L12,L12,$O$2:O12,O12)-1,1+SUMPRODUCT(($L$2:$L$949=TRUE)*($P$2:$P$949>P12))+COUNTIFS($L$2:L12,L12,$P$2:P12,P12)-1,1+SUMPRODUCT(($L$2:$L$949=TRUE)*($Q$2:$Q$949>Q12))+COUNTIFS($L$2:L12,L12,$Q$2:Q12,Q12)-1,1+SUMPRODUCT(($L$2:$L$949=TRUE)*($R$2:$R$949>R12))+COUNTIFS($L$2:L12,L12,$R$2:R12,R12)-1,)),"") -> 472 | D12: Shogo Akiyama | E12: =IFERROR(INDEX('Draft Log'!$D$3:$D$807,MATCH(D12,'Draft Log'!$C$3:$C$807,0)),"") ->  | F12: =IFERROR(INDEX('ADP-Rank'!$C$2:$C$819,MATCH(D12,'ADP-Rank'!$A$2:$A$819,0)),"") -> OF | G12: =IFERROR(IF(F12=I12,"",IF(INDEX('Your Points Draft'!$B$10:$B$633,MATCH(D12,'Your Points Draft'!$C$10:$C$633,0))="",IF(I12<>"",I12,""),INDEX('Your Points Draft'!$B$10:$B$633,MATCH(D12,'Your Points Draft'!$C$10:$C$633,0)))),"") ->  | H12: OF | J12: =INDEX('ADP-Rank'!$AH$2:$AH$819,MATCH(D12,'ADP-Rank'!$A$2:$A$819,0)) -> TRUE | K12: FALSE | L12: =IF(J12=FALSE,FALSE,IF(AND('Your Points Draft'!$R$5="Hide Drafted Players",K12=TRUE),FALSE,IF(OR('Your Points Draft'!$R$4="Show All Positions",AND('Your Points Draft'!$R$4="Only Show: C",H12="C"),AND('Your Points Draft'!$R$4="Only Show: 1B",H12="1B"),AND('Your Points Draft'!$R$4="Only Show: 2B",H12="2B"),AND('Your Points Draft'!$R$4="Only Show: 3B",H12="3B"),AND('Your Points Draft'!$R$4="Only Show: SS",H12="SS"),AND('Your Points Draft'!$R$4="Only Show: OF",H12="OF"),AND('Your Points Draft'!$R$4="Only Show: SP",H12="SP"),AND('Your Points Draft'!$R$4="Only Show: RP",H12="RP"),AND('Your Points Draft'!$R$4="Only Show: CI",OR(H12={"1B","3B"})),AND('Your Points Draft'!$R$4="Only Show: MI",OR(H12={"2B","SS"})),AND('Your Points Draft'!$R$4="Only Show: IF",OR(H12={"C","1B","2B","3B","SS"})),AND('Your Points Draft'!$R$4="Only Show: DH",OR(H12={"C","1B","2B","3B","SS","OF","DH"})),AND('Your Points Draft'!$R$4="Only Show: P",OR(H12={"SP","RP"})),AND('Your Points Draft'!$R$4="Only Show: LF",ISERROR(SEARCH("LF",VLOOKUP($D12,'ADP-Rank'!$A$2:$D$948,4,FALSE)))=FALSE),AND('Your Points Draft'!$R$4="Only Show: RF",ISERROR(SEARCH("RF",VLOOKUP($D12,'ADP-Rank'!$A$2:$D$948,4,FALSE)))=FALSE),AND('Your Points Draft'!$R$4="Only Show: CF",ISERROR(SEARCH("CF",VLOOKUP($D12,'ADP-Rank'!$A$2:$D$948,4,FALSE)))=FALSE)),TRUE,FALSE))) -> TRUE | M12: =IFERROR(IF(VLOOKUP($D12,'ADP-Rank'!$A$2:$AV$948,38,FALSE)="",9999,VLOOKUP($D12,'ADP-Rank'!$A$2:$AV$948,38,FALSE)),9999) -> 509 | N12: =IF(D12="Non-Ranked Player",-1001,IF(VLOOKUP($D12,'Starter Calc'!$B$2:$D$948,3,FALSE)="",-1000,VLOOKUP($D12,'Starter Calc'!$B$2:$D$948,3,FALSE))) -> 274.5977945 | O12: =IF(D12="Non-Ranked Player",10000,IFERROR(IF(VLOOKUP(D12,'ADP-Rank'!A12:AJ958,36,FALSE)="",9999,VLOOKUP(D12,'ADP-Rank'!A12:AJ958,36,FALSE)),9999)) -> 163 | P12: =IF($D12="Unlisted Player",-1001,IFERROR(IF(IF(OR($H12="RP",$H12="SP"),VLOOKUP($D12,'Filtered-P'!$A$3:$X$938,13,FALSE),VLOOKUP($D12,'Filtered-H'!$A$3:$Z$937,22,FALSE))="",-1000,IF(OR($H12="RP",$H12="SP"),VLOOKUP($D12,'Filtered-P'!$A$3:$X$938,13,FALSE),VLOOKUP($D12,'Filtered-H'!$A$3:$Z$937,22,FALSE))),-1000)) -> -39.36471417 | Q12: =IFERROR(IF($D12="Unlisted Player",-1001,IF(OR(H12="SP",H12="RP"),N12/VLOOKUP($D12,'Filtered-P'!$A$1:$AB$961,4,FALSE),-1000)),-1000) -> -1000 | R12: =IFERROR(IF($D12="Unlisted Player",-1001,IF(OR(H12="SP",H12="RP"),-1000,N12/VLOOKUP($D12,'Filtered-H'!$A$1:$AD$948,2,FALSE))),-1000) -> 0.5303675413 | S12: =IF(H12="",#N/A,H12&"."&1+SUMPRODUCT(($H$2:$H$949=H12)*($M$2:$M$949<M12))+COUNTIFS($M$2:M12,M12,$H$2:H12,H12)-1) -> OF.95 | T12: =IFERROR(IF(D12=0,1001,IF(VLOOKUP($D12,'ADP-Rank'!$A$2:$AV$948,38,FALSE)="",999+(IF(J12=FALSE,1,0)),VLOOKUP($D12,'ADP-Rank'!$A$2:$AV$948,38,FALSE))),999+(IF(J12=FALSE,1,0))) -> 509 | U12: =IF(H12="",#N/A,1+SUMPRODUCT(($H$2:$H$949=H12)*($M$2:$M$949<M12))+COUNTIFS($M$2:M12,M12,$H$2:H12,H12)-1) -> 95 | V12: =IF(ISERROR(VLOOKUP($B11,Keepers!$C$2:$D$450,2,FALSE)),B11,"") -> Justin Verlander | W12: =IFERROR(INDEX($V$1:$V$948,SMALL(IF($V$1:$V$948<>"",ROW($V$1:$V$948)),ROW(V12))),"") -> Juan Soto | X12: =IF(D12="Non-Ranked Player",0,IF(VLOOKUP($D12,'Starter Calc'!$B$2:$D$948,3,FALSE)="",0,VLOOKUP($D12,'Starter Calc'!$B$2:$D$948,3,FALSE))) -> 274.5977945 | Y12: =IFERROR(VLOOKUP(D12,'Starter Calc'!B$2:BS$948,70,FALSE),"") -> Bench
A13: Juan Soto | B13: =IFERROR(INDEX($A$1:$A$948,SMALL(IF($A$1:$A$948<>"",ROW($A$1:$A$948)),ROW(A13))),"") -> Walker Buehler | C13: =IFERROR(IF(L13=FALSE,"",CHOOSE(MATCH(RIGHT('Your Points Draft'!$R$3,LEN('Your Points Draft'!$R$3)-8),$M$1:$R$1,0),1+SUMPRODUCT(($L$2:$L$949=TRUE)*($M$2:$M$949<M13))+COUNTIFS($L$2:L13,L13,$M$2:M13,M13)-1,1+SUMPRODUCT(($L$2:$L$949=TRUE)*($N$2:$N$949>N13))+COUNTIFS($L$2:L13,L13,$N$2:N13,N13)-1,1+SUMPRODUCT(($L$2:$L$949=TRUE)*($O$2:$O$949<O13))+COUNTIFS($L$2:L13,L13,$O$2:O13,O13)-1,1+SUMPRODUCT(($L$2:$L$949=TRUE)*($P$2:$P$949>P13))+COUNTIFS($L$2:L13,L13,$P$2:P13,P13)-1,1+SUMPRODUCT(($L$2:$L$949=TRUE)*($Q$2:$Q$949>Q13))+COUNTIFS($L$2:L13,L13,$Q$2:Q13,Q13)-1,1+SUMPRODUCT(($L$2:$L$949=TRUE)*($R$2:$R$949>R13))+COUNTIFS($L$2:L13,L13,$R$2:R13,R13)-1,)),"") -> 317 | D13: Hanser Alberto | E13: =IFERROR(INDEX('Draft Log'!$D$3:$D$807,MATCH(D13,'Draft Log'!$C$3:$C$807,0)),"") ->  | F13: =IFERROR(INDEX('ADP-Rank'!$C$2:$C$819,MATCH(D13,'ADP-Rank'!$A$2:$A$819,0)),"") -> 2B | G13: =IFERROR(IF(F13=I13,"",IF(INDEX('Your Points Draft'!$B$10:$B$633,MATCH(D13,'Your Points Draft'!$C$10:$C$633,0))="",IF(I13<>"",I13,""),INDEX('Your Points Draft'!$B$10:$B$633,MATCH(D13,'Your Points Draft'!$C$10:$C$633,0)))),"") ->  | H13: 2B | J13: =INDEX('ADP-Rank'!$AH$2:$AH$819,MATCH(D13,'ADP-Rank'!$A$2:$A$819,0)) -> TRUE | K13: FALSE | L13: =IF(J13=FALSE,FALSE,IF(AND('Your Points Draft'!$R$5="Hide Drafted Players",K13=TRUE),FALSE,IF(OR('Your Points Draft'!$R$4="Show All Positions",AND('Your Points Draft'!$R$4="Only Show: C",H13="C"),AND('Your Points Draft'!$R$4="Only Show: 1B",H13="1B"),AND('Your Points Draft'!$R$4="Only Show: 2B",H13="2B"),AND('Your Points Draft'!$R$4="Only Show: 3B",H13="3B"),AND('Your Points Draft'!$R$4="Only Show: SS",H13="SS"),AND('Your Points Draft'!$R$4="Only Show: OF",H13="OF"),AND('Your Points Draft'!$R$4="Only Show: SP",H13="SP"),AND('Your Points Draft'!$R$4="Only Show: RP",H13="RP"),AND('Your Points Draft'!$R$4="Only Show: CI",OR(H13={"1B","3B"})),AND('Your Points Draft'!$R$4="Only Show: MI",OR(H13={"2B","SS"})),AND('Your Points Draft'!$R$4="Only Show: IF",OR(H13={"C","1B","2B","3B","SS"})),AND('Your Points Draft'!$R$4="Only Show: DH",OR(H13={"C","1B","2B","3B","SS","OF","DH"})),AND('Your Points Draft'!$R$4="Only Show: P",OR(H13={"SP","RP"})),AND('Your Points Draft'!$R$4="Only Show: LF",ISERROR(SEARCH("LF",VLOOKUP($D13,'ADP-Rank'!$A$2:$D$948,4,FALSE)))=FALSE),AND('Your Points Draft'!$R$4="Only Show: RF",ISERROR(SEARCH("RF",VLOOKUP($D13,'ADP-Rank'!$A$2:$D$948,4,FALSE)))=FALSE),AND('Your Points Draft'!$R$4="Only Show: CF",ISERROR(SEARCH("CF",VLOOKUP($D13,'ADP-Rank'!$A$2:$D$948,4,FALSE)))=FALSE)),TRUE,FALSE))) -> TRUE | M13: =IFERROR(IF(VLOOKUP($D13,'ADP-Rank'!$A$2:$AV$948,38,FALSE)="",9999,VLOOKUP($D13,'ADP-Rank'!$A$2:$AV$948,38,FALSE)),9999) -> 289.5 | N13: =IF(D13="Non-Ranked Player",-1001,IF(VLOOKUP($D13,'Starter Calc'!$B$2:$D$948,3,FALSE)="",-1000,VLOOKUP($D13,'Starter Calc'!$B$2:$D$948,3,FALSE))) -> 291.2688052 | O13: =IF(D13="Non-Ranked Player",10000,IFERROR(IF(VLOOKUP(D13,'ADP-Rank'!A13:AJ959,36,FALSE)="",9999,VLOOKUP(D13,'ADP-Rank'!A13:AJ959,36,FALSE)),9999)) -> 9999 | P13: =IF($D13="Unlisted Player",-1001,IFERROR(IF(IF(OR($H13="RP",$H13="SP"),VLOOKUP($D13,'Filtered-P'!$A$3:$X$938,13,FALSE),VLOOKUP($D13,'Filtered-H'!$A$3:$Z$937,22,FALSE))="",-1000,IF(OR($H13="RP",$H13="SP"),VLOOKUP($D13,'Filtered-P'!$A$3:$X$938,13,FALSE),VLOOKUP($D13,'Filtered-H'!$A$3:$Z$937,22,FALSE))),-1000)) -> -21.42774251 | Q13: =IFERROR(IF($D13="Unlisted Player",-1001,IF(OR(H13="SP",H13="RP"),N13/VLOOKUP($D13,'Filtered-P'!$A$1:$AB$961,4,FALSE),-1000)),-1000) -> -1000 | R13: =IFERROR(IF($D13="Unlisted Player",-1001,IF(OR(H13="SP",H13="RP"),-1000,N13/VLOOKUP($D13,'Filtered-H'!$A$1:$AD$948,2,FALSE))),-1000) -> 0.5226427512 | S13: =IF(H13="",#N/A,H13&"."&1+SUMPRODUCT(($H$2:$H$949=H13)*($M$2:$M$949<M13))+COUNTIFS($M$2:M13,M13,$H$2:H13,H13)-1) -> 2B.22 | T13: =IFERROR(IF(D13=0,1001,IF(VLOOKUP($D13,'ADP-Rank'!$A$2:$AV$948,38,FALSE)="",999+(IF(J13=FALSE,1,0)),VLOOKUP($D13,'ADP-Rank'!$A$2:$AV$948,38,FALSE))),999+(IF(J13=FALSE,1,0))) -> 289.5 | U13: =IF(H13="",#N/A,1+SUMPRODUCT(($H$2:$H$949=H13)*($M$2:$M$949<M13))+COUNTIFS($M$2:M13,M13,$H$2:H13,H13)-1) -> 22 | V13: =IF(ISERROR(VLOOKUP($B12,Keepers!$C$2:$D$450,2,FALSE)),B12,"") -> Juan Soto | W13: =IFERROR(INDEX($V$1:$V$948,SMALL(IF($V$1:$V$948<>"",ROW($V$1:$V$948)),ROW(V13))),"") -> Walker Buehler | X13: =IF(D13="Non-Ranked Player",0,IF(VLOOKUP($D13,'Starter Calc'!$B$2:$D$948,3,FALSE)="",0,VLOOKUP($D13,'Starter Calc'!$B$2:$D$948,3,FALSE))) -> 291.2688052 | Y13: =IFERROR(VLOOKUP(D13,'Starter Calc'!B$2:BS$948,70,FALSE),"") -> Bench
A14: Walker Buehler | B14: =IFERROR(INDEX($A$1:$A$948,SMALL(IF($A$1:$A$948<>"",ROW($A$1:$A$948)),ROW(A14))),"") -> Anthony Rendon | C14: =IFERROR(IF(L14=FALSE,"",CHOOSE(MATCH(RIGHT('Your Points Draft'!$R$3,LEN('Your Points Draft'!$R$3)-8),$M$1:$R$1,0),1+SUMPRODUCT(($L$2:$L$949=TRUE)*($M$2:$M$949<M14))+COUNTIFS($L$2:L14,L14,$M$2:M14,M14)-1,1+SUMPRODUCT(($L$2:$L$949=TRUE)*($N$2:$N$949>N14))+COUNTIFS($L$2:L14,L14,$N$2:N14,N14)-1,1+SUMPRODUCT(($L$2:$L$949=TRUE)*($O$2:$O$949<O14))+COUNTIFS($L$2:L14,L14,$O$2:O14,O14)-1,1+SUMPRODUCT(($L$2:$L$949=TRUE)*($P$2:$P$949>P14))+COUNTIFS($L$2:L14,L14,$P$2:P14,P14)-1,1+SUMPRODUCT(($L$2:$L$949=TRUE)*($Q$2:$Q$949>Q14))+COUNTIFS($L$2:L14,L14,$Q$2:Q14,Q14)-1,1+SUMPRODUCT(($L$2:$L$949=TRUE)*($R$2:$R$949>R14))+COUNTIFS($L$2:L14,L14,$R$2:R14,R14)-1,)),"") -> 41 | D14: Ozzie Albies | E14: =IFERROR(INDEX('Draft Log'!$D$3:$D$807,MATCH(D14,'Draft Log'!$C$3:$C$807,0)),"") ->  | F14: =IFERROR(INDEX('ADP-Rank'!$C$2:$C$819,MATCH(D14,'ADP-Rank'!$A$2:$A$819,0)),"") -> 2B | G14: =IFERROR(IF(F14=I14,"",IF(INDEX('Your Points Draft'!$B$10:$B$633,MATCH(D14,'Your Points Draft'!$C$10:$C$633,0))="",IF(I14<>"",I14,""),INDEX('Your Points Draft'!$B$10:$B$633,MATCH(D14,'Your Points Draft'!$C$10:$C$633,0)))),"") ->  | H14: 2B | J14: =INDEX('ADP-Rank'!$AH$2:$AH$819,MATCH(D14,'ADP-Rank'!$A$2:$A$819,0)) -> TRUE | K14: FALSE | L14: =IF(J14=FALSE,FALSE,IF(AND('Your Points Draft'!$R$5="Hide Drafted Players",K14=TRUE),FALSE,IF(OR('Your Points Draft'!$R$4="Show All Positions",AND('Your Points Draft'!$R$4="Only Show: C",H14="C"),AND('Your Points Draft'!$R$4="Only Show: 1B",H14="1B"),AND('Your Points Draft'!$R$4="Only Show: 2B",H14="2B"),AND('Your Points Draft'!$R$4="Only Show: 3B",H14="3B"),AND('Your Points Draft'!$R$4="Only Show: SS",H14="SS"),AND('Your Points Draft'!$R$4="Only Show: OF",H14="OF"),AND('Your Points Draft'!$R$4="Only Show: SP",H14="SP"),AND('Your Points Draft'!$R$4="Only Show: RP",H14="RP"),AND('Your Points Draft'!$R$4="Only Show: CI",OR(H14={"1B","3B"})),AND('Your Points Draft'!$R$4="Only Show: MI",OR(H14={"2B","SS"})),AND('Your Points Draft'!$R$4="Only Show: IF",OR(H14={"C","1B","2B","3B","SS"})),AND('Your Points Draft'!$R$4="Only Show: DH",OR(H14={"C","1B","2B","3B","SS","OF","DH"})),AND('Your Points Draft'!$R$4="Only Show: P",OR(H14={"SP","RP"})),AND('Your Points Draft'!$R$4="Only Show: LF",ISERROR(SEARCH("LF",VLOOKUP($D14,'ADP-Rank'!$A$2:$D$948,4,FALSE)))=FALSE),AND('Your Points Draft'!$R$4="Only Show: RF",ISERROR(SEARCH("RF",VLOOKUP($D14,'ADP-Rank'!$A$2:$D$948,4,FALSE)))=FALSE),AND('Your Points Draft'!$R$4="Only Show: CF",ISERROR(SEARCH("CF",VLOOKUP($D14,'ADP-Rank'!$A$2:$D$948,4,FALSE)))=FALSE)),TRUE,FALSE))) -> TRUE | M14: =IFERROR(IF(VLOOKUP($D14,'ADP-Rank'!$A$2:$AV$948,38,FALSE)="",9999,VLOOKUP($D14,'ADP-Rank'!$A$2:$AV$948,38,FALSE)),9999) -> 50.62 | N14: =IF(D14="Non-Ranked Player",-1001,IF(VLOOKUP($D14,'Starter Calc'!$B$2:$D$948,3,FALSE)="",-1000,VLOOKUP($D14,'Starter Calc'!$B$2:$D$948,3,FALSE))) -> 473.0895118 | O14: =IF(D14="Non-Ranked Player",10000,IFERROR(IF(VLOOKUP(D14,'ADP-Rank'!A14:AJ960,36,FALSE)="",9999,VLOOKUP(D14,'ADP-Rank'!A14:AJ960,36,FALSE)),9999)) -> 30 | P14: =IF($D14="Unlisted Player",-1001,IFERROR(IF(IF(OR($H14="RP",$H14="SP"),VLOOKUP($D14,'Filtered-P'!$A$3:$X$938,13,FALSE),VLOOKUP($D14,'Filtered-H'!$A$3:$Z$937,22,FALSE))="",-1000,IF(OR($H14="RP",$H14="SP"),VLOOKUP($D14,'Filtered-P'!$A$3:$X$938,13,FALSE),VLOOKUP($D14,'Filtered-H'!$A$3:$Z$937,22,FALSE))),-1000)) -> 160.3929641 | Q14: =IFERROR(IF($D14="Unlisted Player",-1001,IF(OR(H14="SP",H14="RP"),N14/VLOOKUP($D14,'Filtered-P'!$A$1:$AB$961,4,FALSE),-1000)),-1000) -> -1000 | R14: =IFERROR(IF($D14="Unlisted Player",-1001,IF(OR(H14="SP",H14="RP"),-1000,N14/VLOOKUP($D14,'Filtered-H'!$A$1:$AD$948,2,FALSE))),-1000) -> 0.7110385689 | S14: =IF(H14="",#N/A,H14&"."&1+SUMPRODUCT(($H$2:$H$949=H14)*($M$2:$M$949<M14))+COUNTIFS($M$2:M14,M14,$H$2:H14,H14)-1) -> 2B.3 | T14: =IFERROR(IF(D14=0,1001,IF(VLOOKUP($D14,'ADP-Rank'!$A$2:$AV$948,38,FALSE)="",999+(IF(J14=FALSE,1,0)),VLOOKUP($D14,'ADP-Rank'!$A$2:$AV$948,38,FALSE))),999+(IF(J14=FALSE,1,0))) -> 50.62 | U14: =IF(H14="",#N/A,1+SUMPRODUCT(($H$2:$H$949=H14)*($M$2:$M$949<M14))+COUNTIFS($M$2:M14,M14,$H$2:H14,H14)-1) -> 3 | V14: =IF(ISERROR(VLOOKUP($B13,Keepers!$C$2:$D$450,2,FALSE)),B13,"") -> Walker Buehler | W14: =IFERROR(INDEX($V$1:$V$948,SMALL(IF($V$1:$V$948<>"",ROW($V$1:$V$948)),ROW(V14))),"") -> Anthony Rendon | X14: =IF(D14="Non-Ranked Player",0,IF(VLOOKUP($D14,'Starter Calc'!$B$2:$D$948,3,FALSE)="",0,VLOOKUP($D14,'Starter Calc'!$B$2:$D$948,3,FALSE))) -> 473.0895118 | Y14: =IFERROR(VLOOKUP(D14,'Starter Calc'!B$2:BS$948,70,FALSE),"") -> Bench
A15: Anthony Rendon | B15: =IFERROR(INDEX($A$1:$A$948,SMALL(IF($A$1:$A$948<>"",ROW($A$1:$A$948)),ROW(A15))),"") -> Max Scherzer | C15: =IFERROR(IF(L15=FALSE,"",CHOOSE(MATCH(RIGHT('Your Points Draft'!$R$3,LEN('Your Points Draft'!$R$3)-8),$M$1:$R$1,0),1+SUMPRODUCT(($L$2:$L$949=TRUE)*($M$2:$M$949<M15))+COUNTIFS($L$2:L15,L15,$M$2:M15,M15)-1,1+SUMPRODUCT(($L$2:$L$949=TRUE)*($N$2:$N$949>N15))+COUNTIFS($L$2:L15,L15,$N$2:N15,N15)-1,1+SUMPRODUCT(($L$2:$L$949=TRUE)*($O$2:$O$949<O15))+COUNTIFS($L$2:L15,L15,$O$2:O15,O15)-1,1+SUMPRODUCT(($L$2:$L$949=TRUE)*($P$2:$P$949>P15))+COUNTIFS($L$2:L15,L15,$P$2:P15,P15)-1,1+SUMPRODUCT(($L$2:$L$949=TRUE)*($Q$2:$Q$949>Q15))+COUNTIFS($L$2:L15,L15,$Q$2:Q15,Q15)-1,1+SUMPRODUCT(($L$2:$L$949=TRUE)*($R$2:$R$949>R15))+COUNTIFS($L$2:L15,L15,$R$2:R15,R15)-1,)),"") -> 211 | D15: Sandy Alcantara | E15: =IFERROR(INDEX('Draft Log'!$D$3:$D$807,MATCH(D15,'Draft Log'!$C$3:$C$807,0)),"") ->  | F15: =IFERROR(INDEX('ADP-Rank'!$C$2:$C$819,MATCH(D15,'ADP-Rank'!$A$2:$A$819,0)),"") -> SP | G15: =IFERROR(IF(F15=I15,"",IF(INDEX('Your Points Draft'!$B$10:$B$633,MATCH(D15,'Your Points Draft'!$C$10:$C$633,0))="",IF(I15<>"",I15,""),INDEX('Your Points Draft'!$B$10:$B$633,MATCH(D15,'Your Points Draft'!$C$10:$C$633,0)))),"") ->  | H15: SP | J15: =INDEX('ADP-Rank'!$AH$2:$AH$819,MATCH(D15,'ADP-Rank'!$A$2:$A$819,0)) -> TRUE | K15: FALSE | L15: =IF(J15=FALSE,FALSE,IF(AND('Your Points Draft'!$R$5="Hide Drafted Players",K15=TRUE),FALSE,IF(OR('Your Points Draft'!$R$4="Show All Positions",AND('Your Points Draft'!$R$4="Only Show: C",H15="C"),AND('Your Points Draft'!$R$4="Only Show: 1B",H15="1B"),AND('Your Points Draft'!$R$4="Only Show: 2B",H15="2B"),AND('Your Points Draft'!$R$4="Only Show: 3B",H15="3B"),AND('Your Points Draft'!$R$4="Only Show: SS",H15="SS"),AND('Your Points Draft'!$R$4="Only Show: OF",H15="OF"),AND('Your Points Draft'!$R$4="Only Show: SP",H15="SP"),AND('Your Points Draft'!$R$4="Only Show: RP",H15="RP"),AND('Your Points Draft'!$R$4="Only Show: CI",OR(H15={"1B","3B"})),AND('Your Points Draft'!$R$4="Only Show: MI",OR(H15={"2B","SS"})),AND('Your Points Draft'!$R$4="Only Show: IF",OR(H15={"C","1B","2B","3B","SS"})),AND('Your Points Draft'!$R$4="Only Show: DH",OR(H15={"C","1B","2B","3B","SS","OF","DH"})),AND('Your Points Draft'!$R$4="Only Show: P",OR(H15={"SP","RP"})),AND('Your Points Draft'!$R$4="Only Show: LF",ISERROR(SEARCH("LF",VLOOKUP($D15,'ADP-Rank'!$A$2:$D$948,4,FALSE)))=FALSE),AND('Your Points Draft'!$R$4="Only Show: RF",ISERROR(SEARCH("RF",VLOOKUP($D15,'ADP-Rank'!$A$2:$D$948,4,FALSE)))=FALSE),AND('Your Points Draft'!$R$4="Only Show: CF",ISERROR(SEARCH("CF",VLOOKUP($D15,'ADP-Rank'!$A$2:$D$948,4,FALSE)))=FALSE)),TRUE,FALSE))) -> TRUE | M15: =IFERROR(IF(VLOOKUP($D15,'ADP-Rank'!$A$2:$AV$948,38,FALSE)="",9999,VLOOKUP($D15,'ADP-Rank'!$A$2:$AV$948,38,FALSE)),9999) -> 204.86 | N15: =IF(D15="Non-Ranked Player",-1001,IF(VLOOKUP($D15,'Starter Calc'!$B$2:$D$948,3,FALSE)="",-1000,VLOOKUP($D15,'Starter Calc'!$B$2:$D$948,3,FALSE))) -> 292.1528963 | O15: =IF(D15="Non-Ranked Player",10000,IFERROR(IF(VLOOKUP(D15,'ADP-Rank'!A15:AJ961,36,FALSE)="",9999,VLOOKUP(D15,'ADP-Rank'!A15:AJ961,36,FALSE)),9999)) -> 237 | P15: =IF($D15="Unlisted Player",-1001,IFERROR(IF(IF(OR($H15="RP",$H15="SP"),VLOOKUP($D15,'Filtered-P'!$A$3:$X$938,13,FALSE),VLOOKUP($D15,'Filtered-H'!$A$3:$Z$937,22,FALSE))="",-1000,IF(OR($H15="RP",$H15="SP"),VLOOKUP($D15,'Filtered-P'!$A$3:$X$938,13,FALSE),VLOOKUP($D15,'Filtered-H'!$A$3:$Z$937,22,FALSE))),-1000)) -> 3.331956063 | Q15: =IFERROR(IF($D15="Unlisted Player",-1001,IF(OR(H15="SP",H15="RP"),N15/VLOOKUP($D15,'Filtered-P'!$A$1:$AB$961,4,FALSE),-1000)),-1000) -> 1.679039634 | R15: =IFERROR(IF($D15="Unlisted Player",-1001,IF(OR(H15="SP",H15="RP"),-1000,N15/VLOOKUP($D15,'Filtered-H'!$A$1:$AD$948,2,FALSE))),-1000) -> -1000 | S15: =IF(H15="",#N/A,H15&"."&1+SUMPRODUCT(($H$2:$H$949=H15)*($M$2:$M$949<M15))+COUNTIFS($M$2:M15,M15,$H$2:H15,H15)-1) -> SP.66 | T15: =IFERROR(IF(D15=0,1001,IF(VLOOKUP($D15,'ADP-Rank'!$A$2:$AV$948,38,FALSE)="",999+(IF(J15=FALSE,1,0)),VLOOKUP($D15,'ADP-Rank'!$A$2:$AV$948,38,FALSE))),999+(IF(J15=FALSE,1,0))) -> 204.86 | U15: =IF(H15="",#N/A,1+SUMPRODUCT(($H$2:$H$949=H15)*($M$2:$M$949<M15))+COUNTIFS($M$2:M15,M15,$H$2:H15,H15)-1) -> 66 | V15: =IF(ISERROR(VLOOKUP($B14,Keepers!$C$2:$D$450,2,FALSE)),B14,"") -> Anthony Rendon | W15: =IFERROR(INDEX($V$1:$V$948,SMALL(IF($V$1:$V$948<>"",ROW($V$1:$V$948)),ROW(V15))),"") -> Max Scherzer | X15: =IF(D15="Non-Ranked Player",0,IF(VLOOKUP($D15,'Starter Calc'!$B$2:$D$948,3,FALSE)="",0,VLOOKUP($D15,'Starter Calc'!$B$2:$D$948,3,FALSE))) -> 292.1528963 | Y15: =IFERROR(VLOOKUP(D15,'Starter Calc'!B$2:BS$948,70,FALSE),"") -> Bench
A16: Max Scherzer | B16: =IFERROR(INDEX($A$1:$A$948,SMALL(IF($A$1:$A$948<>"",ROW($A$1:$A$948)),ROW(A16))),"") -> Jose Ramirez | C16: =IFERROR(IF(L16=FALSE,"",CHOOSE(MATCH(RIGHT('Your Points Draft'!$R$3,LEN('Your Points Draft'!$R$3)-8),$M$1:$R$1,0),1+SUMPRODUCT(($L$2:$L$949=TRUE)*($M$2:$M$949<M16))+COUNTIFS($L$2:L16,L16,$M$2:M16,M16)-1,1+SUMPRODUCT(($L$2:$L$949=TRUE)*($N$2:$N$949>N16))+COUNTIFS($L$2:L16,L16,$N$2:N16,N16)-1,1+SUMPRODUCT(($L$2:$L$949=TRUE)*($O$2:$O$949<O16))+COUNTIFS($L$2:L16,L16,$O$2:O16,O16)-1,1+SUMPRODUCT(($L$2:$L$949=TRUE)*($P$2:$P$949>P16))+COUNTIFS($L$2:L16,L16,$P$2:P16,P16)-1,1+SUMPRODUCT(($L$2:$L$949=TRUE)*($Q$2:$Q$949>Q16))+COUNTIFS($L$2:L16,L16,$Q$2:Q16,Q16)-1,1+SUMPRODUCT(($L$2:$L$949=TRUE)*($R$2:$R$949>R16))+COUNTIFS($L$2:L16,L16,$R$2:R16,R16)-1,)),"") -> 379 | D16: Jorge Alfaro | E16: =IFERROR(INDEX('Draft Log'!$D$3:$D$807,MATCH(D16,'Draft Log'!$C$3:$C$807,0)),"") ->  | F16: =IFERROR(INDEX('ADP-Rank'!$C$2:$C$819,MATCH(D16,'ADP-Rank'!$A$2:$A$819,0)),"") -> C | G16: =IFERROR(IF(F16=I16,"",IF(INDEX('Your Points Draft'!$B$10:$B$633,MATCH(D16,'Your Points Draft'!$C$10:$C$633,0))="",IF(I16<>"",I16,""),INDEX('Your Points Draft'!$B$10:$B$633,MATCH(D16,'Your Points Draft'!$C$10:$C$633,0)))),"") ->  | H16: C | J16: =INDEX('ADP-Rank'!$AH$2:$AH$819,MATCH(D16,'ADP-Rank'!$A$2:$A$819,0)) -> TRUE | K16: FALSE | L16: =IF(J16=FALSE,FALSE,IF(AND('Your Points Draft'!$R$5="Hide Drafted Players",K16=TRUE),FALSE,IF(OR('Your Points Draft'!$R$4="Show All Positions",AND('Your Points Draft'!$R$4="Only Show: C",H16="C"),AND('Your Points Draft'!$R$4="Only Show: 1B",H16="1B"),AND('Your Points Draft'!$R$4="Only Show: 2B",H16="2B"),AND('Your Points Draft'!$R$4="Only Show: 3B",H16="3B"),AND('Your Points Draft'!$R$4="Only Show: SS",H16="SS"),AND('Your Points Draft'!$R$4="Only Show: OF",H16="OF"),AND('Your Points Draft'!$R$4="Only Show: SP",H16="SP"),AND('Your Points Draft'!$R$4="Only Show: RP",H16="RP"),AND('Your Points Draft'!$R$4="Only Show: CI",OR(H16={"1B","3B"})),AND('Your Points Draft'!$R$4="Only Show: MI",OR(H16={"2B","SS"})),AND('Your Points Draft'!$R$4="Only Show: IF",OR(H16={"C","1B","2B","3B","SS"})),AND('Your Points Draft'!$R$4="Only Show: DH",OR(H16={"C","1B","2B","3B","SS","OF","DH"})),AND('Your Points Draft'!$R$4="Only Show: P",OR(H16={"SP","RP"})),AND('Your Points Draft'!$R$4="Only Show: LF",ISERROR(SEARCH("LF",VLOOKUP($D16,'ADP-Rank'!$A$2:$D$948,4,FALSE)))=FALSE),AND('Your Points Draft'!$R$4="Only Show: RF",ISERROR(SEARCH("RF",VLOOKUP($D16,'ADP-Rank'!$A$2:$D$948,4,FALSE)))=FALSE),AND('Your Points Draft'!$R$4="Only Show: CF",ISERROR(SEARCH("CF",VLOOKUP($D16,'ADP-Rank'!$A$2:$D$948,4,FALSE)))=FALSE)),TRUE,FALSE))) -> TRUE | M16: =IFERROR(IF(VLOOKUP($D16,'ADP-Rank'!$A$2:$AV$948,38,FALSE)="",9999,VLOOKUP($D16,'ADP-Rank'!$A$2:$AV$948,38,FALSE)),9999) -> 357.5 | N16: =IF(D16="Non-Ranked Player",-1001,IF(VLOOKUP($D16,'Starter Calc'!$B$2:$D$948,3,FALSE)="",-1000,VLOOKUP($D16,'Starter Calc'!$B$2:$D$948,3,FALSE))) -> 130.1331209 | O16: =IF(D16="Non-Ranked Player",10000,IFERROR(IF(VLOOKUP(D16,'ADP-Rank'!A16:AJ962,36,FALSE)="",9999,VLOOKUP(D16,'ADP-Rank'!A16:AJ962,36,FALSE)),9999)) -> 9999 | P16: =IF($D16="Unlisted Player",-1001,IFERROR(IF(IF(OR($H16="RP",$H16="SP"),VLOOKUP($D16,'Filtered-P'!$A$3:$X$938,13,FALSE),VLOOKUP($D16,'Filtered-H'!$A$3:$Z$937,22,FALSE))="",-1000,IF(OR($H16="RP",$H16="SP"),VLOOKUP($D16,'Filtered-P'!$A$3:$X$938,13,FALSE),VLOOKUP($D16,'Filtered-H'!$A$3:$Z$937,22,FALSE))),-1000)) -> -76.77874033 | Q16: =IFERROR(IF($D16="Unlisted Player",-1001,IF(OR(H16="SP",H16="RP"),N16/VLOOKUP($D16,'Filtered-P'!$A$1:$AB$961,4,FALSE),-1000)),-1000) -> -1000 | R16: =IFERROR(IF($D16="Unlisted Player",-1001,IF(OR(H16="SP",H16="RP"),-1000,N16/VLOOKUP($D16,'Filtered-H'!$A$1:$AD$948,2,FALSE))),-1000) -> 0.2982994176 | S16: =IF(H16="",#N/A,H16&"."&1+SUMPRODUCT(($H$2:$H$949=H16)*($M$2:$M$949<M16))+COUNTIFS($M$2:M16,M16,$H$2:H16,H16)-1) -> C.25 | T16: =IFERROR(IF(D16=0,1001,IF(VLOOKUP($D16,'ADP-Rank'!$A$2:$AV$948,38,FALSE)="",999+(IF(J16=FALSE,1,0)),VLOOKUP($D16,'ADP-Rank'!$A$2:$AV$948,38,FALSE))),999+(IF(J16=FALSE,1,0))) -> 357.5 | U16: =IF(H16="",#N/A,1+SUMPRODUCT(($H$2:$H$949=H16)*($M$2:$M$949<M16))+COUNTIFS($M$2:M16,M16,$H$2:H16,H16)-1) -> 25 | V16: =IF(ISERROR(VLOOKUP($B15,Keepers!$C$2:$D$450,2,FALSE)),B15,"") -> Max Scherzer | W16: =IFERROR(INDEX($V$1:$V$948,SMALL(IF($V$1:$V$948<>"",ROW($V$1:$V$948)),ROW(V16))),"") -> Jose Ramirez | X16: =IF(D16="Non-Ranked Player",0,IF(VLOOKUP($D16,'Starter Calc'!$B$2:$D$948,3,FALSE)="",0,VLOOKUP($D16,'Starter Calc'!$B$2:$D$948,3,FALSE))) -> 130.1331209 | Y16: =IFERROR(VLOOKUP(D16,'Starter Calc'!B$2:BS$948,70,FALSE),"") -> Bench
A17: Jose Ramirez | B17: =IFERROR(INDEX($A$1:$A$948,SMALL(IF($A$1:$A$948<>"",ROW($A$1:$A$948)),ROW(A17))),"") -> Jose Altuve | C17: =IFERROR(IF(L17=FALSE,"",CHOOSE(MATCH(RIGHT('Your Points Draft'!$R$3,LEN('Your Points Draft'!$R$3)-8),$M$1:$R$1,0),1+SUMPRODUCT(($L$2:$L$949=TRUE)*($M$2:$M$949<M17))+COUNTIFS($L$2:L17,L17,$M$2:M17,M17)-1,1+SUMPRODUCT(($L$2:$L$949=TRUE)*($N$2:$N$949>N17))+COUNTIFS($L$2:L17,L17,$N$2:N17,N17)-1,1+SUMPRODUCT(($L$2:$L$949=TRUE)*($O$2:$O$949<O17))+COUNTIFS($L$2:L17,L17,$O$2:O17,O17)-1,1+SUMPRODUCT(($L$2:$L$949=TRUE)*($P$2:$P$949>P17))+COUNTIFS($L$2:L17,L17,$P$2:P17,P17)-1,1+SUMPRODUCT(($L$2:$L$949=TRUE)*($Q$2:$Q$949>Q17))+COUNTIFS($L$2:L17,L17,$Q$2:Q17,Q17)-1,1+SUMPRODUCT(($L$2:$L$949=TRUE)*($R$2:$R$949>R17))+COUNTIFS($L$2:L17,L17,$R$2:R17,R17)-1,)),"") -> 497 | D17: Kolby Allard | E17: =IFERROR(INDEX('Draft Log'!$D$3:$D$807,MATCH(D17,'Draft Log'!$C$3:$C$807,0)),"") ->  | F17: =IFERROR(INDEX('ADP-Rank'!$C$2:$C$819,MATCH(D17,'ADP-Rank'!$A$2:$A$819,0)),"") -> SP | G17: =IFERROR(IF(F17=I17,"",IF(INDEX('Your Points Draft'!$B$10:$B$633,MATCH(D17,'Your Points Draft'!$C$10:$C$633,0))="",IF(I17<>"",I17,""),INDEX('Your Points Draft'!$B$10:$B$633,MATCH(D17,'Your Points Draft'!$C$10:$C$633,0)))),"") ->  | H17: SP | J17: =INDEX('ADP-Rank'!$AH$2:$AH$819,MATCH(D17,'ADP-Rank'!$A$2:$A$819,0)) -> TRUE | K17: FALSE | L17: =IF(J17=FALSE,FALSE,IF(AND('Your Points Draft'!$R$5="Hide Drafted Players",K17=TRUE),FALSE,IF(OR('Your Points Draft'!$R$4="Show All Positions",AND('Your Points Draft'!$R$4="Only Show: C",H17="C"),AND('Your Points Draft'!$R$4="Only Show: 1B",H17="1B"),AND('Your Points Draft'!$R$4="Only Show: 2B",H17="2B"),AND('Your Points Draft'!$R$4="Only Show: 3B",H17="3B"),AND('Your Points Draft'!$R$4="Only Show: SS",H17="SS"),AND('Your Points Draft'!$R$4="Only Show: OF",H17="OF"),AND('Your Points Draft'!$R$4="Only Show: SP",H17="SP"),AND('Your Points Draft'!$R$4="Only Show: RP",H17="RP"),AND('Your Points Draft'!$R$4="Only Show: CI",OR(H17={"1B","3B"})),AND('Your Points Draft'!$R$4="Only Show: MI",OR(H17={"2B","SS"})),AND('Your Points Draft'!$R$4="Only Show: IF",OR(H17={"C","1B","2B","3B","SS"})),AND('Your Points Draft'!$R$4="Only Show: DH",OR(H17={"C","1B","2B","3B","SS","OF","DH"})),AND('Your Points Draft'!$R$4="Only Show: P",OR(H17={"SP","RP"})),AND('Your Points Draft'!$R$4="Only Show: LF",ISERROR(SEARCH("LF",VLOOKUP($D17,'ADP-Rank'!$A$2:$D$948,4,FALSE)))=FALSE),AND('Your Points Draft'!$R$4="Only Show: RF",ISERROR(SEARCH("RF",VLOOKUP($D17,'ADP-Rank'!$A$2:$D$948,4,FALSE)))=FALSE),AND('Your Points Draft'!$R$4="Only Show: CF",ISERROR(SEARCH("CF",VLOOKUP($D17,'ADP-Rank'!$A$2:$D$948,4,FALSE)))=FALSE)),TRUE,FALSE))) -> TRUE | M17: =IFERROR(IF(VLOOKUP($D17,'ADP-Rank'!$A$2:$AV$948,38,FALSE)="",9999,VLOOKUP($D17,'ADP-Rank'!$A$2:$AV$948,38,FALSE)),9999) -> 9999 | N17: =IF(D17="Non-Ranked Player",-1001,IF(VLOOKUP($D17,'Starter Calc'!$B$2:$D$948,3,FALSE)="",-1000,VLOOKUP($D17,'Starter Calc'!$B$2:$D$948,3,FALSE))) -> 104.1474438 | O17: =IF(D17="Non-Ranked Player",10000,IFERROR(IF(VLOOKUP(D17,'ADP-Rank'!A17:AJ963,36,FALSE)="",9999,VLOOKUP(D17,'ADP-Rank'!A17:AJ963,36,FALSE)),9999)) -> 9999 | P17: =IF($D17="Unlisted Player",-1001,IFERROR(IF(IF(OR($H17="RP",$H17="SP"),VLOOKUP($D17,'Filtered-P'!$A$3:$X$938,13,FALSE),VLOOKUP($D17,'Filtered-H'!$A$3:$Z$937,22,FALSE))="",-1000,IF(OR($H17="RP",$H17="SP"),VLOOKUP($D17,'Filtered-P'!$A$3:$X$938,13,FALSE),VLOOKUP($D17,'Filtered-H'!$A$3:$Z$937,22,FALSE))),-1000)) -> -184.6734965 | Q17: =IFERROR(IF($D17="Unlisted Player",-1001,IF(OR(H17="SP",H17="RP"),N17/VLOOKUP($D17,'Filtered-P'!$A$1:$AB$961,4,FALSE),-1000)),-1000) -> 1.531580056 | R17: =IFERROR(IF($D17="Unlisted Player",-1001,IF(OR(H17="SP",H17="RP"),-1000,N17/VLOOKUP($D17,'Filtered-H'!$A$1:$AD$948,2,FALSE))),-1000) -> -1000 | S17: =IF(H17="",#N/A,H17&"."&1+SUMPRODUCT(($H$2:$H$949=H17)*($M$2:$M$949<M17))+COUNTIFS($M$2:M17,M17,$H$2:H17,H17)-1) -> SP.140 | T17: =IFERROR(IF(D17=0,1001,IF(VLOOKUP($D17,'ADP-Rank'!$A$2:$AV$948,38,FALSE)="",999+(IF(J17=FALSE,1,0)),VLOOKUP($D17,'ADP-Rank'!$A$2:$AV$948,38,FALSE))),999+(IF(J17=FALSE,1,0))) -> 999 | U17: =IF(H17="",#N/A,1+SUMPRODUCT(($H$2:$H$949=H17)*($M$2:$M$949<M17))+COUNTIFS($M$2:M17,M17,$H$2:H17,H17)-1) -> 140 | V17: =IF(ISERROR(VLOOKUP($B16,Keepers!$C$2:$D$450,2,FALSE)),B16,"") -> Jose Ramirez | W17: =IFERROR(INDEX($V$1:$V$948,SMALL(IF($V$1:$V$948<>"",ROW($V$1:$V$948)),ROW(V17))),"") -> Jose Altuve | X17: =IF(D17="Non-Ranked Player",0,IF(VLOOKUP($D17,'Starter Calc'!$B$2:$D$948,3,FALSE)="",0,VLOOKUP($D17,'Starter Calc'!$B$2:$D$948,3,FALSE))) -> 104.1474438 | Y17: =IFERROR(VLOOKUP(D17,'Starter Calc'!B$2:BS$948,70,FALSE),"") -> Bench
A18: Jose Altuve | B18: =IFERROR(INDEX($A$1:$A$948,SMALL(IF($A$1:$A$948<>"",ROW($A$1:$A$948)),ROW(A18))),"") -> George Springer | C18: =IFERROR(IF(L18=FALSE,"",CHOOSE(MATCH(RIGHT('Your Points Draft'!$R$3,LEN('Your Points Draft'!$R$3)-8),$M$1:$R$1,0),1+SUMPRODUCT(($L$2:$L$949=TRUE)*($M$2:$M$949<M18))+COUNTIFS($L$2:L18,L18,$M$2:M18,M18)-1,1+SUMPRODUCT(($L$2:$L$949=TRUE)*($N$2:$N$949>N18))+COUNTIFS($L$2:L18,L18,$N$2:N18,N18)-1,1+SUMPRODUCT(($L$2:$L$949=TRUE)*($O$2:$O$949<O18))+COUNTIFS($L$2:L18,L18,$O$2:O18,O18)-1,1+SUMPRODUCT(($L$2:$L$949=TRUE)*($P$2:$P$949>P18))+COUNTIFS($L$2:L18,L18,$P$2:P18,P18)-1,1+SUMPRODUCT(($L$2:$L$949=TRUE)*($Q$2:$Q$949>Q18))+COUNTIFS($L$2:L18,L18,$Q$2:Q18,Q18)-1,1+SUMPRODUCT(($L$2:$L$949=TRUE)*($R$2:$R$949>R18))+COUNTIFS($L$2:L18,L18,$R$2:R18,R18)-1,)),"") -> 498 | D18: Austin Allen | E18: =IFERROR(INDEX('Draft Log'!$D$3:$D$807,MATCH(D18,'Draft Log'!$C$3:$C$807,0)),"") ->  | F18: =IFERROR(INDEX('ADP-Rank'!$C$2:$C$819,MATCH(D18,'ADP-Rank'!$A$2:$A$819,0)),"") -> C | G18: =IFERROR(IF(F18=I18,"",IF(INDEX('Your Points Draft'!$B$10:$B$633,MATCH(D18,'Your Points Draft'!$C$10:$C$633,0))="",IF(I18<>"",I18,""),INDEX('Your Points Draft'!$B$10:$B$633,MATCH(D18,'Your Points Draft'!$C$10:$C$633,0)))),"") ->  | H18: C | J18: =INDEX('ADP-Rank'!$AH$2:$AH$819,MATCH(D18,'ADP-Rank'!$A$2:$A$819,0)) -> TRUE | K18: FALSE | L18: =IF(J18=FALSE,FALSE,IF(AND('Your Points Draft'!$R$5="Hide Drafted Players",K18=TRUE),FALSE,IF(OR('Your Points Draft'!$R$4="Show All Positions",AND('Your Points Draft'!$R$4="Only Show: C",H18="C"),AND('Your Points Draft'!$R$4="Only Show: 1B",H18="1B"),AND('Your Points Draft'!$R$4="Only Show: 2B",H18="2B"),AND('Your Points Draft'!$R$4="Only Show: 3B",H18="3B"),AND('Your Points Draft'!$R$4="Only Show: SS",H18="SS"),AND('Your Points Draft'!$R$4="Only Show: OF",H18="OF"),AND('Your Points Draft'!$R$4="Only Show: SP",H18="SP"),AND('Your Points Draft'!$R$4="Only Show: RP",H18="RP"),AND('Your Points Draft'!$R$4="Only Show: CI",OR(H18={"1B","3B"})),AND('Your Points Draft'!$R$4="Only Show: MI",OR(H18={"2B","SS"})),AND('Your Points Draft'!$R$4="Only Show: IF",OR(H18={"C","1B","2B","3B","SS"})),AND('Your Points Draft'!$R$4="Only Show: DH",OR(H18={"C","1B","2B","3B","SS","OF","DH"})),AND('Your Points Draft'!$R$4="Only Show: P",OR(H18={"SP","RP"})),AND('Your Points Draft'!$R$4="Only Show: LF",ISERROR(SEARCH("LF",VLOOKUP($D18,'ADP-Rank'!$A$2:$D$948,4,FALSE)))=FALSE),AND('Your Points Draft'!$R$4="Only Show: RF",ISERROR(SEARCH("RF",VLOOKUP($D18,'ADP-Rank'!$A$2:$D$948,4,FALSE)))=FALSE),AND('Your Points Draft'!$R$4="Only Show: CF",ISERROR(SEARCH("CF",VLOOKUP($D18,'ADP-Rank'!$A$2:$D$948,4,FALSE)))=FALSE)),TRUE,FALSE))) -> TRUE | M18: =IFERROR(IF(VLOOKUP($D18,'ADP-Rank'!$A$2:$AV$948,38,FALSE)="",9999,VLOOKUP($D18,'ADP-Rank'!$A$2:$AV$948,38,FALSE)),9999) -> 9999 | N18: =IF(D18="Non-Ranked Player",-1001,IF(VLOOKUP($D18,'Starter Calc'!$B$2:$D$948,3,FALSE)="",-1000,VLOOKUP($D18,'Starter Calc'!$B$2:$D$948,3,FALSE))) -> 128.3536675 | O18: =IF(D18="Non-Ranked Player",10000,IFERROR(IF(VLOOKUP(D18,'ADP-Rank'!A18:AJ964,36,FALSE)="",9999,VLOOKUP(D18,'ADP-Rank'!A18:AJ964,36,FALSE)),9999)) -> 9999 | P18: =IF($D18="Unlisted Player",-1001,IFERROR(IF(IF(OR($H18="RP",$H18="SP"),VLOOKUP($D18,'Filtered-P'!$A$3:$X$938,13,FALSE),VLOOKUP($D18,'Filtered-H'!$A$3:$Z$937,22,FALSE))="",-1000,IF(OR($H18="RP",$H18="SP"),VLOOKUP($D18,'Filtered-P'!$A$3:$X$938,13,FALSE),VLOOKUP($D18,'Filtered-H'!$A$3:$Z$937,22,FALSE))),-1000)) -> -78.5581938 | Q18: =IFERROR(IF($D18="Unlisted Player",-1001,IF(OR(H18="SP",H18="RP"),N18/VLOOKUP($D18,'Filtered-P'!$A$1:$AB$961,4,FALSE),-1000)),-1000) -> -1000 | R18: =IFERROR(IF($D18="Unlisted Player",-1001,IF(OR(H18="SP",H18="RP"),-1000,N18/VLOOKUP($D18,'Filtered-H'!$A$1:$AD$948,2,FALSE))),-1000) -> 0.4379176645 | S18: =IF(H18="",#N/A,H18&"."&1+SUMPRODUCT(($H$2:$H$949=H18)*($M$2:$M$949<M18))+COUNTIFS($M$2:M18,M18,$H$2:H18,H18)-1) -> C.29 | T18: =IFERROR(IF(D18=0,1001,IF(VLOOKUP($D18,'ADP-Rank'!$A$2:$AV$948,38,FALSE)="",999+(IF(J18=FALSE,1,0)),VLOOKUP($D18,'ADP-Rank'!$A$2:$AV$948,38,FALSE))),999+(IF(J18=FALSE,1,0))) -> 999 | U18: =IF(H18="",#N/A,1+SUMPRODUCT(($H$2:$H$949=H18)*($M$2:$M$949<M18))+COUNTIFS($M$2:M18,M18,$H$2:H18,H18)-1) -> 29 | V18: =IF(ISERROR(VLOOKUP($B17,Keepers!$C$2:$D$450,2,FALSE)),B17,"") -> Jose Altuve | W18: =IFERROR(INDEX($V$1:$V$948,SMALL(IF($V$1:$V$948<>"",ROW($V$1:$V$948)),ROW(V18))),"") -> George Springer | X18: =IF(D18="Non-Ranked Player",0,IF(VLOOKUP($D18,'Starter Calc'!$B$2:$D$948,3,FALSE)="",0,VLOOKUP($D18,'Starter Calc'!$B$2:$D$948,3,FALSE))) -> 128.3536675 | Y18: =IFERROR(VLOOKUP(D18,'Starter Calc'!B$2:BS$948,70,FALSE),"") -> Bench
A19: George Springer | B19: =IFERROR(INDEX($A$1:$A$948,SMALL(IF($A$1:$A$948<>"",ROW($A$1:$A$948)),ROW(A19))),"") -> Rafael Devers | C19: =IFERROR(IF(L19=FALSE,"",CHOOSE(MATCH(RIGHT('Your Points Draft'!$R$3,LEN('Your Points Draft'!$R$3)-8),$M$1:$R$1,0),1+SUMPRODUCT(($L$2:$L$949=TRUE)*($M$2:$M$949<M19))+COUNTIFS($L$2:L19,L19,$M$2:M19,M19)-1,1+SUMPRODUCT(($L$2:$L$949=TRUE)*($N$2:$N$949>N19))+COUNTIFS($L$2:L19,L19,$N$2:N19,N19)-1,1+SUMPRODUCT(($L$2:$L$949=TRUE)*($O$2:$O$949<O19))+COUNTIFS($L$2:L19,L19,$O$2:O19,O19)-1,1+SUMPRODUCT(($L$2:$L$949=TRUE)*($P$2:$P$949>P19))+COUNTIFS($L$2:L19,L19,$P$2:P19,P19)-1,1+SUMPRODUCT(($L$2:$L$949=TRUE)*($Q$2:$Q$949>Q19))+COUNTIFS($L$2:L19,L19,$Q$2:Q19,Q19)-1,1+SUMPRODUCT(($L$2:$L$949=TRUE)*($R$2:$R$949>R19))+COUNTIFS($L$2:L19,L19,$R$2:R19,R19)-1,)),"") -> 499 | D19: Greg Allen | E19: =IFERROR(INDEX('Draft Log'!$D$3:$D$807,MATCH(D19,'Draft Log'!$C$3:$C$807,0)),"") ->  | F19: =IFERROR(INDEX('ADP-Rank'!$C$2:$C$819,MATCH(D19,'ADP-Rank'!$A$2:$A$819,0)),"") -> OF | G19: =IFERROR(IF(F19=I19,"",IF(INDEX('Your Points Draft'!$B$10:$B$633,MATCH(D19,'Your Points Draft'!$C$10:$C$633,0))="",IF(I19<>"",I19,""),INDEX('Your Points Draft'!$B$10:$B$633,MATCH(D19,'Your Points Draft'!$C$10:$C$633,0)))),"") ->  | H19: OF | J19: =INDEX('ADP-Rank'!$AH$2:$AH$819,MATCH(D19,'ADP-Rank'!$A$2:$A$819,0)) -> TRUE | K19: FALSE | L19: =IF(J19=FALSE,FALSE,IF(AND('Your Points Draft'!$R$5="Hide Drafted Players",K19=TRUE),FALSE,IF(OR('Your Points Draft'!$R$4="Show All Positions",AND('Your Points Draft'!$R$4="Only Show: C",H19="C"),AND('Your Points Draft'!$R$4="Only Show: 1B",H19="1B"),AND('Your Points Draft'!$R$4="Only Show: 2B",H19="2B"),AND('Your Points Draft'!$R$4="Only Show: 3B",H19="3B"),AND('Your Points Draft'!$R$4="Only Show: SS",H19="SS"),AND('Your Points Draft'!$R$4="Only Show: OF",H19="OF"),AND('Your Points Draft'!$R$4="Only Show: SP",H19="SP"),AND('Your Points Draft'!$R$4="Only Show: RP",H19="RP"),AND('Your Points Draft'!$R$4="Only Show: CI",OR(H19={"1B","3B"})),AND('Your Points Draft'!$R$4="Only Show: MI",OR(H19={"2B","SS"})),AND('Your Points Draft'!$R$4="Only Show: IF",OR(H19={"C","1B","2B","3B","SS"})),AND('Your Points Draft'!$R$4="Only Show: DH",OR(H19={"C","1B","2B","3B","SS","OF","DH"})),AND('Your Points Draft'!$R$4="Only Show: P",OR(H19={"SP","RP"})),AND('Your Points Draft'!$R$4="Only Show: LF",ISERROR(SEARCH("LF",VLOOKUP($D19,'ADP-Rank'!$A$2:$D$948,4,FALSE)))=FALSE),AND('Your Points Draft'!$R$4="Only Show: RF",ISERROR(SEARCH("RF",VLOOKUP($D19,'ADP-Rank'!$A$2:$D$948,4,FALSE)))=FALSE),AND('Your Points Draft'!$R$4="Only Show: CF",ISERROR(SEARCH("CF",VLOOKUP($D19,'ADP-Rank'!$A$2:$D$948,4,FALSE)))=FALSE)),TRUE,FALSE))) -> TRUE | M19: =IFERROR(IF(VLOOKUP($D19,'ADP-Rank'!$A$2:$AV$948,38,FALSE)="",9999,VLOOKUP($D19,'ADP-Rank'!$A$2:$AV$948,38,FALSE)),9999) -> 9999 | N19: =IF(D19="Non-Ranked Player",-1001,IF(VLOOKUP($D19,'Starter Calc'!$B$2:$D$948,3,FALSE)="",-1000,VLOOKUP($D19,'Starter Calc'!$B$2:$D$948,3,FALSE))) -> 143.3916195 | O19: =IF(D19="Non-Ranked Player",10000,IFERROR(IF(VLOOKUP(D19,'ADP-Rank'!A19:AJ965,36,FALSE)="",9999,VLOOKUP(D19,'ADP-Rank'!A19:AJ965,36,FALSE)),9999)) -> 9999 | P19: =IF($D19="Unlisted Player",-1001,IFERROR(IF(IF(OR($H19="RP",$H19="SP"),VLOOKUP($D19,'Filtered-P'!$A$3:$X$938,13,FALSE),VLOOKUP($D19,'Filtered-H'!$A$3:$Z$937,22,FALSE))="",-1000,IF(OR($H19="RP",$H19="SP"),VLOOKUP($D19,'Filtered-P'!$A$3:$X$938,13,FALSE),VLOOKUP($D19,'Filtered-H'!$A$3:$Z$937,22,FALSE))),-1000)) -> -170.5708892 | Q19: =IFERROR(IF($D19="Unlisted Player",-1001,IF(OR(H19="SP",H19="RP"),N19/VLOOKUP($D19,'Filtered-P'!$A$1:$AB$961,4,FALSE),-1000)),-1000) -> -1000 | R19: =IFERROR(IF($D19="Unlisted Player",-1001,IF(OR(H19="SP",H19="RP"),-1000,N19/VLOOKUP($D19,'Filtered-H'!$A$1:$AD$948,2,FALSE))),-1000) -> 0.5020714968 | S19: =IF(H19="",#N/A,H19&"."&1+SUMPRODUCT(($H$2:$H$949=H19)*($M$2:$M$949<M19))+COUNTIFS($M$2:M19,M19,$H$2:H19,H19)-1) -> OF.101 | T19: =IFERROR(IF(D19=0,1001,IF(VLOOKUP($D19,'ADP-Rank'!$A$2:$AV$948,38,FALSE)="",999+(IF(J19=FALSE,1,0)),VLOOKUP($D19,'ADP-Rank'!$A$2:$AV$948,38,FALSE))),999+(IF(J19=FALSE,1,0))) -> 999 | U19: =IF(H19="",#N/A,1+SUMPRODUCT(($H$2:$H$949=H19)*($M$2:$M$949<M19))+COUNTIFS($M$2:M19,M19,$H$2:H19,H19)-1) -> 101 | V19: =IF(ISERROR(VLOOKUP($B18,Keepers!$C$2:$D$450,2,FALSE)),B18,"") -> George Springer | W19: =IFERROR(INDEX($V$1:$V$948,SMALL(IF($V$1:$V$948<>"",ROW($V$1:$V$948)),ROW(V19))),"") -> Rafael Devers | X19: =IF(D19="Non-Ranked Player",0,IF(VLOOKUP($D19,'Starter Calc'!$B$2:$D$948,3,FALSE)="",0,VLOOKUP($D19,'Starter Calc'!$B$2:$D$948,3,FALSE))) -> 143.3916195 | Y19: =IFERROR(VLOOKUP(D19,'Starter Calc'!B$2:BS$948,70,FALSE),"") -> Bench
A20: Rafael Devers | B20: =IFERROR(INDEX($A$1:$A$948,SMALL(IF($A$1:$A$948<>"",ROW($A$1:$A$948)),ROW(A20))),"") -> Xander Bogaerts | C20: =IFERROR(IF(L20=FALSE,"",CHOOSE(MATCH(RIGHT('Your Points Draft'!$R$3,LEN('Your Points Draft'!$R$3)-8),$M$1:$R$1,0),1+SUMPRODUCT(($L$2:$L$949=TRUE)*($M$2:$M$949<M20))+COUNTIFS($L$2:L20,L20,$M$2:M20,M20)-1,1+SUMPRODUCT(($L$2:$L$949=TRUE)*($N$2:$N$949>N20))+COUNTIFS($L$2:L20,L20,$N$2:N20,N20)-1,1+SUMPRODUCT(($L$2:$L$949=TRUE)*($O$2:$O$949<O20))+COUNTIFS($L$2:L20,L20,$O$2:O20,O20)-1,1+SUMPRODUCT(($L$2:$L$949=TRUE)*($P$2:$P$949>P20))+COUNTIFS($L$2:L20,L20,$P$2:P20,P20)-1,1+SUMPRODUCT(($L$2:$L$949=TRUE)*($Q$2:$Q$949>Q20))+COUNTIFS($L$2:L20,L20,$Q$2:Q20,Q20)-1,1+SUMPRODUCT(($L$2:$L$949=TRUE)*($R$2:$R$949>R20))+COUNTIFS($L$2:L20,L20,$R$2:R20,R20)-1,)),"") -> 500 | D20: Logan Allen | E20: =IFERROR(INDEX('Draft Log'!$D$3:$D$807,MATCH(D20,'Draft Log'!$C$3:$C$807,0)),"") ->  | F20: =IFERROR(INDEX('ADP-Rank'!$C$2:$C$819,MATCH(D20,'ADP-Rank'!$A$2:$A$819,0)),"") -> RP | G20: =IFERROR(IF(F20=I20,"",IF(INDEX('Your Points Draft'!$B$10:$B$633,MATCH(D20,'Your Points Draft'!$C$10:$C$633,0))="",IF(I20<>"",I20,""),INDEX('Your Points Draft'!$B$10:$B$633,MATCH(D20,'Your Points Draft'!$C$10:$C$633,0)))),"") ->  | H20: RP | J20: =INDEX('ADP-Rank'!$AH$2:$AH$819,MATCH(D20,'ADP-Rank'!$A$2:$A$819,0)) -> TRUE | K20: FALSE | L20: =IF(J20=FALSE,FALSE,IF(AND('Your Points Draft'!$R$5="Hide Drafted Players",K20=TRUE),FALSE,IF(OR('Your Points Draft'!$R$4="Show All Positions",AND('Your Points Draft'!$R$4="Only Show: C",H20="C"),AND('Your Points Draft'!$R$4="Only Show: 1B",H20="1B"),AND('Your Points Draft'!$R$4="Only Show: 2B",H20="2B"),AND('Your Points Draft'!$R$4="Only Show: 3B",H20="3B"),AND('Your Points Draft'!$R$4="Only Show: SS",H20="SS"),AND('Your Points Draft'!$R$4="Only Show: OF",H20="OF"),AND('Your Points Draft'!$R$4="Only Show: SP",H20="SP"),AND('Your Points Draft'!$R$4="Only Show: RP",H20="RP"),AND('Your Points Draft'!$R$4="Only Show: CI",OR(H20={"1B","3B"})),AND('Your Points Draft'!$R$4="Only Show: MI",OR(H20={"2B","SS"})),AND('Your Points Draft'!$R$4="Only Show: IF",OR(H20={"C","1B","2B","3B","SS"})),AND('Your Points Draft'!$R$4="Only Show: DH",OR(H20={"C","1B","2B","3B","SS","OF","DH"})),AND('Your Points Draft'!$R$4="Only Show: P",OR(H20={"SP","RP"})),AND('Your Points Draft'!$R$4="Only Show: LF",ISERROR(SEARCH("LF",VLOOKUP($D20,'ADP-Rank'!$A$2:$D$948,4,FALSE)))=FALSE),AND('Your Points Draft'!$R$4="Only Show: RF",ISERROR(SEARCH("RF",VLOOKUP($D20,'ADP-Rank'!$A$2:$D$948,4,FALSE)))=FALSE),AND('Your Points Draft'!$R$4="Only Show: CF",ISERROR(SEARCH("CF",VLOOKUP($D20,'ADP-Rank'!$A$2:$D$948,4,FALSE)))=FALSE)),TRUE,FALSE))) -> TRUE | M20: =IFERROR(IF(VLOOKUP($D20,'ADP-Rank'!$A$2:$AV$948,38,FALSE)="",9999,VLOOKUP($D20,'ADP-Rank'!$A$2:$AV$948,38,FALSE)),9999) -> 9999 | N20: =IF(D20="Non-Ranked Player",-1001,IF(VLOOKUP($D20,'Starter Calc'!$B$2:$D$948,3,FALSE)="",-1000,VLOOKUP($D20,'Starter Calc'!$B$2:$D$948,3,FALSE))) -> 149.3837924 | O20: =IF(D20="Non-Ranked Player",10000,IFERROR(IF(VLOOKUP(D20,'ADP-Rank'!A20:AJ966,36,FALSE)="",9999,VLOOKUP(D20,'ADP-Rank'!A20:AJ966,36,FALSE)),9999)) -> 9999 | P20: =IF($D20="Unlisted Player",-1001,IFERROR(IF(IF(OR($H20="RP",$H20="SP"),VLOOKUP($D20,'Filtered-P'!$A$3:$X$938,13,FALSE),VLOOKUP($D20,'Filtered-H'!$A$3:$Z$937,22,FALSE))="",-1000,IF(OR($H20="RP",$H20="SP"),VLOOKUP($D20,'Filtered-P'!$A$3:$X$938,13,FALSE),VLOOKUP($D20,'Filtered-H'!$A$3:$Z$937,22,FALSE))),-1000)) -> -137.4253682 | Q20: =IFERROR(IF($D20="Unlisted Player",-1001,IF(OR(H20="SP",H20="RP"),N20/VLOOKUP($D20,'Filtered-P'!$A$1:$AB$961,4,FALSE),-1000)),-1000) -> 1.623736873 | R20: =IFERROR(IF($D20="Unlisted Player",-1001,IF(OR(H20="SP",H20="RP"),-1000,N20/VLOOKUP($D20,'Filtered-H'!$A$1:$AD$948,2,FALSE))),-1000) -> -1000 | S20: =IF(H20="",#N/A,H20&"."&1+SUMPRODUCT(($H$2:$H$949=H20)*($M$2:$M$949<M20))+COUNTIFS($M$2:M20,M20,$H$2:H20,H20)-1) -> RP.84 | T20: =IFERROR(IF(D20=0,1001,IF(VLOOKUP($D20,'ADP-Rank'!$A$2:$AV$948,38,FALSE)="",999+(IF(J20=FALSE,1,0)),VLOOKUP($D20,'ADP-Rank'!$A$2:$AV$948,38,FALSE))),999+(IF(J20=FALSE,1,0))) -> 999 | U20: =IF(H20="",#N/A,1+SUMPRODUCT(($H$2:$H$949=H20)*($M$2:$M$949<M20))+COUNTIFS($M$2:M20,M20,$H$2:H20,H20)-1) -> 84 | V20: =IF(ISERROR(VLOOKUP($B19,Keepers!$C$2:$D$450,2,FALSE)),B19,"") -> Rafael Devers | W20: =IFERROR(INDEX($V$1:$V$948,SMALL(IF($V$1:$V$948<>"",ROW($V$1:$V$948)),ROW(V20))),"") -> Xander Bogaerts | X20: =IF(D20="Non-Ranked Player",0,IF(VLOOKUP($D20,'Starter Calc'!$B$2:$D$948,3,FALSE)="",0,VLOOKUP($D20,'Starter Calc'!$B$2:$D$948,3,FALSE))) -> 149.3837924 | Y20: =IFERROR(VLOOKUP(D20,'Starter Calc'!B$2:BS$948,70,FALSE),"") -> Bench
A21: Xander Bogaerts | B21: =IFERROR(INDEX($A$1:$A$948,SMALL(IF($A$1:$A$948<>"",ROW($A$1:$A$948)),ROW(A21))),"") -> Freddie Freeman | C21: =IFERROR(IF(L21=FALSE,"",CHOOSE(MATCH(RIGHT('Your Points Draft'!$R$3,LEN('Your Points Draft'!$R$3)-8),$M$1:$R$1,0),1+SUMPRODUCT(($L$2:$L$949=TRUE)*($M$2:$M$949<M21))+COUNTIFS($L$2:L21,L21,$M$2:M21,M21)-1,1+SUMPRODUCT(($L$2:$L$949=TRUE)*($N$2:$N$949>N21))+COUNTIFS($L$2:L21,L21,$N$2:N21,N21)-1,1+SUMPRODUCT(($L$2:$L$949=TRUE)*($O$2:$O$949<O21))+COUNTIFS($L$2:L21,L21,$O$2:O21,O21)-1,1+SUMPRODUCT(($L$2:$L$949=TRUE)*($P$2:$P$949>P21))+COUNTIFS($L$2:L21,L21,$P$2:P21,P21)-1,1+SUMPRODUCT(($L$2:$L$949=TRUE)*($Q$2:$Q$949>Q21))+COUNTIFS($L$2:L21,L21,$Q$2:Q21,Q21)-1,1+SUMPRODUCT(($L$2:$L$949=TRUE)*($R$2:$R$949>R21))+COUNTIFS($L$2:L21,L21,$R$2:R21,R21)-1,)),"") -> 501 | D21: Albert Almora | E21: =IFERROR(INDEX('Draft Log'!$D$3:$D$807,MATCH(D21,'Draft Log'!$C$3:$C$807,0)),"") ->  | F21: =IFERROR(INDEX('ADP-Rank'!$C$2:$C$819,MATCH(D21,'ADP-Rank'!$A$2:$A$819,0)),"") -> OF | G21: =IFERROR(IF(F21=I21,"",IF(INDEX('Your Points Draft'!$B$10:$B$633,MATCH(D21,'Your Points Draft'!$C$10:$C$633,0))="",IF(I21<>"",I21,""),INDEX('Your Points Draft'!$B$10:$B$633,MATCH(D21,'Your Points Draft'!$C$10:$C$633,0)))),"") ->  | H21: OF | J21: =INDEX('ADP-Rank'!$AH$2:$AH$819,MATCH(D21,'ADP-Rank'!$A$2:$A$819,0)) -> TRUE | K21: FALSE | L21: =IF(J21=FALSE,FALSE,IF(AND('Your Points Draft'!$R$5="Hide Drafted Players",K21=TRUE),FALSE,IF(OR('Your Points Draft'!$R$4="Show All Positions",AND('Your Points Draft'!$R$4="Only Show: C",H21="C"),AND('Your Points Draft'!$R$4="Only Show: 1B",H21="1B"),AND('Your Points Draft'!$R$4="Only Show: 2B",H21="2B"),AND('Your Points Draft'!$R$4="Only Show: 3B",H21="3B"),AND('Your Points Draft'!$R$4="Only Show: SS",H21="SS"),AND('Your Points Draft'!$R$4="Only Show: OF",H21="OF"),AND('Your Points Draft'!$R$4="Only Show: SP",H21="SP"),AND('Your Points Draft'!$R$4="Only Show: RP",H21="RP"),AND('Your Points Draft'!$R$4="Only Show: CI",OR(H21={"1B","3B"})),AND('Your Points Draft'!$R$4="Only Show: MI",OR(H21={"2B","SS"})),AND('Your Points Draft'!$R$4="Only Show: IF",OR(H21={"C","1B","2B","3B","SS"})),AND('Your Points Draft'!$R$4="Only Show: DH",OR(H21={"C","1B","2B","3B","SS","OF","DH"})),AND('Your Points Draft'!$R$4="Only Show: P",OR(H21={"SP","RP"})),AND('Your Points Draft'!$R$4="Only Show: LF",ISERROR(SEARCH("LF",VLOOKUP($D21,'ADP-Rank'!$A$2:$D$948,4,FALSE)))=FALSE),AND('Your Points Draft'!$R$4="Only Show: RF",ISERROR(SEARCH("RF",VLOOKUP($D21,'ADP-Rank'!$A$2:$D$948,4,FALSE)))=FALSE),AND('Your Points Draft'!$R$4="Only Show: CF",ISERROR(SEARCH("CF",VLOOKUP($D21,'ADP-Rank'!$A$2:$D$948,4,FALSE)))=FALSE)),TRUE,FALSE))) -> TRUE | M21: =IFERROR(IF(VLOOKUP($D21,'ADP-Rank'!$A$2:$AV$948,38,FALSE)="",9999,VLOOKUP($D21,'ADP-Rank'!$A$2:$AV$948,38,FALSE)),9999) -> 9999 | N21: =IF(D21="Non-Ranked Player",-1001,IF(VLOOKUP($D21,'Starter Calc'!$B$2:$D$948,3,FALSE)="",-1000,VLOOKUP($D21,'Starter Calc'!$B$2:$D$948,3,FALSE))) -> 170.4654199 | O21: =IF(D21="Non-Ranked Player",10000,IFERROR(IF(VLOOKUP(D21,'ADP-Rank'!A21:AJ967,36,FALSE)="",9999,VLOOKUP(D21,'ADP-Rank'!A21:AJ967,36,FALSE)),9999)) -> 9999 | P21: =IF($D21="Unlisted Player",-1001,IFERROR(IF(IF(OR($H21="RP",$H21="SP"),VLOOKUP($D21,'Filtered-P'!$A$3:$X$938,13,FALSE),VLOOKUP($D21,'Filtered-H'!$A$3:$Z$937,22,FALSE))="",-1000,IF(OR($H21="RP",$H21="SP"),VLOOKUP($D21,'Filtered-P'!$A$3:$X$938,13,FALSE),VLOOKUP($D21,'Filtered-H'!$A$3:$Z$937,22,FALSE))),-1000)) -> -143.4970887 | Q21: =IFERROR(IF($D21="Unlisted Player",-1001,IF(OR(H21="SP",H21="RP"),N21/VLOOKUP($D21,'Filtered-P'!$A$1:$AB$961,4,FALSE),-1000)),-1000) -> -1000 | R21: =IFERROR(IF($D21="Unlisted Player",-1001,IF(OR(H21="SP",H21="RP"),-1000,N21/VLOOKUP($D21,'Filtered-H'!$A$1:$AD$948,2,FALSE))),-1000) -> 0.4980728121 | S21: =IF(H21="",#N/A,H21&"."&1+SUMPRODUCT(($H$2:$H$949=H21)*($M$2:$M$949<M21))+COUNTIFS($M$2:M21,M21,$H$2:H21,H21)-1) -> OF.102 | T21: =IFERROR(IF(D21=0,1001,IF(VLOOKUP($D21,'ADP-Rank'!$A$2:$AV$948,38,FALSE)="",999+(IF(J21=FALSE,1,0)),VLOOKUP($D21,'ADP-Rank'!$A$2:$AV$948,38,FALSE))),999+(IF(J21=FALSE,1,0))) -> 999 | U21: =IF(H21="",#N/A,1+SUMPRODUCT(($H$2:$H$949=H21)*($M$2:$M$949<M21))+COUNTIFS($M$2:M21,M21,$H$2:H21,H21)-1) -> 102 | V21: =IF(ISERROR(VLOOKUP($B20,Keepers!$C$2:$D$450,2,FALSE)),B20,"") -> Xander Bogaerts | W21: =IFERROR(INDEX($V$1:$V$948,SMALL(IF($V$1:$V$948<>"",ROW($V$1:$V$948)),ROW(V21))),"") -> Freddie Freeman | X21: =IF(D21="Non-Ranked Player",0,IF(VLOOKUP($D21,'Starter Calc'!$B$2:$D$948,3,FALSE)="",0,VLOOKUP($D21,'Starter Calc'!$B$2:$D$948,3,FALSE))) -> 170.4654199 | Y21: =IFERROR(VLOOKUP(D21,'Starter Calc'!B$2:BS$948,70,FALSE),"") -> Bench
A22: Freddie Freeman | B22: =IFERROR(INDEX($A$1:$A$948,SMALL(IF($A$1:$A$948<>"",ROW($A$1:$A$948)),ROW(A22))),"") -> Shane Bieber | C22: =IFERROR(IF(L22=FALSE,"",CHOOSE(MATCH(RIGHT('Your Points Draft'!$R$3,LEN('Your Points Draft'!$R$3)-8),$M$1:$R$1,0),1+SUMPRODUCT(($L$2:$L$949=TRUE)*($M$2:$M$949<M22))+COUNTIFS($L$2:L22,L22,$M$2:M22,M22)-1,1+SUMPRODUCT(($L$2:$L$949=TRUE)*($N$2:$N$949>N22))+COUNTIFS($L$2:L22,L22,$N$2:N22,N22)-1,1+SUMPRODUCT(($L$2:$L$949=TRUE)*($O$2:$O$949<O22))+COUNTIFS($L$2:L22,L22,$O$2:O22,O22)-1,1+SUMPRODUCT(($L$2:$L$949=TRUE)*($P$2:$P$949>P22))+COUNTIFS($L$2:L22,L22,$P$2:P22,P22)-1,1+SUMPRODUCT(($L$2:$L$949=TRUE)*($Q$2:$Q$949>Q22))+COUNTIFS($L$2:L22,L22,$Q$2:Q22,Q22)-1,1+SUMPRODUCT(($L$2:$L$949=TRUE)*($R$2:$R$949>R22))+COUNTIFS($L$2:L22,L22,$R$2:R22,R22)-1,)),"") -> 25 | D22: Pete Alonso | E22: =IFERROR(INDEX('Draft Log'!$D$3:$D$807,MATCH(D22,'Draft Log'!$C$3:$C$807,0)),"") ->  | F22: =IFERROR(INDEX('ADP-Rank'!$C$2:$C$819,MATCH(D22,'ADP-Rank'!$A$2:$A$819,0)),"") -> 1B | G22: =IFERROR(IF(F22=I22,"",IF(INDEX('Your Points Draft'!$B$10:$B$633,MATCH(D22,'Your Points Draft'!$C$10:$C$633,0))="",IF(I22<>"",I22,""),INDEX('Your Points Draft'!$B$10:$B$633,MATCH(D22,'Your Points Draft'!$C$10:$C$633,0)))),"") ->  | H22: 1B | J22: =INDEX('ADP-Rank'!$AH$2:$AH$819,MATCH(D22,'ADP-Rank'!$A$2:$A$819,0)) -> TRUE | K22: FALSE | L22: =IF(J22=FALSE,FALSE,IF(AND('Your Points Draft'!$R$5="Hide Drafted Players",K22=TRUE),FALSE,IF(OR('Your Points Draft'!$R$4="Show All Positions",AND('Your Points Draft'!$R$4="Only Show: C",H22="C"),AND('Your Points Draft'!$R$4="Only Show: 1B",H22="1B"),AND('Your Points Draft'!$R$4="Only Show: 2B",H22="2B"),AND('Your Points Draft'!$R$4="Only Show: 3B",H22="3B"),AND('Your Points Draft'!$R$4="Only Show: SS",H22="SS"),AND('Your Points Draft'!$R$4="Only Show: OF",H22="OF"),AND('Your Points Draft'!$R$4="Only Show: SP",H22="SP"),AND('Your Points Draft'!$R$4="Only Show: RP",H22="RP"),AND('Your Points Draft'!$R$4="Only Show: CI",OR(H22={"1B","3B"})),AND('Your Points Draft'!$R$4="Only Show: MI",OR(H22={"2B","SS"})),AND('Your Points Draft'!$R$4="Only Show: IF",OR(H22={"C","1B","2B","3B","SS"})),AND('Your Points Draft'!$R$4="Only Show: DH",OR(H22={"C","1B","2B","3B","SS","OF","DH"})),AND('Your Points Draft'!$R$4="Only Show: P",OR(H22={"SP","RP"})),AND('Your Points Draft'!$R$4="Only Show: LF",ISERROR(SEARCH("LF",VLOOKUP($D22,'ADP-Rank'!$A$2:$D$948,4,FALSE)))=FALSE),AND('Your Points Draft'!$R$4="Only Show: RF",ISERROR(SEARCH("RF",VLOOKUP($D22,'ADP-Rank'!$A$2:$D$948,4,FALSE)))=FALSE),AND('Your Points Draft'!$R$4="Only Show: CF",ISERROR(SEARCH("CF",VLOOKUP($D22,'ADP-Rank'!$A$2:$D$948,4,FALSE)))=FALSE)),TRUE,FALSE))) -> TRUE | M22: =IFERROR(IF(VLOOKUP($D22,'ADP-Rank'!$A$2:$AV$948,38,FALSE)="",9999,VLOOKUP($D22,'ADP-Rank'!$A$2:$AV$948,38,FALSE)),9999) -> 32.12 | N22: =IF(D22="Non-Ranked Player",-1001,IF(VLOOKUP($D22,'Starter Calc'!$B$2:$D$948,3,FALSE)="",-1000,VLOOKUP($D22,'Starter Calc'!$B$2:$D$948,3,FALSE))) -> 427.6295808 | O22: =IF(D22="Non-Ranked Player",10000,IFERROR(IF(VLOOKUP(D22,'ADP-Rank'!A22:AJ968,36,FALSE)="",9999,VLOOKUP(D22,'ADP-Rank'!A22:AJ968,36,FALSE)),9999)) -> 44 | P22: =IF($D22="Unlisted Player",-1001,IFERROR(IF(IF(OR($H22="RP",$H22="SP"),VLOOKUP($D22,'Filtered-P'!$A$3:$X$938,13,FALSE),VLOOKUP($D22,'Filtered-H'!$A$3:$Z$937,22,FALSE))="",-1000,IF(OR($H22="RP",$H22="SP"),VLOOKUP($D22,'Filtered-P'!$A$3:$X$938,13,FALSE),VLOOKUP($D22,'Filtered-H'!$A$3:$Z$937,22,FALSE))),-1000)) -> 104.426995 | Q22: =IFERROR(IF($D22="Unlisted Player",-1001,IF(OR(H22="SP",H22="RP"),N22/VLOOKUP($D22,'Filtered-P'!$A$1:$AB$961,4,FALSE),-1000)),-1000) -> -1000 | R22: =IFERROR(IF($D22="Unlisted Player",-1001,IF(OR(H22="SP",H22="RP"),-1000,N22/VLOOKUP($D22,'Filtered-H'!$A$1:$AD$948,2,FALSE))),-1000) -> 0.6625293683 | S22: =IF(H22="",#N/A,H22&"."&1+SUMPRODUCT(($H$2:$H$949=H22)*($M$2:$M$949<M22))+COUNTIFS($M$2:M22,M22,$H$2:H22,H22)-1) -> 1B.2 | T22: =IFERROR(IF(D22=0,1001,IF(VLOOKUP($D22,'ADP-Rank'!$A$2:$AV$948,38,FALSE)="",999+(IF(J22=FALSE,1,0)),VLOOKUP($D22,'ADP-Rank'!$A$2:$AV$948,38,FALSE))),999+(IF(J22=FALSE,1,0))) -> 32.12 | U22: =IF(H22="",#N/A,1+SUMPRODUCT(($H$2:$H$949=H22)*($M$2:$M$949<M22))+COUNTIFS($M$2:M22,M22,$H$2:H22,H22)-1) -> 2 | V22: =IF(ISERROR(VLOOKUP($B21,Keepers!$C$2:$D$450,2,FALSE)),B21,"") -> Freddie Freeman | W22: =IFERROR(INDEX($V$1:$V$948,SMALL(IF($V$1:$V$948<>"",ROW($V$1:$V$948)),ROW(V22))),"") -> Shane Bieber | X22: =IF(D22="Non-Ranked Player",0,IF(VLOOKUP($D22,'Starter Calc'!$B$2:$D$948,3,FALSE)="",0,VLOOKUP($D22,'Starter Calc'!$B$2:$D$948,3,FALSE))) -> 427.6295808 | Y22: =IFERROR(VLOOKUP(D22,'Starter Calc'!B$2:BS$948,70,FALSE),"") -> Bench
